Workbook

Sheet YARIŞMA BİLGİLERİ
A2: Türkiye Atletizm Federasyonu İzmir Atletizm İl Temsilciliği
A14: =F19 -> Naili Moran Türkiye Atletizm Şampiyonası
A18: Yarışma Bilgileri
A19: Yarışma Adı : | F19: Naili Moran Türkiye Atletizm Şampiyonası
A20: Yarışmanın Yapıldığı İl : | F20: İzmir
A21: Kategori : | F21: 13 Yaş Erkekler
A22: Tarih : | F22: 14 - 15 Haziran 2014
A23: Katılan Sporcu Sayısı : | F23: 85

Sheet YARIŞMA PROGRAMI
H1: Diskalifiye Nedenleri ve Kural Numaraları
B2: ='YARIŞMA BİLGİLERİ'!F19 -> Naili Moran Türkiye Atletizm Şampiyonası
B3: YARIŞMA PROGRAMI
B4: Bakmak istediğiniz branş üzerine "Tıkla"yınız… | H4: KURAL 125.5 : Yarışmalar esnasında sportmenlik dışı davranışlarda bulunan sporcu IAAF Kural 125.5 gereği diskalifiye edilecektir. Sporcunun yarışmanın devamındaki diğer branşlara katılması da engellenecektir. “Bu kurala göre diskalifiye edilen atletin, diskalifiye edildiği yarıştaki dereceleri geçersizdir.” Yarışma sonucunda o atletin karşısında sadece “DQ 125.5” yazacak. Tüm uyarılar ve diskalifikasyonlar (yani sarı ve kırmızı kartlar) yarışma sekreterliğine ve tüm başhakemlere bildirilecektir.
B5: ='YARIŞMA BİLGİLERİ'!F21 -> 13 Yaş Erkekler | D5: 1.GÜN | H5: KURAL 144.2 : Yarışma sırasında kurallar dışında yardım alan veya yardım veren atlet, başhakem tarafından önce sarı kartla uyarılır, tekrarı halinde IAAF Kural 144.2’ye göre diskalifiye edİLİ-İLİr. Yarışma alanında telefon, telsiz, radyo, kasetçalar vb. cihazlar kullanılması, atlete avantaj sağlayacak şekilde yay, tekerlek vb. donanıma sahip ayakkabıların giyilmesi, atma aletlerinin normal ölçülerine eklerin yapılması, “kural dışı yardım” kabul edİLİ-İLİr. Mesafe koşularında tur yemiş ya da tur yemek üzere olan atletlerin tempo vermesi, IAAF Kural 144.2 çerçevesinde her iki atletin de diskalifiye edilmesini gerektirir.
B6: SAAT | C6: BRANŞ | D6: BARAJ DERECESİ | E6: REKOR | H6: KURAL 162.5 :Yerlerinize ya da dikkat komutundan sonra makul bir sürede pozisyon almayan ve yerlerinize komutundan sonra sesle ya da başka şekilde diğer atlet(ler)i rahatsız eden atlet(ler) önce sarı kart, tekrarı halinde kırmızı kart görür.” Eğer başhakem, starterin kararıyla mutabık değilse, tüm atletlere yeşil kart gösterİLİ-İLİr. Bu kural sadece starteri/start başhakemini ilgilendirir.
B7: 14 Haziran 2014 - 18:40 | C7: 100 Metre | H7: KURAL 162.7 : Hatalı çıkış yapan her atlet diskalifiye edİLİ-İLİr. Yarışmada ilk hatalı çıkışı yapan sporcu dahil, hatalı çıkış yapan tüm atletler IAAF Kural 162.7 gereği diskalifiye edilecektir.
B8: 14 Haziran 2014 - 13:40 | C8: 400 Metre | H8: KURAL 163.2 : Yarışma içerisinde bir sporcunun iterek veya çelme takarak, kasıtlı olarak bir başka sporcunun düşmesine neden olması diskalifiye sebebidir. Bunu yapan sporcu IAAF Kural 163.2 gereği diskalifiye edilecektir. (Bu tip olaylarda yardımcı hakem sarı bayrağını kaldıracak ve başhakemi bilgilendirecektir. Diskalifiye olup olmayacağına başhakem karar verecektir.)
B9: 14 Haziran 2014 - 19:45 | C9: 1500 Metre | H9: KURAL 163.3 : Kulvarlı koşuların tamamında sporcu, yarışmayı çıkıştan varışa kadar kendi kulvarında koşmak zorundadır. Virajda kendi kulvarının solundaki kulvara geçen ya da o kulvarın çizgisine temas eden atlet, IAAF Kural 163.3 gereği diskalifiye edilecektir. Ancak sporcu yarışma içerisinde başkası tarafından itilmek veya dengesinin bozulması sonucu kulvar değiştirmek zorunda kalırsa ve bu durum kendisine avantaj sağlamazsa diskalifiye söz konusu olmayacaktır. Düzlükte kendi kulvarının dışına çıkan ve kendisine mesafe avantajı sağlamayan atlet, bir diğer kulvardaki atleti engellememişse diskalifiye edilmez. Virajda kendi kulvarının sağındaki kulvara geçen ya da o kulvarın çizgisiyle temas eden atlet, o kulvarda koşan atleti engellememişse diskalifiye edilmez.
B10: 14 Haziran 2014 - 11:00 | C10: 80 Metre Engelli | H10: KURAL 163.3 : 800 metre koşusunda sporcular kendi kulvarlarını terk edecekleri çizgiye kadar, kulvarlarında koşmak zorundadır. Bu işaretli bölüme gelmeden kulvarını terk eden sporcu IAAF Kural 163.3 gereği diskalifiye edilecektir.
B11: 14 Haziran 2014 - 17:00 | C11: Yüksek Atlama | H11: KURAL 163.3 : 4*400 metre bayrak yarışmasında ikinci sıradaki sporcu kulvar farkı sona erinceye kadar (ilk dönemeç) kendi kulvarında koşacaktır. Bu noktaya gelene kadar kulvar ihlali yapan sporcunun takımı IAAF Kural 163.3 gereği diskalifiye edilecektir
B12: 14 Haziran 2014 - 11:45 | C12: Uzun Atlama A Grubu | H12: KURAL 168.7 : Engel yarışmalarında engel geçişi esnasında ayağını engelin üst kısmının yatay düzeyinin aşağısından geçiren, eli veya ayağı ile engeli kasten deviren ve her ne sebeple olursa olsun engel üzerinden geçmeyen sporcu IAAF Kural 168.7 gereği diskalifiye edilecektir.
B13: 14 Haziran 2014 - 11:45 | C13: Uzun Atlama B Grubu | H13: KURAL 170.9 : 4*400 metre bayrak yarışmasında 3. ve 4. sporcular; kendilerinden önceki takım elemanlarının 200 metreyi geçiş durumuna göre sıralanacaklar ve bu sıralamayı bayrak değişim anına kadar değiştirdikleri takdirde takımları IAAF Kural 170.9 gereği diskalifiye edilecektir.
B14: 14 Haziran 2014 - 20:15 | C14: Disk Atma | H14: KURAL 170.13 : Bayrak yarışmalarında bayrağın yere düşmesi halinde, bayrağı düşüren atlet alacaktır. Bayrağı düşüren atletin dışında bir atletin alması, IAAF Kural 170.13’e göre takımın diskalifiye edilmesine neden olur. Bayrağı düşüren atlet, bayrağı yerden alırken koşulan mesafeyi kısaltır ya da bir başka kulvardaki atleti engellerse, yine bu kural çerçevesinde takımı diskalifiye edİLİ-İLİr.
B15: 15 Haziran 2014 - 12:30 | C15: 200 Metre | H15: KURAL 170.14 : Bayrak yarışmalarında bayrağın değişim sahasının dışında değiştirilmesi durumunda hatalı değişimi yapan takım IAAF Kural 170.14 gereği diskalifiye edilecektir. Bu noktada dikkat edilmesi gereken en önemli husus sporcunun değil, bayrağın değişim alanı içerisinde olmasıdır.
B16: 15 Haziran 2014 - 11:15 | C16: 800 Metre | H16: Uluslararası kısaltmalar
B17: 15 Haziran 2014 - 13:00 | C17: 3000 Metre | H17: DNS : Yarışa başlamadı
B18: 15 Haziran 2014 - 13:45 | C18: 300 Metre Engelli | H18: DNF : Yarışı tamamlamadı
B19: 15 Haziran 2014 - 13:00 | C19: Üçadım Atlama | H19: DQ : Diskalifiye
B20: 15 Haziran 2014 - 9:30 | C20: Sırıkla Atlama | H20: NM : Geçerli derecesi yok
B21: 14 Haziran 2014 - 10:15 | C21: Gülle Atma | H21: Türkiye Rekoru Kısaltmaları
B22: 15 Haziran 2014 - 10:15 | C22: Cirit Atma | H22: TR : Türkiye Rekoru
B23: 15 Haziran 2014 - 13:00 | C23: Çekiç Atma | H23: GTR : Türkiye Gençler Rekoru
B24: 15 Haziran 2014 - 13:00 | C24: Genel Puan Durumu | H24: YTR : Türkiye Yıldızlar Rekoru

Sheet KAYIT LİSTESİ
A1: ='YARIŞMA BİLGİLERİ'!F19 -> Naili Moran Türkiye Atletizm Şampiyonası
A2: ='YARIŞMA BİLGİLERİ'!F21 -> 13 Yaş Erkekler | G2: Kayıt Listesi | I2: =NOW() -> 41805.64008
A3: S.N. | B3: SERİ-KULVAR FORMÜLÜ | C3: GÖĞÜS NO | D3: TC NO | E3: DOĞUM TARİHİ | F3: ADI VE SOYADI | G3: İLİ-İLİ | H3: YARIŞACAĞI BRANŞ | I3: EN İYİ DERECESİ | J3: SERİ | K3: KULVAR | L3: ATMA-ATLAMA SIRASI
A4: 1 | B4: =CONCATENATE(H4,"-",J4,"-",K4) -> 100M-1-4 | C4: 432 | D4: - | E4: 2001-03-01 | F4: YUNUS EMRE GEZGİN | G4: İZMİR | H4: 100M | I4: 1200 | J4: 1 | K4: 4
A5: 2 | B5: =CONCATENATE(H5,"-",J5,"-",K5) -> 100M-1-5 | C5: 642 | E5: 2001-02-13 | F5: SEYFİCAN ÜNYELİ | G5: SAMSUN | H5: 100M | I5: 1200 | J5: 1 | K5: 5
A6: 3 | B6: 100M-1-3 | C6: 85 | D6: - | E6: 2001-01-01 | F6: YILMAZ BERKE KARATAŞ | G6: AYDIN | H6: 100M | I6: 1200 | J6: 1 | K6: 3
A7: 4 | B7: 100M-1-6 | C7: 644 | E7: 2001-06-07 | F7: GÖKHAN BEŞİR | G7: SAMSUN | H7: 100M | I7: 1230 | J7: 1 | K7: 6
A8: 5 | B8: 100M-1-2 | C8: 204 | D8: - | E8: 2001-05-04 | F8: BERK DENİZ ÇELEN | G8: BURSA | H8: 100M | I8: 1235 | J8: 1 | K8: 2
A9: 6 | B9: 100M-1-7 | C9: 236 | D9: - | E9: 2001-01-01 | F9: MEHMET KUZU | G9: DİYARBAKIR | H9: 100M | I9: 1280 | J9: 1 | K9: 7
A10: 7 | B10: 100M-1-1 | C10: 682 | E10: 2001-01-01 | F10: BATUHAN ÇAKIR | G10: TEKİRDAĞ | H10: 100M | I10: 1280 | J10: 1 | K10: 1
A11: 8 | B11: 100M-1-8 | C11: 731 | D11: - | E11: 2001-02-21 | F11: SAMET ÖZER | G11: BURSA | H11: 100M | I11: 1300 | J11: 1 | K11: 8
A12: 9 | B12: 100M-2-4 | C12: 420 | D12: - | E12: 2001-01-11 | F12: HÜSEYİN GÖRKEM DENİZ | G12: İZMİR | H12: 100M | I12: 1300 | J12: 2 | K12: 4
A13: 10 | B13: 100M-2-5 | C13: 158 | D13: - | E13: 2001-01-08 | F13: SAMET ESATOĞLU | G13: BİLECİK | H13: 100M | I13: 1304 | J13: 2 | K13: 5
A14: 11 | B14: 100M-2-3 | C14: 511 | E14: 2001-01-21 | F14: EMİN BURAK ÇAPA | G14: KOCAELİ | H14: 100M | I14: 1310 | J14: 2 | K14: 3
A15: 12 | B15: 100M-2-6 | C15: 725 | E15: 2001-01-01 | F15: BURAK ATIZ | G15: TUNCELİ | H15: 100M | I15: 1310 | J15: 2 | K15: 6
A16: 13 | B16: 100M-2-2 | C16: 732 | D16: - | E16: 2001-03-22 | F16: SONER TURGUT | G16: BURSA | H16: 100M | I16: 1315 | J16: 2 | K16: 2
A17: 14 | B17: 100M-2-7 | C17: 685 | E17: 2001-05-22 | F17: ÖNDER ATUN | G17: TEKİRDAĞ | H17: 100M | I17: 1330 | J17: 2 | K17: 7
A18: 15 | B18: 100M-2-1 | C18: 436 | D18: - | E18: 2001-02-17 | F18: MUSTAFA ÇİÇEK | G18: İZMİR | H18: 100M | I18: 1330 | J18: 2 | K18: 1
B19: 100M-3-4 | C19: 438 | D19: - | E19: 2001-02-04 | F19: ZEYNEL ABİDİN NECMİOĞLU | G19: İZMİR | H19: 100M | I19: 1330 | J19: 3 | K19: 4
A20: 17 | B20: 100M-3-5 | C20: 703 | E20: 2001-01-15 | F20: MEHMET EMİN KILINÇ | G20: TOKAT | H20: 100M | I20: 1342 | J20: 3 | K20: 5
A21: 18 | B21: 100M-3-3 | C21: 713 | E21: 2001-01-03 | F21: ASLAN KAĞAN KALINTAŞ | G21: TRABZON | H21: 100M | I21: 1360 | J21: 3 | K21: 3
A22: 19 | B22: 100M-3-6 | C22: 547 | E22: 2001-02-21 | F22: ADİL KARAKAŞ | G22: KÜTAHYA | H22: 100M | I22: 1400 | J22: 3 | K22: 6
A23: 20 | B23: 100M-3-2 | C23: 437 | D23: - | E23: 2001-01-10 | F23: KUBİLAY ENCÜ | G23: İZMİR | H23: 100M | I23: 1430 | J23: 3 | K23: 2
A24: 21 | B24: 100M-3-7 | C24: 417 | D24: - | E24: 2001-01-18 | F24: MUSTAFA ASLANER | G24: İZMİR | H24: 100M | I24: 1450 | J24: 3 | K24: 7
A25: 22 | B25: 100M-3-1 | C25: 450 | E25: 2001-01-04 | F25: FURKAN ÇEKEN | G25: İZMİR | H25: 100M | I25: 1500 | J25: 3 | K25: 1
A26: 23 | B26: 100M-4-4 | C26: 567 | E26: 2001-01-01 | F26: ÜMİT GÜLER | G26: MUĞLA | H26: 100M | I26: - | J26: 4 | K26: 4
A27: 24 | B27: 100M-4-5 | C27: 86 | D27: - | E27: 2001-05-14 | F27: İBRAHİM BULUT | G27: AYDIN | H27: 100M | I27: - | J27: 4 | K27: 5
A28: 25 | B28: 100M-4-3 | C28: 255 | D28: - | E28: 2001-02-25 | F28: ERAY ŞEKER | G28: ERZİNCAN | H28: 100M | I28: - | J28: 4 | K28: 3
A29: 26 | B29: 100M-4-6 | C29: 206 | D29: - | E29: 2001-01-01 | F29: YUNUS EMRE GÜMÜŞ | G29: BURSA | H29: 100M | I29: - | J29: 4 | K29: 6
A30: 27 | B30: 100M-4-2 | C30: 302 | D30: - | E30: 2001-04-15 | F30: YELDA YAĞMUR | G30: GİRESUN | H30: 100M | I30: - | J30: 4 | K30: 2
B31: 100M-4-7 | C31: 613 | E31: 2001-05-15 | F31: MUSTAFA ÇAĞLAR KORKMAZ | G31: OSMANİYE | H31: 100M | I31: - | J31: 4 | K31: 7
B32: 100M-4-1 | C32: 455 | E32: 2001-01-09 | F32: BATUHAN ORHUNBİLGE | G32: İZMİR | H32: 100M | I32: - | J32: 4 | K32: 1
B34: 80M.ENG-1-4 | C34: 644 | E34: 2001-06-07 | F34: GÖKHAN BEŞİR | G34: SAMSUN | H34: 80M.ENG | I34: 1220 | J34: 1 | K34: 4
B35: 80M.ENG-1-5 | C35: 117 | D35: - | E35: 2001-01-01 | F35: Y.İZZET EROL | G35: BALIKESİR | H35: 80M.ENG | I35: 1230 | J35: 1 | K35: 5
A36: 32 | B36: 80M.ENG-1-3 | C36: 530 | E36: 2001-03-20 | F36: YUNUS EMRE KIZIL | G36: KONYA | H36: 80M.ENG | I36: 1240 | J36: 1 | K36: 3
A37: 33 | B37: 80M.ENG-1-6 | C37: 682 | E37: 2001-01-01 | F37: BATUHAN ÇAKIR | G37: TEKİRDAĞ | H37: 80M.ENG | I37: 1276 | J37: 1 | K37: 6
A38: 34 | B38: 80M.ENG-1-2 | C38: 681 | E38: 2001-04-25 | F38: OĞUZ KAĞAN HACIOĞLU | G38: TEKİRDAĞ | H38: 80M.ENG | I38: 1308 | J38: 1 | K38: 2
A39: 35 | B39: 80M.ENG-1-7 | C39: 436 | D39: - | E39: 2001-02-17 | F39: MUSTAFA ÇİÇEK | G39: İZMİR | H39: 80M.ENG | I39: 1340 | J39: 1 | K39: 7
A40: 36 | B40: 80M.ENG-1-1 | C40: 438 | D40: - | E40: 2001-02-04 | F40: ZEYNEL ABİDİN NECMİOĞLU | G40: İZMİR | H40: 80M.ENG | I40: 1360 | J40: 1 | K40: 1
A41: 37 | B41: 80M.ENG-1-8 | C41: 643 | E41: 2001-06-07 | F41: METEHAN ACAR | G41: SAMSUN | H41: 80M.ENG | I41: 1410 | J41: 1 | K41: 8
A42: 38 | B42: 80M.ENG-2-4 | C42: 568 | E42: 2001-04-03 | F42: AHMET CAN SÜRAL | G42: MUĞLA | H42: 80M.ENG | I42: 1425 | J42: 2 | K42: 4
A43: 39 | B43: 80M.ENG-2-5 | C43: 437 | D43: - | E43: 2001-01-10 | F43: KUBİLAY ENCÜ | G43: İZMİR | H43: 80M.ENG | I43: 1580 | J43: 2 | K43: 5
A44: 40 | B44: 80M.ENG-2-3 | C44: 160 | D44: - | E44: 2001-01-16 | F44: FERDİ FIRAT TAŞKIRAN | G44: BİLECİK | H44: 80M.ENG | I44: 1850 | J44: 2 | K44: 3
A45: 41 | B45: 80M.ENG-2-6 | C45: 453 | E45: 2001-04-06 | F45: MEHMET ÖZGÜR | G45: İZMİR | H45: 80M.ENG | I45: - | J45: 2 | K45: 6
A46: 42 | B46: 80M.ENG-2-2 | C46: 455 | E46: 2001-01-09 | F46: BATUHAN ORHUNBİLGE | G46: İZMİR | H46: 80M.ENG | I46: - | J46: 2 | K46: 2
A47: 43 | B47: 80M.ENG-2-7 | C47: 14 | D47: - | E47: 2001-01-01 | F47: KENAN KODAÇ | G47: ADANA | H47: 80M.ENG | I47: - | J47: 2 | K47: 7
A48: 44 | B48: 80M.ENG-2-1 | C48: 15 | D48: - | E48: 2001-01-01 | F48: VEYSİ KARDAŞ | G48: ADANA | H48: 80M.ENG | I48: - | J48: 2 | K48: 1
A49: 45 | B49: 80M.ENG-2-8 | C49: 302 | D49: - | E49: 2001-04-15 | F49: YELDA YAĞMUR | G49: GİRESUN | H49: 80M.ENG | I49: - | J49: 2 | K49: 8
A50: 46 | B50: 80M.ENG-- | H50: 80M.ENG
A51: 59 | B51: =CONCATENATE(H51,"-",J51,"-",K51) -> 1500M-- | H51: 1500M
A52: 60 | B52: -- | D52: -
A53: 61 | B53: 1500M-1-3 | C53: 552 | E53: 2001-11-16 | F53: İBRAHİM SUBAŞI | G53: KÜTAHYA | H53: 1500M | I53: 42500 | J53: 1 | K53: 3
A54: 62 | B54: 1500M-1-4 | C54: 578 | E54: 2001-03-23 | F54: Cihan AKOVA | G54: MUŞ | H54: 1500M | I54: 42800 | J54: 1 | K54: 4
A55: 63 | B55: 1500M-1-5 | C55: 343 | D55: - | E55: 2001-12-20 | F55: METİN GÜRDAL | G55: ISPARTA | H55: 1500M | I55: 43000 | J55: 1 | K55: 5
B56: 1500M-1-6 | C56: 284 | D56: - | E56: 2001-01-01 | F56: MAHMUT CAN KURTARAN | G56: GAZİANTEP | H56: 1500M | I56: 43000 | J56: 1 | K56: 6
B57: -- | D57: -
B58: 1500M-1-8 | C58: 533 | E58: 2001-01-01 | F58: SEZEN ÇİĞDEM | G58: KONYA | H58: 1500M | I58: 43000 | J58: 1 | K58: 8
B59: -- | D59: -
A60: 64 | B60: 1500M-1-10 | C60: 694 | E60: 2001-03-27 | F60: HÜSEYİM KURT | G60: TOKAT | H60: 1500M | I60: 43500 | J60: 1 | K60: 10
A61: 65 | B61: 1500M-1-11 | C61: 63 | D61: - | E61: 2001-01-01 | F61: HÜSEYİN ŞENTÜRK | G61: ARDAHAN | H61: 1500M | I61: 43500 | J61: 1 | K61: 11
A62: 66 | B62: 1500M-2-1 | C62: 285 | D62: - | E62: 2001-01-01 | F62: HASAN HIDIR | G62: GAZİANTEP | H62: 1500M | I62: 44000 | J62: 2 | K62: 1
A63: 67 | B63: 1500M-2-2 | C63: 195 | D63: - | E63: 2001-01-01 | F63: ALI HUSSEIN AMER | G63: BURDUR | H63: 1500M | I63: 44000 | J63: 2 | K63: 2
A64: 68 | B64: 1500M-2-3 | C64: 481 | E64: 2001-10-23 | F64: ABDULKADİR EREN | G64: KIRIKKALE | H64: 1500M | I64: 44500 | J64: 2 | K64: 3
A65: 69 | B65: -- | D65: -
A66: 70 | B66: -- | D66: -
A67: 71 | B67: 1500M-2-6 | C67: 656 | E67: 2001-02-01 | F67: HAYRETTİN KAYA | G67: SİİRT | H67: 1500M | I67: 44700 | J67: 2 | K67: 6
A68: 72 | B68: 1500M-2-7 | C68: 658 | E68: 2001-02-05 | F68: HASAN EREN | G68: SİİRT | H68: 1500M | I68: 44800 | J68: 2 | K68: 7
A69: 73 | B69: 1500M-2-8 | C69: 657 | E69: 2001-10-01 | F69: HÜSEYİN YILDIRIM | G69: SİİRT | H69: 1500M | I69: 44900 | J69: 2 | K69: 8
A70: 74 | B70: 1500M-2-9 | C70: 250 | D70: - | E70: 2001-04-20 | F70: ŞAKİR YEŞİL | G70: ERZİNCAN | H70: 1500M | I70: 45000 | J70: 2 | K70: 9
A71: 75 | B71: 1500M-2-10 | C71: 287 | D71: - | E71: 2001-01-01 | F71: MUSTAFA EREN YILMAZ | G71: GAZİANTEP | H71: 1500M | I71: 45000 | J71: 2 | K71: 10
B72: 1500M-3-1 | C72: 126 | D72: - | E72: 2001-03-16 | F72: AHMET İRFAN ÖZDİL | G72: BARTIN | H72: 1500M | I72: 45000 | J72: 3 | K72: 1
B73: 1500M-3-2 | C73: 553 | E73: 2001-01-01 | F73: HALİL SONKAYA | G73: KÜTAHYA | H73: 1500M | I73: 45000 | J73: 3 | K73: 2
B74: 1500M-3-3 | C74: 351 | D74: - | E74: 2001-01-18 | F74: Ö.FARUK SONGÜL | G74: ISPARTA | H74: 1500M | I74: 45400 | J74: 3 | K74: 3
B75: 1500M-3-4 | C75: 607 | E75: 2001-02-09 | F75: MEHMET DAYAN | G75: NİĞDE | H75: 1500M | I75: 50213 | J75: 3 | K75: 4
B76: 1500M-3-5 | C76: 726 | E76: 2001-01-01 | F76: HAKTAN YILDIZ | G76: TUNCELİ | H76: 1500M | I76: 50500 | J76: 3 | K76: 5
B77: 1500M-3-6 | C77: 159 | D77: - | E77: 2001-08-07 | F77: HÜSEYİN TURHAN | G77: BİLECİK | H77: 1500M | I77: 51800 | J77: 3 | K77: 6
B78: 1500M-3-7 | C78: 113 | D78: - | E78: 2001-06-02 | F78: ALİ KOŞAR | G78: BALIKESİR | H78: 1500M | I78: 51900 | J78: 3 | K78: 7
B79: 1500M-3-8 | C79: 173 | D79: - | E79: 2001-01-01 | F79: YASİR BİRGİN | G79: BİNGÖL | H79: 1500M | I79: 52236 | J79: 3 | K79: 8
B80: 1500M-3-9 | C80: 160 | D80: - | E80: 2001-01-16 | F80: FERDİ FIRAT TAŞKIRAN | G80: BİLECİK | H80: 1500M | I80: 53000 | J80: 3 | K80: 9
B81: 1500M-3-10 | C81: 599 | E81: 2001-12-13 | F81: OZAN GALİP BENLİ | G81: NEVŞEHİR | H81: 1500M | I81: - | J81: 3 | K81: 10
B82: 1500M-4-1 | C82: 596 | E82: 2001-10-02 | F82: ÖMER ŞEN | G82: NEVŞEHİR | H82: 1500M | I82: - | J82: 4 | K82: 1
B83: 1500M-4-2 | C83: 30 | D83: - | E83: 2001-09-07 | F83: BİLAL AKTAŞ | G83: ADIYAMAN | H83: 1500M | I83: - | J83: 4 | K83: 2
B84: 1500M-4-3 | C84: 598 | E84: 2001-04-11 | F84: M.BURAK İNCİ | G84: NEVŞEHİR | H84: 1500M | I84: - | J84: 4 | K84: 3
B85: 1500M-4-4 | C85: 597 | E85: 2001-03-12 | F85: ONUR ÇALIŞKAN | G85: NEVŞEHİR | H85: 1500M | I85: - | J85: 4 | K85: 4
B86: 1500M-4-5 | C86: 267 | D86: - | E86: 2001-10-27 | F86: ENES YAZICI | G86: ERZURUM | H86: 1500M | I86: - | J86: 4 | K86: 5
B87: 1500M-4-6 | C87: 313 | E87: 2001-09-21 | F87: HÜSEYİN YALÇIN | G87: HATAY | H87: 1500M | I87: - | J87: 4 | K87: 6
B88: 1500M-4-7 | C88: 595 | E88: 2001-08-03 | F88: YASİN İNCİ | G88: NEVŞEHİR | H88: 1500M | I88: - | J88: 4 | K88: 7
B89: -- | D89: -
B90: 1500M-4-9 | C90: 29 | D90: - | E90: 2001-04-03 | F90: MUSTAFA TANDOĞAN | G90: ADIYAMAN | H90: 1500M | I90: - | J90: 4 | K90: 9
B91: 1500M-4-10 | C91: 614 | E91: 2001-01-01 | F91: MUSTAFA BEGEÇ | G91: OSMANİYE | H91: 1500M | I91: - | J91: 4 | K91: 10
B92: 1500M-1-12 | C92: 700 | D92: 37394 | E92: 2002-05-18 | F92: HAYDAR ARİZ | G92: TOKAT | H92: 1500M | J92: 1 | K92: 12
B93: 1500M-4-11 | C93: 171 | D93: ÖMER UÇAR | E93: 2002-01-01 | F93: ÖMER UÇAR | G93: BİNGÖL | H93: 1500M | J93: 4 | K93: 11
A99: 84 | B99: 200M-1-4 | C99: 172 | D99: - | E99: 2001-01-01 | F99: SERDAL ELELÇİ | G99: BİNGÖL | H99: 200M | I99: 2410 | J99: 1 | K99: 4
A100: 85 | B100: 200M-1-5 | C100: 85 | D100: - | E100: 2001-01-01 | F100: YILMAZ BERKE KARATAŞ | G100: AYDIN | H100: 200M | I100: 2460 | J100: 1 | K100: 5
A101: 86 | B101: 200M-1-3 | C101: 642 | E101: 2001-02-13 | F101: SEYFİCAN ÜNYELİ | G101: SAMSUN | H101: 200M | I101: 2520 | J101: 1 | K101: 3
A102: 87 | B102: 200M-1-6 | C102: 236 | D102: - | E102: 2001-01-01 | F102: MEHMET KUZU | G102: DİYARBAKIR | H102: 200M | I102: 2560 | J102: 1 | K102: 6
A103: 88 | B103: 200M-1-2 | C103: 204 | D103: - | E103: 2001-05-04 | F103: BERK DENİZ ÇELEN | G103: BURSA | H103: 200M | I103: 2587 | J103: 1 | K103: 2
A104: 89 | B104: 200M-1-7 | C104: 117 | D104: - | E104: 2001-01-01 | F104: Y.İZZET EROL | G104: BALIKESİR | H104: 200M | I104: 2600 | J104: 1 | K104: 7
A105: 90 | B105: 200M-2-4 | C105: 158 | D105: - | E105: 2001-01-08 | F105: SAMET ESATOĞLU | G105: BİLECİK | H105: 200M | I105: 2628 | J105: 2 | K105: 4
A106: 91 | B106: 200M-2-5 | C106: 208 | D106: - | E106: 2001-03-24 | F106: CİHAT ÖZKAYA | G106: BURSA | H106: 200M | I106: 2680 | J106: 2 | K106: 5
A107: 92 | B107: 200M-2-3 | C107: 732 | D107: - | E107: 2001-03-22 | F107: SONER TURGUT | G107: BURSA | H107: 200M | I107: 2700 | J107: 2 | K107: 3
A108: 93 | B108: 200M-2-6 | C108: 432 | D108: - | E108: 2001-03-01 | F108: YUNUS EMRE GEZGİN | G108: İZMİR | H108: 200M | I108: 2900 | J108: 2 | K108: 6
A109: 94 | B109: 200M-2-2 | C109: 731 | D109: - | E109: 2001-02-21 | F109: SAMET ÖZER | G109: BURSA | H109: 200M | I109: 2900 | J109: 2 | K109: 2
A110: 95 | B110: 200M-2-7 | C110: 143 | D110: - | E110: 2001-01-01 | F110: HÜSNÜ İLHAN | G110: BATMAN | H110: 200M | I110: - | J110: 2 | K110: 7
B111: 200M-3-4 | C111: 41 | D111: - | E111: 2001-05-04 | F111: SERKAN CAN | G111: AKSARAY | H111: 200M | I111: - | J111: 3 | K111: 4
B112: 200M-3-5 | C112: 42 | D112: - | E112: 2001-02-14 | F112: EMİRCAN EROĞLU | G112: AKSARAY | H112: 200M | I112: - | J112: 3 | K112: 5
B113: 200M-3-3 | C113: 143 | D113: - | E113: 2001-01-01 | F113: HÜSNÜ İLHAN | G113: BATMAN | H113: 200M | I113: - | J113: 3 | K113: 3
B114: 200M-3-6 | C114: 206 | D114: - | E114: 2001-01-01 | F114: YUNUS EMRE GÜMÜŞ | G114: BURSA | H114: 200M | I114: - | J114: 3 | K114: 6
A115: 96 | B115: 200M-3-2 | C115: 15 | D115: - | E115: 2001-01-01 | F115: VEYSİ KARDAŞ | G115: ADANA | H115: 200M | I115: - | J115: 3 | K115: 2
A116: 97 | B116: 200M-3-7 | C116: 614 | E116: 2001-01-01 | F116: MUSTAFA BEGEÇ | G116: OSMANİYE | H116: 200M | I116: - | J116: 3 | K116: 7
A117: 98 | B117: 200M-- | H117: 200M
B118: =CONCATENATE(H118,"-",J118,"-",K118) -> 800M-- | H118: 800M
B119: 800M-1-2 | C119: 41 | D119: - | E119: 2001-05-04 | F119: SERKAN CAN | G119: AKSARAY | H119: 800M | I119: 20200 | J119: 1 | K119: 2
B120: 800M-1-3 | C120: 284 | D120: - | E120: 2001-01-01 | F120: MAHMUT CAN KURTARAN | G120: GAZİANTEP | H120: 800M | I120: 20500 | J120: 1 | K120: 3
B121: 800M-1-4 | C121: 42 | D121: - | E121: 2001-02-14 | F121: EMİRCAN EROĞLU | G121: AKSARAY | H121: 800M | I121: 20500 | J121: 1 | K121: 4
A122: 192 | B122: -- | D122: -
A123: 193 | B123: 800M-1-6 | C123: 533 | E123: 2001-01-01 | F123: SEZEN ÇİĞDEM | G123: KONYA | H123: 800M | I123: 21000 | J123: 1 | K123: 6
A124: 194 | B124: 800M-1-7 | C124: 578 | E124: 2001-03-23 | F124: Cihan AKOVA | G124: MUŞ | H124: 800M | I124: 21000 | J124: 1 | K124: 7
A125: 195 | B125: -- | D125: -
A126: 196 | B126: -- | D126: -
A127: 197 | B127: 800M-1-10 | C127: 195 | D127: - | E127: 2001-01-01 | F127: ALI HUSSEIN AMER | G127: BURDUR | H127: 800M | I127: 21000 | J127: 1 | K127: 10
A128: 198 | B128: 800M-2-1 | C128: 582 | E128: 2001-05-19 | F128: Adem KOÇLARDAN | G128: MUŞ | H128: 800M | I128: 21400 | J128: 2 | K128: 1
A129: 199 | B129: 800M-2-2 | C129: 607 | E129: 2001-02-09 | F129: MEHMET DAYAN | G129: NİĞDE | H129: 800M | I129: 21443 | J129: 2 | K129: 2
A130: 200 | B130: 800M-2-3 | C130: 694 | E130: 2001-03-27 | F130: HÜSEYİM KURT | G130: TOKAT | H130: 800M | I130: 21500 | J130: 2 | K130: 3
A131: 201 | B131: 800M-2-4 | C131: 285 | D131: - | E131: 2001-01-01 | F131: HASAN HIDIR | G131: GAZİANTEP | H131: 800M | I131: 21500 | J131: 2 | K131: 4
A132: 202 | B132: 800M-2-5 | C132: 287 | D132: - | E132: 2001-01-01 | F132: MUSTAFA EREN YILMAZ | G132: GAZİANTEP | H132: 800M | I132: 21500 | J132: 2 | K132: 5
A133: 203 | B133: 800M-2-6 | C133: 552 | E133: 2001-11-16 | F133: İBRAHİM SUBAŞI | G133: KÜTAHYA | H133: 800M | I133: 21600 | J133: 2 | K133: 6
A134: 204 | B134: -- | D134: -
A135: 205 | B135: -- | D135: -
A136: 206 | B136: 800M-2-9 | C136: 658 | E136: 2001-02-05 | F136: HASAN EREN | G136: SİİRT | H136: 800M | I136: 21800 | J136: 2 | K136: 9
A137: 207 | B137: 800M-2-10 | C137: 63 | D137: - | E137: 2001-01-01 | F137: HÜSEYİN ŞENTÜRK | G137: ARDAHAN | H137: 800M | I137: 21800 | J137: 2 | K137: 10
B138: 800M-3-1 | C138: 481 | E138: 2001-10-23 | F138: ABDULKADİR EREN | G138: KIRIKKALE | H138: 800M | I138: 21800 | J138: 3 | K138: 1
B139: 800M-3-2 | C139: 126 | D139: - | E139: 2001-03-16 | F139: AHMET İRFAN ÖZDİL | G139: BARTIN | H139: 800M | I139: 22000 | J139: 3 | K139: 2
B140: 800M-3-3 | C140: 553 | E140: 2001-01-01 | F140: HALİL SONKAYA | G140: KÜTAHYA | H140: 800M | I140: 22000 | J140: 3 | K140: 3
B141: 800M-3-4 | C141: 343 | D141: - | E141: 2001-12-20 | F141: METİN GÜRDAL | G141: ISPARTA | H141: 800M | I141: 22000 | J141: 3 | K141: 4
A142: 208 | B142: 800M-3-5 | C142: 250 | D142: - | E142: 2001-04-20 | F142: ŞAKİR YEŞİL | G142: ERZİNCAN | H142: 800M | I142: 22000 | J142: 3 | K142: 5
A143: 209 | B143: 800M-3-6 | C143: 656 | E143: 2001-02-01 | F143: HAYRETTİN KAYA | G143: SİİRT | H143: 800M | I143: 22100 | J143: 3 | K143: 6
A144: 210 | B144: =CONCATENATE(H144,"-",J144,"-",K144) -> 800M-3-7 | C144: 351 | D144: - | E144: 2001-01-18 | F144: Ö.FARUK SONGÜL | G144: ISPARTA | H144: 800M | I144: 22400 | J144: 3 | K144: 7
A145: 211 | B145: 800M-3-8 | C145: 657 | E145: 2001-10-01 | F145: HÜSEYİN YILDIRIM | G145: SİİRT | H145: 800M | I145: 22500 | J145: 3 | K145: 8
A146: 212 | B146: 800M-3-9 | C146: 209 | D146: - | E146: 2001-04-05 | F146: RESUL YILMAZ | G146: BURSA | H146: 800M | I146: 22600 | J146: 3 | K146: 9
A147: 213 | B147: 800M-3-10 | C147: 113 | D147: - | E147: 2001-06-02 | F147: ALİ KOŞAR | G147: BALIKESİR | H147: 800M | I147: 22710 | J147: 3 | K147: 10
A148: 214 | B148: 800M-4-1 | C148: 143 | D148: - | E148: 2001-01-01 | F148: HÜSNÜ İLHAN | G148: BATMAN | H148: 800M | I148: 23000 | J148: 4 | K148: 1
A149: 215 | B149: 800M-4-2 | C149: 726 | E149: 2001-01-01 | F149: HAKTAN YILDIZ | G149: TUNCELİ | H149: 800M | I149: 23200 | J149: 4 | K149: 2
A150: 216 | B150: 800M-4-3 | C150: 172 | D150: - | E150: 2001-01-01 | F150: SERDAL ELELÇİ | G150: BİNGÖL | H150: 800M | I150: 23228 | J150: 4 | K150: 3
B151: 800M-4-4 | C151: 173 | D151: - | E151: 2001-01-01 | F151: YASİR BİRGİN | G151: BİNGÖL | H151: 800M | I151: 23556 | J151: 4 | K151: 4
B152: 800M-4-5 | C152: 267 | D152: - | E152: 2001-10-27 | F152: ENES YAZICI | G152: ERZURUM | H152: 800M | I152: - | J152: 4 | K152: 5
B153: 800M-4-6 | C153: 313 | E153: 2001-09-21 | F153: HÜSEYİN YALÇIN | G153: HATAY | H153: 800M | I153: - | J153: 4 | K153: 6
B154: 800M-4-7 | C154: 595 | E154: 2001-08-03 | F154: YASİN İNCİ | G154: NEVŞEHİR | H154: 800M | I154: - | J154: 4 | K154: 7
B155: -- | D155: -
B156: 800M-4-9 | C156: 29 | D156: - | E156: 2001-04-03 | F156: MUSTAFA TANDOĞAN | G156: ADIYAMAN | H156: 800M | I156: - | J156: 4 | K156: 9
B157: 800M-4-10 | C157: 599 | E157: 2001-12-13 | F157: OZAN GALİP BENLİ | G157: NEVŞEHİR | H157: 800M | I157: - | J157: 4 | K157: 10
B158: 800M-5-1 | C158: 596 | E158: 2001-10-02 | F158: ÖMER ŞEN | G158: NEVŞEHİR | H158: 800M | I158: - | J158: 5 | K158: 1
B159: 800M-5-2 | C159: 30 | D159: - | E159: 2001-09-07 | F159: BİLAL AKTAŞ | G159: ADIYAMAN | H159: 800M | I159: - | J159: 5 | K159: 2
B160: 800M-5-3 | C160: 598 | E160: 2001-04-11 | F160: M.BURAK İNCİ | G160: NEVŞEHİR | H160: 800M | I160: - | J160: 5 | K160: 3
B161: 800M-5-4 | C161: 597 | E161: 2001-03-12 | F161: ONUR ÇALIŞKAN | G161: NEVŞEHİR | H161: 800M | I161: - | J161: 5 | K161: 4
B162: 800M-5-5 | C162: 14 | D162: - | E162: 2001-01-01 | F162: KENAN KODAÇ | G162: ADANA | H162: 800M | I162: - | J162: 5 | K162: 5
B163: =CONCATENATE(H163,"-",J163,"-",L163) -> UZUN-B-36 | C163: 160 | D163: - | E163: 2001-01-16 | F163: FERDİ FIRAT TAŞKIRAN | G163: BİLECİK | H163: UZUN | I163: - | J163: B | L163: 36
B164: 800M-5-7 | C164: 255 | D164: - | E164: 2001-02-25 | F164: ERAY ŞEKER | G164: ERZİNCAN | H164: 800M | I164: - | J164: 5 | K164: 7
B165: 800M-5-8 | C165: 159 | D165: - | E165: 2001-08-07 | F165: HÜSEYİN TURHAN | G165: BİLECİK | H165: 800M | I165: - | J165: 5 | K165: 8
B166: 800M-1-1 | C166: 700 | D166: 37394 | E166: 2002-05-18 | F166: HAYDAR ARİZ | G166: TOKAT | H166: 800M | J166: 1 | K166: 1
B167: 800M-5-6 | C167: 171 | D167: ÖMER UÇAR | E167: 2002-01-01 | F167: ÖMER UÇAR | G167: BİNGÖL | H167: 800M | J167: 5 | K167: 6
A169: 217 | B169: =CONCATENATE(H169,"-",L169) -> CİRİT-3 | C169: 351 | D169: - | E169: 2001-01-18 | F169: Ö.FARUK SONGÜL | G169: ISPARTA | H169: CİRİT | I169: 2256 | L169: 3
A170: 218 | B170: =CONCATENATE(H170,"-",L170) -> CİRİT-4 | C170: 209 | D170: - | E170: 2001-04-05 | F170: RESUL YILMAZ | G170: BURSA | H170: CİRİT | I170: 2800 | L170: 4
A171: 219 | B171: CİRİT-5 | C171: 643 | E171: 2001-06-07 | F171: METEHAN ACAR | G171: SAMSUN | H171: CİRİT | I171: 4440 | L171: 5
A172: 220 | B172: CİRİT-1 | C172: 613 | E172: 2001-05-15 | F172: MUSTAFA ÇAĞLAR KORKMAZ | G172: OSMANİYE | H172: CİRİT | I172: - | L172: 1
A173: 221 | B173: CİRİT-2 | C173: 86 | D173: - | E173: 2001-05-14 | F173: İBRAHİM BULUT | G173: AYDIN | H173: CİRİT | I173: - | L173: 2
A174: 222 | B174: CİRİT- | H174: CİRİT
A175: 279 | B175: =CONCATENATE(H175,"-",L175) -> DİSK-2 | C175: 450 | E175: 2001-01-04 | F175: FURKAN ÇEKEN | G175: İZMİR | H175: DİSK | I175: 2500 | L175: 2
A176: 280 | B176: DİSK-3 | C176: 703 | E176: 2001-01-15 | F176: MEHMET EMİN KILINÇ | G176: TOKAT | H176: DİSK | I176: 2600 | L176: 3
A177: 281 | B177: DİSK-4 | C177: 209 | D177: - | E177: 2001-04-05 | F177: RESUL YILMAZ | G177: BURSA | H177: DİSK | I177: 2900 | L177: 4
A178: 282 | B178: DİSK-5 | C178: 744 | E178: 2001-03-04 | F178: CEYHUN SEVİNÇ | G178: SAKARYA | H178: DİSK | I178: 3000 | L178: 5
A179: 283 | B179: DİSK-6 | C179: 417 | D179: - | E179: 2001-01-18 | F179: MUSTAFA ASLANER | G179: İZMİR | H179: DİSK | I179: 3000 | L179: 6
A180: 284 | B180: DİSK-7 | C180: 208 | D180: - | E180: 2001-03-24 | F180: CİHAT ÖZKAYA | G180: BURSA | H180: DİSK | I180: 3100 | L180: 7
A181: 285 | B181: DİSK-8 | C181: 713 | E181: 2001-01-03 | F181: ASLAN KAĞAN KALINTAŞ | G181: TRABZON | H181: DİSK | I181: 4200 | L181: 8
A182: 286 | B182: DİSK-1 | C182: 15 | D182: - | E182: 2001-01-01 | F182: VEYSİ KARDAŞ | G182: ADANA | H182: DİSK | I182: - | L182: 1
A183: 287 | B183: DİSK- | H183: DİSK
A184: 312 | B184: GÜLLE-4 | C184: 657 | E184: 2001-10-01 | F184: HÜSEYİN YILDIRIM | G184: SİİRT | H184: GÜLLE | I184: 748 | L184: 4
A185: 313 | B185: GÜLLE-5 | C185: 703 | E185: 2001-01-15 | F185: MEHMET EMİN KILINÇ | G185: TOKAT | H185: GÜLLE | I185: 800 | L185: 5
A186: 314 | B186: GÜLLE-6 | C186: 685 | E186: 2001-05-22 | F186: ÖNDER ATUN | G186: TEKİRDAĞ | H186: GÜLLE | I186: 887 | L186: 6
A187: 315 | B187: GÜLLE-7 | C187: 450 | E187: 2001-01-04 | F187: FURKAN ÇEKEN | G187: İZMİR | H187: GÜLLE | I187: 900 | L187: 7
A188: 316 | B188: GÜLLE-8 | C188: 417 | D188: - | E188: 2001-01-18 | F188: MUSTAFA ASLANER | G188: İZMİR | H188: GÜLLE | I188: 1000 | L188: 8
A189: 317 | B189: GÜLLE-9 | C189: 420 | D189: - | E189: 2001-01-11 | F189: HÜSEYİN GÖRKEM DENİZ | G189: İZMİR | H189: GÜLLE | I189: 1100 | L189: 9
A190: 318 | B190: GÜLLE-10 | C190: 744 | E190: 2001-03-04 | F190: CEYHUN SEVİNÇ | G190: SAKARYA | H190: GÜLLE | I190: 1200 | L190: 10
A191: 319 | B191: GÜLLE-11 | C191: 713 | E191: 2001-01-03 | F191: ASLAN KAĞAN KALINTAŞ | G191: TRABZON | H191: GÜLLE | I191: 1210 | L191: 11
A192: 320 | B192: GÜLLE-12 | C192: 643 | E192: 2001-06-07 | F192: METEHAN ACAR | G192: SAMSUN | H192: GÜLLE | I192: 1310 | L192: 12
A193: 321 | B193: GÜLLE-13 | C193: 567 | E193: 2001-01-01 | F193: ÜMİT GÜLER | G193: MUĞLA | H193: GÜLLE | I193: 1400 | L193: 13
A194: 322 | B194: GÜLLE-1 | C194: 86 | D194: - | E194: 2001-05-14 | F194: İBRAHİM BULUT | G194: AYDIN | H194: GÜLLE | I194: - | L194: 1
A195: 323 | B195: GÜLLE-2 | C195: 613 | E195: 2001-05-15 | F195: MUSTAFA ÇAĞLAR KORKMAZ | G195: OSMANİYE | H195: GÜLLE | I195: - | L195: 2
A196: 324 | B196: GÜLLE-3 | C196: 143 | D196: - | E196: 2001-01-01 | F196: HÜSNÜ İLHAN | G196: BATMAN | H196: GÜLLE | I196: - | L196: 3
A197: 325 | B197: GÜLLE- | H197: GÜLLE
A198: 345 | B198: =CONCATENATE(H198,"-",L198) -> SIRIK- | H198: SIRIK
A199: 346 | B199: SIRIK- | H199: SIRIK
A200: 347 | B200: SIRIK- | H200: SIRIK
A201: 348 | B201: SIRIK- | H201: SIRIK
A202: 349 | B202: SIRIK- | H202: SIRIK
A203: 350 | B203: SIRIK- | H203: SIRIK
A204: 351 | B204: SIRIK- | H204: SIRIK
A205: 352 | B205: SIRIK- | H205: SIRIK
A206: 353 | B206: SIRIK- | H206: SIRIK
A207: 354 | B207: SIRIK- | H207: SIRIK
... 106 more rows

Sheet 1.Gün Start Listesi (hidden)
A1: =('YARIŞMA BİLGİLERİ'!A2) -> Türkiye Atletizm Federasyonu İzmir Atletizm İl Temsilciliği
A2: ='YARIŞMA BİLGİLERİ'!F19 -> Naili Moran Türkiye Atletizm Şampiyonası
A3: 1.GÜN GENÇ ERKEKLER START LİSTELERİ
A4: 100 METRE | J4: 400 METRE
A5: 1. SERİ | I5: SIRA NO | J5: 1. SERİ
A6: Sıra No | B6: Formül | C6: Göğüs No | D6: Doğum Tarihi | E6: Adı ve Soyadı | F6: Okulu | G6: Start Kontrol | J6: Sıra No | K6: Formül | L6: Göğüs No | M6: Doğum Tarihi | N6: Adı ve Soyadı | O6: Okulu | P6: Start Kontrol
A7: 1 | B7: 100M-1-1 | C7: =IF(ISERROR(VLOOKUP(B7,'KAYIT LİSTESİ'!$B$4:$H$855,2,0)),"",(VLOOKUP(B7,'KAYIT LİSTESİ'!$B$4:$H$855,2,0))) -> 682 | D7: =IF(ISERROR(VLOOKUP(B7,'KAYIT LİSTESİ'!$B$4:$H$855,4,0)),"",(VLOOKUP(B7,'KAYIT LİSTESİ'!$B$4:$H$855,4,0))) -> 2001-01-01 | E7: =IF(ISERROR(VLOOKUP(B7,'KAYIT LİSTESİ'!$B$4:$H$855,5,0)),"",(VLOOKUP(B7,'KAYIT LİSTESİ'!$B$4:$H$855,5,0))) -> BATUHAN ÇAKIR | F7: =IF(ISERROR(VLOOKUP(B7,'KAYIT LİSTESİ'!$B$4:$H$855,6,0)),"",(VLOOKUP(B7,'KAYIT LİSTESİ'!$B$4:$H$855,6,0))) -> TEKİRDAĞ | I7: 1 | J7: 1 | K7: 400M-1-1 | L7: =IF(ISERROR(VLOOKUP(K7,'KAYIT LİSTESİ'!$B$4:$H$855,2,0)),"",(VLOOKUP(K7,'KAYIT LİSTESİ'!$B$4:$H$855,2,0))) ->  | M7: =IF(ISERROR(VLOOKUP(K7,'KAYIT LİSTESİ'!$B$4:$H$855,4,0)),"",(VLOOKUP(K7,'KAYIT LİSTESİ'!$B$4:$H$855,4,0))) ->  | N7: =IF(ISERROR(VLOOKUP(K7,'KAYIT LİSTESİ'!$B$4:$H$855,5,0)),"",(VLOOKUP(K7,'KAYIT LİSTESİ'!$B$4:$H$855,5,0))) ->  | O7: =IF(ISERROR(VLOOKUP(K7,'KAYIT LİSTESİ'!$B$4:$H$855,6,0)),"",(VLOOKUP(K7,'KAYIT LİSTESİ'!$B$4:$H$855,6,0))) -> 
A8: 2 | B8: 100M-1-2 | C8: =IF(ISERROR(VLOOKUP(B8,'KAYIT LİSTESİ'!$B$4:$H$855,2,0)),"",(VLOOKUP(B8,'KAYIT LİSTESİ'!$B$4:$H$855,2,0))) -> 204 | D8: =IF(ISERROR(VLOOKUP(B8,'KAYIT LİSTESİ'!$B$4:$H$855,4,0)),"",(VLOOKUP(B8,'KAYIT LİSTESİ'!$B$4:$H$855,4,0))) -> 2001-05-04 | E8: =IF(ISERROR(VLOOKUP(B8,'KAYIT LİSTESİ'!$B$4:$H$855,5,0)),"",(VLOOKUP(B8,'KAYIT LİSTESİ'!$B$4:$H$855,5,0))) -> BERK DENİZ ÇELEN | F8: =IF(ISERROR(VLOOKUP(B8,'KAYIT LİSTESİ'!$B$4:$H$855,6,0)),"",(VLOOKUP(B8,'KAYIT LİSTESİ'!$B$4:$H$855,6,0))) -> BURSA | I8: 2 | J8: 2 | K8: 400M-1-2 | L8: =IF(ISERROR(VLOOKUP(K8,'KAYIT LİSTESİ'!$B$4:$H$855,2,0)),"",(VLOOKUP(K8,'KAYIT LİSTESİ'!$B$4:$H$855,2,0))) ->  | M8: =IF(ISERROR(VLOOKUP(K8,'KAYIT LİSTESİ'!$B$4:$H$855,4,0)),"",(VLOOKUP(K8,'KAYIT LİSTESİ'!$B$4:$H$855,4,0))) ->  | N8: =IF(ISERROR(VLOOKUP(K8,'KAYIT LİSTESİ'!$B$4:$H$855,5,0)),"",(VLOOKUP(K8,'KAYIT LİSTESİ'!$B$4:$H$855,5,0))) ->  | O8: =IF(ISERROR(VLOOKUP(K8,'KAYIT LİSTESİ'!$B$4:$H$855,6,0)),"",(VLOOKUP(K8,'KAYIT LİSTESİ'!$B$4:$H$855,6,0))) -> 
A9: 3 | B9: 100M-1-3 | C9: =IF(ISERROR(VLOOKUP(B9,'KAYIT LİSTESİ'!$B$4:$H$855,2,0)),"",(VLOOKUP(B9,'KAYIT LİSTESİ'!$B$4:$H$855,2,0))) -> 85 | D9: =IF(ISERROR(VLOOKUP(B9,'KAYIT LİSTESİ'!$B$4:$H$855,4,0)),"",(VLOOKUP(B9,'KAYIT LİSTESİ'!$B$4:$H$855,4,0))) -> 2001-01-01 | E9: =IF(ISERROR(VLOOKUP(B9,'KAYIT LİSTESİ'!$B$4:$H$855,5,0)),"",(VLOOKUP(B9,'KAYIT LİSTESİ'!$B$4:$H$855,5,0))) -> YILMAZ BERKE KARATAŞ | F9: =IF(ISERROR(VLOOKUP(B9,'KAYIT LİSTESİ'!$B$4:$H$855,6,0)),"",(VLOOKUP(B9,'KAYIT LİSTESİ'!$B$4:$H$855,6,0))) -> AYDIN | I9: 3 | J9: 3 | K9: 400M-1-3 | L9: =IF(ISERROR(VLOOKUP(K9,'KAYIT LİSTESİ'!$B$4:$H$855,2,0)),"",(VLOOKUP(K9,'KAYIT LİSTESİ'!$B$4:$H$855,2,0))) ->  | M9: =IF(ISERROR(VLOOKUP(K9,'KAYIT LİSTESİ'!$B$4:$H$855,4,0)),"",(VLOOKUP(K9,'KAYIT LİSTESİ'!$B$4:$H$855,4,0))) ->  | N9: =IF(ISERROR(VLOOKUP(K9,'KAYIT LİSTESİ'!$B$4:$H$855,5,0)),"",(VLOOKUP(K9,'KAYIT LİSTESİ'!$B$4:$H$855,5,0))) ->  | O9: =IF(ISERROR(VLOOKUP(K9,'KAYIT LİSTESİ'!$B$4:$H$855,6,0)),"",(VLOOKUP(K9,'KAYIT LİSTESİ'!$B$4:$H$855,6,0))) -> 
A10: 4 | B10: 100M-1-4 | C10: =IF(ISERROR(VLOOKUP(B10,'KAYIT LİSTESİ'!$B$4:$H$855,2,0)),"",(VLOOKUP(B10,'KAYIT LİSTESİ'!$B$4:$H$855,2,0))) -> 432 | D10: =IF(ISERROR(VLOOKUP(B10,'KAYIT LİSTESİ'!$B$4:$H$855,4,0)),"",(VLOOKUP(B10,'KAYIT LİSTESİ'!$B$4:$H$855,4,0))) -> 2001-03-01 | E10: =IF(ISERROR(VLOOKUP(B10,'KAYIT LİSTESİ'!$B$4:$H$855,5,0)),"",(VLOOKUP(B10,'KAYIT LİSTESİ'!$B$4:$H$855,5,0))) -> YUNUS EMRE GEZGİN | F10: =IF(ISERROR(VLOOKUP(B10,'KAYIT LİSTESİ'!$B$4:$H$855,6,0)),"",(VLOOKUP(B10,'KAYIT LİSTESİ'!$B$4:$H$855,6,0))) -> İZMİR | I10: 4 | J10: 4 | K10: 400M-1-4 | L10: =IF(ISERROR(VLOOKUP(K10,'KAYIT LİSTESİ'!$B$4:$H$855,2,0)),"",(VLOOKUP(K10,'KAYIT LİSTESİ'!$B$4:$H$855,2,0))) ->  | M10: =IF(ISERROR(VLOOKUP(K10,'KAYIT LİSTESİ'!$B$4:$H$855,4,0)),"",(VLOOKUP(K10,'KAYIT LİSTESİ'!$B$4:$H$855,4,0))) ->  | N10: =IF(ISERROR(VLOOKUP(K10,'KAYIT LİSTESİ'!$B$4:$H$855,5,0)),"",(VLOOKUP(K10,'KAYIT LİSTESİ'!$B$4:$H$855,5,0))) ->  | O10: =IF(ISERROR(VLOOKUP(K10,'KAYIT LİSTESİ'!$B$4:$H$855,6,0)),"",(VLOOKUP(K10,'KAYIT LİSTESİ'!$B$4:$H$855,6,0))) -> 
A11: 5 | B11: 100M-1-5 | C11: =IF(ISERROR(VLOOKUP(B11,'KAYIT LİSTESİ'!$B$4:$H$855,2,0)),"",(VLOOKUP(B11,'KAYIT LİSTESİ'!$B$4:$H$855,2,0))) -> 642 | D11: =IF(ISERROR(VLOOKUP(B11,'KAYIT LİSTESİ'!$B$4:$H$855,4,0)),"",(VLOOKUP(B11,'KAYIT LİSTESİ'!$B$4:$H$855,4,0))) -> 2001-02-13 | E11: =IF(ISERROR(VLOOKUP(B11,'KAYIT LİSTESİ'!$B$4:$H$855,5,0)),"",(VLOOKUP(B11,'KAYIT LİSTESİ'!$B$4:$H$855,5,0))) -> SEYFİCAN ÜNYELİ | F11: =IF(ISERROR(VLOOKUP(B11,'KAYIT LİSTESİ'!$B$4:$H$855,6,0)),"",(VLOOKUP(B11,'KAYIT LİSTESİ'!$B$4:$H$855,6,0))) -> SAMSUN | I11: 5 | J11: 5 | K11: 400M-1-5 | L11: =IF(ISERROR(VLOOKUP(K11,'KAYIT LİSTESİ'!$B$4:$H$855,2,0)),"",(VLOOKUP(K11,'KAYIT LİSTESİ'!$B$4:$H$855,2,0))) ->  | M11: =IF(ISERROR(VLOOKUP(K11,'KAYIT LİSTESİ'!$B$4:$H$855,4,0)),"",(VLOOKUP(K11,'KAYIT LİSTESİ'!$B$4:$H$855,4,0))) ->  | N11: =IF(ISERROR(VLOOKUP(K11,'KAYIT LİSTESİ'!$B$4:$H$855,5,0)),"",(VLOOKUP(K11,'KAYIT LİSTESİ'!$B$4:$H$855,5,0))) ->  | O11: =IF(ISERROR(VLOOKUP(K11,'KAYIT LİSTESİ'!$B$4:$H$855,6,0)),"",(VLOOKUP(K11,'KAYIT LİSTESİ'!$B$4:$H$855,6,0))) -> 
A12: 6 | B12: 100M-1-6 | C12: =IF(ISERROR(VLOOKUP(B12,'KAYIT LİSTESİ'!$B$4:$H$855,2,0)),"",(VLOOKUP(B12,'KAYIT LİSTESİ'!$B$4:$H$855,2,0))) -> 644 | D12: =IF(ISERROR(VLOOKUP(B12,'KAYIT LİSTESİ'!$B$4:$H$855,4,0)),"",(VLOOKUP(B12,'KAYIT LİSTESİ'!$B$4:$H$855,4,0))) -> 2001-06-07 | E12: =IF(ISERROR(VLOOKUP(B12,'KAYIT LİSTESİ'!$B$4:$H$855,5,0)),"",(VLOOKUP(B12,'KAYIT LİSTESİ'!$B$4:$H$855,5,0))) -> GÖKHAN BEŞİR | F12: =IF(ISERROR(VLOOKUP(B12,'KAYIT LİSTESİ'!$B$4:$H$855,6,0)),"",(VLOOKUP(B12,'KAYIT LİSTESİ'!$B$4:$H$855,6,0))) -> SAMSUN | I12: 6 | J12: 6 | K12: 400M-1-6 | L12: =IF(ISERROR(VLOOKUP(K12,'KAYIT LİSTESİ'!$B$4:$H$855,2,0)),"",(VLOOKUP(K12,'KAYIT LİSTESİ'!$B$4:$H$855,2,0))) ->  | M12: =IF(ISERROR(VLOOKUP(K12,'KAYIT LİSTESİ'!$B$4:$H$855,4,0)),"",(VLOOKUP(K12,'KAYIT LİSTESİ'!$B$4:$H$855,4,0))) ->  | N12: =IF(ISERROR(VLOOKUP(K12,'KAYIT LİSTESİ'!$B$4:$H$855,5,0)),"",(VLOOKUP(K12,'KAYIT LİSTESİ'!$B$4:$H$855,5,0))) ->  | O12: =IF(ISERROR(VLOOKUP(K12,'KAYIT LİSTESİ'!$B$4:$H$855,6,0)),"",(VLOOKUP(K12,'KAYIT LİSTESİ'!$B$4:$H$855,6,0))) -> 
A13: 7 | B13: 100M-1-7 | C13: =IF(ISERROR(VLOOKUP(B13,'KAYIT LİSTESİ'!$B$4:$H$855,2,0)),"",(VLOOKUP(B13,'KAYIT LİSTESİ'!$B$4:$H$855,2,0))) -> 236 | D13: =IF(ISERROR(VLOOKUP(B13,'KAYIT LİSTESİ'!$B$4:$H$855,4,0)),"",(VLOOKUP(B13,'KAYIT LİSTESİ'!$B$4:$H$855,4,0))) -> 2001-01-01 | E13: =IF(ISERROR(VLOOKUP(B13,'KAYIT LİSTESİ'!$B$4:$H$855,5,0)),"",(VLOOKUP(B13,'KAYIT LİSTESİ'!$B$4:$H$855,5,0))) -> MEHMET KUZU | F13: =IF(ISERROR(VLOOKUP(B13,'KAYIT LİSTESİ'!$B$4:$H$855,6,0)),"",(VLOOKUP(B13,'KAYIT LİSTESİ'!$B$4:$H$855,6,0))) -> DİYARBAKIR | I13: 7 | J13: 7 | K13: 400M-1-7 | L13: =IF(ISERROR(VLOOKUP(K13,'KAYIT LİSTESİ'!$B$4:$H$855,2,0)),"",(VLOOKUP(K13,'KAYIT LİSTESİ'!$B$4:$H$855,2,0))) ->  | M13: =IF(ISERROR(VLOOKUP(K13,'KAYIT LİSTESİ'!$B$4:$H$855,4,0)),"",(VLOOKUP(K13,'KAYIT LİSTESİ'!$B$4:$H$855,4,0))) ->  | N13: =IF(ISERROR(VLOOKUP(K13,'KAYIT LİSTESİ'!$B$4:$H$855,5,0)),"",(VLOOKUP(K13,'KAYIT LİSTESİ'!$B$4:$H$855,5,0))) ->  | O13: =IF(ISERROR(VLOOKUP(K13,'KAYIT LİSTESİ'!$B$4:$H$855,6,0)),"",(VLOOKUP(K13,'KAYIT LİSTESİ'!$B$4:$H$855,6,0))) -> 
A14: 8 | B14: 100M-1-8 | C14: =IF(ISERROR(VLOOKUP(B14,'KAYIT LİSTESİ'!$B$4:$H$855,2,0)),"",(VLOOKUP(B14,'KAYIT LİSTESİ'!$B$4:$H$855,2,0))) -> 731 | D14: =IF(ISERROR(VLOOKUP(B14,'KAYIT LİSTESİ'!$B$4:$H$855,4,0)),"",(VLOOKUP(B14,'KAYIT LİSTESİ'!$B$4:$H$855,4,0))) -> 2001-02-21 | E14: =IF(ISERROR(VLOOKUP(B14,'KAYIT LİSTESİ'!$B$4:$H$855,5,0)),"",(VLOOKUP(B14,'KAYIT LİSTESİ'!$B$4:$H$855,5,0))) -> SAMET ÖZER | F14: =IF(ISERROR(VLOOKUP(B14,'KAYIT LİSTESİ'!$B$4:$H$855,6,0)),"",(VLOOKUP(B14,'KAYIT LİSTESİ'!$B$4:$H$855,6,0))) -> BURSA | I14: 8 | J14: 8 | K14: 400M-1-8 | L14: =IF(ISERROR(VLOOKUP(K14,'KAYIT LİSTESİ'!$B$4:$H$855,2,0)),"",(VLOOKUP(K14,'KAYIT LİSTESİ'!$B$4:$H$855,2,0))) ->  | M14: =IF(ISERROR(VLOOKUP(K14,'KAYIT LİSTESİ'!$B$4:$H$855,4,0)),"",(VLOOKUP(K14,'KAYIT LİSTESİ'!$B$4:$H$855,4,0))) ->  | N14: =IF(ISERROR(VLOOKUP(K14,'KAYIT LİSTESİ'!$B$4:$H$855,5,0)),"",(VLOOKUP(K14,'KAYIT LİSTESİ'!$B$4:$H$855,5,0))) ->  | O14: =IF(ISERROR(VLOOKUP(K14,'KAYIT LİSTESİ'!$B$4:$H$855,6,0)),"",(VLOOKUP(K14,'KAYIT LİSTESİ'!$B$4:$H$855,6,0))) -> 
A15: 2. SERİ | I15: 9 | J15: 2. SERİ
A16: Sıra No | B16: Formül | C16: Göğüs No | D16: Doğum Tarihi | E16: Adı ve Soyadı | F16: Okulu | G16: Start Kontrol | I16: 10 | J16: Sıra No | K16: Formül | L16: Göğüs No | M16: Doğum Tarihi | N16: Adı ve Soyadı | O16: Okulu | P16: Start Kontrol
A17: 1 | B17: 100M-2-1 | C17: =IF(ISERROR(VLOOKUP(B17,'KAYIT LİSTESİ'!$B$4:$H$855,2,0)),"",(VLOOKUP(B17,'KAYIT LİSTESİ'!$B$4:$H$855,2,0))) -> 436 | D17: =IF(ISERROR(VLOOKUP(B17,'KAYIT LİSTESİ'!$B$4:$H$855,4,0)),"",(VLOOKUP(B17,'KAYIT LİSTESİ'!$B$4:$H$855,4,0))) -> 2001-02-17 | E17: =IF(ISERROR(VLOOKUP(B17,'KAYIT LİSTESİ'!$B$4:$H$855,5,0)),"",(VLOOKUP(B17,'KAYIT LİSTESİ'!$B$4:$H$855,5,0))) -> MUSTAFA ÇİÇEK | F17: =IF(ISERROR(VLOOKUP(B17,'KAYIT LİSTESİ'!$B$4:$H$855,6,0)),"",(VLOOKUP(B17,'KAYIT LİSTESİ'!$B$4:$H$855,6,0))) -> İZMİR | I17: 11 | J17: 1 | K17: 400M-2-1 | L17: =IF(ISERROR(VLOOKUP(K17,'KAYIT LİSTESİ'!$B$4:$H$855,2,0)),"",(VLOOKUP(K17,'KAYIT LİSTESİ'!$B$4:$H$855,2,0))) ->  | M17: =IF(ISERROR(VLOOKUP(K17,'KAYIT LİSTESİ'!$B$4:$H$855,4,0)),"",(VLOOKUP(K17,'KAYIT LİSTESİ'!$B$4:$H$855,4,0))) ->  | N17: =IF(ISERROR(VLOOKUP(K17,'KAYIT LİSTESİ'!$B$4:$H$855,5,0)),"",(VLOOKUP(K17,'KAYIT LİSTESİ'!$B$4:$H$855,5,0))) ->  | O17: =IF(ISERROR(VLOOKUP(K17,'KAYIT LİSTESİ'!$B$4:$H$855,6,0)),"",(VLOOKUP(K17,'KAYIT LİSTESİ'!$B$4:$H$855,6,0))) -> 
A18: 2 | B18: 100M-2-2 | C18: =IF(ISERROR(VLOOKUP(B18,'KAYIT LİSTESİ'!$B$4:$H$855,2,0)),"",(VLOOKUP(B18,'KAYIT LİSTESİ'!$B$4:$H$855,2,0))) -> 732 | D18: =IF(ISERROR(VLOOKUP(B18,'KAYIT LİSTESİ'!$B$4:$H$855,4,0)),"",(VLOOKUP(B18,'KAYIT LİSTESİ'!$B$4:$H$855,4,0))) -> 2001-03-22 | E18: =IF(ISERROR(VLOOKUP(B18,'KAYIT LİSTESİ'!$B$4:$H$855,5,0)),"",(VLOOKUP(B18,'KAYIT LİSTESİ'!$B$4:$H$855,5,0))) -> SONER TURGUT | F18: =IF(ISERROR(VLOOKUP(B18,'KAYIT LİSTESİ'!$B$4:$H$855,6,0)),"",(VLOOKUP(B18,'KAYIT LİSTESİ'!$B$4:$H$855,6,0))) -> BURSA | I18: 12 | J18: 2 | K18: 400M-2-2 | L18: =IF(ISERROR(VLOOKUP(K18,'KAYIT LİSTESİ'!$B$4:$H$855,2,0)),"",(VLOOKUP(K18,'KAYIT LİSTESİ'!$B$4:$H$855,2,0))) ->  | M18: =IF(ISERROR(VLOOKUP(K18,'KAYIT LİSTESİ'!$B$4:$H$855,4,0)),"",(VLOOKUP(K18,'KAYIT LİSTESİ'!$B$4:$H$855,4,0))) ->  | N18: =IF(ISERROR(VLOOKUP(K18,'KAYIT LİSTESİ'!$B$4:$H$855,5,0)),"",(VLOOKUP(K18,'KAYIT LİSTESİ'!$B$4:$H$855,5,0))) ->  | O18: =IF(ISERROR(VLOOKUP(K18,'KAYIT LİSTESİ'!$B$4:$H$855,6,0)),"",(VLOOKUP(K18,'KAYIT LİSTESİ'!$B$4:$H$855,6,0))) -> 
A19: 3 | B19: 100M-2-3 | C19: =IF(ISERROR(VLOOKUP(B19,'KAYIT LİSTESİ'!$B$4:$H$855,2,0)),"",(VLOOKUP(B19,'KAYIT LİSTESİ'!$B$4:$H$855,2,0))) -> 511 | D19: =IF(ISERROR(VLOOKUP(B19,'KAYIT LİSTESİ'!$B$4:$H$855,4,0)),"",(VLOOKUP(B19,'KAYIT LİSTESİ'!$B$4:$H$855,4,0))) -> 2001-01-21 | E19: =IF(ISERROR(VLOOKUP(B19,'KAYIT LİSTESİ'!$B$4:$H$855,5,0)),"",(VLOOKUP(B19,'KAYIT LİSTESİ'!$B$4:$H$855,5,0))) -> EMİN BURAK ÇAPA | F19: =IF(ISERROR(VLOOKUP(B19,'KAYIT LİSTESİ'!$B$4:$H$855,6,0)),"",(VLOOKUP(B19,'KAYIT LİSTESİ'!$B$4:$H$855,6,0))) -> KOCAELİ | I19: 13 | J19: 3 | K19: 400M-2-3 | L19: =IF(ISERROR(VLOOKUP(K19,'KAYIT LİSTESİ'!$B$4:$H$855,2,0)),"",(VLOOKUP(K19,'KAYIT LİSTESİ'!$B$4:$H$855,2,0))) ->  | M19: =IF(ISERROR(VLOOKUP(K19,'KAYIT LİSTESİ'!$B$4:$H$855,4,0)),"",(VLOOKUP(K19,'KAYIT LİSTESİ'!$B$4:$H$855,4,0))) ->  | N19: =IF(ISERROR(VLOOKUP(K19,'KAYIT LİSTESİ'!$B$4:$H$855,5,0)),"",(VLOOKUP(K19,'KAYIT LİSTESİ'!$B$4:$H$855,5,0))) ->  | O19: =IF(ISERROR(VLOOKUP(K19,'KAYIT LİSTESİ'!$B$4:$H$855,6,0)),"",(VLOOKUP(K19,'KAYIT LİSTESİ'!$B$4:$H$855,6,0))) -> 
A20: 4 | B20: 100M-2-4 | C20: =IF(ISERROR(VLOOKUP(B20,'KAYIT LİSTESİ'!$B$4:$H$855,2,0)),"",(VLOOKUP(B20,'KAYIT LİSTESİ'!$B$4:$H$855,2,0))) -> 420 | D20: =IF(ISERROR(VLOOKUP(B20,'KAYIT LİSTESİ'!$B$4:$H$855,4,0)),"",(VLOOKUP(B20,'KAYIT LİSTESİ'!$B$4:$H$855,4,0))) -> 2001-01-11 | E20: =IF(ISERROR(VLOOKUP(B20,'KAYIT LİSTESİ'!$B$4:$H$855,5,0)),"",(VLOOKUP(B20,'KAYIT LİSTESİ'!$B$4:$H$855,5,0))) -> HÜSEYİN GÖRKEM DENİZ | F20: =IF(ISERROR(VLOOKUP(B20,'KAYIT LİSTESİ'!$B$4:$H$855,6,0)),"",(VLOOKUP(B20,'KAYIT LİSTESİ'!$B$4:$H$855,6,0))) -> İZMİR | I20: 14 | J20: 4 | K20: 400M-2-4 | L20: =IF(ISERROR(VLOOKUP(K20,'KAYIT LİSTESİ'!$B$4:$H$855,2,0)),"",(VLOOKUP(K20,'KAYIT LİSTESİ'!$B$4:$H$855,2,0))) ->  | M20: =IF(ISERROR(VLOOKUP(K20,'KAYIT LİSTESİ'!$B$4:$H$855,4,0)),"",(VLOOKUP(K20,'KAYIT LİSTESİ'!$B$4:$H$855,4,0))) ->  | N20: =IF(ISERROR(VLOOKUP(K20,'KAYIT LİSTESİ'!$B$4:$H$855,5,0)),"",(VLOOKUP(K20,'KAYIT LİSTESİ'!$B$4:$H$855,5,0))) ->  | O20: =IF(ISERROR(VLOOKUP(K20,'KAYIT LİSTESİ'!$B$4:$H$855,6,0)),"",(VLOOKUP(K20,'KAYIT LİSTESİ'!$B$4:$H$855,6,0))) -> 
A21: 5 | B21: 100M-2-5 | C21: =IF(ISERROR(VLOOKUP(B21,'KAYIT LİSTESİ'!$B$4:$H$855,2,0)),"",(VLOOKUP(B21,'KAYIT LİSTESİ'!$B$4:$H$855,2,0))) -> 158 | D21: =IF(ISERROR(VLOOKUP(B21,'KAYIT LİSTESİ'!$B$4:$H$855,4,0)),"",(VLOOKUP(B21,'KAYIT LİSTESİ'!$B$4:$H$855,4,0))) -> 2001-01-08 | E21: =IF(ISERROR(VLOOKUP(B21,'KAYIT LİSTESİ'!$B$4:$H$855,5,0)),"",(VLOOKUP(B21,'KAYIT LİSTESİ'!$B$4:$H$855,5,0))) -> SAMET ESATOĞLU | F21: =IF(ISERROR(VLOOKUP(B21,'KAYIT LİSTESİ'!$B$4:$H$855,6,0)),"",(VLOOKUP(B21,'KAYIT LİSTESİ'!$B$4:$H$855,6,0))) -> BİLECİK | I21: 15 | J21: 5 | K21: 400M-2-5 | L21: =IF(ISERROR(VLOOKUP(K21,'KAYIT LİSTESİ'!$B$4:$H$855,2,0)),"",(VLOOKUP(K21,'KAYIT LİSTESİ'!$B$4:$H$855,2,0))) ->  | M21: =IF(ISERROR(VLOOKUP(K21,'KAYIT LİSTESİ'!$B$4:$H$855,4,0)),"",(VLOOKUP(K21,'KAYIT LİSTESİ'!$B$4:$H$855,4,0))) ->  | N21: =IF(ISERROR(VLOOKUP(K21,'KAYIT LİSTESİ'!$B$4:$H$855,5,0)),"",(VLOOKUP(K21,'KAYIT LİSTESİ'!$B$4:$H$855,5,0))) ->  | O21: =IF(ISERROR(VLOOKUP(K21,'KAYIT LİSTESİ'!$B$4:$H$855,6,0)),"",(VLOOKUP(K21,'KAYIT LİSTESİ'!$B$4:$H$855,6,0))) -> 
A22: 6 | B22: 100M-2-6 | C22: =IF(ISERROR(VLOOKUP(B22,'KAYIT LİSTESİ'!$B$4:$H$855,2,0)),"",(VLOOKUP(B22,'KAYIT LİSTESİ'!$B$4:$H$855,2,0))) -> 725 | D22: =IF(ISERROR(VLOOKUP(B22,'KAYIT LİSTESİ'!$B$4:$H$855,4,0)),"",(VLOOKUP(B22,'KAYIT LİSTESİ'!$B$4:$H$855,4,0))) -> 2001-01-01 | E22: =IF(ISERROR(VLOOKUP(B22,'KAYIT LİSTESİ'!$B$4:$H$855,5,0)),"",(VLOOKUP(B22,'KAYIT LİSTESİ'!$B$4:$H$855,5,0))) -> BURAK ATIZ | F22: =IF(ISERROR(VLOOKUP(B22,'KAYIT LİSTESİ'!$B$4:$H$855,6,0)),"",(VLOOKUP(B22,'KAYIT LİSTESİ'!$B$4:$H$855,6,0))) -> TUNCELİ | I22: 16 | J22: 6 | K22: 400M-2-6 | L22: =IF(ISERROR(VLOOKUP(K22,'KAYIT LİSTESİ'!$B$4:$H$855,2,0)),"",(VLOOKUP(K22,'KAYIT LİSTESİ'!$B$4:$H$855,2,0))) ->  | M22: =IF(ISERROR(VLOOKUP(K22,'KAYIT LİSTESİ'!$B$4:$H$855,4,0)),"",(VLOOKUP(K22,'KAYIT LİSTESİ'!$B$4:$H$855,4,0))) ->  | N22: =IF(ISERROR(VLOOKUP(K22,'KAYIT LİSTESİ'!$B$4:$H$855,5,0)),"",(VLOOKUP(K22,'KAYIT LİSTESİ'!$B$4:$H$855,5,0))) ->  | O22: =IF(ISERROR(VLOOKUP(K22,'KAYIT LİSTESİ'!$B$4:$H$855,6,0)),"",(VLOOKUP(K22,'KAYIT LİSTESİ'!$B$4:$H$855,6,0))) -> 
A23: 7 | B23: 100M-2-7 | C23: =IF(ISERROR(VLOOKUP(B23,'KAYIT LİSTESİ'!$B$4:$H$855,2,0)),"",(VLOOKUP(B23,'KAYIT LİSTESİ'!$B$4:$H$855,2,0))) -> 685 | D23: =IF(ISERROR(VLOOKUP(B23,'KAYIT LİSTESİ'!$B$4:$H$855,4,0)),"",(VLOOKUP(B23,'KAYIT LİSTESİ'!$B$4:$H$855,4,0))) -> 2001-05-22 | E23: =IF(ISERROR(VLOOKUP(B23,'KAYIT LİSTESİ'!$B$4:$H$855,5,0)),"",(VLOOKUP(B23,'KAYIT LİSTESİ'!$B$4:$H$855,5,0))) -> ÖNDER ATUN | F23: =IF(ISERROR(VLOOKUP(B23,'KAYIT LİSTESİ'!$B$4:$H$855,6,0)),"",(VLOOKUP(B23,'KAYIT LİSTESİ'!$B$4:$H$855,6,0))) -> TEKİRDAĞ | I23: 17 | J23: 7 | K23: 400M-2-7 | L23: =IF(ISERROR(VLOOKUP(K23,'KAYIT LİSTESİ'!$B$4:$H$855,2,0)),"",(VLOOKUP(K23,'KAYIT LİSTESİ'!$B$4:$H$855,2,0))) ->  | M23: =IF(ISERROR(VLOOKUP(K23,'KAYIT LİSTESİ'!$B$4:$H$855,4,0)),"",(VLOOKUP(K23,'KAYIT LİSTESİ'!$B$4:$H$855,4,0))) ->  | N23: =IF(ISERROR(VLOOKUP(K23,'KAYIT LİSTESİ'!$B$4:$H$855,5,0)),"",(VLOOKUP(K23,'KAYIT LİSTESİ'!$B$4:$H$855,5,0))) ->  | O23: =IF(ISERROR(VLOOKUP(K23,'KAYIT LİSTESİ'!$B$4:$H$855,6,0)),"",(VLOOKUP(K23,'KAYIT LİSTESİ'!$B$4:$H$855,6,0))) -> 
A24: 8 | B24: 100M-2-8 | C24: =IF(ISERROR(VLOOKUP(B24,'KAYIT LİSTESİ'!$B$4:$H$855,2,0)),"",(VLOOKUP(B24,'KAYIT LİSTESİ'!$B$4:$H$855,2,0))) ->  | D24: =IF(ISERROR(VLOOKUP(B24,'KAYIT LİSTESİ'!$B$4:$H$855,4,0)),"",(VLOOKUP(B24,'KAYIT LİSTESİ'!$B$4:$H$855,4,0))) ->  | E24: =IF(ISERROR(VLOOKUP(B24,'KAYIT LİSTESİ'!$B$4:$H$855,5,0)),"",(VLOOKUP(B24,'KAYIT LİSTESİ'!$B$4:$H$855,5,0))) ->  | F24: =IF(ISERROR(VLOOKUP(B24,'KAYIT LİSTESİ'!$B$4:$H$855,6,0)),"",(VLOOKUP(B24,'KAYIT LİSTESİ'!$B$4:$H$855,6,0))) ->  | I24: 18 | J24: 8 | K24: 400M-2-8 | L24: =IF(ISERROR(VLOOKUP(K24,'KAYIT LİSTESİ'!$B$4:$H$855,2,0)),"",(VLOOKUP(K24,'KAYIT LİSTESİ'!$B$4:$H$855,2,0))) ->  | M24: =IF(ISERROR(VLOOKUP(K24,'KAYIT LİSTESİ'!$B$4:$H$855,4,0)),"",(VLOOKUP(K24,'KAYIT LİSTESİ'!$B$4:$H$855,4,0))) ->  | N24: =IF(ISERROR(VLOOKUP(K24,'KAYIT LİSTESİ'!$B$4:$H$855,5,0)),"",(VLOOKUP(K24,'KAYIT LİSTESİ'!$B$4:$H$855,5,0))) ->  | O24: =IF(ISERROR(VLOOKUP(K24,'KAYIT LİSTESİ'!$B$4:$H$855,6,0)),"",(VLOOKUP(K24,'KAYIT LİSTESİ'!$B$4:$H$855,6,0))) -> 
A25: 3. SERİ | I25: 19 | J25: 3. SERİ
A26: Sıra No | B26: Formül | C26: Göğüs No | D26: Doğum Tarihi | E26: Adı ve Soyadı | F26: Okulu | G26: Start Kontrol | I26: 20 | J26: Sıra No | K26: Formül | L26: Göğüs No | M26: Doğum Tarihi | N26: Adı ve Soyadı | O26: Okulu | P26: Start Kontrol
A27: 1 | B27: 100M-3-1 | C27: =IF(ISERROR(VLOOKUP(B27,'KAYIT LİSTESİ'!$B$4:$H$855,2,0)),"",(VLOOKUP(B27,'KAYIT LİSTESİ'!$B$4:$H$855,2,0))) -> 450 | D27: =IF(ISERROR(VLOOKUP(B27,'KAYIT LİSTESİ'!$B$4:$H$855,4,0)),"",(VLOOKUP(B27,'KAYIT LİSTESİ'!$B$4:$H$855,4,0))) -> 2001-01-04 | E27: =IF(ISERROR(VLOOKUP(B27,'KAYIT LİSTESİ'!$B$4:$H$855,5,0)),"",(VLOOKUP(B27,'KAYIT LİSTESİ'!$B$4:$H$855,5,0))) -> FURKAN ÇEKEN | F27: =IF(ISERROR(VLOOKUP(B27,'KAYIT LİSTESİ'!$B$4:$H$855,6,0)),"",(VLOOKUP(B27,'KAYIT LİSTESİ'!$B$4:$H$855,6,0))) -> İZMİR | I27: 21 | J27: 1 | K27: 400M-3-1 | L27: =IF(ISERROR(VLOOKUP(K27,'KAYIT LİSTESİ'!$B$4:$H$855,2,0)),"",(VLOOKUP(K27,'KAYIT LİSTESİ'!$B$4:$H$855,2,0))) ->  | M27: =IF(ISERROR(VLOOKUP(K27,'KAYIT LİSTESİ'!$B$4:$H$855,4,0)),"",(VLOOKUP(K27,'KAYIT LİSTESİ'!$B$4:$H$855,4,0))) ->  | N27: =IF(ISERROR(VLOOKUP(K27,'KAYIT LİSTESİ'!$B$4:$H$855,5,0)),"",(VLOOKUP(K27,'KAYIT LİSTESİ'!$B$4:$H$855,5,0))) ->  | O27: =IF(ISERROR(VLOOKUP(K27,'KAYIT LİSTESİ'!$B$4:$H$855,6,0)),"",(VLOOKUP(K27,'KAYIT LİSTESİ'!$B$4:$H$855,6,0))) -> 
A28: 2 | B28: 100M-3-2 | C28: =IF(ISERROR(VLOOKUP(B28,'KAYIT LİSTESİ'!$B$4:$H$855,2,0)),"",(VLOOKUP(B28,'KAYIT LİSTESİ'!$B$4:$H$855,2,0))) -> 437 | D28: =IF(ISERROR(VLOOKUP(B28,'KAYIT LİSTESİ'!$B$4:$H$855,4,0)),"",(VLOOKUP(B28,'KAYIT LİSTESİ'!$B$4:$H$855,4,0))) -> 2001-01-10 | E28: =IF(ISERROR(VLOOKUP(B28,'KAYIT LİSTESİ'!$B$4:$H$855,5,0)),"",(VLOOKUP(B28,'KAYIT LİSTESİ'!$B$4:$H$855,5,0))) -> KUBİLAY ENCÜ | F28: =IF(ISERROR(VLOOKUP(B28,'KAYIT LİSTESİ'!$B$4:$H$855,6,0)),"",(VLOOKUP(B28,'KAYIT LİSTESİ'!$B$4:$H$855,6,0))) -> İZMİR | I28: 22 | J28: 2 | K28: 400M-3-2 | L28: =IF(ISERROR(VLOOKUP(K28,'KAYIT LİSTESİ'!$B$4:$H$855,2,0)),"",(VLOOKUP(K28,'KAYIT LİSTESİ'!$B$4:$H$855,2,0))) ->  | M28: =IF(ISERROR(VLOOKUP(K28,'KAYIT LİSTESİ'!$B$4:$H$855,4,0)),"",(VLOOKUP(K28,'KAYIT LİSTESİ'!$B$4:$H$855,4,0))) ->  | N28: =IF(ISERROR(VLOOKUP(K28,'KAYIT LİSTESİ'!$B$4:$H$855,5,0)),"",(VLOOKUP(K28,'KAYIT LİSTESİ'!$B$4:$H$855,5,0))) ->  | O28: =IF(ISERROR(VLOOKUP(K28,'KAYIT LİSTESİ'!$B$4:$H$855,6,0)),"",(VLOOKUP(K28,'KAYIT LİSTESİ'!$B$4:$H$855,6,0))) -> 
A29: 3 | B29: 100M-3-3 | C29: =IF(ISERROR(VLOOKUP(B29,'KAYIT LİSTESİ'!$B$4:$H$855,2,0)),"",(VLOOKUP(B29,'KAYIT LİSTESİ'!$B$4:$H$855,2,0))) -> 713 | D29: =IF(ISERROR(VLOOKUP(B29,'KAYIT LİSTESİ'!$B$4:$H$855,4,0)),"",(VLOOKUP(B29,'KAYIT LİSTESİ'!$B$4:$H$855,4,0))) -> 2001-01-03 | E29: =IF(ISERROR(VLOOKUP(B29,'KAYIT LİSTESİ'!$B$4:$H$855,5,0)),"",(VLOOKUP(B29,'KAYIT LİSTESİ'!$B$4:$H$855,5,0))) -> ASLAN KAĞAN KALINTAŞ | F29: =IF(ISERROR(VLOOKUP(B29,'KAYIT LİSTESİ'!$B$4:$H$855,6,0)),"",(VLOOKUP(B29,'KAYIT LİSTESİ'!$B$4:$H$855,6,0))) -> TRABZON | I29: 23 | J29: 3 | K29: 400M-3-3 | L29: =IF(ISERROR(VLOOKUP(K29,'KAYIT LİSTESİ'!$B$4:$H$855,2,0)),"",(VLOOKUP(K29,'KAYIT LİSTESİ'!$B$4:$H$855,2,0))) ->  | M29: =IF(ISERROR(VLOOKUP(K29,'KAYIT LİSTESİ'!$B$4:$H$855,4,0)),"",(VLOOKUP(K29,'KAYIT LİSTESİ'!$B$4:$H$855,4,0))) ->  | N29: =IF(ISERROR(VLOOKUP(K29,'KAYIT LİSTESİ'!$B$4:$H$855,5,0)),"",(VLOOKUP(K29,'KAYIT LİSTESİ'!$B$4:$H$855,5,0))) ->  | O29: =IF(ISERROR(VLOOKUP(K29,'KAYIT LİSTESİ'!$B$4:$H$855,6,0)),"",(VLOOKUP(K29,'KAYIT LİSTESİ'!$B$4:$H$855,6,0))) -> 
A30: 4 | B30: 100M-3-4 | C30: =IF(ISERROR(VLOOKUP(B30,'KAYIT LİSTESİ'!$B$4:$H$855,2,0)),"",(VLOOKUP(B30,'KAYIT LİSTESİ'!$B$4:$H$855,2,0))) -> 438 | D30: =IF(ISERROR(VLOOKUP(B30,'KAYIT LİSTESİ'!$B$4:$H$855,4,0)),"",(VLOOKUP(B30,'KAYIT LİSTESİ'!$B$4:$H$855,4,0))) -> 2001-02-04 | E30: =IF(ISERROR(VLOOKUP(B30,'KAYIT LİSTESİ'!$B$4:$H$855,5,0)),"",(VLOOKUP(B30,'KAYIT LİSTESİ'!$B$4:$H$855,5,0))) -> ZEYNEL ABİDİN NECMİOĞLU | F30: =IF(ISERROR(VLOOKUP(B30,'KAYIT LİSTESİ'!$B$4:$H$855,6,0)),"",(VLOOKUP(B30,'KAYIT LİSTESİ'!$B$4:$H$855,6,0))) -> İZMİR | I30: 24 | J30: 4 | K30: 400M-3-4 | L30: =IF(ISERROR(VLOOKUP(K30,'KAYIT LİSTESİ'!$B$4:$H$855,2,0)),"",(VLOOKUP(K30,'KAYIT LİSTESİ'!$B$4:$H$855,2,0))) ->  | M30: =IF(ISERROR(VLOOKUP(K30,'KAYIT LİSTESİ'!$B$4:$H$855,4,0)),"",(VLOOKUP(K30,'KAYIT LİSTESİ'!$B$4:$H$855,4,0))) ->  | N30: =IF(ISERROR(VLOOKUP(K30,'KAYIT LİSTESİ'!$B$4:$H$855,5,0)),"",(VLOOKUP(K30,'KAYIT LİSTESİ'!$B$4:$H$855,5,0))) ->  | O30: =IF(ISERROR(VLOOKUP(K30,'KAYIT LİSTESİ'!$B$4:$H$855,6,0)),"",(VLOOKUP(K30,'KAYIT LİSTESİ'!$B$4:$H$855,6,0))) -> 
A31: 5 | B31: 100M-3-5 | C31: =IF(ISERROR(VLOOKUP(B31,'KAYIT LİSTESİ'!$B$4:$H$855,2,0)),"",(VLOOKUP(B31,'KAYIT LİSTESİ'!$B$4:$H$855,2,0))) -> 703 | D31: =IF(ISERROR(VLOOKUP(B31,'KAYIT LİSTESİ'!$B$4:$H$855,4,0)),"",(VLOOKUP(B31,'KAYIT LİSTESİ'!$B$4:$H$855,4,0))) -> 2001-01-15 | E31: =IF(ISERROR(VLOOKUP(B31,'KAYIT LİSTESİ'!$B$4:$H$855,5,0)),"",(VLOOKUP(B31,'KAYIT LİSTESİ'!$B$4:$H$855,5,0))) -> MEHMET EMİN KILINÇ | F31: =IF(ISERROR(VLOOKUP(B31,'KAYIT LİSTESİ'!$B$4:$H$855,6,0)),"",(VLOOKUP(B31,'KAYIT LİSTESİ'!$B$4:$H$855,6,0))) -> TOKAT | I31: 25 | J31: 5 | K31: 400M-3-5 | L31: =IF(ISERROR(VLOOKUP(K31,'KAYIT LİSTESİ'!$B$4:$H$855,2,0)),"",(VLOOKUP(K31,'KAYIT LİSTESİ'!$B$4:$H$855,2,0))) ->  | M31: =IF(ISERROR(VLOOKUP(K31,'KAYIT LİSTESİ'!$B$4:$H$855,4,0)),"",(VLOOKUP(K31,'KAYIT LİSTESİ'!$B$4:$H$855,4,0))) ->  | N31: =IF(ISERROR(VLOOKUP(K31,'KAYIT LİSTESİ'!$B$4:$H$855,5,0)),"",(VLOOKUP(K31,'KAYIT LİSTESİ'!$B$4:$H$855,5,0))) ->  | O31: =IF(ISERROR(VLOOKUP(K31,'KAYIT LİSTESİ'!$B$4:$H$855,6,0)),"",(VLOOKUP(K31,'KAYIT LİSTESİ'!$B$4:$H$855,6,0))) -> 
A32: 6 | B32: 100M-3-6 | C32: =IF(ISERROR(VLOOKUP(B32,'KAYIT LİSTESİ'!$B$4:$H$855,2,0)),"",(VLOOKUP(B32,'KAYIT LİSTESİ'!$B$4:$H$855,2,0))) -> 547 | D32: =IF(ISERROR(VLOOKUP(B32,'KAYIT LİSTESİ'!$B$4:$H$855,4,0)),"",(VLOOKUP(B32,'KAYIT LİSTESİ'!$B$4:$H$855,4,0))) -> 2001-02-21 | E32: =IF(ISERROR(VLOOKUP(B32,'KAYIT LİSTESİ'!$B$4:$H$855,5,0)),"",(VLOOKUP(B32,'KAYIT LİSTESİ'!$B$4:$H$855,5,0))) -> ADİL KARAKAŞ | F32: =IF(ISERROR(VLOOKUP(B32,'KAYIT LİSTESİ'!$B$4:$H$855,6,0)),"",(VLOOKUP(B32,'KAYIT LİSTESİ'!$B$4:$H$855,6,0))) -> KÜTAHYA | J32: 6 | K32: 400M-3-6 | L32: =IF(ISERROR(VLOOKUP(K32,'KAYIT LİSTESİ'!$B$4:$H$855,2,0)),"",(VLOOKUP(K32,'KAYIT LİSTESİ'!$B$4:$H$855,2,0))) ->  | M32: =IF(ISERROR(VLOOKUP(K32,'KAYIT LİSTESİ'!$B$4:$H$855,4,0)),"",(VLOOKUP(K32,'KAYIT LİSTESİ'!$B$4:$H$855,4,0))) ->  | N32: =IF(ISERROR(VLOOKUP(K32,'KAYIT LİSTESİ'!$B$4:$H$855,5,0)),"",(VLOOKUP(K32,'KAYIT LİSTESİ'!$B$4:$H$855,5,0))) ->  | O32: =IF(ISERROR(VLOOKUP(K32,'KAYIT LİSTESİ'!$B$4:$H$855,6,0)),"",(VLOOKUP(K32,'KAYIT LİSTESİ'!$B$4:$H$855,6,0))) -> 
A33: 7 | B33: 100M-3-7 | C33: =IF(ISERROR(VLOOKUP(B33,'KAYIT LİSTESİ'!$B$4:$H$855,2,0)),"",(VLOOKUP(B33,'KAYIT LİSTESİ'!$B$4:$H$855,2,0))) -> 417 | D33: =IF(ISERROR(VLOOKUP(B33,'KAYIT LİSTESİ'!$B$4:$H$855,4,0)),"",(VLOOKUP(B33,'KAYIT LİSTESİ'!$B$4:$H$855,4,0))) -> 2001-01-18 | E33: =IF(ISERROR(VLOOKUP(B33,'KAYIT LİSTESİ'!$B$4:$H$855,5,0)),"",(VLOOKUP(B33,'KAYIT LİSTESİ'!$B$4:$H$855,5,0))) -> MUSTAFA ASLANER | F33: =IF(ISERROR(VLOOKUP(B33,'KAYIT LİSTESİ'!$B$4:$H$855,6,0)),"",(VLOOKUP(B33,'KAYIT LİSTESİ'!$B$4:$H$855,6,0))) -> İZMİR | J33: 7 | K33: 400M-3-7 | L33: =IF(ISERROR(VLOOKUP(K33,'KAYIT LİSTESİ'!$B$4:$H$855,2,0)),"",(VLOOKUP(K33,'KAYIT LİSTESİ'!$B$4:$H$855,2,0))) ->  | M33: =IF(ISERROR(VLOOKUP(K33,'KAYIT LİSTESİ'!$B$4:$H$855,4,0)),"",(VLOOKUP(K33,'KAYIT LİSTESİ'!$B$4:$H$855,4,0))) ->  | N33: =IF(ISERROR(VLOOKUP(K33,'KAYIT LİSTESİ'!$B$4:$H$855,5,0)),"",(VLOOKUP(K33,'KAYIT LİSTESİ'!$B$4:$H$855,5,0))) ->  | O33: =IF(ISERROR(VLOOKUP(K33,'KAYIT LİSTESİ'!$B$4:$H$855,6,0)),"",(VLOOKUP(K33,'KAYIT LİSTESİ'!$B$4:$H$855,6,0))) -> 
A34: 8 | B34: 100M-3-8 | C34: =IF(ISERROR(VLOOKUP(B34,'KAYIT LİSTESİ'!$B$4:$H$855,2,0)),"",(VLOOKUP(B34,'KAYIT LİSTESİ'!$B$4:$H$855,2,0))) ->  | D34: =IF(ISERROR(VLOOKUP(B34,'KAYIT LİSTESİ'!$B$4:$H$855,4,0)),"",(VLOOKUP(B34,'KAYIT LİSTESİ'!$B$4:$H$855,4,0))) ->  | E34: =IF(ISERROR(VLOOKUP(B34,'KAYIT LİSTESİ'!$B$4:$H$855,5,0)),"",(VLOOKUP(B34,'KAYIT LİSTESİ'!$B$4:$H$855,5,0))) ->  | F34: =IF(ISERROR(VLOOKUP(B34,'KAYIT LİSTESİ'!$B$4:$H$855,6,0)),"",(VLOOKUP(B34,'KAYIT LİSTESİ'!$B$4:$H$855,6,0))) ->  | J34: 8 | K34: 400M-3-8 | L34: =IF(ISERROR(VLOOKUP(K34,'KAYIT LİSTESİ'!$B$4:$H$855,2,0)),"",(VLOOKUP(K34,'KAYIT LİSTESİ'!$B$4:$H$855,2,0))) ->  | M34: =IF(ISERROR(VLOOKUP(K34,'KAYIT LİSTESİ'!$B$4:$H$855,4,0)),"",(VLOOKUP(K34,'KAYIT LİSTESİ'!$B$4:$H$855,4,0))) ->  | N34: =IF(ISERROR(VLOOKUP(K34,'KAYIT LİSTESİ'!$B$4:$H$855,5,0)),"",(VLOOKUP(K34,'KAYIT LİSTESİ'!$B$4:$H$855,5,0))) ->  | O34: =IF(ISERROR(VLOOKUP(K34,'KAYIT LİSTESİ'!$B$4:$H$855,6,0)),"",(VLOOKUP(K34,'KAYIT LİSTESİ'!$B$4:$H$855,6,0))) -> 
A35: 4. SERİ | J35: 4. SERİ
A36: Sıra No | B36: Formül | C36: Göğüs No | D36: Doğum Tarihi | E36: Adı ve Soyadı | F36: Okulu | G36: Start Kontrol | J36: Sıra No | K36: Formül | L36: Göğüs No | M36: Doğum Tarihi | N36: Adı ve Soyadı | O36: Okulu | P36: Start Kontrol
A37: 1 | B37: 100M-4-1 | C37: =IF(ISERROR(VLOOKUP(B37,'KAYIT LİSTESİ'!$B$4:$H$855,2,0)),"",(VLOOKUP(B37,'KAYIT LİSTESİ'!$B$4:$H$855,2,0))) -> 455 | D37: =IF(ISERROR(VLOOKUP(B37,'KAYIT LİSTESİ'!$B$4:$H$855,4,0)),"",(VLOOKUP(B37,'KAYIT LİSTESİ'!$B$4:$H$855,4,0))) -> 2001-01-09 | E37: =IF(ISERROR(VLOOKUP(B37,'KAYIT LİSTESİ'!$B$4:$H$855,5,0)),"",(VLOOKUP(B37,'KAYIT LİSTESİ'!$B$4:$H$855,5,0))) -> BATUHAN ORHUNBİLGE | F37: =IF(ISERROR(VLOOKUP(B37,'KAYIT LİSTESİ'!$B$4:$H$855,6,0)),"",(VLOOKUP(B37,'KAYIT LİSTESİ'!$B$4:$H$855,6,0))) -> İZMİR | J37: 1 | K37: 400M-4-1 | L37: =IF(ISERROR(VLOOKUP(K37,'KAYIT LİSTESİ'!$B$4:$H$855,2,0)),"",(VLOOKUP(K37,'KAYIT LİSTESİ'!$B$4:$H$855,2,0))) ->  | M37: =IF(ISERROR(VLOOKUP(K37,'KAYIT LİSTESİ'!$B$4:$H$855,4,0)),"",(VLOOKUP(K37,'KAYIT LİSTESİ'!$B$4:$H$855,4,0))) ->  | N37: =IF(ISERROR(VLOOKUP(K37,'KAYIT LİSTESİ'!$B$4:$H$855,5,0)),"",(VLOOKUP(K37,'KAYIT LİSTESİ'!$B$4:$H$855,5,0))) ->  | O37: =IF(ISERROR(VLOOKUP(K37,'KAYIT LİSTESİ'!$B$4:$H$855,6,0)),"",(VLOOKUP(K37,'KAYIT LİSTESİ'!$B$4:$H$855,6,0))) -> 
A38: 2 | B38: 100M-4-2 | C38: =IF(ISERROR(VLOOKUP(B38,'KAYIT LİSTESİ'!$B$4:$H$855,2,0)),"",(VLOOKUP(B38,'KAYIT LİSTESİ'!$B$4:$H$855,2,0))) -> 302 | D38: =IF(ISERROR(VLOOKUP(B38,'KAYIT LİSTESİ'!$B$4:$H$855,4,0)),"",(VLOOKUP(B38,'KAYIT LİSTESİ'!$B$4:$H$855,4,0))) -> 2001-04-15 | E38: =IF(ISERROR(VLOOKUP(B38,'KAYIT LİSTESİ'!$B$4:$H$855,5,0)),"",(VLOOKUP(B38,'KAYIT LİSTESİ'!$B$4:$H$855,5,0))) -> YELDA YAĞMUR | F38: =IF(ISERROR(VLOOKUP(B38,'KAYIT LİSTESİ'!$B$4:$H$855,6,0)),"",(VLOOKUP(B38,'KAYIT LİSTESİ'!$B$4:$H$855,6,0))) -> GİRESUN | J38: 2 | K38: 400M-4-2 | L38: =IF(ISERROR(VLOOKUP(K38,'KAYIT LİSTESİ'!$B$4:$H$855,2,0)),"",(VLOOKUP(K38,'KAYIT LİSTESİ'!$B$4:$H$855,2,0))) ->  | M38: =IF(ISERROR(VLOOKUP(K38,'KAYIT LİSTESİ'!$B$4:$H$855,4,0)),"",(VLOOKUP(K38,'KAYIT LİSTESİ'!$B$4:$H$855,4,0))) ->  | N38: =IF(ISERROR(VLOOKUP(K38,'KAYIT LİSTESİ'!$B$4:$H$855,5,0)),"",(VLOOKUP(K38,'KAYIT LİSTESİ'!$B$4:$H$855,5,0))) ->  | O38: =IF(ISERROR(VLOOKUP(K38,'KAYIT LİSTESİ'!$B$4:$H$855,6,0)),"",(VLOOKUP(K38,'KAYIT LİSTESİ'!$B$4:$H$855,6,0))) -> 
A39: 3 | B39: 100M-4-3 | C39: =IF(ISERROR(VLOOKUP(B39,'KAYIT LİSTESİ'!$B$4:$H$855,2,0)),"",(VLOOKUP(B39,'KAYIT LİSTESİ'!$B$4:$H$855,2,0))) -> 255 | D39: =IF(ISERROR(VLOOKUP(B39,'KAYIT LİSTESİ'!$B$4:$H$855,4,0)),"",(VLOOKUP(B39,'KAYIT LİSTESİ'!$B$4:$H$855,4,0))) -> 2001-02-25 | E39: =IF(ISERROR(VLOOKUP(B39,'KAYIT LİSTESİ'!$B$4:$H$855,5,0)),"",(VLOOKUP(B39,'KAYIT LİSTESİ'!$B$4:$H$855,5,0))) -> ERAY ŞEKER | F39: =IF(ISERROR(VLOOKUP(B39,'KAYIT LİSTESİ'!$B$4:$H$855,6,0)),"",(VLOOKUP(B39,'KAYIT LİSTESİ'!$B$4:$H$855,6,0))) -> ERZİNCAN | J39: 3 | K39: 400M-4-3 | L39: =IF(ISERROR(VLOOKUP(K39,'KAYIT LİSTESİ'!$B$4:$H$855,2,0)),"",(VLOOKUP(K39,'KAYIT LİSTESİ'!$B$4:$H$855,2,0))) ->  | M39: =IF(ISERROR(VLOOKUP(K39,'KAYIT LİSTESİ'!$B$4:$H$855,4,0)),"",(VLOOKUP(K39,'KAYIT LİSTESİ'!$B$4:$H$855,4,0))) ->  | N39: =IF(ISERROR(VLOOKUP(K39,'KAYIT LİSTESİ'!$B$4:$H$855,5,0)),"",(VLOOKUP(K39,'KAYIT LİSTESİ'!$B$4:$H$855,5,0))) ->  | O39: =IF(ISERROR(VLOOKUP(K39,'KAYIT LİSTESİ'!$B$4:$H$855,6,0)),"",(VLOOKUP(K39,'KAYIT LİSTESİ'!$B$4:$H$855,6,0))) -> 
A40: 4 | B40: 100M-4-4 | C40: =IF(ISERROR(VLOOKUP(B40,'KAYIT LİSTESİ'!$B$4:$H$855,2,0)),"",(VLOOKUP(B40,'KAYIT LİSTESİ'!$B$4:$H$855,2,0))) -> 567 | D40: =IF(ISERROR(VLOOKUP(B40,'KAYIT LİSTESİ'!$B$4:$H$855,4,0)),"",(VLOOKUP(B40,'KAYIT LİSTESİ'!$B$4:$H$855,4,0))) -> 2001-01-01 | E40: =IF(ISERROR(VLOOKUP(B40,'KAYIT LİSTESİ'!$B$4:$H$855,5,0)),"",(VLOOKUP(B40,'KAYIT LİSTESİ'!$B$4:$H$855,5,0))) -> ÜMİT GÜLER | F40: =IF(ISERROR(VLOOKUP(B40,'KAYIT LİSTESİ'!$B$4:$H$855,6,0)),"",(VLOOKUP(B40,'KAYIT LİSTESİ'!$B$4:$H$855,6,0))) -> MUĞLA | J40: 4 | K40: 400M-4-4 | L40: =IF(ISERROR(VLOOKUP(K40,'KAYIT LİSTESİ'!$B$4:$H$855,2,0)),"",(VLOOKUP(K40,'KAYIT LİSTESİ'!$B$4:$H$855,2,0))) ->  | M40: =IF(ISERROR(VLOOKUP(K40,'KAYIT LİSTESİ'!$B$4:$H$855,4,0)),"",(VLOOKUP(K40,'KAYIT LİSTESİ'!$B$4:$H$855,4,0))) ->  | N40: =IF(ISERROR(VLOOKUP(K40,'KAYIT LİSTESİ'!$B$4:$H$855,5,0)),"",(VLOOKUP(K40,'KAYIT LİSTESİ'!$B$4:$H$855,5,0))) ->  | O40: =IF(ISERROR(VLOOKUP(K40,'KAYIT LİSTESİ'!$B$4:$H$855,6,0)),"",(VLOOKUP(K40,'KAYIT LİSTESİ'!$B$4:$H$855,6,0))) -> 
A41: 5 | B41: 100M-4-5 | C41: =IF(ISERROR(VLOOKUP(B41,'KAYIT LİSTESİ'!$B$4:$H$855,2,0)),"",(VLOOKUP(B41,'KAYIT LİSTESİ'!$B$4:$H$855,2,0))) -> 86 | D41: =IF(ISERROR(VLOOKUP(B41,'KAYIT LİSTESİ'!$B$4:$H$855,4,0)),"",(VLOOKUP(B41,'KAYIT LİSTESİ'!$B$4:$H$855,4,0))) -> 2001-05-14 | E41: =IF(ISERROR(VLOOKUP(B41,'KAYIT LİSTESİ'!$B$4:$H$855,5,0)),"",(VLOOKUP(B41,'KAYIT LİSTESİ'!$B$4:$H$855,5,0))) -> İBRAHİM BULUT | F41: =IF(ISERROR(VLOOKUP(B41,'KAYIT LİSTESİ'!$B$4:$H$855,6,0)),"",(VLOOKUP(B41,'KAYIT LİSTESİ'!$B$4:$H$855,6,0))) -> AYDIN | J41: 5 | K41: 400M-4-5 | L41: =IF(ISERROR(VLOOKUP(K41,'KAYIT LİSTESİ'!$B$4:$H$855,2,0)),"",(VLOOKUP(K41,'KAYIT LİSTESİ'!$B$4:$H$855,2,0))) ->  | M41: =IF(ISERROR(VLOOKUP(K41,'KAYIT LİSTESİ'!$B$4:$H$855,4,0)),"",(VLOOKUP(K41,'KAYIT LİSTESİ'!$B$4:$H$855,4,0))) ->  | N41: =IF(ISERROR(VLOOKUP(K41,'KAYIT LİSTESİ'!$B$4:$H$855,5,0)),"",(VLOOKUP(K41,'KAYIT LİSTESİ'!$B$4:$H$855,5,0))) ->  | O41: =IF(ISERROR(VLOOKUP(K41,'KAYIT LİSTESİ'!$B$4:$H$855,6,0)),"",(VLOOKUP(K41,'KAYIT LİSTESİ'!$B$4:$H$855,6,0))) -> 
A42: 6 | B42: 100M-4-6 | C42: =IF(ISERROR(VLOOKUP(B42,'KAYIT LİSTESİ'!$B$4:$H$855,2,0)),"",(VLOOKUP(B42,'KAYIT LİSTESİ'!$B$4:$H$855,2,0))) -> 206 | D42: =IF(ISERROR(VLOOKUP(B42,'KAYIT LİSTESİ'!$B$4:$H$855,4,0)),"",(VLOOKUP(B42,'KAYIT LİSTESİ'!$B$4:$H$855,4,0))) -> 2001-01-01 | E42: =IF(ISERROR(VLOOKUP(B42,'KAYIT LİSTESİ'!$B$4:$H$855,5,0)),"",(VLOOKUP(B42,'KAYIT LİSTESİ'!$B$4:$H$855,5,0))) -> YUNUS EMRE GÜMÜŞ | F42: =IF(ISERROR(VLOOKUP(B42,'KAYIT LİSTESİ'!$B$4:$H$855,6,0)),"",(VLOOKUP(B42,'KAYIT LİSTESİ'!$B$4:$H$855,6,0))) -> BURSA | J42: 6 | K42: 400M-4-6 | L42: =IF(ISERROR(VLOOKUP(K42,'KAYIT LİSTESİ'!$B$4:$H$855,2,0)),"",(VLOOKUP(K42,'KAYIT LİSTESİ'!$B$4:$H$855,2,0))) ->  | M42: =IF(ISERROR(VLOOKUP(K42,'KAYIT LİSTESİ'!$B$4:$H$855,4,0)),"",(VLOOKUP(K42,'KAYIT LİSTESİ'!$B$4:$H$855,4,0))) ->  | N42: =IF(ISERROR(VLOOKUP(K42,'KAYIT LİSTESİ'!$B$4:$H$855,5,0)),"",(VLOOKUP(K42,'KAYIT LİSTESİ'!$B$4:$H$855,5,0))) ->  | O42: =IF(ISERROR(VLOOKUP(K42,'KAYIT LİSTESİ'!$B$4:$H$855,6,0)),"",(VLOOKUP(K42,'KAYIT LİSTESİ'!$B$4:$H$855,6,0))) -> 
A43: 7 | B43: 100M-4-7 | C43: =IF(ISERROR(VLOOKUP(B43,'KAYIT LİSTESİ'!$B$4:$H$855,2,0)),"",(VLOOKUP(B43,'KAYIT LİSTESİ'!$B$4:$H$855,2,0))) -> 613 | D43: =IF(ISERROR(VLOOKUP(B43,'KAYIT LİSTESİ'!$B$4:$H$855,4,0)),"",(VLOOKUP(B43,'KAYIT LİSTESİ'!$B$4:$H$855,4,0))) -> 2001-05-15 | E43: =IF(ISERROR(VLOOKUP(B43,'KAYIT LİSTESİ'!$B$4:$H$855,5,0)),"",(VLOOKUP(B43,'KAYIT LİSTESİ'!$B$4:$H$855,5,0))) -> MUSTAFA ÇAĞLAR KORKMAZ | F43: =IF(ISERROR(VLOOKUP(B43,'KAYIT LİSTESİ'!$B$4:$H$855,6,0)),"",(VLOOKUP(B43,'KAYIT LİSTESİ'!$B$4:$H$855,6,0))) -> OSMANİYE | J43: 7 | K43: 400M-4-7 | L43: =IF(ISERROR(VLOOKUP(K43,'KAYIT LİSTESİ'!$B$4:$H$855,2,0)),"",(VLOOKUP(K43,'KAYIT LİSTESİ'!$B$4:$H$855,2,0))) ->  | M43: =IF(ISERROR(VLOOKUP(K43,'KAYIT LİSTESİ'!$B$4:$H$855,4,0)),"",(VLOOKUP(K43,'KAYIT LİSTESİ'!$B$4:$H$855,4,0))) ->  | N43: =IF(ISERROR(VLOOKUP(K43,'KAYIT LİSTESİ'!$B$4:$H$855,5,0)),"",(VLOOKUP(K43,'KAYIT LİSTESİ'!$B$4:$H$855,5,0))) ->  | O43: =IF(ISERROR(VLOOKUP(K43,'KAYIT LİSTESİ'!$B$4:$H$855,6,0)),"",(VLOOKUP(K43,'KAYIT LİSTESİ'!$B$4:$H$855,6,0))) -> 
A44: 8 | B44: 100M-4-8 | C44: =IF(ISERROR(VLOOKUP(B44,'KAYIT LİSTESİ'!$B$4:$H$855,2,0)),"",(VLOOKUP(B44,'KAYIT LİSTESİ'!$B$4:$H$855,2,0))) ->  | D44: =IF(ISERROR(VLOOKUP(B44,'KAYIT LİSTESİ'!$B$4:$H$855,4,0)),"",(VLOOKUP(B44,'KAYIT LİSTESİ'!$B$4:$H$855,4,0))) ->  | E44: =IF(ISERROR(VLOOKUP(B44,'KAYIT LİSTESİ'!$B$4:$H$855,5,0)),"",(VLOOKUP(B44,'KAYIT LİSTESİ'!$B$4:$H$855,5,0))) ->  | F44: =IF(ISERROR(VLOOKUP(B44,'KAYIT LİSTESİ'!$B$4:$H$855,6,0)),"",(VLOOKUP(B44,'KAYIT LİSTESİ'!$B$4:$H$855,6,0))) ->  | J44: 8 | K44: 400M-4-8 | L44: =IF(ISERROR(VLOOKUP(K44,'KAYIT LİSTESİ'!$B$4:$H$855,2,0)),"",(VLOOKUP(K44,'KAYIT LİSTESİ'!$B$4:$H$855,2,0))) ->  | M44: =IF(ISERROR(VLOOKUP(K44,'KAYIT LİSTESİ'!$B$4:$H$855,4,0)),"",(VLOOKUP(K44,'KAYIT LİSTESİ'!$B$4:$H$855,4,0))) ->  | N44: =IF(ISERROR(VLOOKUP(K44,'KAYIT LİSTESİ'!$B$4:$H$855,5,0)),"",(VLOOKUP(K44,'KAYIT LİSTESİ'!$B$4:$H$855,5,0))) ->  | O44: =IF(ISERROR(VLOOKUP(K44,'KAYIT LİSTESİ'!$B$4:$H$855,6,0)),"",(VLOOKUP(K44,'KAYIT LİSTESİ'!$B$4:$H$855,6,0))) -> 
A45: 110 METRE ENGELLİ | J45: YÜKSEK ATLAMA
A46: 1. SERİ | J46: SIRA NO | L46: GÖĞÜS NO | M46: DOĞUM TARİHİ | N46: ADI VE SOYADI | O46: OKULU | P46: Start Kontrol
A47: Sıra No | B47: Formül | C47: Göğüs No | D47: Doğum Tarihi | E47: Adı ve Soyadı | F47: Okulu | G47: Start Kontrol
A48: 1 | B48: 110M.ENG-1-1 | C48: =IF(ISERROR(VLOOKUP(B48,'KAYIT LİSTESİ'!$B$4:$H$855,2,0)),"",(VLOOKUP(B48,'KAYIT LİSTESİ'!$B$4:$H$855,2,0))) ->  | D48: =IF(ISERROR(VLOOKUP(B48,'KAYIT LİSTESİ'!$B$4:$H$855,4,0)),"",(VLOOKUP(B48,'KAYIT LİSTESİ'!$B$4:$H$855,4,0))) ->  | E48: =IF(ISERROR(VLOOKUP(B48,'KAYIT LİSTESİ'!$B$4:$H$855,5,0)),"",(VLOOKUP(B48,'KAYIT LİSTESİ'!$B$4:$H$855,5,0))) ->  | F48: =IF(ISERROR(VLOOKUP(B48,'KAYIT LİSTESİ'!$B$4:$H$855,6,0)),"",(VLOOKUP(B48,'KAYIT LİSTESİ'!$B$4:$H$855,6,0))) ->  | J48: 1 | K48: YÜKSEK-1 | L48: =IF(ISERROR(VLOOKUP(K48,'KAYIT LİSTESİ'!$B$4:$H$855,2,0)),"",(VLOOKUP(K48,'KAYIT LİSTESİ'!$B$4:$H$855,2,0))) -> 614 | M48: =IF(ISERROR(VLOOKUP(K48,'KAYIT LİSTESİ'!$B$4:$H$855,4,0)),"",(VLOOKUP(K48,'KAYIT LİSTESİ'!$B$4:$H$855,4,0))) -> 2001-01-01 | N48: =IF(ISERROR(VLOOKUP(K48,'KAYIT LİSTESİ'!$B$4:$H$855,5,0)),"",(VLOOKUP(K48,'KAYIT LİSTESİ'!$B$4:$H$855,5,0))) -> MUSTAFA BEGEÇ | O48: =IF(ISERROR(VLOOKUP(K48,'KAYIT LİSTESİ'!$B$4:$H$855,6,0)),"",(VLOOKUP(K48,'KAYIT LİSTESİ'!$B$4:$H$855,6,0))) -> OSMANİYE
A49: 2 | B49: 110M.ENG-1-2 | C49: =IF(ISERROR(VLOOKUP(B49,'KAYIT LİSTESİ'!$B$4:$H$855,2,0)),"",(VLOOKUP(B49,'KAYIT LİSTESİ'!$B$4:$H$855,2,0))) ->  | D49: =IF(ISERROR(VLOOKUP(B49,'KAYIT LİSTESİ'!$B$4:$H$855,4,0)),"",(VLOOKUP(B49,'KAYIT LİSTESİ'!$B$4:$H$855,4,0))) ->  | E49: =IF(ISERROR(VLOOKUP(B49,'KAYIT LİSTESİ'!$B$4:$H$855,5,0)),"",(VLOOKUP(B49,'KAYIT LİSTESİ'!$B$4:$H$855,5,0))) ->  | F49: =IF(ISERROR(VLOOKUP(B49,'KAYIT LİSTESİ'!$B$4:$H$855,6,0)),"",(VLOOKUP(B49,'KAYIT LİSTESİ'!$B$4:$H$855,6,0))) ->  | J49: 2 | K49: YÜKSEK-2 | L49: =IF(ISERROR(VLOOKUP(K49,'KAYIT LİSTESİ'!$B$4:$H$855,2,0)),"",(VLOOKUP(K49,'KAYIT LİSTESİ'!$B$4:$H$855,2,0))) -> 725 | M49: =IF(ISERROR(VLOOKUP(K49,'KAYIT LİSTESİ'!$B$4:$H$855,4,0)),"",(VLOOKUP(K49,'KAYIT LİSTESİ'!$B$4:$H$855,4,0))) -> 2001-01-01 | N49: =IF(ISERROR(VLOOKUP(K49,'KAYIT LİSTESİ'!$B$4:$H$855,5,0)),"",(VLOOKUP(K49,'KAYIT LİSTESİ'!$B$4:$H$855,5,0))) -> BURAK ATIZ | O49: =IF(ISERROR(VLOOKUP(K49,'KAYIT LİSTESİ'!$B$4:$H$855,6,0)),"",(VLOOKUP(K49,'KAYIT LİSTESİ'!$B$4:$H$855,6,0))) -> TUNCELİ
A50: 3 | B50: 110M.ENG-1-3 | C50: =IF(ISERROR(VLOOKUP(B50,'KAYIT LİSTESİ'!$B$4:$H$855,2,0)),"",(VLOOKUP(B50,'KAYIT LİSTESİ'!$B$4:$H$855,2,0))) ->  | D50: =IF(ISERROR(VLOOKUP(B50,'KAYIT LİSTESİ'!$B$4:$H$855,4,0)),"",(VLOOKUP(B50,'KAYIT LİSTESİ'!$B$4:$H$855,4,0))) ->  | E50: =IF(ISERROR(VLOOKUP(B50,'KAYIT LİSTESİ'!$B$4:$H$855,5,0)),"",(VLOOKUP(B50,'KAYIT LİSTESİ'!$B$4:$H$855,5,0))) ->  | F50: =IF(ISERROR(VLOOKUP(B50,'KAYIT LİSTESİ'!$B$4:$H$855,6,0)),"",(VLOOKUP(B50,'KAYIT LİSTESİ'!$B$4:$H$855,6,0))) ->  | J50: 3 | K50: YÜKSEK-3 | L50: =IF(ISERROR(VLOOKUP(K50,'KAYIT LİSTESİ'!$B$4:$H$855,2,0)),"",(VLOOKUP(K50,'KAYIT LİSTESİ'!$B$4:$H$855,2,0))) -> 453 | M50: =IF(ISERROR(VLOOKUP(K50,'KAYIT LİSTESİ'!$B$4:$H$855,4,0)),"",(VLOOKUP(K50,'KAYIT LİSTESİ'!$B$4:$H$855,4,0))) -> 2001-04-06 | N50: =IF(ISERROR(VLOOKUP(K50,'KAYIT LİSTESİ'!$B$4:$H$855,5,0)),"",(VLOOKUP(K50,'KAYIT LİSTESİ'!$B$4:$H$855,5,0))) -> MEHMET ÖZGÜR | O50: =IF(ISERROR(VLOOKUP(K50,'KAYIT LİSTESİ'!$B$4:$H$855,6,0)),"",(VLOOKUP(K50,'KAYIT LİSTESİ'!$B$4:$H$855,6,0))) -> İZMİR
A51: 4 | B51: 110M.ENG-1-4 | C51: =IF(ISERROR(VLOOKUP(B51,'KAYIT LİSTESİ'!$B$4:$H$855,2,0)),"",(VLOOKUP(B51,'KAYIT LİSTESİ'!$B$4:$H$855,2,0))) ->  | D51: =IF(ISERROR(VLOOKUP(B51,'KAYIT LİSTESİ'!$B$4:$H$855,4,0)),"",(VLOOKUP(B51,'KAYIT LİSTESİ'!$B$4:$H$855,4,0))) ->  | E51: =IF(ISERROR(VLOOKUP(B51,'KAYIT LİSTESİ'!$B$4:$H$855,5,0)),"",(VLOOKUP(B51,'KAYIT LİSTESİ'!$B$4:$H$855,5,0))) ->  | F51: =IF(ISERROR(VLOOKUP(B51,'KAYIT LİSTESİ'!$B$4:$H$855,6,0)),"",(VLOOKUP(B51,'KAYIT LİSTESİ'!$B$4:$H$855,6,0))) ->  | J51: 4 | K51: YÜKSEK-4 | L51: =IF(ISERROR(VLOOKUP(K51,'KAYIT LİSTESİ'!$B$4:$H$855,2,0)),"",(VLOOKUP(K51,'KAYIT LİSTESİ'!$B$4:$H$855,2,0))) -> 681 | M51: =IF(ISERROR(VLOOKUP(K51,'KAYIT LİSTESİ'!$B$4:$H$855,4,0)),"",(VLOOKUP(K51,'KAYIT LİSTESİ'!$B$4:$H$855,4,0))) -> 2001-04-25 | N51: =IF(ISERROR(VLOOKUP(K51,'KAYIT LİSTESİ'!$B$4:$H$855,5,0)),"",(VLOOKUP(K51,'KAYIT LİSTESİ'!$B$4:$H$855,5,0))) -> OĞUZ KAĞAN HACIOĞLU | O51: =IF(ISERROR(VLOOKUP(K51,'KAYIT LİSTESİ'!$B$4:$H$855,6,0)),"",(VLOOKUP(K51,'KAYIT LİSTESİ'!$B$4:$H$855,6,0))) -> TEKİRDAĞ
A52: 5 | B52: 110M.ENG-1-5 | C52: =IF(ISERROR(VLOOKUP(B52,'KAYIT LİSTESİ'!$B$4:$H$855,2,0)),"",(VLOOKUP(B52,'KAYIT LİSTESİ'!$B$4:$H$855,2,0))) ->  | D52: =IF(ISERROR(VLOOKUP(B52,'KAYIT LİSTESİ'!$B$4:$H$855,4,0)),"",(VLOOKUP(B52,'KAYIT LİSTESİ'!$B$4:$H$855,4,0))) ->  | E52: =IF(ISERROR(VLOOKUP(B52,'KAYIT LİSTESİ'!$B$4:$H$855,5,0)),"",(VLOOKUP(B52,'KAYIT LİSTESİ'!$B$4:$H$855,5,0))) ->  | F52: =IF(ISERROR(VLOOKUP(B52,'KAYIT LİSTESİ'!$B$4:$H$855,6,0)),"",(VLOOKUP(B52,'KAYIT LİSTESİ'!$B$4:$H$855,6,0))) ->  | J52: 5 | K52: YÜKSEK-5 | L52: =IF(ISERROR(VLOOKUP(K52,'KAYIT LİSTESİ'!$B$4:$H$855,2,0)),"",(VLOOKUP(K52,'KAYIT LİSTESİ'!$B$4:$H$855,2,0))) -> 582 | M52: =IF(ISERROR(VLOOKUP(K52,'KAYIT LİSTESİ'!$B$4:$H$855,4,0)),"",(VLOOKUP(K52,'KAYIT LİSTESİ'!$B$4:$H$855,4,0))) -> 2001-05-19 | N52: =IF(ISERROR(VLOOKUP(K52,'KAYIT LİSTESİ'!$B$4:$H$855,5,0)),"",(VLOOKUP(K52,'KAYIT LİSTESİ'!$B$4:$H$855,5,0))) -> Adem KOÇLARDAN | O52: =IF(ISERROR(VLOOKUP(K52,'KAYIT LİSTESİ'!$B$4:$H$855,6,0)),"",(VLOOKUP(K52,'KAYIT LİSTESİ'!$B$4:$H$855,6,0))) -> MUŞ
A53: 6 | B53: 110M.ENG-1-6 | C53: =IF(ISERROR(VLOOKUP(B53,'KAYIT LİSTESİ'!$B$4:$H$855,2,0)),"",(VLOOKUP(B53,'KAYIT LİSTESİ'!$B$4:$H$855,2,0))) ->  | D53: =IF(ISERROR(VLOOKUP(B53,'KAYIT LİSTESİ'!$B$4:$H$855,4,0)),"",(VLOOKUP(B53,'KAYIT LİSTESİ'!$B$4:$H$855,4,0))) ->  | E53: =IF(ISERROR(VLOOKUP(B53,'KAYIT LİSTESİ'!$B$4:$H$855,5,0)),"",(VLOOKUP(B53,'KAYIT LİSTESİ'!$B$4:$H$855,5,0))) ->  | F53: =IF(ISERROR(VLOOKUP(B53,'KAYIT LİSTESİ'!$B$4:$H$855,6,0)),"",(VLOOKUP(B53,'KAYIT LİSTESİ'!$B$4:$H$855,6,0))) ->  | J53: 6 | K53: YÜKSEK-6 | L53: =IF(ISERROR(VLOOKUP(K53,'KAYIT LİSTESİ'!$B$4:$H$855,2,0)),"",(VLOOKUP(K53,'KAYIT LİSTESİ'!$B$4:$H$855,2,0))) -> 530 | M53: =IF(ISERROR(VLOOKUP(K53,'KAYIT LİSTESİ'!$B$4:$H$855,4,0)),"",(VLOOKUP(K53,'KAYIT LİSTESİ'!$B$4:$H$855,4,0))) -> 2001-03-20 | N53: =IF(ISERROR(VLOOKUP(K53,'KAYIT LİSTESİ'!$B$4:$H$855,5,0)),"",(VLOOKUP(K53,'KAYIT LİSTESİ'!$B$4:$H$855,5,0))) -> YUNUS EMRE KIZIL | O53: =IF(ISERROR(VLOOKUP(K53,'KAYIT LİSTESİ'!$B$4:$H$855,6,0)),"",(VLOOKUP(K53,'KAYIT LİSTESİ'!$B$4:$H$855,6,0))) -> KONYA
A54: 7 | B54: 110M.ENG-1-7 | C54: =IF(ISERROR(VLOOKUP(B54,'KAYIT LİSTESİ'!$B$4:$H$855,2,0)),"",(VLOOKUP(B54,'KAYIT LİSTESİ'!$B$4:$H$855,2,0))) ->  | D54: =IF(ISERROR(VLOOKUP(B54,'KAYIT LİSTESİ'!$B$4:$H$855,4,0)),"",(VLOOKUP(B54,'KAYIT LİSTESİ'!$B$4:$H$855,4,0))) ->  | E54: =IF(ISERROR(VLOOKUP(B54,'KAYIT LİSTESİ'!$B$4:$H$855,5,0)),"",(VLOOKUP(B54,'KAYIT LİSTESİ'!$B$4:$H$855,5,0))) ->  | F54: =IF(ISERROR(VLOOKUP(B54,'KAYIT LİSTESİ'!$B$4:$H$855,6,0)),"",(VLOOKUP(B54,'KAYIT LİSTESİ'!$B$4:$H$855,6,0))) ->  | J54: 7 | K54: YÜKSEK-7 | L54: =IF(ISERROR(VLOOKUP(K54,'KAYIT LİSTESİ'!$B$4:$H$855,2,0)),"",(VLOOKUP(K54,'KAYIT LİSTESİ'!$B$4:$H$855,2,0))) -> 644 | M54: =IF(ISERROR(VLOOKUP(K54,'KAYIT LİSTESİ'!$B$4:$H$855,4,0)),"",(VLOOKUP(K54,'KAYIT LİSTESİ'!$B$4:$H$855,4,0))) -> 2001-06-07 | N54: =IF(ISERROR(VLOOKUP(K54,'KAYIT LİSTESİ'!$B$4:$H$855,5,0)),"",(VLOOKUP(K54,'KAYIT LİSTESİ'!$B$4:$H$855,5,0))) -> GÖKHAN BEŞİR | O54: =IF(ISERROR(VLOOKUP(K54,'KAYIT LİSTESİ'!$B$4:$H$855,6,0)),"",(VLOOKUP(K54,'KAYIT LİSTESİ'!$B$4:$H$855,6,0))) -> SAMSUN
A55: 8 | B55: 110M.ENG-1-8 | C55: =IF(ISERROR(VLOOKUP(B55,'KAYIT LİSTESİ'!$B$4:$H$855,2,0)),"",(VLOOKUP(B55,'KAYIT LİSTESİ'!$B$4:$H$855,2,0))) ->  | D55: =IF(ISERROR(VLOOKUP(B55,'KAYIT LİSTESİ'!$B$4:$H$855,4,0)),"",(VLOOKUP(B55,'KAYIT LİSTESİ'!$B$4:$H$855,4,0))) ->  | E55: =IF(ISERROR(VLOOKUP(B55,'KAYIT LİSTESİ'!$B$4:$H$855,5,0)),"",(VLOOKUP(B55,'KAYIT LİSTESİ'!$B$4:$H$855,5,0))) ->  | F55: =IF(ISERROR(VLOOKUP(B55,'KAYIT LİSTESİ'!$B$4:$H$855,6,0)),"",(VLOOKUP(B55,'KAYIT LİSTESİ'!$B$4:$H$855,6,0))) ->  | J55: 8 | K55: YÜKSEK-8 | L55: =IF(ISERROR(VLOOKUP(K55,'KAYIT LİSTESİ'!$B$4:$H$855,2,0)),"",(VLOOKUP(K55,'KAYIT LİSTESİ'!$B$4:$H$855,2,0))) -> 547 | M55: =IF(ISERROR(VLOOKUP(K55,'KAYIT LİSTESİ'!$B$4:$H$855,4,0)),"",(VLOOKUP(K55,'KAYIT LİSTESİ'!$B$4:$H$855,4,0))) -> 2001-02-21 | N55: =IF(ISERROR(VLOOKUP(K55,'KAYIT LİSTESİ'!$B$4:$H$855,5,0)),"",(VLOOKUP(K55,'KAYIT LİSTESİ'!$B$4:$H$855,5,0))) -> ADİL KARAKAŞ | O55: =IF(ISERROR(VLOOKUP(K55,'KAYIT LİSTESİ'!$B$4:$H$855,6,0)),"",(VLOOKUP(K55,'KAYIT LİSTESİ'!$B$4:$H$855,6,0))) -> KÜTAHYA
A56: 2. SERİ | J56: 9 | K56: YÜKSEK-9 | L56: =IF(ISERROR(VLOOKUP(K56,'KAYIT LİSTESİ'!$B$4:$H$855,2,0)),"",(VLOOKUP(K56,'KAYIT LİSTESİ'!$B$4:$H$855,2,0))) -> 511 | M56: =IF(ISERROR(VLOOKUP(K56,'KAYIT LİSTESİ'!$B$4:$H$855,4,0)),"",(VLOOKUP(K56,'KAYIT LİSTESİ'!$B$4:$H$855,4,0))) -> 2001-01-21 | N56: =IF(ISERROR(VLOOKUP(K56,'KAYIT LİSTESİ'!$B$4:$H$855,5,0)),"",(VLOOKUP(K56,'KAYIT LİSTESİ'!$B$4:$H$855,5,0))) -> EMİN BURAK ÇAPA | O56: =IF(ISERROR(VLOOKUP(K56,'KAYIT LİSTESİ'!$B$4:$H$855,6,0)),"",(VLOOKUP(K56,'KAYIT LİSTESİ'!$B$4:$H$855,6,0))) -> KOCAELİ
A57: Sıra No | B57: Formül | C57: Göğüs No | D57: Doğum Tarihi | E57: Adı ve Soyadı | F57: Okulu | G57: Start Kontrol | J57: 10 | K57: YÜKSEK-10 | L57: =IF(ISERROR(VLOOKUP(K57,'KAYIT LİSTESİ'!$B$4:$H$855,2,0)),"",(VLOOKUP(K57,'KAYIT LİSTESİ'!$B$4:$H$855,2,0))) -> 208 | M57: =IF(ISERROR(VLOOKUP(K57,'KAYIT LİSTESİ'!$B$4:$H$855,4,0)),"",(VLOOKUP(K57,'KAYIT LİSTESİ'!$B$4:$H$855,4,0))) -> 2001-03-24 | N57: =IF(ISERROR(VLOOKUP(K57,'KAYIT LİSTESİ'!$B$4:$H$855,5,0)),"",(VLOOKUP(K57,'KAYIT LİSTESİ'!$B$4:$H$855,5,0))) -> CİHAT ÖZKAYA | O57: =IF(ISERROR(VLOOKUP(K57,'KAYIT LİSTESİ'!$B$4:$H$855,6,0)),"",(VLOOKUP(K57,'KAYIT LİSTESİ'!$B$4:$H$855,6,0))) -> BURSA
A58: 1 | B58: 110M.ENG-2-1 | C58: =IF(ISERROR(VLOOKUP(B58,'KAYIT LİSTESİ'!$B$4:$H$855,2,0)),"",(VLOOKUP(B58,'KAYIT LİSTESİ'!$B$4:$H$855,2,0))) ->  | D58: =IF(ISERROR(VLOOKUP(B58,'KAYIT LİSTESİ'!$B$4:$H$855,4,0)),"",(VLOOKUP(B58,'KAYIT LİSTESİ'!$B$4:$H$855,4,0))) ->  | E58: =IF(ISERROR(VLOOKUP(B58,'KAYIT LİSTESİ'!$B$4:$H$855,5,0)),"",(VLOOKUP(B58,'KAYIT LİSTESİ'!$B$4:$H$855,5,0))) ->  | F58: =IF(ISERROR(VLOOKUP(B58,'KAYIT LİSTESİ'!$B$4:$H$855,6,0)),"",(VLOOKUP(B58,'KAYIT LİSTESİ'!$B$4:$H$855,6,0))) ->  | J58: 11 | K58: YÜKSEK-11 | L58: =IF(ISERROR(VLOOKUP(K58,'KAYIT LİSTESİ'!$B$4:$H$855,2,0)),"",(VLOOKUP(K58,'KAYIT LİSTESİ'!$B$4:$H$855,2,0))) -> 568 | M58: =IF(ISERROR(VLOOKUP(K58,'KAYIT LİSTESİ'!$B$4:$H$855,4,0)),"",(VLOOKUP(K58,'KAYIT LİSTESİ'!$B$4:$H$855,4,0))) -> 2001-04-03 | N58: =IF(ISERROR(VLOOKUP(K58,'KAYIT LİSTESİ'!$B$4:$H$855,5,0)),"",(VLOOKUP(K58,'KAYIT LİSTESİ'!$B$4:$H$855,5,0))) -> AHMET CAN SÜRAL | O58: =IF(ISERROR(VLOOKUP(K58,'KAYIT LİSTESİ'!$B$4:$H$855,6,0)),"",(VLOOKUP(K58,'KAYIT LİSTESİ'!$B$4:$H$855,6,0))) -> MUĞLA
A59: 2 | B59: 110M.ENG-2-2 | C59: =IF(ISERROR(VLOOKUP(B59,'KAYIT LİSTESİ'!$B$4:$H$855,2,0)),"",(VLOOKUP(B59,'KAYIT LİSTESİ'!$B$4:$H$855,2,0))) ->  | D59: =IF(ISERROR(VLOOKUP(B59,'KAYIT LİSTESİ'!$B$4:$H$855,4,0)),"",(VLOOKUP(B59,'KAYIT LİSTESİ'!$B$4:$H$855,4,0))) ->  | E59: =IF(ISERROR(VLOOKUP(B59,'KAYIT LİSTESİ'!$B$4:$H$855,5,0)),"",(VLOOKUP(B59,'KAYIT LİSTESİ'!$B$4:$H$855,5,0))) ->  | F59: =IF(ISERROR(VLOOKUP(B59,'KAYIT LİSTESİ'!$B$4:$H$855,6,0)),"",(VLOOKUP(B59,'KAYIT LİSTESİ'!$B$4:$H$855,6,0))) ->  | J59: 12 | K59: YÜKSEK-12 | L59: =IF(ISERROR(VLOOKUP(K59,'KAYIT LİSTESİ'!$B$4:$H$855,2,0)),"",(VLOOKUP(K59,'KAYIT LİSTESİ'!$B$4:$H$855,2,0))) ->  | M59: =IF(ISERROR(VLOOKUP(K59,'KAYIT LİSTESİ'!$B$4:$H$855,4,0)),"",(VLOOKUP(K59,'KAYIT LİSTESİ'!$B$4:$H$855,4,0))) ->  | N59: =IF(ISERROR(VLOOKUP(K59,'KAYIT LİSTESİ'!$B$4:$H$855,5,0)),"",(VLOOKUP(K59,'KAYIT LİSTESİ'!$B$4:$H$855,5,0))) ->  | O59: =IF(ISERROR(VLOOKUP(K59,'KAYIT LİSTESİ'!$B$4:$H$855,6,0)),"",(VLOOKUP(K59,'KAYIT LİSTESİ'!$B$4:$H$855,6,0))) -> 
A60: 3 | B60: 110M.ENG-2-3 | C60: =IF(ISERROR(VLOOKUP(B60,'KAYIT LİSTESİ'!$B$4:$H$855,2,0)),"",(VLOOKUP(B60,'KAYIT LİSTESİ'!$B$4:$H$855,2,0))) ->  | D60: =IF(ISERROR(VLOOKUP(B60,'KAYIT LİSTESİ'!$B$4:$H$855,4,0)),"",(VLOOKUP(B60,'KAYIT LİSTESİ'!$B$4:$H$855,4,0))) ->  | E60: =IF(ISERROR(VLOOKUP(B60,'KAYIT LİSTESİ'!$B$4:$H$855,5,0)),"",(VLOOKUP(B60,'KAYIT LİSTESİ'!$B$4:$H$855,5,0))) ->  | F60: =IF(ISERROR(VLOOKUP(B60,'KAYIT LİSTESİ'!$B$4:$H$855,6,0)),"",(VLOOKUP(B60,'KAYIT LİSTESİ'!$B$4:$H$855,6,0))) ->  | J60: 13 | K60: YÜKSEK-13 | L60: =IF(ISERROR(VLOOKUP(K60,'KAYIT LİSTESİ'!$B$4:$H$855,2,0)),"",(VLOOKUP(K60,'KAYIT LİSTESİ'!$B$4:$H$855,2,0))) ->  | M60: =IF(ISERROR(VLOOKUP(K60,'KAYIT LİSTESİ'!$B$4:$H$855,4,0)),"",(VLOOKUP(K60,'KAYIT LİSTESİ'!$B$4:$H$855,4,0))) ->  | N60: =IF(ISERROR(VLOOKUP(K60,'KAYIT LİSTESİ'!$B$4:$H$855,5,0)),"",(VLOOKUP(K60,'KAYIT LİSTESİ'!$B$4:$H$855,5,0))) ->  | O60: =IF(ISERROR(VLOOKUP(K60,'KAYIT LİSTESİ'!$B$4:$H$855,6,0)),"",(VLOOKUP(K60,'KAYIT LİSTESİ'!$B$4:$H$855,6,0))) -> 
A61: 4 | B61: 110M.ENG-2-4 | C61: =IF(ISERROR(VLOOKUP(B61,'KAYIT LİSTESİ'!$B$4:$H$855,2,0)),"",(VLOOKUP(B61,'KAYIT LİSTESİ'!$B$4:$H$855,2,0))) ->  | D61: =IF(ISERROR(VLOOKUP(B61,'KAYIT LİSTESİ'!$B$4:$H$855,4,0)),"",(VLOOKUP(B61,'KAYIT LİSTESİ'!$B$4:$H$855,4,0))) ->  | E61: =IF(ISERROR(VLOOKUP(B61,'KAYIT LİSTESİ'!$B$4:$H$855,5,0)),"",(VLOOKUP(B61,'KAYIT LİSTESİ'!$B$4:$H$855,5,0))) ->  | F61: =IF(ISERROR(VLOOKUP(B61,'KAYIT LİSTESİ'!$B$4:$H$855,6,0)),"",(VLOOKUP(B61,'KAYIT LİSTESİ'!$B$4:$H$855,6,0))) ->  | J61: 14 | K61: YÜKSEK-14 | L61: =IF(ISERROR(VLOOKUP(K61,'KAYIT LİSTESİ'!$B$4:$H$855,2,0)),"",(VLOOKUP(K61,'KAYIT LİSTESİ'!$B$4:$H$855,2,0))) ->  | M61: =IF(ISERROR(VLOOKUP(K61,'KAYIT LİSTESİ'!$B$4:$H$855,4,0)),"",(VLOOKUP(K61,'KAYIT LİSTESİ'!$B$4:$H$855,4,0))) ->  | N61: =IF(ISERROR(VLOOKUP(K61,'KAYIT LİSTESİ'!$B$4:$H$855,5,0)),"",(VLOOKUP(K61,'KAYIT LİSTESİ'!$B$4:$H$855,5,0))) ->  | O61: =IF(ISERROR(VLOOKUP(K61,'KAYIT LİSTESİ'!$B$4:$H$855,6,0)),"",(VLOOKUP(K61,'KAYIT LİSTESİ'!$B$4:$H$855,6,0))) -> 
A62: 5 | B62: 110M.ENG-2-5 | C62: =IF(ISERROR(VLOOKUP(B62,'KAYIT LİSTESİ'!$B$4:$H$855,2,0)),"",(VLOOKUP(B62,'KAYIT LİSTESİ'!$B$4:$H$855,2,0))) ->  | D62: =IF(ISERROR(VLOOKUP(B62,'KAYIT LİSTESİ'!$B$4:$H$855,4,0)),"",(VLOOKUP(B62,'KAYIT LİSTESİ'!$B$4:$H$855,4,0))) ->  | E62: =IF(ISERROR(VLOOKUP(B62,'KAYIT LİSTESİ'!$B$4:$H$855,5,0)),"",(VLOOKUP(B62,'KAYIT LİSTESİ'!$B$4:$H$855,5,0))) ->  | F62: =IF(ISERROR(VLOOKUP(B62,'KAYIT LİSTESİ'!$B$4:$H$855,6,0)),"",(VLOOKUP(B62,'KAYIT LİSTESİ'!$B$4:$H$855,6,0))) ->  | J62: 15 | K62: YÜKSEK-15 | L62: =IF(ISERROR(VLOOKUP(K62,'KAYIT LİSTESİ'!$B$4:$H$855,2,0)),"",(VLOOKUP(K62,'KAYIT LİSTESİ'!$B$4:$H$855,2,0))) ->  | M62: =IF(ISERROR(VLOOKUP(K62,'KAYIT LİSTESİ'!$B$4:$H$855,4,0)),"",(VLOOKUP(K62,'KAYIT LİSTESİ'!$B$4:$H$855,4,0))) ->  | N62: =IF(ISERROR(VLOOKUP(K62,'KAYIT LİSTESİ'!$B$4:$H$855,5,0)),"",(VLOOKUP(K62,'KAYIT LİSTESİ'!$B$4:$H$855,5,0))) ->  | O62: =IF(ISERROR(VLOOKUP(K62,'KAYIT LİSTESİ'!$B$4:$H$855,6,0)),"",(VLOOKUP(K62,'KAYIT LİSTESİ'!$B$4:$H$855,6,0))) -> 
A63: 6 | B63: 110M.ENG-2-6 | C63: =IF(ISERROR(VLOOKUP(B63,'KAYIT LİSTESİ'!$B$4:$H$855,2,0)),"",(VLOOKUP(B63,'KAYIT LİSTESİ'!$B$4:$H$855,2,0))) ->  | D63: =IF(ISERROR(VLOOKUP(B63,'KAYIT LİSTESİ'!$B$4:$H$855,4,0)),"",(VLOOKUP(B63,'KAYIT LİSTESİ'!$B$4:$H$855,4,0))) ->  | E63: =IF(ISERROR(VLOOKUP(B63,'KAYIT LİSTESİ'!$B$4:$H$855,5,0)),"",(VLOOKUP(B63,'KAYIT LİSTESİ'!$B$4:$H$855,5,0))) ->  | F63: =IF(ISERROR(VLOOKUP(B63,'KAYIT LİSTESİ'!$B$4:$H$855,6,0)),"",(VLOOKUP(B63,'KAYIT LİSTESİ'!$B$4:$H$855,6,0))) ->  | J63: 16 | K63: YÜKSEK-16 | L63: =IF(ISERROR(VLOOKUP(K63,'KAYIT LİSTESİ'!$B$4:$H$855,2,0)),"",(VLOOKUP(K63,'KAYIT LİSTESİ'!$B$4:$H$855,2,0))) ->  | M63: =IF(ISERROR(VLOOKUP(K63,'KAYIT LİSTESİ'!$B$4:$H$855,4,0)),"",(VLOOKUP(K63,'KAYIT LİSTESİ'!$B$4:$H$855,4,0))) ->  | N63: =IF(ISERROR(VLOOKUP(K63,'KAYIT LİSTESİ'!$B$4:$H$855,5,0)),"",(VLOOKUP(K63,'KAYIT LİSTESİ'!$B$4:$H$855,5,0))) ->  | O63: =IF(ISERROR(VLOOKUP(K63,'KAYIT LİSTESİ'!$B$4:$H$855,6,0)),"",(VLOOKUP(K63,'KAYIT LİSTESİ'!$B$4:$H$855,6,0))) -> 
A64: 7 | B64: 110M.ENG-2-7 | C64: =IF(ISERROR(VLOOKUP(B64,'KAYIT LİSTESİ'!$B$4:$H$855,2,0)),"",(VLOOKUP(B64,'KAYIT LİSTESİ'!$B$4:$H$855,2,0))) ->  | D64: =IF(ISERROR(VLOOKUP(B64,'KAYIT LİSTESİ'!$B$4:$H$855,4,0)),"",(VLOOKUP(B64,'KAYIT LİSTESİ'!$B$4:$H$855,4,0))) ->  | E64: =IF(ISERROR(VLOOKUP(B64,'KAYIT LİSTESİ'!$B$4:$H$855,5,0)),"",(VLOOKUP(B64,'KAYIT LİSTESİ'!$B$4:$H$855,5,0))) ->  | F64: =IF(ISERROR(VLOOKUP(B64,'KAYIT LİSTESİ'!$B$4:$H$855,6,0)),"",(VLOOKUP(B64,'KAYIT LİSTESİ'!$B$4:$H$855,6,0))) ->  | J64: 17 | K64: YÜKSEK-17 | L64: =IF(ISERROR(VLOOKUP(K64,'KAYIT LİSTESİ'!$B$4:$H$855,2,0)),"",(VLOOKUP(K64,'KAYIT LİSTESİ'!$B$4:$H$855,2,0))) ->  | M64: =IF(ISERROR(VLOOKUP(K64,'KAYIT LİSTESİ'!$B$4:$H$855,4,0)),"",(VLOOKUP(K64,'KAYIT LİSTESİ'!$B$4:$H$855,4,0))) ->  | N64: =IF(ISERROR(VLOOKUP(K64,'KAYIT LİSTESİ'!$B$4:$H$855,5,0)),"",(VLOOKUP(K64,'KAYIT LİSTESİ'!$B$4:$H$855,5,0))) ->  | O64: =IF(ISERROR(VLOOKUP(K64,'KAYIT LİSTESİ'!$B$4:$H$855,6,0)),"",(VLOOKUP(K64,'KAYIT LİSTESİ'!$B$4:$H$855,6,0))) -> 
A65: 8 | B65: 110M.ENG-2-8 | C65: =IF(ISERROR(VLOOKUP(B65,'KAYIT LİSTESİ'!$B$4:$H$855,2,0)),"",(VLOOKUP(B65,'KAYIT LİSTESİ'!$B$4:$H$855,2,0))) ->  | D65: =IF(ISERROR(VLOOKUP(B65,'KAYIT LİSTESİ'!$B$4:$H$855,4,0)),"",(VLOOKUP(B65,'KAYIT LİSTESİ'!$B$4:$H$855,4,0))) ->  | E65: =IF(ISERROR(VLOOKUP(B65,'KAYIT LİSTESİ'!$B$4:$H$855,5,0)),"",(VLOOKUP(B65,'KAYIT LİSTESİ'!$B$4:$H$855,5,0))) ->  | F65: =IF(ISERROR(VLOOKUP(B65,'KAYIT LİSTESİ'!$B$4:$H$855,6,0)),"",(VLOOKUP(B65,'KAYIT LİSTESİ'!$B$4:$H$855,6,0))) ->  | J65: 18 | K65: YÜKSEK-18 | L65: =IF(ISERROR(VLOOKUP(K65,'KAYIT LİSTESİ'!$B$4:$H$855,2,0)),"",(VLOOKUP(K65,'KAYIT LİSTESİ'!$B$4:$H$855,2,0))) ->  | M65: =IF(ISERROR(VLOOKUP(K65,'KAYIT LİSTESİ'!$B$4:$H$855,4,0)),"",(VLOOKUP(K65,'KAYIT LİSTESİ'!$B$4:$H$855,4,0))) ->  | N65: =IF(ISERROR(VLOOKUP(K65,'KAYIT LİSTESİ'!$B$4:$H$855,5,0)),"",(VLOOKUP(K65,'KAYIT LİSTESİ'!$B$4:$H$855,5,0))) ->  | O65: =IF(ISERROR(VLOOKUP(K65,'KAYIT LİSTESİ'!$B$4:$H$855,6,0)),"",(VLOOKUP(K65,'KAYIT LİSTESİ'!$B$4:$H$855,6,0))) -> 
A66: 3. SERİ | J66: 19 | K66: YÜKSEK-19 | L66: =IF(ISERROR(VLOOKUP(K66,'KAYIT LİSTESİ'!$B$4:$H$855,2,0)),"",(VLOOKUP(K66,'KAYIT LİSTESİ'!$B$4:$H$855,2,0))) ->  | M66: =IF(ISERROR(VLOOKUP(K66,'KAYIT LİSTESİ'!$B$4:$H$855,4,0)),"",(VLOOKUP(K66,'KAYIT LİSTESİ'!$B$4:$H$855,4,0))) ->  | N66: =IF(ISERROR(VLOOKUP(K66,'KAYIT LİSTESİ'!$B$4:$H$855,5,0)),"",(VLOOKUP(K66,'KAYIT LİSTESİ'!$B$4:$H$855,5,0))) ->  | O66: =IF(ISERROR(VLOOKUP(K66,'KAYIT LİSTESİ'!$B$4:$H$855,6,0)),"",(VLOOKUP(K66,'KAYIT LİSTESİ'!$B$4:$H$855,6,0))) -> 
A67: Sıra No | B67: Formül | C67: Göğüs No | D67: Doğum Tarihi | E67: Adı ve Soyadı | F67: Okulu | G67: Start Kontrol | J67: 20 | K67: YÜKSEK-20 | L67: =IF(ISERROR(VLOOKUP(K67,'KAYIT LİSTESİ'!$B$4:$H$855,2,0)),"",(VLOOKUP(K67,'KAYIT LİSTESİ'!$B$4:$H$855,2,0))) ->  | M67: =IF(ISERROR(VLOOKUP(K67,'KAYIT LİSTESİ'!$B$4:$H$855,4,0)),"",(VLOOKUP(K67,'KAYIT LİSTESİ'!$B$4:$H$855,4,0))) ->  | N67: =IF(ISERROR(VLOOKUP(K67,'KAYIT LİSTESİ'!$B$4:$H$855,5,0)),"",(VLOOKUP(K67,'KAYIT LİSTESİ'!$B$4:$H$855,5,0))) ->  | O67: =IF(ISERROR(VLOOKUP(K67,'KAYIT LİSTESİ'!$B$4:$H$855,6,0)),"",(VLOOKUP(K67,'KAYIT LİSTESİ'!$B$4:$H$855,6,0))) -> 
A68: 1 | B68: 110M.ENG-3-1 | C68: =IF(ISERROR(VLOOKUP(B68,'KAYIT LİSTESİ'!$B$4:$H$855,2,0)),"",(VLOOKUP(B68,'KAYIT LİSTESİ'!$B$4:$H$855,2,0))) ->  | D68: =IF(ISERROR(VLOOKUP(B68,'KAYIT LİSTESİ'!$B$4:$H$855,4,0)),"",(VLOOKUP(B68,'KAYIT LİSTESİ'!$B$4:$H$855,4,0))) ->  | E68: =IF(ISERROR(VLOOKUP(B68,'KAYIT LİSTESİ'!$B$4:$H$855,5,0)),"",(VLOOKUP(B68,'KAYIT LİSTESİ'!$B$4:$H$855,5,0))) ->  | F68: =IF(ISERROR(VLOOKUP(B68,'KAYIT LİSTESİ'!$B$4:$H$855,6,0)),"",(VLOOKUP(B68,'KAYIT LİSTESİ'!$B$4:$H$855,6,0))) ->  | J68: 21 | K68: YÜKSEK-21 | L68: =IF(ISERROR(VLOOKUP(K68,'KAYIT LİSTESİ'!$B$4:$H$855,2,0)),"",(VLOOKUP(K68,'KAYIT LİSTESİ'!$B$4:$H$855,2,0))) ->  | M68: =IF(ISERROR(VLOOKUP(K68,'KAYIT LİSTESİ'!$B$4:$H$855,4,0)),"",(VLOOKUP(K68,'KAYIT LİSTESİ'!$B$4:$H$855,4,0))) ->  | N68: =IF(ISERROR(VLOOKUP(K68,'KAYIT LİSTESİ'!$B$4:$H$855,5,0)),"",(VLOOKUP(K68,'KAYIT LİSTESİ'!$B$4:$H$855,5,0))) ->  | O68: =IF(ISERROR(VLOOKUP(K68,'KAYIT LİSTESİ'!$B$4:$H$855,6,0)),"",(VLOOKUP(K68,'KAYIT LİSTESİ'!$B$4:$H$855,6,0))) -> 
A69: 2 | B69: 110M.ENG-3-2 | C69: =IF(ISERROR(VLOOKUP(B69,'KAYIT LİSTESİ'!$B$4:$H$855,2,0)),"",(VLOOKUP(B69,'KAYIT LİSTESİ'!$B$4:$H$855,2,0))) ->  | D69: =IF(ISERROR(VLOOKUP(B69,'KAYIT LİSTESİ'!$B$4:$H$855,4,0)),"",(VLOOKUP(B69,'KAYIT LİSTESİ'!$B$4:$H$855,4,0))) ->  | E69: =IF(ISERROR(VLOOKUP(B69,'KAYIT LİSTESİ'!$B$4:$H$855,5,0)),"",(VLOOKUP(B69,'KAYIT LİSTESİ'!$B$4:$H$855,5,0))) ->  | F69: =IF(ISERROR(VLOOKUP(B69,'KAYIT LİSTESİ'!$B$4:$H$855,6,0)),"",(VLOOKUP(B69,'KAYIT LİSTESİ'!$B$4:$H$855,6,0))) ->  | J69: 22 | K69: YÜKSEK-22 | L69: =IF(ISERROR(VLOOKUP(K69,'KAYIT LİSTESİ'!$B$4:$H$855,2,0)),"",(VLOOKUP(K69,'KAYIT LİSTESİ'!$B$4:$H$855,2,0))) ->  | M69: =IF(ISERROR(VLOOKUP(K69,'KAYIT LİSTESİ'!$B$4:$H$855,4,0)),"",(VLOOKUP(K69,'KAYIT LİSTESİ'!$B$4:$H$855,4,0))) ->  | N69: =IF(ISERROR(VLOOKUP(K69,'KAYIT LİSTESİ'!$B$4:$H$855,5,0)),"",(VLOOKUP(K69,'KAYIT LİSTESİ'!$B$4:$H$855,5,0))) ->  | O69: =IF(ISERROR(VLOOKUP(K69,'KAYIT LİSTESİ'!$B$4:$H$855,6,0)),"",(VLOOKUP(K69,'KAYIT LİSTESİ'!$B$4:$H$855,6,0))) -> 
A70: 3 | B70: 110M.ENG-3-3 | C70: =IF(ISERROR(VLOOKUP(B70,'KAYIT LİSTESİ'!$B$4:$H$855,2,0)),"",(VLOOKUP(B70,'KAYIT LİSTESİ'!$B$4:$H$855,2,0))) ->  | D70: =IF(ISERROR(VLOOKUP(B70,'KAYIT LİSTESİ'!$B$4:$H$855,4,0)),"",(VLOOKUP(B70,'KAYIT LİSTESİ'!$B$4:$H$855,4,0))) ->  | E70: =IF(ISERROR(VLOOKUP(B70,'KAYIT LİSTESİ'!$B$4:$H$855,5,0)),"",(VLOOKUP(B70,'KAYIT LİSTESİ'!$B$4:$H$855,5,0))) ->  | F70: =IF(ISERROR(VLOOKUP(B70,'KAYIT LİSTESİ'!$B$4:$H$855,6,0)),"",(VLOOKUP(B70,'KAYIT LİSTESİ'!$B$4:$H$855,6,0))) ->  | J70: 23 | K70: YÜKSEK-23 | L70: =IF(ISERROR(VLOOKUP(K70,'KAYIT LİSTESİ'!$B$4:$H$855,2,0)),"",(VLOOKUP(K70,'KAYIT LİSTESİ'!$B$4:$H$855,2,0))) ->  | M70: =IF(ISERROR(VLOOKUP(K70,'KAYIT LİSTESİ'!$B$4:$H$855,4,0)),"",(VLOOKUP(K70,'KAYIT LİSTESİ'!$B$4:$H$855,4,0))) ->  | N70: =IF(ISERROR(VLOOKUP(K70,'KAYIT LİSTESİ'!$B$4:$H$855,5,0)),"",(VLOOKUP(K70,'KAYIT LİSTESİ'!$B$4:$H$855,5,0))) ->  | O70: =IF(ISERROR(VLOOKUP(K70,'KAYIT LİSTESİ'!$B$4:$H$855,6,0)),"",(VLOOKUP(K70,'KAYIT LİSTESİ'!$B$4:$H$855,6,0))) -> 
A71: 4 | B71: 110M.ENG-3-4 | C71: =IF(ISERROR(VLOOKUP(B71,'KAYIT LİSTESİ'!$B$4:$H$855,2,0)),"",(VLOOKUP(B71,'KAYIT LİSTESİ'!$B$4:$H$855,2,0))) ->  | D71: =IF(ISERROR(VLOOKUP(B71,'KAYIT LİSTESİ'!$B$4:$H$855,4,0)),"",(VLOOKUP(B71,'KAYIT LİSTESİ'!$B$4:$H$855,4,0))) ->  | E71: =IF(ISERROR(VLOOKUP(B71,'KAYIT LİSTESİ'!$B$4:$H$855,5,0)),"",(VLOOKUP(B71,'KAYIT LİSTESİ'!$B$4:$H$855,5,0))) ->  | F71: =IF(ISERROR(VLOOKUP(B71,'KAYIT LİSTESİ'!$B$4:$H$855,6,0)),"",(VLOOKUP(B71,'KAYIT LİSTESİ'!$B$4:$H$855,6,0))) ->  | J71: 24 | K71: YÜKSEK-24 | L71: =IF(ISERROR(VLOOKUP(K71,'KAYIT LİSTESİ'!$B$4:$H$855,2,0)),"",(VLOOKUP(K71,'KAYIT LİSTESİ'!$B$4:$H$855,2,0))) ->  | M71: =IF(ISERROR(VLOOKUP(K71,'KAYIT LİSTESİ'!$B$4:$H$855,4,0)),"",(VLOOKUP(K71,'KAYIT LİSTESİ'!$B$4:$H$855,4,0))) ->  | N71: =IF(ISERROR(VLOOKUP(K71,'KAYIT LİSTESİ'!$B$4:$H$855,5,0)),"",(VLOOKUP(K71,'KAYIT LİSTESİ'!$B$4:$H$855,5,0))) ->  | O71: =IF(ISERROR(VLOOKUP(K71,'KAYIT LİSTESİ'!$B$4:$H$855,6,0)),"",(VLOOKUP(K71,'KAYIT LİSTESİ'!$B$4:$H$855,6,0))) -> 
A72: 5 | B72: 110M.ENG-3-5 | C72: =IF(ISERROR(VLOOKUP(B72,'KAYIT LİSTESİ'!$B$4:$H$855,2,0)),"",(VLOOKUP(B72,'KAYIT LİSTESİ'!$B$4:$H$855,2,0))) ->  | D72: =IF(ISERROR(VLOOKUP(B72,'KAYIT LİSTESİ'!$B$4:$H$855,4,0)),"",(VLOOKUP(B72,'KAYIT LİSTESİ'!$B$4:$H$855,4,0))) ->  | E72: =IF(ISERROR(VLOOKUP(B72,'KAYIT LİSTESİ'!$B$4:$H$855,5,0)),"",(VLOOKUP(B72,'KAYIT LİSTESİ'!$B$4:$H$855,5,0))) ->  | F72: =IF(ISERROR(VLOOKUP(B72,'KAYIT LİSTESİ'!$B$4:$H$855,6,0)),"",(VLOOKUP(B72,'KAYIT LİSTESİ'!$B$4:$H$855,6,0))) ->  | J72: 25 | K72: YÜKSEK-25 | L72: =IF(ISERROR(VLOOKUP(K72,'KAYIT LİSTESİ'!$B$4:$H$855,2,0)),"",(VLOOKUP(K72,'KAYIT LİSTESİ'!$B$4:$H$855,2,0))) ->  | M72: =IF(ISERROR(VLOOKUP(K72,'KAYIT LİSTESİ'!$B$4:$H$855,4,0)),"",(VLOOKUP(K72,'KAYIT LİSTESİ'!$B$4:$H$855,4,0))) ->  | N72: =IF(ISERROR(VLOOKUP(K72,'KAYIT LİSTESİ'!$B$4:$H$855,5,0)),"",(VLOOKUP(K72,'KAYIT LİSTESİ'!$B$4:$H$855,5,0))) ->  | O72: =IF(ISERROR(VLOOKUP(K72,'KAYIT LİSTESİ'!$B$4:$H$855,6,0)),"",(VLOOKUP(K72,'KAYIT LİSTESİ'!$B$4:$H$855,6,0))) -> 
A73: 6 | B73: 110M.ENG-3-6 | C73: =IF(ISERROR(VLOOKUP(B73,'KAYIT LİSTESİ'!$B$4:$H$855,2,0)),"",(VLOOKUP(B73,'KAYIT LİSTESİ'!$B$4:$H$855,2,0))) ->  | D73: =IF(ISERROR(VLOOKUP(B73,'KAYIT LİSTESİ'!$B$4:$H$855,4,0)),"",(VLOOKUP(B73,'KAYIT LİSTESİ'!$B$4:$H$855,4,0))) ->  | E73: =IF(ISERROR(VLOOKUP(B73,'KAYIT LİSTESİ'!$B$4:$H$855,5,0)),"",(VLOOKUP(B73,'KAYIT LİSTESİ'!$B$4:$H$855,5,0))) ->  | F73: =IF(ISERROR(VLOOKUP(B73,'KAYIT LİSTESİ'!$B$4:$H$855,6,0)),"",(VLOOKUP(B73,'KAYIT LİSTESİ'!$B$4:$H$855,6,0))) ->  | J73: GÜLLE ATMA
A74: 7 | B74: 110M.ENG-3-7 | C74: =IF(ISERROR(VLOOKUP(B74,'KAYIT LİSTESİ'!$B$4:$H$855,2,0)),"",(VLOOKUP(B74,'KAYIT LİSTESİ'!$B$4:$H$855,2,0))) ->  | D74: =IF(ISERROR(VLOOKUP(B74,'KAYIT LİSTESİ'!$B$4:$H$855,4,0)),"",(VLOOKUP(B74,'KAYIT LİSTESİ'!$B$4:$H$855,4,0))) ->  | E74: =IF(ISERROR(VLOOKUP(B74,'KAYIT LİSTESİ'!$B$4:$H$855,5,0)),"",(VLOOKUP(B74,'KAYIT LİSTESİ'!$B$4:$H$855,5,0))) ->  | F74: =IF(ISERROR(VLOOKUP(B74,'KAYIT LİSTESİ'!$B$4:$H$855,6,0)),"",(VLOOKUP(B74,'KAYIT LİSTESİ'!$B$4:$H$855,6,0))) ->  | J74: SIRA NO | L74: GÖĞÜS NO | M74: DOĞUM TARİHİ | N74: ADI VE SOYADI | O74: OKULU | P74: Start Kontrol
A75: 8 | B75: 110M.ENG-3-8 | C75: =IF(ISERROR(VLOOKUP(B75,'KAYIT LİSTESİ'!$B$4:$H$855,2,0)),"",(VLOOKUP(B75,'KAYIT LİSTESİ'!$B$4:$H$855,2,0))) ->  | D75: =IF(ISERROR(VLOOKUP(B75,'KAYIT LİSTESİ'!$B$4:$H$855,4,0)),"",(VLOOKUP(B75,'KAYIT LİSTESİ'!$B$4:$H$855,4,0))) ->  | E75: =IF(ISERROR(VLOOKUP(B75,'KAYIT LİSTESİ'!$B$4:$H$855,5,0)),"",(VLOOKUP(B75,'KAYIT LİSTESİ'!$B$4:$H$855,5,0))) ->  | F75: =IF(ISERROR(VLOOKUP(B75,'KAYIT LİSTESİ'!$B$4:$H$855,6,0)),"",(VLOOKUP(B75,'KAYIT LİSTESİ'!$B$4:$H$855,6,0))) -> 
A76: 4. SERİ | J76: 1 | K76: GÜLLE-1 | L76: =IF(ISERROR(VLOOKUP(K76,'KAYIT LİSTESİ'!$B$4:$H$855,2,0)),"",(VLOOKUP(K76,'KAYIT LİSTESİ'!$B$4:$H$855,2,0))) -> 86 | M76: =IF(ISERROR(VLOOKUP(K76,'KAYIT LİSTESİ'!$B$4:$H$855,4,0)),"",(VLOOKUP(K76,'KAYIT LİSTESİ'!$B$4:$H$855,4,0))) -> 2001-05-14 | N76: =IF(ISERROR(VLOOKUP(K76,'KAYIT LİSTESİ'!$B$4:$H$855,5,0)),"",(VLOOKUP(K76,'KAYIT LİSTESİ'!$B$4:$H$855,5,0))) -> İBRAHİM BULUT | O76: =IF(ISERROR(VLOOKUP(K76,'KAYIT LİSTESİ'!$B$4:$H$855,6,0)),"",(VLOOKUP(K76,'KAYIT LİSTESİ'!$B$4:$H$855,6,0))) -> AYDIN
A77: Sıra No | B77: Formül | C77: Göğüs No | D77: Doğum Tarihi | E77: Adı ve Soyadı | F77: Okulu | G77: Start Kontrol | J77: 2 | K77: GÜLLE-2 | L77: =IF(ISERROR(VLOOKUP(K77,'KAYIT LİSTESİ'!$B$4:$H$855,2,0)),"",(VLOOKUP(K77,'KAYIT LİSTESİ'!$B$4:$H$855,2,0))) -> 613 | M77: =IF(ISERROR(VLOOKUP(K77,'KAYIT LİSTESİ'!$B$4:$H$855,4,0)),"",(VLOOKUP(K77,'KAYIT LİSTESİ'!$B$4:$H$855,4,0))) -> 2001-05-15 | N77: =IF(ISERROR(VLOOKUP(K77,'KAYIT LİSTESİ'!$B$4:$H$855,5,0)),"",(VLOOKUP(K77,'KAYIT LİSTESİ'!$B$4:$H$855,5,0))) -> MUSTAFA ÇAĞLAR KORKMAZ | O77: =IF(ISERROR(VLOOKUP(K77,'KAYIT LİSTESİ'!$B$4:$H$855,6,0)),"",(VLOOKUP(K77,'KAYIT LİSTESİ'!$B$4:$H$855,6,0))) -> OSMANİYE
A78: 1 | B78: 110M.ENG-4-1 | C78: =IF(ISERROR(VLOOKUP(B78,'KAYIT LİSTESİ'!$B$4:$H$855,2,0)),"",(VLOOKUP(B78,'KAYIT LİSTESİ'!$B$4:$H$855,2,0))) ->  | D78: =IF(ISERROR(VLOOKUP(B78,'KAYIT LİSTESİ'!$B$4:$H$855,4,0)),"",(VLOOKUP(B78,'KAYIT LİSTESİ'!$B$4:$H$855,4,0))) ->  | E78: =IF(ISERROR(VLOOKUP(B78,'KAYIT LİSTESİ'!$B$4:$H$855,5,0)),"",(VLOOKUP(B78,'KAYIT LİSTESİ'!$B$4:$H$855,5,0))) ->  | F78: =IF(ISERROR(VLOOKUP(B78,'KAYIT LİSTESİ'!$B$4:$H$855,6,0)),"",(VLOOKUP(B78,'KAYIT LİSTESİ'!$B$4:$H$855,6,0))) ->  | J78: 3 | K78: GÜLLE-3 | L78: =IF(ISERROR(VLOOKUP(K78,'KAYIT LİSTESİ'!$B$4:$H$855,2,0)),"",(VLOOKUP(K78,'KAYIT LİSTESİ'!$B$4:$H$855,2,0))) -> 143 | M78: =IF(ISERROR(VLOOKUP(K78,'KAYIT LİSTESİ'!$B$4:$H$855,4,0)),"",(VLOOKUP(K78,'KAYIT LİSTESİ'!$B$4:$H$855,4,0))) -> 2001-01-01 | N78: =IF(ISERROR(VLOOKUP(K78,'KAYIT LİSTESİ'!$B$4:$H$855,5,0)),"",(VLOOKUP(K78,'KAYIT LİSTESİ'!$B$4:$H$855,5,0))) -> HÜSNÜ İLHAN | O78: =IF(ISERROR(VLOOKUP(K78,'KAYIT LİSTESİ'!$B$4:$H$855,6,0)),"",(VLOOKUP(K78,'KAYIT LİSTESİ'!$B$4:$H$855,6,0))) -> BATMAN
A79: 2 | B79: 110M.ENG-4-2 | C79: =IF(ISERROR(VLOOKUP(B79,'KAYIT LİSTESİ'!$B$4:$H$855,2,0)),"",(VLOOKUP(B79,'KAYIT LİSTESİ'!$B$4:$H$855,2,0))) ->  | D79: =IF(ISERROR(VLOOKUP(B79,'KAYIT LİSTESİ'!$B$4:$H$855,4,0)),"",(VLOOKUP(B79,'KAYIT LİSTESİ'!$B$4:$H$855,4,0))) ->  | E79: =IF(ISERROR(VLOOKUP(B79,'KAYIT LİSTESİ'!$B$4:$H$855,5,0)),"",(VLOOKUP(B79,'KAYIT LİSTESİ'!$B$4:$H$855,5,0))) ->  | F79: =IF(ISERROR(VLOOKUP(B79,'KAYIT LİSTESİ'!$B$4:$H$855,6,0)),"",(VLOOKUP(B79,'KAYIT LİSTESİ'!$B$4:$H$855,6,0))) ->  | J79: 4 | K79: GÜLLE-4 | L79: =IF(ISERROR(VLOOKUP(K79,'KAYIT LİSTESİ'!$B$4:$H$855,2,0)),"",(VLOOKUP(K79,'KAYIT LİSTESİ'!$B$4:$H$855,2,0))) -> 657 | M79: =IF(ISERROR(VLOOKUP(K79,'KAYIT LİSTESİ'!$B$4:$H$855,4,0)),"",(VLOOKUP(K79,'KAYIT LİSTESİ'!$B$4:$H$855,4,0))) -> 2001-10-01 | N79: =IF(ISERROR(VLOOKUP(K79,'KAYIT LİSTESİ'!$B$4:$H$855,5,0)),"",(VLOOKUP(K79,'KAYIT LİSTESİ'!$B$4:$H$855,5,0))) -> HÜSEYİN YILDIRIM | O79: =IF(ISERROR(VLOOKUP(K79,'KAYIT LİSTESİ'!$B$4:$H$855,6,0)),"",(VLOOKUP(K79,'KAYIT LİSTESİ'!$B$4:$H$855,6,0))) -> SİİRT
A80: 3 | B80: 110M.ENG-4-3 | C80: =IF(ISERROR(VLOOKUP(B80,'KAYIT LİSTESİ'!$B$4:$H$855,2,0)),"",(VLOOKUP(B80,'KAYIT LİSTESİ'!$B$4:$H$855,2,0))) ->  | D80: =IF(ISERROR(VLOOKUP(B80,'KAYIT LİSTESİ'!$B$4:$H$855,4,0)),"",(VLOOKUP(B80,'KAYIT LİSTESİ'!$B$4:$H$855,4,0))) ->  | E80: =IF(ISERROR(VLOOKUP(B80,'KAYIT LİSTESİ'!$B$4:$H$855,5,0)),"",(VLOOKUP(B80,'KAYIT LİSTESİ'!$B$4:$H$855,5,0))) ->  | F80: =IF(ISERROR(VLOOKUP(B80,'KAYIT LİSTESİ'!$B$4:$H$855,6,0)),"",(VLOOKUP(B80,'KAYIT LİSTESİ'!$B$4:$H$855,6,0))) ->  | J80: 5 | K80: GÜLLE-5 | L80: =IF(ISERROR(VLOOKUP(K80,'KAYIT LİSTESİ'!$B$4:$H$855,2,0)),"",(VLOOKUP(K80,'KAYIT LİSTESİ'!$B$4:$H$855,2,0))) -> 703 | M80: =IF(ISERROR(VLOOKUP(K80,'KAYIT LİSTESİ'!$B$4:$H$855,4,0)),"",(VLOOKUP(K80,'KAYIT LİSTESİ'!$B$4:$H$855,4,0))) -> 2001-01-15 | N80: =IF(ISERROR(VLOOKUP(K80,'KAYIT LİSTESİ'!$B$4:$H$855,5,0)),"",(VLOOKUP(K80,'KAYIT LİSTESİ'!$B$4:$H$855,5,0))) -> MEHMET EMİN KILINÇ | O80: =IF(ISERROR(VLOOKUP(K80,'KAYIT LİSTESİ'!$B$4:$H$855,6,0)),"",(VLOOKUP(K80,'KAYIT LİSTESİ'!$B$4:$H$855,6,0))) -> TOKAT
A81: 4 | B81: 110M.ENG-4-4 | C81: =IF(ISERROR(VLOOKUP(B81,'KAYIT LİSTESİ'!$B$4:$H$855,2,0)),"",(VLOOKUP(B81,'KAYIT LİSTESİ'!$B$4:$H$855,2,0))) ->  | D81: =IF(ISERROR(VLOOKUP(B81,'KAYIT LİSTESİ'!$B$4:$H$855,4,0)),"",(VLOOKUP(B81,'KAYIT LİSTESİ'!$B$4:$H$855,4,0))) ->  | E81: =IF(ISERROR(VLOOKUP(B81,'KAYIT LİSTESİ'!$B$4:$H$855,5,0)),"",(VLOOKUP(B81,'KAYIT LİSTESİ'!$B$4:$H$855,5,0))) ->  | F81: =IF(ISERROR(VLOOKUP(B81,'KAYIT LİSTESİ'!$B$4:$H$855,6,0)),"",(VLOOKUP(B81,'KAYIT LİSTESİ'!$B$4:$H$855,6,0))) ->  | J81: 6 | K81: GÜLLE-6 | L81: =IF(ISERROR(VLOOKUP(K81,'KAYIT LİSTESİ'!$B$4:$H$855,2,0)),"",(VLOOKUP(K81,'KAYIT LİSTESİ'!$B$4:$H$855,2,0))) -> 685 | M81: =IF(ISERROR(VLOOKUP(K81,'KAYIT LİSTESİ'!$B$4:$H$855,4,0)),"",(VLOOKUP(K81,'KAYIT LİSTESİ'!$B$4:$H$855,4,0))) -> 2001-05-22 | N81: =IF(ISERROR(VLOOKUP(K81,'KAYIT LİSTESİ'!$B$4:$H$855,5,0)),"",(VLOOKUP(K81,'KAYIT LİSTESİ'!$B$4:$H$855,5,0))) -> ÖNDER ATUN | O81: =IF(ISERROR(VLOOKUP(K81,'KAYIT LİSTESİ'!$B$4:$H$855,6,0)),"",(VLOOKUP(K81,'KAYIT LİSTESİ'!$B$4:$H$855,6,0))) -> TEKİRDAĞ
A82: 5 | B82: 110M.ENG-4-5 | C82: =IF(ISERROR(VLOOKUP(B82,'KAYIT LİSTESİ'!$B$4:$H$855,2,0)),"",(VLOOKUP(B82,'KAYIT LİSTESİ'!$B$4:$H$855,2,0))) ->  | D82: =IF(ISERROR(VLOOKUP(B82,'KAYIT LİSTESİ'!$B$4:$H$855,4,0)),"",(VLOOKUP(B82,'KAYIT LİSTESİ'!$B$4:$H$855,4,0))) ->  | E82: =IF(ISERROR(VLOOKUP(B82,'KAYIT LİSTESİ'!$B$4:$H$855,5,0)),"",(VLOOKUP(B82,'KAYIT LİSTESİ'!$B$4:$H$855,5,0))) ->  | F82: =IF(ISERROR(VLOOKUP(B82,'KAYIT LİSTESİ'!$B$4:$H$855,6,0)),"",(VLOOKUP(B82,'KAYIT LİSTESİ'!$B$4:$H$855,6,0))) ->  | J82: 7 | K82: GÜLLE-7 | L82: =IF(ISERROR(VLOOKUP(K82,'KAYIT LİSTESİ'!$B$4:$H$855,2,0)),"",(VLOOKUP(K82,'KAYIT LİSTESİ'!$B$4:$H$855,2,0))) -> 450 | M82: =IF(ISERROR(VLOOKUP(K82,'KAYIT LİSTESİ'!$B$4:$H$855,4,0)),"",(VLOOKUP(K82,'KAYIT LİSTESİ'!$B$4:$H$855,4,0))) -> 2001-01-04 | N82: =IF(ISERROR(VLOOKUP(K82,'KAYIT LİSTESİ'!$B$4:$H$855,5,0)),"",(VLOOKUP(K82,'KAYIT LİSTESİ'!$B$4:$H$855,5,0))) -> FURKAN ÇEKEN | O82: =IF(ISERROR(VLOOKUP(K82,'KAYIT LİSTESİ'!$B$4:$H$855,6,0)),"",(VLOOKUP(K82,'KAYIT LİSTESİ'!$B$4:$H$855,6,0))) -> İZMİR
A83: 6 | B83: 110M.ENG-4-6 | C83: =IF(ISERROR(VLOOKUP(B83,'KAYIT LİSTESİ'!$B$4:$H$855,2,0)),"",(VLOOKUP(B83,'KAYIT LİSTESİ'!$B$4:$H$855,2,0))) ->  | D83: =IF(ISERROR(VLOOKUP(B83,'KAYIT LİSTESİ'!$B$4:$H$855,4,0)),"",(VLOOKUP(B83,'KAYIT LİSTESİ'!$B$4:$H$855,4,0))) ->  | E83: =IF(ISERROR(VLOOKUP(B83,'KAYIT LİSTESİ'!$B$4:$H$855,5,0)),"",(VLOOKUP(B83,'KAYIT LİSTESİ'!$B$4:$H$855,5,0))) ->  | F83: =IF(ISERROR(VLOOKUP(B83,'KAYIT LİSTESİ'!$B$4:$H$855,6,0)),"",(VLOOKUP(B83,'KAYIT LİSTESİ'!$B$4:$H$855,6,0))) ->  | J83: 8 | K83: GÜLLE-8 | L83: =IF(ISERROR(VLOOKUP(K83,'KAYIT LİSTESİ'!$B$4:$H$855,2,0)),"",(VLOOKUP(K83,'KAYIT LİSTESİ'!$B$4:$H$855,2,0))) -> 417 | M83: =IF(ISERROR(VLOOKUP(K83,'KAYIT LİSTESİ'!$B$4:$H$855,4,0)),"",(VLOOKUP(K83,'KAYIT LİSTESİ'!$B$4:$H$855,4,0))) -> 2001-01-18 | N83: =IF(ISERROR(VLOOKUP(K83,'KAYIT LİSTESİ'!$B$4:$H$855,5,0)),"",(VLOOKUP(K83,'KAYIT LİSTESİ'!$B$4:$H$855,5,0))) -> MUSTAFA ASLANER | O83: =IF(ISERROR(VLOOKUP(K83,'KAYIT LİSTESİ'!$B$4:$H$855,6,0)),"",(VLOOKUP(K83,'KAYIT LİSTESİ'!$B$4:$H$855,6,0))) -> İZMİR
A84: 7 | B84: 110M.ENG-4-7 | C84: =IF(ISERROR(VLOOKUP(B84,'KAYIT LİSTESİ'!$B$4:$H$855,2,0)),"",(VLOOKUP(B84,'KAYIT LİSTESİ'!$B$4:$H$855,2,0))) ->  | D84: =IF(ISERROR(VLOOKUP(B84,'KAYIT LİSTESİ'!$B$4:$H$855,4,0)),"",(VLOOKUP(B84,'KAYIT LİSTESİ'!$B$4:$H$855,4,0))) ->  | E84: =IF(ISERROR(VLOOKUP(B84,'KAYIT LİSTESİ'!$B$4:$H$855,5,0)),"",(VLOOKUP(B84,'KAYIT LİSTESİ'!$B$4:$H$855,5,0))) ->  | F84: =IF(ISERROR(VLOOKUP(B84,'KAYIT LİSTESİ'!$B$4:$H$855,6,0)),"",(VLOOKUP(B84,'KAYIT LİSTESİ'!$B$4:$H$855,6,0))) ->  | J84: 9 | K84: GÜLLE-9 | L84: =IF(ISERROR(VLOOKUP(K84,'KAYIT LİSTESİ'!$B$4:$H$855,2,0)),"",(VLOOKUP(K84,'KAYIT LİSTESİ'!$B$4:$H$855,2,0))) -> 420 | M84: =IF(ISERROR(VLOOKUP(K84,'KAYIT LİSTESİ'!$B$4:$H$855,4,0)),"",(VLOOKUP(K84,'KAYIT LİSTESİ'!$B$4:$H$855,4,0))) -> 2001-01-11 | N84: =IF(ISERROR(VLOOKUP(K84,'KAYIT LİSTESİ'!$B$4:$H$855,5,0)),"",(VLOOKUP(K84,'KAYIT LİSTESİ'!$B$4:$H$855,5,0))) -> HÜSEYİN GÖRKEM DENİZ | O84: =IF(ISERROR(VLOOKUP(K84,'KAYIT LİSTESİ'!$B$4:$H$855,6,0)),"",(VLOOKUP(K84,'KAYIT LİSTESİ'!$B$4:$H$855,6,0))) -> İZMİR
A85: 8 | B85: 110M.ENG-4-8 | C85: =IF(ISERROR(VLOOKUP(B85,'KAYIT LİSTESİ'!$B$4:$H$855,2,0)),"",(VLOOKUP(B85,'KAYIT LİSTESİ'!$B$4:$H$855,2,0))) ->  | D85: =IF(ISERROR(VLOOKUP(B85,'KAYIT LİSTESİ'!$B$4:$H$855,4,0)),"",(VLOOKUP(B85,'KAYIT LİSTESİ'!$B$4:$H$855,4,0))) ->  | E85: =IF(ISERROR(VLOOKUP(B85,'KAYIT LİSTESİ'!$B$4:$H$855,5,0)),"",(VLOOKUP(B85,'KAYIT LİSTESİ'!$B$4:$H$855,5,0))) ->  | F85: =IF(ISERROR(VLOOKUP(B85,'KAYIT LİSTESİ'!$B$4:$H$855,6,0)),"",(VLOOKUP(B85,'KAYIT LİSTESİ'!$B$4:$H$855,6,0))) ->  | J85: 10 | K85: GÜLLE-10 | L85: =IF(ISERROR(VLOOKUP(K85,'KAYIT LİSTESİ'!$B$4:$H$855,2,0)),"",(VLOOKUP(K85,'KAYIT LİSTESİ'!$B$4:$H$855,2,0))) -> 744 | M85: =IF(ISERROR(VLOOKUP(K85,'KAYIT LİSTESİ'!$B$4:$H$855,4,0)),"",(VLOOKUP(K85,'KAYIT LİSTESİ'!$B$4:$H$855,4,0))) -> 2001-03-04 | N85: =IF(ISERROR(VLOOKUP(K85,'KAYIT LİSTESİ'!$B$4:$H$855,5,0)),"",(VLOOKUP(K85,'KAYIT LİSTESİ'!$B$4:$H$855,5,0))) -> CEYHUN SEVİNÇ | O85: =IF(ISERROR(VLOOKUP(K85,'KAYIT LİSTESİ'!$B$4:$H$855,6,0)),"",(VLOOKUP(K85,'KAYIT LİSTESİ'!$B$4:$H$855,6,0))) -> SAKARYA
A86: 1500 METRE | J86: 11 | K86: GÜLLE-11 | L86: =IF(ISERROR(VLOOKUP(K86,'KAYIT LİSTESİ'!$B$4:$H$855,2,0)),"",(VLOOKUP(K86,'KAYIT LİSTESİ'!$B$4:$H$855,2,0))) -> 713 | M86: =IF(ISERROR(VLOOKUP(K86,'KAYIT LİSTESİ'!$B$4:$H$855,4,0)),"",(VLOOKUP(K86,'KAYIT LİSTESİ'!$B$4:$H$855,4,0))) -> 2001-01-03 | N86: =IF(ISERROR(VLOOKUP(K86,'KAYIT LİSTESİ'!$B$4:$H$855,5,0)),"",(VLOOKUP(K86,'KAYIT LİSTESİ'!$B$4:$H$855,5,0))) -> ASLAN KAĞAN KALINTAŞ | O86: =IF(ISERROR(VLOOKUP(K86,'KAYIT LİSTESİ'!$B$4:$H$855,6,0)),"",(VLOOKUP(K86,'KAYIT LİSTESİ'!$B$4:$H$855,6,0))) -> TRABZON
A87: 1. SERİ | J87: 12 | K87: GÜLLE-12 | L87: =IF(ISERROR(VLOOKUP(K87,'KAYIT LİSTESİ'!$B$4:$H$855,2,0)),"",(VLOOKUP(K87,'KAYIT LİSTESİ'!$B$4:$H$855,2,0))) -> 643 | M87: =IF(ISERROR(VLOOKUP(K87,'KAYIT LİSTESİ'!$B$4:$H$855,4,0)),"",(VLOOKUP(K87,'KAYIT LİSTESİ'!$B$4:$H$855,4,0))) -> 2001-06-07 | N87: =IF(ISERROR(VLOOKUP(K87,'KAYIT LİSTESİ'!$B$4:$H$855,5,0)),"",(VLOOKUP(K87,'KAYIT LİSTESİ'!$B$4:$H$855,5,0))) -> METEHAN ACAR | O87: =IF(ISERROR(VLOOKUP(K87,'KAYIT LİSTESİ'!$B$4:$H$855,6,0)),"",(VLOOKUP(K87,'KAYIT LİSTESİ'!$B$4:$H$855,6,0))) -> SAMSUN
A88: Sıra No | B88: Formül | C88: Göğüs No | D88: Doğum Tarihi | E88: Adı ve Soyadı | F88: Okulu | G88: Start Kontrol | J88: 13 | K88: GÜLLE-13 | L88: =IF(ISERROR(VLOOKUP(K88,'KAYIT LİSTESİ'!$B$4:$H$855,2,0)),"",(VLOOKUP(K88,'KAYIT LİSTESİ'!$B$4:$H$855,2,0))) -> 567 | M88: =IF(ISERROR(VLOOKUP(K88,'KAYIT LİSTESİ'!$B$4:$H$855,4,0)),"",(VLOOKUP(K88,'KAYIT LİSTESİ'!$B$4:$H$855,4,0))) -> 2001-01-01 | N88: =IF(ISERROR(VLOOKUP(K88,'KAYIT LİSTESİ'!$B$4:$H$855,5,0)),"",(VLOOKUP(K88,'KAYIT LİSTESİ'!$B$4:$H$855,5,0))) -> ÜMİT GÜLER | O88: =IF(ISERROR(VLOOKUP(K88,'KAYIT LİSTESİ'!$B$4:$H$855,6,0)),"",(VLOOKUP(K88,'KAYIT LİSTESİ'!$B$4:$H$855,6,0))) -> MUĞLA
A89: 1 | B89: 1500M-1-1 | C89: =IF(ISERROR(VLOOKUP(B89,'KAYIT LİSTESİ'!$B$4:$H$855,2,0)),"",(VLOOKUP(B89,'KAYIT LİSTESİ'!$B$4:$H$855,2,0))) ->  | D89: =IF(ISERROR(VLOOKUP(B89,'KAYIT LİSTESİ'!$B$4:$H$855,4,0)),"",(VLOOKUP(B89,'KAYIT LİSTESİ'!$B$4:$H$855,4,0))) ->  | E89: =IF(ISERROR(VLOOKUP(B89,'KAYIT LİSTESİ'!$B$4:$H$855,5,0)),"",(VLOOKUP(B89,'KAYIT LİSTESİ'!$B$4:$H$855,5,0))) ->  | F89: =IF(ISERROR(VLOOKUP(B89,'KAYIT LİSTESİ'!$B$4:$H$855,6,0)),"",(VLOOKUP(B89,'KAYIT LİSTESİ'!$B$4:$H$855,6,0))) ->  | J89: 14 | K89: GÜLLE-14 | L89: =IF(ISERROR(VLOOKUP(K89,'KAYIT LİSTESİ'!$B$4:$H$855,2,0)),"",(VLOOKUP(K89,'KAYIT LİSTESİ'!$B$4:$H$855,2,0))) ->  | M89: =IF(ISERROR(VLOOKUP(K89,'KAYIT LİSTESİ'!$B$4:$H$855,4,0)),"",(VLOOKUP(K89,'KAYIT LİSTESİ'!$B$4:$H$855,4,0))) ->  | N89: =IF(ISERROR(VLOOKUP(K89,'KAYIT LİSTESİ'!$B$4:$H$855,5,0)),"",(VLOOKUP(K89,'KAYIT LİSTESİ'!$B$4:$H$855,5,0))) ->  | O89: =IF(ISERROR(VLOOKUP(K89,'KAYIT LİSTESİ'!$B$4:$H$855,6,0)),"",(VLOOKUP(K89,'KAYIT LİSTESİ'!$B$4:$H$855,6,0))) -> 
A90: 2 | B90: 1500M-1-2 | C90: =IF(ISERROR(VLOOKUP(B90,'KAYIT LİSTESİ'!$B$4:$H$855,2,0)),"",(VLOOKUP(B90,'KAYIT LİSTESİ'!$B$4:$H$855,2,0))) ->  | D90: =IF(ISERROR(VLOOKUP(B90,'KAYIT LİSTESİ'!$B$4:$H$855,4,0)),"",(VLOOKUP(B90,'KAYIT LİSTESİ'!$B$4:$H$855,4,0))) ->  | E90: =IF(ISERROR(VLOOKUP(B90,'KAYIT LİSTESİ'!$B$4:$H$855,5,0)),"",(VLOOKUP(B90,'KAYIT LİSTESİ'!$B$4:$H$855,5,0))) ->  | F90: =IF(ISERROR(VLOOKUP(B90,'KAYIT LİSTESİ'!$B$4:$H$855,6,0)),"",(VLOOKUP(B90,'KAYIT LİSTESİ'!$B$4:$H$855,6,0))) ->  | J90: 15 | K90: GÜLLE-15 | L90: =IF(ISERROR(VLOOKUP(K90,'KAYIT LİSTESİ'!$B$4:$H$855,2,0)),"",(VLOOKUP(K90,'KAYIT LİSTESİ'!$B$4:$H$855,2,0))) ->  | M90: =IF(ISERROR(VLOOKUP(K90,'KAYIT LİSTESİ'!$B$4:$H$855,4,0)),"",(VLOOKUP(K90,'KAYIT LİSTESİ'!$B$4:$H$855,4,0))) ->  | N90: =IF(ISERROR(VLOOKUP(K90,'KAYIT LİSTESİ'!$B$4:$H$855,5,0)),"",(VLOOKUP(K90,'KAYIT LİSTESİ'!$B$4:$H$855,5,0))) ->  | O90: =IF(ISERROR(VLOOKUP(K90,'KAYIT LİSTESİ'!$B$4:$H$855,6,0)),"",(VLOOKUP(K90,'KAYIT LİSTESİ'!$B$4:$H$855,6,0))) -> 
A91: 3 | B91: 1500M-1-3 | C91: =IF(ISERROR(VLOOKUP(B91,'KAYIT LİSTESİ'!$B$4:$H$855,2,0)),"",(VLOOKUP(B91,'KAYIT LİSTESİ'!$B$4:$H$855,2,0))) -> 552 | D91: =IF(ISERROR(VLOOKUP(B91,'KAYIT LİSTESİ'!$B$4:$H$855,4,0)),"",(VLOOKUP(B91,'KAYIT LİSTESİ'!$B$4:$H$855,4,0))) -> 2001-11-16 | E91: =IF(ISERROR(VLOOKUP(B91,'KAYIT LİSTESİ'!$B$4:$H$855,5,0)),"",(VLOOKUP(B91,'KAYIT LİSTESİ'!$B$4:$H$855,5,0))) -> İBRAHİM SUBAŞI | F91: =IF(ISERROR(VLOOKUP(B91,'KAYIT LİSTESİ'!$B$4:$H$855,6,0)),"",(VLOOKUP(B91,'KAYIT LİSTESİ'!$B$4:$H$855,6,0))) -> KÜTAHYA | J91: 16 | K91: GÜLLE-16 | L91: =IF(ISERROR(VLOOKUP(K91,'KAYIT LİSTESİ'!$B$4:$H$855,2,0)),"",(VLOOKUP(K91,'KAYIT LİSTESİ'!$B$4:$H$855,2,0))) ->  | M91: =IF(ISERROR(VLOOKUP(K91,'KAYIT LİSTESİ'!$B$4:$H$855,4,0)),"",(VLOOKUP(K91,'KAYIT LİSTESİ'!$B$4:$H$855,4,0))) ->  | N91: =IF(ISERROR(VLOOKUP(K91,'KAYIT LİSTESİ'!$B$4:$H$855,5,0)),"",(VLOOKUP(K91,'KAYIT LİSTESİ'!$B$4:$H$855,5,0))) ->  | O91: =IF(ISERROR(VLOOKUP(K91,'KAYIT LİSTESİ'!$B$4:$H$855,6,0)),"",(VLOOKUP(K91,'KAYIT LİSTESİ'!$B$4:$H$855,6,0))) -> 
A92: 4 | B92: 1500M-1-4 | C92: =IF(ISERROR(VLOOKUP(B92,'KAYIT LİSTESİ'!$B$4:$H$855,2,0)),"",(VLOOKUP(B92,'KAYIT LİSTESİ'!$B$4:$H$855,2,0))) -> 578 | D92: =IF(ISERROR(VLOOKUP(B92,'KAYIT LİSTESİ'!$B$4:$H$855,4,0)),"",(VLOOKUP(B92,'KAYIT LİSTESİ'!$B$4:$H$855,4,0))) -> 2001-03-23 | E92: =IF(ISERROR(VLOOKUP(B92,'KAYIT LİSTESİ'!$B$4:$H$855,5,0)),"",(VLOOKUP(B92,'KAYIT LİSTESİ'!$B$4:$H$855,5,0))) -> Cihan AKOVA | F92: =IF(ISERROR(VLOOKUP(B92,'KAYIT LİSTESİ'!$B$4:$H$855,6,0)),"",(VLOOKUP(B92,'KAYIT LİSTESİ'!$B$4:$H$855,6,0))) -> MUŞ | J92: 17 | K92: GÜLLE-17 | L92: =IF(ISERROR(VLOOKUP(K92,'KAYIT LİSTESİ'!$B$4:$H$855,2,0)),"",(VLOOKUP(K92,'KAYIT LİSTESİ'!$B$4:$H$855,2,0))) ->  | M92: =IF(ISERROR(VLOOKUP(K92,'KAYIT LİSTESİ'!$B$4:$H$855,4,0)),"",(VLOOKUP(K92,'KAYIT LİSTESİ'!$B$4:$H$855,4,0))) ->  | N92: =IF(ISERROR(VLOOKUP(K92,'KAYIT LİSTESİ'!$B$4:$H$855,5,0)),"",(VLOOKUP(K92,'KAYIT LİSTESİ'!$B$4:$H$855,5,0))) ->  | O92: =IF(ISERROR(VLOOKUP(K92,'KAYIT LİSTESİ'!$B$4:$H$855,6,0)),"",(VLOOKUP(K92,'KAYIT LİSTESİ'!$B$4:$H$855,6,0))) -> 
A93: 5 | B93: 1500M-1-5 | C93: =IF(ISERROR(VLOOKUP(B93,'KAYIT LİSTESİ'!$B$4:$H$855,2,0)),"",(VLOOKUP(B93,'KAYIT LİSTESİ'!$B$4:$H$855,2,0))) -> 343 | D93: =IF(ISERROR(VLOOKUP(B93,'KAYIT LİSTESİ'!$B$4:$H$855,4,0)),"",(VLOOKUP(B93,'KAYIT LİSTESİ'!$B$4:$H$855,4,0))) -> 2001-12-20 | E93: =IF(ISERROR(VLOOKUP(B93,'KAYIT LİSTESİ'!$B$4:$H$855,5,0)),"",(VLOOKUP(B93,'KAYIT LİSTESİ'!$B$4:$H$855,5,0))) -> METİN GÜRDAL | F93: =IF(ISERROR(VLOOKUP(B93,'KAYIT LİSTESİ'!$B$4:$H$855,6,0)),"",(VLOOKUP(B93,'KAYIT LİSTESİ'!$B$4:$H$855,6,0))) -> ISPARTA | J93: 18 | K93: GÜLLE-18 | L93: =IF(ISERROR(VLOOKUP(K93,'KAYIT LİSTESİ'!$B$4:$H$855,2,0)),"",(VLOOKUP(K93,'KAYIT LİSTESİ'!$B$4:$H$855,2,0))) ->  | M93: =IF(ISERROR(VLOOKUP(K93,'KAYIT LİSTESİ'!$B$4:$H$855,4,0)),"",(VLOOKUP(K93,'KAYIT LİSTESİ'!$B$4:$H$855,4,0))) ->  | N93: =IF(ISERROR(VLOOKUP(K93,'KAYIT LİSTESİ'!$B$4:$H$855,5,0)),"",(VLOOKUP(K93,'KAYIT LİSTESİ'!$B$4:$H$855,5,0))) ->  | O93: =IF(ISERROR(VLOOKUP(K93,'KAYIT LİSTESİ'!$B$4:$H$855,6,0)),"",(VLOOKUP(K93,'KAYIT LİSTESİ'!$B$4:$H$855,6,0))) -> 
A94: 6 | B94: 1500M-1-6 | C94: =IF(ISERROR(VLOOKUP(B94,'KAYIT LİSTESİ'!$B$4:$H$855,2,0)),"",(VLOOKUP(B94,'KAYIT LİSTESİ'!$B$4:$H$855,2,0))) -> 284 | D94: =IF(ISERROR(VLOOKUP(B94,'KAYIT LİSTESİ'!$B$4:$H$855,4,0)),"",(VLOOKUP(B94,'KAYIT LİSTESİ'!$B$4:$H$855,4,0))) -> 2001-01-01 | E94: =IF(ISERROR(VLOOKUP(B94,'KAYIT LİSTESİ'!$B$4:$H$855,5,0)),"",(VLOOKUP(B94,'KAYIT LİSTESİ'!$B$4:$H$855,5,0))) -> MAHMUT CAN KURTARAN | F94: =IF(ISERROR(VLOOKUP(B94,'KAYIT LİSTESİ'!$B$4:$H$855,6,0)),"",(VLOOKUP(B94,'KAYIT LİSTESİ'!$B$4:$H$855,6,0))) -> GAZİANTEP | J94: 19 | K94: GÜLLE-19 | L94: =IF(ISERROR(VLOOKUP(K94,'KAYIT LİSTESİ'!$B$4:$H$855,2,0)),"",(VLOOKUP(K94,'KAYIT LİSTESİ'!$B$4:$H$855,2,0))) ->  | M94: =IF(ISERROR(VLOOKUP(K94,'KAYIT LİSTESİ'!$B$4:$H$855,4,0)),"",(VLOOKUP(K94,'KAYIT LİSTESİ'!$B$4:$H$855,4,0))) ->  | N94: =IF(ISERROR(VLOOKUP(K94,'KAYIT LİSTESİ'!$B$4:$H$855,5,0)),"",(VLOOKUP(K94,'KAYIT LİSTESİ'!$B$4:$H$855,5,0))) ->  | O94: =IF(ISERROR(VLOOKUP(K94,'KAYIT LİSTESİ'!$B$4:$H$855,6,0)),"",(VLOOKUP(K94,'KAYIT LİSTESİ'!$B$4:$H$855,6,0))) -> 
A95: 7 | B95: 1500M-1-7 | C95: =IF(ISERROR(VLOOKUP(B95,'KAYIT LİSTESİ'!$B$4:$H$855,2,0)),"",(VLOOKUP(B95,'KAYIT LİSTESİ'!$B$4:$H$855,2,0))) ->  | D95: =IF(ISERROR(VLOOKUP(B95,'KAYIT LİSTESİ'!$B$4:$H$855,4,0)),"",(VLOOKUP(B95,'KAYIT LİSTESİ'!$B$4:$H$855,4,0))) ->  | E95: =IF(ISERROR(VLOOKUP(B95,'KAYIT LİSTESİ'!$B$4:$H$855,5,0)),"",(VLOOKUP(B95,'KAYIT LİSTESİ'!$B$4:$H$855,5,0))) ->  | F95: =IF(ISERROR(VLOOKUP(B95,'KAYIT LİSTESİ'!$B$4:$H$855,6,0)),"",(VLOOKUP(B95,'KAYIT LİSTESİ'!$B$4:$H$855,6,0))) ->  | J95: 20 | K95: GÜLLE-20 | L95: =IF(ISERROR(VLOOKUP(K95,'KAYIT LİSTESİ'!$B$4:$H$855,2,0)),"",(VLOOKUP(K95,'KAYIT LİSTESİ'!$B$4:$H$855,2,0))) ->  | M95: =IF(ISERROR(VLOOKUP(K95,'KAYIT LİSTESİ'!$B$4:$H$855,4,0)),"",(VLOOKUP(K95,'KAYIT LİSTESİ'!$B$4:$H$855,4,0))) ->  | N95: =IF(ISERROR(VLOOKUP(K95,'KAYIT LİSTESİ'!$B$4:$H$855,5,0)),"",(VLOOKUP(K95,'KAYIT LİSTESİ'!$B$4:$H$855,5,0))) ->  | O95: =IF(ISERROR(VLOOKUP(K95,'KAYIT LİSTESİ'!$B$4:$H$855,6,0)),"",(VLOOKUP(K95,'KAYIT LİSTESİ'!$B$4:$H$855,6,0))) -> 
A96: 8 | B96: 1500M-1-8 | C96: =IF(ISERROR(VLOOKUP(B96,'KAYIT LİSTESİ'!$B$4:$H$855,2,0)),"",(VLOOKUP(B96,'KAYIT LİSTESİ'!$B$4:$H$855,2,0))) -> 533 | D96: =IF(ISERROR(VLOOKUP(B96,'KAYIT LİSTESİ'!$B$4:$H$855,4,0)),"",(VLOOKUP(B96,'KAYIT LİSTESİ'!$B$4:$H$855,4,0))) -> 2001-01-01 | E96: =IF(ISERROR(VLOOKUP(B96,'KAYIT LİSTESİ'!$B$4:$H$855,5,0)),"",(VLOOKUP(B96,'KAYIT LİSTESİ'!$B$4:$H$855,5,0))) -> SEZEN ÇİĞDEM | F96: =IF(ISERROR(VLOOKUP(B96,'KAYIT LİSTESİ'!$B$4:$H$855,6,0)),"",(VLOOKUP(B96,'KAYIT LİSTESİ'!$B$4:$H$855,6,0))) -> KONYA | J96: 21 | K96: GÜLLE-21 | L96: =IF(ISERROR(VLOOKUP(K96,'KAYIT LİSTESİ'!$B$4:$H$855,2,0)),"",(VLOOKUP(K96,'KAYIT LİSTESİ'!$B$4:$H$855,2,0))) ->  | M96: =IF(ISERROR(VLOOKUP(K96,'KAYIT LİSTESİ'!$B$4:$H$855,4,0)),"",(VLOOKUP(K96,'KAYIT LİSTESİ'!$B$4:$H$855,4,0))) ->  | N96: =IF(ISERROR(VLOOKUP(K96,'KAYIT LİSTESİ'!$B$4:$H$855,5,0)),"",(VLOOKUP(K96,'KAYIT LİSTESİ'!$B$4:$H$855,5,0))) ->  | O96: =IF(ISERROR(VLOOKUP(K96,'KAYIT LİSTESİ'!$B$4:$H$855,6,0)),"",(VLOOKUP(K96,'KAYIT LİSTESİ'!$B$4:$H$855,6,0))) -> 
A97: 9 | B97: 1500M-1-9 | C97: =IF(ISERROR(VLOOKUP(B97,'KAYIT LİSTESİ'!$B$4:$H$855,2,0)),"",(VLOOKUP(B97,'KAYIT LİSTESİ'!$B$4:$H$855,2,0))) ->  | D97: =IF(ISERROR(VLOOKUP(B97,'KAYIT LİSTESİ'!$B$4:$H$855,4,0)),"",(VLOOKUP(B97,'KAYIT LİSTESİ'!$B$4:$H$855,4,0))) ->  | E97: =IF(ISERROR(VLOOKUP(B97,'KAYIT LİSTESİ'!$B$4:$H$855,5,0)),"",(VLOOKUP(B97,'KAYIT LİSTESİ'!$B$4:$H$855,5,0))) ->  | F97: =IF(ISERROR(VLOOKUP(B97,'KAYIT LİSTESİ'!$B$4:$H$855,6,0)),"",(VLOOKUP(B97,'KAYIT LİSTESİ'!$B$4:$H$855,6,0))) ->  | J97: 22 | K97: GÜLLE-22 | L97: =IF(ISERROR(VLOOKUP(K97,'KAYIT LİSTESİ'!$B$4:$H$855,2,0)),"",(VLOOKUP(K97,'KAYIT LİSTESİ'!$B$4:$H$855,2,0))) ->  | M97: =IF(ISERROR(VLOOKUP(K97,'KAYIT LİSTESİ'!$B$4:$H$855,4,0)),"",(VLOOKUP(K97,'KAYIT LİSTESİ'!$B$4:$H$855,4,0))) ->  | N97: =IF(ISERROR(VLOOKUP(K97,'KAYIT LİSTESİ'!$B$4:$H$855,5,0)),"",(VLOOKUP(K97,'KAYIT LİSTESİ'!$B$4:$H$855,5,0))) ->  | O97: =IF(ISERROR(VLOOKUP(K97,'KAYIT LİSTESİ'!$B$4:$H$855,6,0)),"",(VLOOKUP(K97,'KAYIT LİSTESİ'!$B$4:$H$855,6,0))) -> 
A98: 10 | B98: 1500M-1-10 | C98: =IF(ISERROR(VLOOKUP(B98,'KAYIT LİSTESİ'!$B$4:$H$855,2,0)),"",(VLOOKUP(B98,'KAYIT LİSTESİ'!$B$4:$H$855,2,0))) -> 694 | D98: =IF(ISERROR(VLOOKUP(B98,'KAYIT LİSTESİ'!$B$4:$H$855,4,0)),"",(VLOOKUP(B98,'KAYIT LİSTESİ'!$B$4:$H$855,4,0))) -> 2001-03-27 | E98: =IF(ISERROR(VLOOKUP(B98,'KAYIT LİSTESİ'!$B$4:$H$855,5,0)),"",(VLOOKUP(B98,'KAYIT LİSTESİ'!$B$4:$H$855,5,0))) -> HÜSEYİM KURT | F98: =IF(ISERROR(VLOOKUP(B98,'KAYIT LİSTESİ'!$B$4:$H$855,6,0)),"",(VLOOKUP(B98,'KAYIT LİSTESİ'!$B$4:$H$855,6,0))) -> TOKAT | J98: 23 | K98: GÜLLE-23 | L98: =IF(ISERROR(VLOOKUP(K98,'KAYIT LİSTESİ'!$B$4:$H$855,2,0)),"",(VLOOKUP(K98,'KAYIT LİSTESİ'!$B$4:$H$855,2,0))) ->  | M98: =IF(ISERROR(VLOOKUP(K98,'KAYIT LİSTESİ'!$B$4:$H$855,4,0)),"",(VLOOKUP(K98,'KAYIT LİSTESİ'!$B$4:$H$855,4,0))) ->  | N98: =IF(ISERROR(VLOOKUP(K98,'KAYIT LİSTESİ'!$B$4:$H$855,5,0)),"",(VLOOKUP(K98,'KAYIT LİSTESİ'!$B$4:$H$855,5,0))) ->  | O98: =IF(ISERROR(VLOOKUP(K98,'KAYIT LİSTESİ'!$B$4:$H$855,6,0)),"",(VLOOKUP(K98,'KAYIT LİSTESİ'!$B$4:$H$855,6,0))) -> 
A99: 11 | B99: 1500M-1-11 | C99: =IF(ISERROR(VLOOKUP(B99,'KAYIT LİSTESİ'!$B$4:$H$855,2,0)),"",(VLOOKUP(B99,'KAYIT LİSTESİ'!$B$4:$H$855,2,0))) -> 63 | D99: =IF(ISERROR(VLOOKUP(B99,'KAYIT LİSTESİ'!$B$4:$H$855,4,0)),"",(VLOOKUP(B99,'KAYIT LİSTESİ'!$B$4:$H$855,4,0))) -> 2001-01-01 | E99: =IF(ISERROR(VLOOKUP(B99,'KAYIT LİSTESİ'!$B$4:$H$855,5,0)),"",(VLOOKUP(B99,'KAYIT LİSTESİ'!$B$4:$H$855,5,0))) -> HÜSEYİN ŞENTÜRK | F99: =IF(ISERROR(VLOOKUP(B99,'KAYIT LİSTESİ'!$B$4:$H$855,6,0)),"",(VLOOKUP(B99,'KAYIT LİSTESİ'!$B$4:$H$855,6,0))) -> ARDAHAN | J99: 24 | K99: GÜLLE-24 | L99: =IF(ISERROR(VLOOKUP(K99,'KAYIT LİSTESİ'!$B$4:$H$855,2,0)),"",(VLOOKUP(K99,'KAYIT LİSTESİ'!$B$4:$H$855,2,0))) ->  | M99: =IF(ISERROR(VLOOKUP(K99,'KAYIT LİSTESİ'!$B$4:$H$855,4,0)),"",(VLOOKUP(K99,'KAYIT LİSTESİ'!$B$4:$H$855,4,0))) ->  | N99: =IF(ISERROR(VLOOKUP(K99,'KAYIT LİSTESİ'!$B$4:$H$855,5,0)),"",(VLOOKUP(K99,'KAYIT LİSTESİ'!$B$4:$H$855,5,0))) ->  | O99: =IF(ISERROR(VLOOKUP(K99,'KAYIT LİSTESİ'!$B$4:$H$855,6,0)),"",(VLOOKUP(K99,'KAYIT LİSTESİ'!$B$4:$H$855,6,0))) -> 
A100: 12 | B100: 1500M-1-12 | C100: =IF(ISERROR(VLOOKUP(B100,'KAYIT LİSTESİ'!$B$4:$H$855,2,0)),"",(VLOOKUP(B100,'KAYIT LİSTESİ'!$B$4:$H$855,2,0))) -> 700 | D100: =IF(ISERROR(VLOOKUP(B100,'KAYIT LİSTESİ'!$B$4:$H$855,4,0)),"",(VLOOKUP(B100,'KAYIT LİSTESİ'!$B$4:$H$855,4,0))) -> 2002-05-18 | E100: =IF(ISERROR(VLOOKUP(B100,'KAYIT LİSTESİ'!$B$4:$H$855,5,0)),"",(VLOOKUP(B100,'KAYIT LİSTESİ'!$B$4:$H$855,5,0))) -> HAYDAR ARİZ | F100: =IF(ISERROR(VLOOKUP(B100,'KAYIT LİSTESİ'!$B$4:$H$855,6,0)),"",(VLOOKUP(B100,'KAYIT LİSTESİ'!$B$4:$H$855,6,0))) -> TOKAT | J100: 25 | K100: GÜLLE-25 | L100: =IF(ISERROR(VLOOKUP(K100,'KAYIT LİSTESİ'!$B$4:$H$855,2,0)),"",(VLOOKUP(K100,'KAYIT LİSTESİ'!$B$4:$H$855,2,0))) ->  | M100: =IF(ISERROR(VLOOKUP(K100,'KAYIT LİSTESİ'!$B$4:$H$855,4,0)),"",(VLOOKUP(K100,'KAYIT LİSTESİ'!$B$4:$H$855,4,0))) ->  | N100: =IF(ISERROR(VLOOKUP(K100,'KAYIT LİSTESİ'!$B$4:$H$855,5,0)),"",(VLOOKUP(K100,'KAYIT LİSTESİ'!$B$4:$H$855,5,0))) ->  | O100: =IF(ISERROR(VLOOKUP(K100,'KAYIT LİSTESİ'!$B$4:$H$855,6,0)),"",(VLOOKUP(K100,'KAYIT LİSTESİ'!$B$4:$H$855,6,0))) -> 
A101: 2. SERİ | J101: 26 | K101: GÜLLE-26 | L101: =IF(ISERROR(VLOOKUP(K101,'KAYIT LİSTESİ'!$B$4:$H$855,2,0)),"",(VLOOKUP(K101,'KAYIT LİSTESİ'!$B$4:$H$855,2,0))) ->  | M101: =IF(ISERROR(VLOOKUP(K101,'KAYIT LİSTESİ'!$B$4:$H$855,4,0)),"",(VLOOKUP(K101,'KAYIT LİSTESİ'!$B$4:$H$855,4,0))) ->  | N101: =IF(ISERROR(VLOOKUP(K101,'KAYIT LİSTESİ'!$B$4:$H$855,5,0)),"",(VLOOKUP(K101,'KAYIT LİSTESİ'!$B$4:$H$855,5,0))) ->  | O101: =IF(ISERROR(VLOOKUP(K101,'KAYIT LİSTESİ'!$B$4:$H$855,6,0)),"",(VLOOKUP(K101,'KAYIT LİSTESİ'!$B$4:$H$855,6,0))) -> 
A102: Sıra No | B102: Formül | C102: Göğüs No | D102: Doğum Tarihi | E102: Adı ve Soyadı | F102: Okulu | G102: Start Kontrol | J102: 27 | K102: GÜLLE-27 | L102: =IF(ISERROR(VLOOKUP(K102,'KAYIT LİSTESİ'!$B$4:$H$855,2,0)),"",(VLOOKUP(K102,'KAYIT LİSTESİ'!$B$4:$H$855,2,0))) ->  | M102: =IF(ISERROR(VLOOKUP(K102,'KAYIT LİSTESİ'!$B$4:$H$855,4,0)),"",(VLOOKUP(K102,'KAYIT LİSTESİ'!$B$4:$H$855,4,0))) ->  | N102: =IF(ISERROR(VLOOKUP(K102,'KAYIT LİSTESİ'!$B$4:$H$855,5,0)),"",(VLOOKUP(K102,'KAYIT LİSTESİ'!$B$4:$H$855,5,0))) ->  | O102: =IF(ISERROR(VLOOKUP(K102,'KAYIT LİSTESİ'!$B$4:$H$855,6,0)),"",(VLOOKUP(K102,'KAYIT LİSTESİ'!$B$4:$H$855,6,0))) -> 
A103: 1 | B103: 1500M-2-1 | C103: =IF(ISERROR(VLOOKUP(B103,'KAYIT LİSTESİ'!$B$4:$H$855,2,0)),"",(VLOOKUP(B103,'KAYIT LİSTESİ'!$B$4:$H$855,2,0))) -> 285 | D103: =IF(ISERROR(VLOOKUP(B103,'KAYIT LİSTESİ'!$B$4:$H$855,4,0)),"",(VLOOKUP(B103,'KAYIT LİSTESİ'!$B$4:$H$855,4,0))) -> 2001-01-01 | E103: =IF(ISERROR(VLOOKUP(B103,'KAYIT LİSTESİ'!$B$4:$H$855,5,0)),"",(VLOOKUP(B103,'KAYIT LİSTESİ'!$B$4:$H$855,5,0))) -> HASAN HIDIR | F103: =IF(ISERROR(VLOOKUP(B103,'KAYIT LİSTESİ'!$B$4:$H$855,6,0)),"",(VLOOKUP(B103,'KAYIT LİSTESİ'!$B$4:$H$855,6,0))) -> GAZİANTEP | J103: 28 | K103: GÜLLE-28 | L103: =IF(ISERROR(VLOOKUP(K103,'KAYIT LİSTESİ'!$B$4:$H$855,2,0)),"",(VLOOKUP(K103,'KAYIT LİSTESİ'!$B$4:$H$855,2,0))) ->  | M103: =IF(ISERROR(VLOOKUP(K103,'KAYIT LİSTESİ'!$B$4:$H$855,4,0)),"",(VLOOKUP(K103,'KAYIT LİSTESİ'!$B$4:$H$855,4,0))) ->  | N103: =IF(ISERROR(VLOOKUP(K103,'KAYIT LİSTESİ'!$B$4:$H$855,5,0)),"",(VLOOKUP(K103,'KAYIT LİSTESİ'!$B$4:$H$855,5,0))) ->  | O103: =IF(ISERROR(VLOOKUP(K103,'KAYIT LİSTESİ'!$B$4:$H$855,6,0)),"",(VLOOKUP(K103,'KAYIT LİSTESİ'!$B$4:$H$855,6,0))) -> 
A104: 2 | B104: 1500M-2-2 | C104: =IF(ISERROR(VLOOKUP(B104,'KAYIT LİSTESİ'!$B$4:$H$855,2,0)),"",(VLOOKUP(B104,'KAYIT LİSTESİ'!$B$4:$H$855,2,0))) -> 195 | D104: =IF(ISERROR(VLOOKUP(B104,'KAYIT LİSTESİ'!$B$4:$H$855,4,0)),"",(VLOOKUP(B104,'KAYIT LİSTESİ'!$B$4:$H$855,4,0))) -> 2001-01-01 | E104: =IF(ISERROR(VLOOKUP(B104,'KAYIT LİSTESİ'!$B$4:$H$855,5,0)),"",(VLOOKUP(B104,'KAYIT LİSTESİ'!$B$4:$H$855,5,0))) -> ALI HUSSEIN AMER | F104: =IF(ISERROR(VLOOKUP(B104,'KAYIT LİSTESİ'!$B$4:$H$855,6,0)),"",(VLOOKUP(B104,'KAYIT LİSTESİ'!$B$4:$H$855,6,0))) -> BURDUR | J104: 29 | K104: GÜLLE-29 | L104: =IF(ISERROR(VLOOKUP(K104,'KAYIT LİSTESİ'!$B$4:$H$855,2,0)),"",(VLOOKUP(K104,'KAYIT LİSTESİ'!$B$4:$H$855,2,0))) ->  | M104: =IF(ISERROR(VLOOKUP(K104,'KAYIT LİSTESİ'!$B$4:$H$855,4,0)),"",(VLOOKUP(K104,'KAYIT LİSTESİ'!$B$4:$H$855,4,0))) ->  | N104: =IF(ISERROR(VLOOKUP(K104,'KAYIT LİSTESİ'!$B$4:$H$855,5,0)),"",(VLOOKUP(K104,'KAYIT LİSTESİ'!$B$4:$H$855,5,0))) ->  | O104: =IF(ISERROR(VLOOKUP(K104,'KAYIT LİSTESİ'!$B$4:$H$855,6,0)),"",(VLOOKUP(K104,'KAYIT LİSTESİ'!$B$4:$H$855,6,0))) -> 
A105: 3 | B105: 1500M-2-3 | C105: =IF(ISERROR(VLOOKUP(B105,'KAYIT LİSTESİ'!$B$4:$H$855,2,0)),"",(VLOOKUP(B105,'KAYIT LİSTESİ'!$B$4:$H$855,2,0))) -> 481 | D105: =IF(ISERROR(VLOOKUP(B105,'KAYIT LİSTESİ'!$B$4:$H$855,4,0)),"",(VLOOKUP(B105,'KAYIT LİSTESİ'!$B$4:$H$855,4,0))) -> 2001-10-23 | E105: =IF(ISERROR(VLOOKUP(B105,'KAYIT LİSTESİ'!$B$4:$H$855,5,0)),"",(VLOOKUP(B105,'KAYIT LİSTESİ'!$B$4:$H$855,5,0))) -> ABDULKADİR EREN | F105: =IF(ISERROR(VLOOKUP(B105,'KAYIT LİSTESİ'!$B$4:$H$855,6,0)),"",(VLOOKUP(B105,'KAYIT LİSTESİ'!$B$4:$H$855,6,0))) -> KIRIKKALE | J105: 30 | K105: GÜLLE-30 | L105: =IF(ISERROR(VLOOKUP(K105,'KAYIT LİSTESİ'!$B$4:$H$855,2,0)),"",(VLOOKUP(K105,'KAYIT LİSTESİ'!$B$4:$H$855,2,0))) ->  | M105: =IF(ISERROR(VLOOKUP(K105,'KAYIT LİSTESİ'!$B$4:$H$855,4,0)),"",(VLOOKUP(K105,'KAYIT LİSTESİ'!$B$4:$H$855,4,0))) ->  | N105: =IF(ISERROR(VLOOKUP(K105,'KAYIT LİSTESİ'!$B$4:$H$855,5,0)),"",(VLOOKUP(K105,'KAYIT LİSTESİ'!$B$4:$H$855,5,0))) ->  | O105: =IF(ISERROR(VLOOKUP(K105,'KAYIT LİSTESİ'!$B$4:$H$855,6,0)),"",(VLOOKUP(K105,'KAYIT LİSTESİ'!$B$4:$H$855,6,0))) -> 
A106: 4 | B106: 1500M-2-4 | C106: =IF(ISERROR(VLOOKUP(B106,'KAYIT LİSTESİ'!$B$4:$H$855,2,0)),"",(VLOOKUP(B106,'KAYIT LİSTESİ'!$B$4:$H$855,2,0))) ->  | D106: =IF(ISERROR(VLOOKUP(B106,'KAYIT LİSTESİ'!$B$4:$H$855,4,0)),"",(VLOOKUP(B106,'KAYIT LİSTESİ'!$B$4:$H$855,4,0))) ->  | E106: =IF(ISERROR(VLOOKUP(B106,'KAYIT LİSTESİ'!$B$4:$H$855,5,0)),"",(VLOOKUP(B106,'KAYIT LİSTESİ'!$B$4:$H$855,5,0))) ->  | F106: =IF(ISERROR(VLOOKUP(B106,'KAYIT LİSTESİ'!$B$4:$H$855,6,0)),"",(VLOOKUP(B106,'KAYIT LİSTESİ'!$B$4:$H$855,6,0))) ->  | J106: 31 | K106: GÜLLE-31 | L106: =IF(ISERROR(VLOOKUP(K106,'KAYIT LİSTESİ'!$B$4:$H$855,2,0)),"",(VLOOKUP(K106,'KAYIT LİSTESİ'!$B$4:$H$855,2,0))) ->  | M106: =IF(ISERROR(VLOOKUP(K106,'KAYIT LİSTESİ'!$B$4:$H$855,4,0)),"",(VLOOKUP(K106,'KAYIT LİSTESİ'!$B$4:$H$855,4,0))) ->  | N106: =IF(ISERROR(VLOOKUP(K106,'KAYIT LİSTESİ'!$B$4:$H$855,5,0)),"",(VLOOKUP(K106,'KAYIT LİSTESİ'!$B$4:$H$855,5,0))) ->  | O106: =IF(ISERROR(VLOOKUP(K106,'KAYIT LİSTESİ'!$B$4:$H$855,6,0)),"",(VLOOKUP(K106,'KAYIT LİSTESİ'!$B$4:$H$855,6,0))) -> 
A107: 5 | B107: 1500M-2-5 | C107: =IF(ISERROR(VLOOKUP(B107,'KAYIT LİSTESİ'!$B$4:$H$855,2,0)),"",(VLOOKUP(B107,'KAYIT LİSTESİ'!$B$4:$H$855,2,0))) ->  | D107: =IF(ISERROR(VLOOKUP(B107,'KAYIT LİSTESİ'!$B$4:$H$855,4,0)),"",(VLOOKUP(B107,'KAYIT LİSTESİ'!$B$4:$H$855,4,0))) ->  | E107: =IF(ISERROR(VLOOKUP(B107,'KAYIT LİSTESİ'!$B$4:$H$855,5,0)),"",(VLOOKUP(B107,'KAYIT LİSTESİ'!$B$4:$H$855,5,0))) ->  | F107: =IF(ISERROR(VLOOKUP(B107,'KAYIT LİSTESİ'!$B$4:$H$855,6,0)),"",(VLOOKUP(B107,'KAYIT LİSTESİ'!$B$4:$H$855,6,0))) ->  | J107: 32 | K107: GÜLLE-32 | L107: =IF(ISERROR(VLOOKUP(K107,'KAYIT LİSTESİ'!$B$4:$H$855,2,0)),"",(VLOOKUP(K107,'KAYIT LİSTESİ'!$B$4:$H$855,2,0))) ->  | M107: =IF(ISERROR(VLOOKUP(K107,'KAYIT LİSTESİ'!$B$4:$H$855,4,0)),"",(VLOOKUP(K107,'KAYIT LİSTESİ'!$B$4:$H$855,4,0))) ->  | N107: =IF(ISERROR(VLOOKUP(K107,'KAYIT LİSTESİ'!$B$4:$H$855,5,0)),"",(VLOOKUP(K107,'KAYIT LİSTESİ'!$B$4:$H$855,5,0))) ->  | O107: =IF(ISERROR(VLOOKUP(K107,'KAYIT LİSTESİ'!$B$4:$H$855,6,0)),"",(VLOOKUP(K107,'KAYIT LİSTESİ'!$B$4:$H$855,6,0))) -> 
A108: 6 | B108: 1500M-2-6 | C108: =IF(ISERROR(VLOOKUP(B108,'KAYIT LİSTESİ'!$B$4:$H$855,2,0)),"",(VLOOKUP(B108,'KAYIT LİSTESİ'!$B$4:$H$855,2,0))) -> 656 | D108: =IF(ISERROR(VLOOKUP(B108,'KAYIT LİSTESİ'!$B$4:$H$855,4,0)),"",(VLOOKUP(B108,'KAYIT LİSTESİ'!$B$4:$H$855,4,0))) -> 2001-02-01 | E108: =IF(ISERROR(VLOOKUP(B108,'KAYIT LİSTESİ'!$B$4:$H$855,5,0)),"",(VLOOKUP(B108,'KAYIT LİSTESİ'!$B$4:$H$855,5,0))) -> HAYRETTİN KAYA | F108: =IF(ISERROR(VLOOKUP(B108,'KAYIT LİSTESİ'!$B$4:$H$855,6,0)),"",(VLOOKUP(B108,'KAYIT LİSTESİ'!$B$4:$H$855,6,0))) -> SİİRT | J108: 33 | K108: GÜLLE-33 | L108: =IF(ISERROR(VLOOKUP(K108,'KAYIT LİSTESİ'!$B$4:$H$855,2,0)),"",(VLOOKUP(K108,'KAYIT LİSTESİ'!$B$4:$H$855,2,0))) ->  | M108: =IF(ISERROR(VLOOKUP(K108,'KAYIT LİSTESİ'!$B$4:$H$855,4,0)),"",(VLOOKUP(K108,'KAYIT LİSTESİ'!$B$4:$H$855,4,0))) ->  | N108: =IF(ISERROR(VLOOKUP(K108,'KAYIT LİSTESİ'!$B$4:$H$855,5,0)),"",(VLOOKUP(K108,'KAYIT LİSTESİ'!$B$4:$H$855,5,0))) ->  | O108: =IF(ISERROR(VLOOKUP(K108,'KAYIT LİSTESİ'!$B$4:$H$855,6,0)),"",(VLOOKUP(K108,'KAYIT LİSTESİ'!$B$4:$H$855,6,0))) -> 
A109: 7 | B109: 1500M-2-7 | C109: =IF(ISERROR(VLOOKUP(B109,'KAYIT LİSTESİ'!$B$4:$H$855,2,0)),"",(VLOOKUP(B109,'KAYIT LİSTESİ'!$B$4:$H$855,2,0))) -> 658 | D109: =IF(ISERROR(VLOOKUP(B109,'KAYIT LİSTESİ'!$B$4:$H$855,4,0)),"",(VLOOKUP(B109,'KAYIT LİSTESİ'!$B$4:$H$855,4,0))) -> 2001-02-05 | E109: =IF(ISERROR(VLOOKUP(B109,'KAYIT LİSTESİ'!$B$4:$H$855,5,0)),"",(VLOOKUP(B109,'KAYIT LİSTESİ'!$B$4:$H$855,5,0))) -> HASAN EREN | F109: =IF(ISERROR(VLOOKUP(B109,'KAYIT LİSTESİ'!$B$4:$H$855,6,0)),"",(VLOOKUP(B109,'KAYIT LİSTESİ'!$B$4:$H$855,6,0))) -> SİİRT | J109: 34 | K109: GÜLLE-34 | L109: =IF(ISERROR(VLOOKUP(K109,'KAYIT LİSTESİ'!$B$4:$H$855,2,0)),"",(VLOOKUP(K109,'KAYIT LİSTESİ'!$B$4:$H$855,2,0))) ->  | M109: =IF(ISERROR(VLOOKUP(K109,'KAYIT LİSTESİ'!$B$4:$H$855,4,0)),"",(VLOOKUP(K109,'KAYIT LİSTESİ'!$B$4:$H$855,4,0))) ->  | N109: =IF(ISERROR(VLOOKUP(K109,'KAYIT LİSTESİ'!$B$4:$H$855,5,0)),"",(VLOOKUP(K109,'KAYIT LİSTESİ'!$B$4:$H$855,5,0))) ->  | O109: =IF(ISERROR(VLOOKUP(K109,'KAYIT LİSTESİ'!$B$4:$H$855,6,0)),"",(VLOOKUP(K109,'KAYIT LİSTESİ'!$B$4:$H$855,6,0))) -> 
A110: 8 | B110: 1500M-2-8 | C110: =IF(ISERROR(VLOOKUP(B110,'KAYIT LİSTESİ'!$B$4:$H$855,2,0)),"",(VLOOKUP(B110,'KAYIT LİSTESİ'!$B$4:$H$855,2,0))) -> 657 | D110: =IF(ISERROR(VLOOKUP(B110,'KAYIT LİSTESİ'!$B$4:$H$855,4,0)),"",(VLOOKUP(B110,'KAYIT LİSTESİ'!$B$4:$H$855,4,0))) -> 2001-10-01 | E110: =IF(ISERROR(VLOOKUP(B110,'KAYIT LİSTESİ'!$B$4:$H$855,5,0)),"",(VLOOKUP(B110,'KAYIT LİSTESİ'!$B$4:$H$855,5,0))) -> HÜSEYİN YILDIRIM | F110: =IF(ISERROR(VLOOKUP(B110,'KAYIT LİSTESİ'!$B$4:$H$855,6,0)),"",(VLOOKUP(B110,'KAYIT LİSTESİ'!$B$4:$H$855,6,0))) -> SİİRT | J110: 35 | K110: GÜLLE-35 | L110: =IF(ISERROR(VLOOKUP(K110,'KAYIT LİSTESİ'!$B$4:$H$855,2,0)),"",(VLOOKUP(K110,'KAYIT LİSTESİ'!$B$4:$H$855,2,0))) ->  | M110: =IF(ISERROR(VLOOKUP(K110,'KAYIT LİSTESİ'!$B$4:$H$855,4,0)),"",(VLOOKUP(K110,'KAYIT LİSTESİ'!$B$4:$H$855,4,0))) ->  | N110: =IF(ISERROR(VLOOKUP(K110,'KAYIT LİSTESİ'!$B$4:$H$855,5,0)),"",(VLOOKUP(K110,'KAYIT LİSTESİ'!$B$4:$H$855,5,0))) ->  | O110: =IF(ISERROR(VLOOKUP(K110,'KAYIT LİSTESİ'!$B$4:$H$855,6,0)),"",(VLOOKUP(K110,'KAYIT LİSTESİ'!$B$4:$H$855,6,0))) -> 
A111: 9 | B111: 1500M-2-9 | C111: =IF(ISERROR(VLOOKUP(B111,'KAYIT LİSTESİ'!$B$4:$H$855,2,0)),"",(VLOOKUP(B111,'KAYIT LİSTESİ'!$B$4:$H$855,2,0))) -> 250 | D111: =IF(ISERROR(VLOOKUP(B111,'KAYIT LİSTESİ'!$B$4:$H$855,4,0)),"",(VLOOKUP(B111,'KAYIT LİSTESİ'!$B$4:$H$855,4,0))) -> 2001-04-20 | E111: =IF(ISERROR(VLOOKUP(B111,'KAYIT LİSTESİ'!$B$4:$H$855,5,0)),"",(VLOOKUP(B111,'KAYIT LİSTESİ'!$B$4:$H$855,5,0))) -> ŞAKİR YEŞİL | F111: =IF(ISERROR(VLOOKUP(B111,'KAYIT LİSTESİ'!$B$4:$H$855,6,0)),"",(VLOOKUP(B111,'KAYIT LİSTESİ'!$B$4:$H$855,6,0))) -> ERZİNCAN | J111: 36 | K111: GÜLLE-36 | L111: =IF(ISERROR(VLOOKUP(K111,'KAYIT LİSTESİ'!$B$4:$H$855,2,0)),"",(VLOOKUP(K111,'KAYIT LİSTESİ'!$B$4:$H$855,2,0))) ->  | M111: =IF(ISERROR(VLOOKUP(K111,'KAYIT LİSTESİ'!$B$4:$H$855,4,0)),"",(VLOOKUP(K111,'KAYIT LİSTESİ'!$B$4:$H$855,4,0))) ->  | N111: =IF(ISERROR(VLOOKUP(K111,'KAYIT LİSTESİ'!$B$4:$H$855,5,0)),"",(VLOOKUP(K111,'KAYIT LİSTESİ'!$B$4:$H$855,5,0))) ->  | O111: =IF(ISERROR(VLOOKUP(K111,'KAYIT LİSTESİ'!$B$4:$H$855,6,0)),"",(VLOOKUP(K111,'KAYIT LİSTESİ'!$B$4:$H$855,6,0))) -> 
A112: 10 | B112: 1500M-2-10 | C112: =IF(ISERROR(VLOOKUP(B112,'KAYIT LİSTESİ'!$B$4:$H$855,2,0)),"",(VLOOKUP(B112,'KAYIT LİSTESİ'!$B$4:$H$855,2,0))) -> 287 | D112: =IF(ISERROR(VLOOKUP(B112,'KAYIT LİSTESİ'!$B$4:$H$855,4,0)),"",(VLOOKUP(B112,'KAYIT LİSTESİ'!$B$4:$H$855,4,0))) -> 2001-01-01 | E112: =IF(ISERROR(VLOOKUP(B112,'KAYIT LİSTESİ'!$B$4:$H$855,5,0)),"",(VLOOKUP(B112,'KAYIT LİSTESİ'!$B$4:$H$855,5,0))) -> MUSTAFA EREN YILMAZ | F112: =IF(ISERROR(VLOOKUP(B112,'KAYIT LİSTESİ'!$B$4:$H$855,6,0)),"",(VLOOKUP(B112,'KAYIT LİSTESİ'!$B$4:$H$855,6,0))) -> GAZİANTEP | J112: 37 | K112: GÜLLE-37 | L112: =IF(ISERROR(VLOOKUP(K112,'KAYIT LİSTESİ'!$B$4:$H$855,2,0)),"",(VLOOKUP(K112,'KAYIT LİSTESİ'!$B$4:$H$855,2,0))) ->  | M112: =IF(ISERROR(VLOOKUP(K112,'KAYIT LİSTESİ'!$B$4:$H$855,4,0)),"",(VLOOKUP(K112,'KAYIT LİSTESİ'!$B$4:$H$855,4,0))) ->  | N112: =IF(ISERROR(VLOOKUP(K112,'KAYIT LİSTESİ'!$B$4:$H$855,5,0)),"",(VLOOKUP(K112,'KAYIT LİSTESİ'!$B$4:$H$855,5,0))) ->  | O112: =IF(ISERROR(VLOOKUP(K112,'KAYIT LİSTESİ'!$B$4:$H$855,6,0)),"",(VLOOKUP(K112,'KAYIT LİSTESİ'!$B$4:$H$855,6,0))) -> 
A113: 11 | B113: 1500M-2-11 | C113: =IF(ISERROR(VLOOKUP(B113,'KAYIT LİSTESİ'!$B$4:$H$855,2,0)),"",(VLOOKUP(B113,'KAYIT LİSTESİ'!$B$4:$H$855,2,0))) ->  | D113: =IF(ISERROR(VLOOKUP(B113,'KAYIT LİSTESİ'!$B$4:$H$855,4,0)),"",(VLOOKUP(B113,'KAYIT LİSTESİ'!$B$4:$H$855,4,0))) ->  | E113: =IF(ISERROR(VLOOKUP(B113,'KAYIT LİSTESİ'!$B$4:$H$855,5,0)),"",(VLOOKUP(B113,'KAYIT LİSTESİ'!$B$4:$H$855,5,0))) ->  | F113: =IF(ISERROR(VLOOKUP(B113,'KAYIT LİSTESİ'!$B$4:$H$855,6,0)),"",(VLOOKUP(B113,'KAYIT LİSTESİ'!$B$4:$H$855,6,0))) ->  | J113: 38 | K113: GÜLLE-38 | L113: =IF(ISERROR(VLOOKUP(K113,'KAYIT LİSTESİ'!$B$4:$H$855,2,0)),"",(VLOOKUP(K113,'KAYIT LİSTESİ'!$B$4:$H$855,2,0))) ->  | M113: =IF(ISERROR(VLOOKUP(K113,'KAYIT LİSTESİ'!$B$4:$H$855,4,0)),"",(VLOOKUP(K113,'KAYIT LİSTESİ'!$B$4:$H$855,4,0))) ->  | N113: =IF(ISERROR(VLOOKUP(K113,'KAYIT LİSTESİ'!$B$4:$H$855,5,0)),"",(VLOOKUP(K113,'KAYIT LİSTESİ'!$B$4:$H$855,5,0))) ->  | O113: =IF(ISERROR(VLOOKUP(K113,'KAYIT LİSTESİ'!$B$4:$H$855,6,0)),"",(VLOOKUP(K113,'KAYIT LİSTESİ'!$B$4:$H$855,6,0))) -> 
A114: 12 | B114: 1500M-2-12 | C114: =IF(ISERROR(VLOOKUP(B114,'KAYIT LİSTESİ'!$B$4:$H$855,2,0)),"",(VLOOKUP(B114,'KAYIT LİSTESİ'!$B$4:$H$855,2,0))) ->  | D114: =IF(ISERROR(VLOOKUP(B114,'KAYIT LİSTESİ'!$B$4:$H$855,4,0)),"",(VLOOKUP(B114,'KAYIT LİSTESİ'!$B$4:$H$855,4,0))) ->  | E114: =IF(ISERROR(VLOOKUP(B114,'KAYIT LİSTESİ'!$B$4:$H$855,5,0)),"",(VLOOKUP(B114,'KAYIT LİSTESİ'!$B$4:$H$855,5,0))) ->  | F114: =IF(ISERROR(VLOOKUP(B114,'KAYIT LİSTESİ'!$B$4:$H$855,6,0)),"",(VLOOKUP(B114,'KAYIT LİSTESİ'!$B$4:$H$855,6,0))) ->  | J114: 39 | K114: GÜLLE-39 | L114: =IF(ISERROR(VLOOKUP(K114,'KAYIT LİSTESİ'!$B$4:$H$855,2,0)),"",(VLOOKUP(K114,'KAYIT LİSTESİ'!$B$4:$H$855,2,0))) ->  | M114: =IF(ISERROR(VLOOKUP(K114,'KAYIT LİSTESİ'!$B$4:$H$855,4,0)),"",(VLOOKUP(K114,'KAYIT LİSTESİ'!$B$4:$H$855,4,0))) ->  | N114: =IF(ISERROR(VLOOKUP(K114,'KAYIT LİSTESİ'!$B$4:$H$855,5,0)),"",(VLOOKUP(K114,'KAYIT LİSTESİ'!$B$4:$H$855,5,0))) ->  | O114: =IF(ISERROR(VLOOKUP(K114,'KAYIT LİSTESİ'!$B$4:$H$855,6,0)),"",(VLOOKUP(K114,'KAYIT LİSTESİ'!$B$4:$H$855,6,0))) -> 
A115: 3. SERİ | J115: 40 | K115: GÜLLE-40 | L115: =IF(ISERROR(VLOOKUP(K115,'KAYIT LİSTESİ'!$B$4:$H$855,2,0)),"",(VLOOKUP(K115,'KAYIT LİSTESİ'!$B$4:$H$855,2,0))) ->  | M115: =IF(ISERROR(VLOOKUP(K115,'KAYIT LİSTESİ'!$B$4:$H$855,4,0)),"",(VLOOKUP(K115,'KAYIT LİSTESİ'!$B$4:$H$855,4,0))) ->  | N115: =IF(ISERROR(VLOOKUP(K115,'KAYIT LİSTESİ'!$B$4:$H$855,5,0)),"",(VLOOKUP(K115,'KAYIT LİSTESİ'!$B$4:$H$855,5,0))) ->  | O115: =IF(ISERROR(VLOOKUP(K115,'KAYIT LİSTESİ'!$B$4:$H$855,6,0)),"",(VLOOKUP(K115,'KAYIT LİSTESİ'!$B$4:$H$855,6,0))) -> 
A116: Sıra No | B116: Formül | C116: Göğüs No | D116: Doğum Tarihi | E116: Adı ve Soyadı | F116: Okulu | G116: Start Kontrol | J116: UZUN ATLAMA
A117: 1 | B117: 1500M-3-1 | C117: =IF(ISERROR(VLOOKUP(B117,'KAYIT LİSTESİ'!$B$4:$H$855,2,0)),"",(VLOOKUP(B117,'KAYIT LİSTESİ'!$B$4:$H$855,2,0))) -> 126 | D117: =IF(ISERROR(VLOOKUP(B117,'KAYIT LİSTESİ'!$B$4:$H$855,4,0)),"",(VLOOKUP(B117,'KAYIT LİSTESİ'!$B$4:$H$855,4,0))) -> 2001-03-16 | E117: =IF(ISERROR(VLOOKUP(B117,'KAYIT LİSTESİ'!$B$4:$H$855,5,0)),"",(VLOOKUP(B117,'KAYIT LİSTESİ'!$B$4:$H$855,5,0))) -> AHMET İRFAN ÖZDİL | F117: =IF(ISERROR(VLOOKUP(B117,'KAYIT LİSTESİ'!$B$4:$H$855,6,0)),"",(VLOOKUP(B117,'KAYIT LİSTESİ'!$B$4:$H$855,6,0))) -> BARTIN | J117: SIRA NO | L117: GÖĞÜS NO | M117: DOĞUM TARİHİ | N117: ADI VE SOYADI | O117: OKULU | P117: Start Kontrol
A118: 2 | B118: 1500M-3-2 | C118: =IF(ISERROR(VLOOKUP(B118,'KAYIT LİSTESİ'!$B$4:$H$855,2,0)),"",(VLOOKUP(B118,'KAYIT LİSTESİ'!$B$4:$H$855,2,0))) -> 553 | D118: =IF(ISERROR(VLOOKUP(B118,'KAYIT LİSTESİ'!$B$4:$H$855,4,0)),"",(VLOOKUP(B118,'KAYIT LİSTESİ'!$B$4:$H$855,4,0))) -> 2001-01-01 | E118: =IF(ISERROR(VLOOKUP(B118,'KAYIT LİSTESİ'!$B$4:$H$855,5,0)),"",(VLOOKUP(B118,'KAYIT LİSTESİ'!$B$4:$H$855,5,0))) -> HALİL SONKAYA | F118: =IF(ISERROR(VLOOKUP(B118,'KAYIT LİSTESİ'!$B$4:$H$855,6,0)),"",(VLOOKUP(B118,'KAYIT LİSTESİ'!$B$4:$H$855,6,0))) -> KÜTAHYA
A119: 3 | B119: 1500M-3-3 | C119: =IF(ISERROR(VLOOKUP(B119,'KAYIT LİSTESİ'!$B$4:$H$855,2,0)),"",(VLOOKUP(B119,'KAYIT LİSTESİ'!$B$4:$H$855,2,0))) -> 351 | D119: =IF(ISERROR(VLOOKUP(B119,'KAYIT LİSTESİ'!$B$4:$H$855,4,0)),"",(VLOOKUP(B119,'KAYIT LİSTESİ'!$B$4:$H$855,4,0))) -> 2001-01-18 | E119: =IF(ISERROR(VLOOKUP(B119,'KAYIT LİSTESİ'!$B$4:$H$855,5,0)),"",(VLOOKUP(B119,'KAYIT LİSTESİ'!$B$4:$H$855,5,0))) -> Ö.FARUK SONGÜL | F119: =IF(ISERROR(VLOOKUP(B119,'KAYIT LİSTESİ'!$B$4:$H$855,6,0)),"",(VLOOKUP(B119,'KAYIT LİSTESİ'!$B$4:$H$855,6,0))) -> ISPARTA | J119: 1 | K119: UZUN-1 | L119: =IF(ISERROR(VLOOKUP(K119,'KAYIT LİSTESİ'!$B$4:$H$855,2,0)),"",(VLOOKUP(K119,'KAYIT LİSTESİ'!$B$4:$H$855,2,0))) ->  | M119: =IF(ISERROR(VLOOKUP(K119,'KAYIT LİSTESİ'!$B$4:$H$855,4,0)),"",(VLOOKUP(K119,'KAYIT LİSTESİ'!$B$4:$H$855,4,0))) ->  | N119: =IF(ISERROR(VLOOKUP(K119,'KAYIT LİSTESİ'!$B$4:$H$855,5,0)),"",(VLOOKUP(K119,'KAYIT LİSTESİ'!$B$4:$H$855,5,0))) ->  | O119: =IF(ISERROR(VLOOKUP(K119,'KAYIT LİSTESİ'!$B$4:$H$855,6,0)),"",(VLOOKUP(K119,'KAYIT LİSTESİ'!$B$4:$H$855,6,0))) -> 
A120: 4 | B120: 1500M-3-4 | C120: =IF(ISERROR(VLOOKUP(B120,'KAYIT LİSTESİ'!$B$4:$H$855,2,0)),"",(VLOOKUP(B120,'KAYIT LİSTESİ'!$B$4:$H$855,2,0))) -> 607 | D120: =IF(ISERROR(VLOOKUP(B120,'KAYIT LİSTESİ'!$B$4:$H$855,4,0)),"",(VLOOKUP(B120,'KAYIT LİSTESİ'!$B$4:$H$855,4,0))) -> 2001-02-09 | E120: =IF(ISERROR(VLOOKUP(B120,'KAYIT LİSTESİ'!$B$4:$H$855,5,0)),"",(VLOOKUP(B120,'KAYIT LİSTESİ'!$B$4:$H$855,5,0))) -> MEHMET DAYAN | F120: =IF(ISERROR(VLOOKUP(B120,'KAYIT LİSTESİ'!$B$4:$H$855,6,0)),"",(VLOOKUP(B120,'KAYIT LİSTESİ'!$B$4:$H$855,6,0))) -> NİĞDE | J120: 2 | K120: UZUN-2 | L120: =IF(ISERROR(VLOOKUP(K120,'KAYIT LİSTESİ'!$B$4:$H$855,2,0)),"",(VLOOKUP(K120,'KAYIT LİSTESİ'!$B$4:$H$855,2,0))) ->  | M120: =IF(ISERROR(VLOOKUP(K120,'KAYIT LİSTESİ'!$B$4:$H$855,4,0)),"",(VLOOKUP(K120,'KAYIT LİSTESİ'!$B$4:$H$855,4,0))) ->  | N120: =IF(ISERROR(VLOOKUP(K120,'KAYIT LİSTESİ'!$B$4:$H$855,5,0)),"",(VLOOKUP(K120,'KAYIT LİSTESİ'!$B$4:$H$855,5,0))) ->  | O120: =IF(ISERROR(VLOOKUP(K120,'KAYIT LİSTESİ'!$B$4:$H$855,6,0)),"",(VLOOKUP(K120,'KAYIT LİSTESİ'!$B$4:$H$855,6,0))) -> 
A121: 5 | B121: 1500M-3-5 | C121: =IF(ISERROR(VLOOKUP(B121,'KAYIT LİSTESİ'!$B$4:$H$855,2,0)),"",(VLOOKUP(B121,'KAYIT LİSTESİ'!$B$4:$H$855,2,0))) -> 726 | D121: =IF(ISERROR(VLOOKUP(B121,'KAYIT LİSTESİ'!$B$4:$H$855,4,0)),"",(VLOOKUP(B121,'KAYIT LİSTESİ'!$B$4:$H$855,4,0))) -> 2001-01-01 | E121: =IF(ISERROR(VLOOKUP(B121,'KAYIT LİSTESİ'!$B$4:$H$855,5,0)),"",(VLOOKUP(B121,'KAYIT LİSTESİ'!$B$4:$H$855,5,0))) -> HAKTAN YILDIZ | F121: =IF(ISERROR(VLOOKUP(B121,'KAYIT LİSTESİ'!$B$4:$H$855,6,0)),"",(VLOOKUP(B121,'KAYIT LİSTESİ'!$B$4:$H$855,6,0))) -> TUNCELİ | J121: 3 | K121: UZUN-3 | L121: =IF(ISERROR(VLOOKUP(K121,'KAYIT LİSTESİ'!$B$4:$H$855,2,0)),"",(VLOOKUP(K121,'KAYIT LİSTESİ'!$B$4:$H$855,2,0))) ->  | M121: =IF(ISERROR(VLOOKUP(K121,'KAYIT LİSTESİ'!$B$4:$H$855,4,0)),"",(VLOOKUP(K121,'KAYIT LİSTESİ'!$B$4:$H$855,4,0))) ->  | N121: =IF(ISERROR(VLOOKUP(K121,'KAYIT LİSTESİ'!$B$4:$H$855,5,0)),"",(VLOOKUP(K121,'KAYIT LİSTESİ'!$B$4:$H$855,5,0))) ->  | O121: =IF(ISERROR(VLOOKUP(K121,'KAYIT LİSTESİ'!$B$4:$H$855,6,0)),"",(VLOOKUP(K121,'KAYIT LİSTESİ'!$B$4:$H$855,6,0))) -> 
A122: 6 | B122: 1500M-3-6 | C122: =IF(ISERROR(VLOOKUP(B122,'KAYIT LİSTESİ'!$B$4:$H$855,2,0)),"",(VLOOKUP(B122,'KAYIT LİSTESİ'!$B$4:$H$855,2,0))) -> 159 | D122: =IF(ISERROR(VLOOKUP(B122,'KAYIT LİSTESİ'!$B$4:$H$855,4,0)),"",(VLOOKUP(B122,'KAYIT LİSTESİ'!$B$4:$H$855,4,0))) -> 2001-08-07 | E122: =IF(ISERROR(VLOOKUP(B122,'KAYIT LİSTESİ'!$B$4:$H$855,5,0)),"",(VLOOKUP(B122,'KAYIT LİSTESİ'!$B$4:$H$855,5,0))) -> HÜSEYİN TURHAN | F122: =IF(ISERROR(VLOOKUP(B122,'KAYIT LİSTESİ'!$B$4:$H$855,6,0)),"",(VLOOKUP(B122,'KAYIT LİSTESİ'!$B$4:$H$855,6,0))) -> BİLECİK | J122: 4 | K122: UZUN-4 | L122: =IF(ISERROR(VLOOKUP(K122,'KAYIT LİSTESİ'!$B$4:$H$855,2,0)),"",(VLOOKUP(K122,'KAYIT LİSTESİ'!$B$4:$H$855,2,0))) ->  | M122: =IF(ISERROR(VLOOKUP(K122,'KAYIT LİSTESİ'!$B$4:$H$855,4,0)),"",(VLOOKUP(K122,'KAYIT LİSTESİ'!$B$4:$H$855,4,0))) ->  | N122: =IF(ISERROR(VLOOKUP(K122,'KAYIT LİSTESİ'!$B$4:$H$855,5,0)),"",(VLOOKUP(K122,'KAYIT LİSTESİ'!$B$4:$H$855,5,0))) ->  | O122: =IF(ISERROR(VLOOKUP(K122,'KAYIT LİSTESİ'!$B$4:$H$855,6,0)),"",(VLOOKUP(K122,'KAYIT LİSTESİ'!$B$4:$H$855,6,0))) -> 
A123: 7 | B123: 1500M-3-7 | C123: =IF(ISERROR(VLOOKUP(B123,'KAYIT LİSTESİ'!$B$4:$H$855,2,0)),"",(VLOOKUP(B123,'KAYIT LİSTESİ'!$B$4:$H$855,2,0))) -> 113 | D123: =IF(ISERROR(VLOOKUP(B123,'KAYIT LİSTESİ'!$B$4:$H$855,4,0)),"",(VLOOKUP(B123,'KAYIT LİSTESİ'!$B$4:$H$855,4,0))) -> 2001-06-02 | E123: =IF(ISERROR(VLOOKUP(B123,'KAYIT LİSTESİ'!$B$4:$H$855,5,0)),"",(VLOOKUP(B123,'KAYIT LİSTESİ'!$B$4:$H$855,5,0))) -> ALİ KOŞAR | F123: =IF(ISERROR(VLOOKUP(B123,'KAYIT LİSTESİ'!$B$4:$H$855,6,0)),"",(VLOOKUP(B123,'KAYIT LİSTESİ'!$B$4:$H$855,6,0))) -> BALIKESİR | J123: 5 | K123: UZUN-5 | L123: =IF(ISERROR(VLOOKUP(K123,'KAYIT LİSTESİ'!$B$4:$H$855,2,0)),"",(VLOOKUP(K123,'KAYIT LİSTESİ'!$B$4:$H$855,2,0))) ->  | M123: =IF(ISERROR(VLOOKUP(K123,'KAYIT LİSTESİ'!$B$4:$H$855,4,0)),"",(VLOOKUP(K123,'KAYIT LİSTESİ'!$B$4:$H$855,4,0))) ->  | N123: =IF(ISERROR(VLOOKUP(K123,'KAYIT LİSTESİ'!$B$4:$H$855,5,0)),"",(VLOOKUP(K123,'KAYIT LİSTESİ'!$B$4:$H$855,5,0))) ->  | O123: =IF(ISERROR(VLOOKUP(K123,'KAYIT LİSTESİ'!$B$4:$H$855,6,0)),"",(VLOOKUP(K123,'KAYIT LİSTESİ'!$B$4:$H$855,6,0))) -> 
A124: 8 | B124: 1500M-3-8 | C124: =IF(ISERROR(VLOOKUP(B124,'KAYIT LİSTESİ'!$B$4:$H$855,2,0)),"",(VLOOKUP(B124,'KAYIT LİSTESİ'!$B$4:$H$855,2,0))) -> 173 | D124: =IF(ISERROR(VLOOKUP(B124,'KAYIT LİSTESİ'!$B$4:$H$855,4,0)),"",(VLOOKUP(B124,'KAYIT LİSTESİ'!$B$4:$H$855,4,0))) -> 2001-01-01 | E124: =IF(ISERROR(VLOOKUP(B124,'KAYIT LİSTESİ'!$B$4:$H$855,5,0)),"",(VLOOKUP(B124,'KAYIT LİSTESİ'!$B$4:$H$855,5,0))) -> YASİR BİRGİN | F124: =IF(ISERROR(VLOOKUP(B124,'KAYIT LİSTESİ'!$B$4:$H$855,6,0)),"",(VLOOKUP(B124,'KAYIT LİSTESİ'!$B$4:$H$855,6,0))) -> BİNGÖL | J124: 6 | K124: UZUN-6 | L124: =IF(ISERROR(VLOOKUP(K124,'KAYIT LİSTESİ'!$B$4:$H$855,2,0)),"",(VLOOKUP(K124,'KAYIT LİSTESİ'!$B$4:$H$855,2,0))) ->  | M124: =IF(ISERROR(VLOOKUP(K124,'KAYIT LİSTESİ'!$B$4:$H$855,4,0)),"",(VLOOKUP(K124,'KAYIT LİSTESİ'!$B$4:$H$855,4,0))) ->  | N124: =IF(ISERROR(VLOOKUP(K124,'KAYIT LİSTESİ'!$B$4:$H$855,5,0)),"",(VLOOKUP(K124,'KAYIT LİSTESİ'!$B$4:$H$855,5,0))) ->  | O124: =IF(ISERROR(VLOOKUP(K124,'KAYIT LİSTESİ'!$B$4:$H$855,6,0)),"",(VLOOKUP(K124,'KAYIT LİSTESİ'!$B$4:$H$855,6,0))) -> 
A125: 9 | B125: 1500M-3-9 | C125: =IF(ISERROR(VLOOKUP(B125,'KAYIT LİSTESİ'!$B$4:$H$855,2,0)),"",(VLOOKUP(B125,'KAYIT LİSTESİ'!$B$4:$H$855,2,0))) -> 160 | D125: =IF(ISERROR(VLOOKUP(B125,'KAYIT LİSTESİ'!$B$4:$H$855,4,0)),"",(VLOOKUP(B125,'KAYIT LİSTESİ'!$B$4:$H$855,4,0))) -> 2001-01-16 | E125: =IF(ISERROR(VLOOKUP(B125,'KAYIT LİSTESİ'!$B$4:$H$855,5,0)),"",(VLOOKUP(B125,'KAYIT LİSTESİ'!$B$4:$H$855,5,0))) -> FERDİ FIRAT TAŞKIRAN | F125: =IF(ISERROR(VLOOKUP(B125,'KAYIT LİSTESİ'!$B$4:$H$855,6,0)),"",(VLOOKUP(B125,'KAYIT LİSTESİ'!$B$4:$H$855,6,0))) -> BİLECİK | J125: 7 | K125: UZUN-7 | L125: =IF(ISERROR(VLOOKUP(K125,'KAYIT LİSTESİ'!$B$4:$H$855,2,0)),"",(VLOOKUP(K125,'KAYIT LİSTESİ'!$B$4:$H$855,2,0))) ->  | M125: =IF(ISERROR(VLOOKUP(K125,'KAYIT LİSTESİ'!$B$4:$H$855,4,0)),"",(VLOOKUP(K125,'KAYIT LİSTESİ'!$B$4:$H$855,4,0))) ->  | N125: =IF(ISERROR(VLOOKUP(K125,'KAYIT LİSTESİ'!$B$4:$H$855,5,0)),"",(VLOOKUP(K125,'KAYIT LİSTESİ'!$B$4:$H$855,5,0))) ->  | O125: =IF(ISERROR(VLOOKUP(K125,'KAYIT LİSTESİ'!$B$4:$H$855,6,0)),"",(VLOOKUP(K125,'KAYIT LİSTESİ'!$B$4:$H$855,6,0))) -> 
A126: 10 | B126: 1500M-3-10 | C126: =IF(ISERROR(VLOOKUP(B126,'KAYIT LİSTESİ'!$B$4:$H$855,2,0)),"",(VLOOKUP(B126,'KAYIT LİSTESİ'!$B$4:$H$855,2,0))) -> 599 | D126: =IF(ISERROR(VLOOKUP(B126,'KAYIT LİSTESİ'!$B$4:$H$855,4,0)),"",(VLOOKUP(B126,'KAYIT LİSTESİ'!$B$4:$H$855,4,0))) -> 2001-12-13 | E126: =IF(ISERROR(VLOOKUP(B126,'KAYIT LİSTESİ'!$B$4:$H$855,5,0)),"",(VLOOKUP(B126,'KAYIT LİSTESİ'!$B$4:$H$855,5,0))) -> OZAN GALİP BENLİ | F126: =IF(ISERROR(VLOOKUP(B126,'KAYIT LİSTESİ'!$B$4:$H$855,6,0)),"",(VLOOKUP(B126,'KAYIT LİSTESİ'!$B$4:$H$855,6,0))) -> NEVŞEHİR | J126: 8 | K126: UZUN-8 | L126: =IF(ISERROR(VLOOKUP(K126,'KAYIT LİSTESİ'!$B$4:$H$855,2,0)),"",(VLOOKUP(K126,'KAYIT LİSTESİ'!$B$4:$H$855,2,0))) ->  | M126: =IF(ISERROR(VLOOKUP(K126,'KAYIT LİSTESİ'!$B$4:$H$855,4,0)),"",(VLOOKUP(K126,'KAYIT LİSTESİ'!$B$4:$H$855,4,0))) ->  | N126: =IF(ISERROR(VLOOKUP(K126,'KAYIT LİSTESİ'!$B$4:$H$855,5,0)),"",(VLOOKUP(K126,'KAYIT LİSTESİ'!$B$4:$H$855,5,0))) ->  | O126: =IF(ISERROR(VLOOKUP(K126,'KAYIT LİSTESİ'!$B$4:$H$855,6,0)),"",(VLOOKUP(K126,'KAYIT LİSTESİ'!$B$4:$H$855,6,0))) -> 
A127: 11 | B127: 1500M-3-11 | C127: =IF(ISERROR(VLOOKUP(B127,'KAYIT LİSTESİ'!$B$4:$H$855,2,0)),"",(VLOOKUP(B127,'KAYIT LİSTESİ'!$B$4:$H$855,2,0))) ->  | D127: =IF(ISERROR(VLOOKUP(B127,'KAYIT LİSTESİ'!$B$4:$H$855,4,0)),"",(VLOOKUP(B127,'KAYIT LİSTESİ'!$B$4:$H$855,4,0))) ->  | E127: =IF(ISERROR(VLOOKUP(B127,'KAYIT LİSTESİ'!$B$4:$H$855,5,0)),"",(VLOOKUP(B127,'KAYIT LİSTESİ'!$B$4:$H$855,5,0))) ->  | F127: =IF(ISERROR(VLOOKUP(B127,'KAYIT LİSTESİ'!$B$4:$H$855,6,0)),"",(VLOOKUP(B127,'KAYIT LİSTESİ'!$B$4:$H$855,6,0))) ->  | J127: 9 | K127: UZUN-9 | L127: =IF(ISERROR(VLOOKUP(K127,'KAYIT LİSTESİ'!$B$4:$H$855,2,0)),"",(VLOOKUP(K127,'KAYIT LİSTESİ'!$B$4:$H$855,2,0))) ->  | M127: =IF(ISERROR(VLOOKUP(K127,'KAYIT LİSTESİ'!$B$4:$H$855,4,0)),"",(VLOOKUP(K127,'KAYIT LİSTESİ'!$B$4:$H$855,4,0))) ->  | N127: =IF(ISERROR(VLOOKUP(K127,'KAYIT LİSTESİ'!$B$4:$H$855,5,0)),"",(VLOOKUP(K127,'KAYIT LİSTESİ'!$B$4:$H$855,5,0))) ->  | O127: =IF(ISERROR(VLOOKUP(K127,'KAYIT LİSTESİ'!$B$4:$H$855,6,0)),"",(VLOOKUP(K127,'KAYIT LİSTESİ'!$B$4:$H$855,6,0))) -> 
A128: 12 | B128: 1500M-3-12 | C128: =IF(ISERROR(VLOOKUP(B128,'KAYIT LİSTESİ'!$B$4:$H$855,2,0)),"",(VLOOKUP(B128,'KAYIT LİSTESİ'!$B$4:$H$855,2,0))) ->  | D128: =IF(ISERROR(VLOOKUP(B128,'KAYIT LİSTESİ'!$B$4:$H$855,4,0)),"",(VLOOKUP(B128,'KAYIT LİSTESİ'!$B$4:$H$855,4,0))) ->  | E128: =IF(ISERROR(VLOOKUP(B128,'KAYIT LİSTESİ'!$B$4:$H$855,5,0)),"",(VLOOKUP(B128,'KAYIT LİSTESİ'!$B$4:$H$855,5,0))) ->  | F128: =IF(ISERROR(VLOOKUP(B128,'KAYIT LİSTESİ'!$B$4:$H$855,6,0)),"",(VLOOKUP(B128,'KAYIT LİSTESİ'!$B$4:$H$855,6,0))) ->  | J128: 10 | K128: UZUN-10 | L128: =IF(ISERROR(VLOOKUP(K128,'KAYIT LİSTESİ'!$B$4:$H$855,2,0)),"",(VLOOKUP(K128,'KAYIT LİSTESİ'!$B$4:$H$855,2,0))) ->  | M128: =IF(ISERROR(VLOOKUP(K128,'KAYIT LİSTESİ'!$B$4:$H$855,4,0)),"",(VLOOKUP(K128,'KAYIT LİSTESİ'!$B$4:$H$855,4,0))) ->  | N128: =IF(ISERROR(VLOOKUP(K128,'KAYIT LİSTESİ'!$B$4:$H$855,5,0)),"",(VLOOKUP(K128,'KAYIT LİSTESİ'!$B$4:$H$855,5,0))) ->  | O128: =IF(ISERROR(VLOOKUP(K128,'KAYIT LİSTESİ'!$B$4:$H$855,6,0)),"",(VLOOKUP(K128,'KAYIT LİSTESİ'!$B$4:$H$855,6,0))) -> 
A129: 4. SERİ | J129: 11 | K129: UZUN-11 | L129: =IF(ISERROR(VLOOKUP(K129,'KAYIT LİSTESİ'!$B$4:$H$855,2,0)),"",(VLOOKUP(K129,'KAYIT LİSTESİ'!$B$4:$H$855,2,0))) ->  | M129: =IF(ISERROR(VLOOKUP(K129,'KAYIT LİSTESİ'!$B$4:$H$855,4,0)),"",(VLOOKUP(K129,'KAYIT LİSTESİ'!$B$4:$H$855,4,0))) ->  | N129: =IF(ISERROR(VLOOKUP(K129,'KAYIT LİSTESİ'!$B$4:$H$855,5,0)),"",(VLOOKUP(K129,'KAYIT LİSTESİ'!$B$4:$H$855,5,0))) ->  | O129: =IF(ISERROR(VLOOKUP(K129,'KAYIT LİSTESİ'!$B$4:$H$855,6,0)),"",(VLOOKUP(K129,'KAYIT LİSTESİ'!$B$4:$H$855,6,0))) -> 
A130: Sıra No | B130: Formül | C130: Göğüs No | D130: Doğum Tarihi | E130: Adı ve Soyadı | F130: Okulu | G130: Start Kontrol | J130: 12 | K130: UZUN-12 | L130: =IF(ISERROR(VLOOKUP(K130,'KAYIT LİSTESİ'!$B$4:$H$855,2,0)),"",(VLOOKUP(K130,'KAYIT LİSTESİ'!$B$4:$H$855,2,0))) ->  | M130: =IF(ISERROR(VLOOKUP(K130,'KAYIT LİSTESİ'!$B$4:$H$855,4,0)),"",(VLOOKUP(K130,'KAYIT LİSTESİ'!$B$4:$H$855,4,0))) ->  | N130: =IF(ISERROR(VLOOKUP(K130,'KAYIT LİSTESİ'!$B$4:$H$855,5,0)),"",(VLOOKUP(K130,'KAYIT LİSTESİ'!$B$4:$H$855,5,0))) ->  | O130: =IF(ISERROR(VLOOKUP(K130,'KAYIT LİSTESİ'!$B$4:$H$855,6,0)),"",(VLOOKUP(K130,'KAYIT LİSTESİ'!$B$4:$H$855,6,0))) -> 
A131: 1 | B131: 1500M-4-1 | C131: =IF(ISERROR(VLOOKUP(B131,'KAYIT LİSTESİ'!$B$4:$H$855,2,0)),"",(VLOOKUP(B131,'KAYIT LİSTESİ'!$B$4:$H$855,2,0))) -> 596 | D131: =IF(ISERROR(VLOOKUP(B131,'KAYIT LİSTESİ'!$B$4:$H$855,4,0)),"",(VLOOKUP(B131,'KAYIT LİSTESİ'!$B$4:$H$855,4,0))) -> 2001-10-02 | E131: =IF(ISERROR(VLOOKUP(B131,'KAYIT LİSTESİ'!$B$4:$H$855,5,0)),"",(VLOOKUP(B131,'KAYIT LİSTESİ'!$B$4:$H$855,5,0))) -> ÖMER ŞEN | F131: =IF(ISERROR(VLOOKUP(B131,'KAYIT LİSTESİ'!$B$4:$H$855,6,0)),"",(VLOOKUP(B131,'KAYIT LİSTESİ'!$B$4:$H$855,6,0))) -> NEVŞEHİR | J131: 13 | K131: UZUN-13 | L131: =IF(ISERROR(VLOOKUP(K131,'KAYIT LİSTESİ'!$B$4:$H$855,2,0)),"",(VLOOKUP(K131,'KAYIT LİSTESİ'!$B$4:$H$855,2,0))) ->  | M131: =IF(ISERROR(VLOOKUP(K131,'KAYIT LİSTESİ'!$B$4:$H$855,4,0)),"",(VLOOKUP(K131,'KAYIT LİSTESİ'!$B$4:$H$855,4,0))) ->  | N131: =IF(ISERROR(VLOOKUP(K131,'KAYIT LİSTESİ'!$B$4:$H$855,5,0)),"",(VLOOKUP(K131,'KAYIT LİSTESİ'!$B$4:$H$855,5,0))) ->  | O131: =IF(ISERROR(VLOOKUP(K131,'KAYIT LİSTESİ'!$B$4:$H$855,6,0)),"",(VLOOKUP(K131,'KAYIT LİSTESİ'!$B$4:$H$855,6,0))) -> 
A132: 2 | B132: 1500M-4-2 | C132: =IF(ISERROR(VLOOKUP(B132,'KAYIT LİSTESİ'!$B$4:$H$855,2,0)),"",(VLOOKUP(B132,'KAYIT LİSTESİ'!$B$4:$H$855,2,0))) -> 30 | D132: =IF(ISERROR(VLOOKUP(B132,'KAYIT LİSTESİ'!$B$4:$H$855,4,0)),"",(VLOOKUP(B132,'KAYIT LİSTESİ'!$B$4:$H$855,4,0))) -> 2001-09-07 | E132: =IF(ISERROR(VLOOKUP(B132,'KAYIT LİSTESİ'!$B$4:$H$855,5,0)),"",(VLOOKUP(B132,'KAYIT LİSTESİ'!$B$4:$H$855,5,0))) -> BİLAL AKTAŞ | F132: =IF(ISERROR(VLOOKUP(B132,'KAYIT LİSTESİ'!$B$4:$H$855,6,0)),"",(VLOOKUP(B132,'KAYIT LİSTESİ'!$B$4:$H$855,6,0))) -> ADIYAMAN | J132: 14 | K132: UZUN-14 | L132: =IF(ISERROR(VLOOKUP(K132,'KAYIT LİSTESİ'!$B$4:$H$855,2,0)),"",(VLOOKUP(K132,'KAYIT LİSTESİ'!$B$4:$H$855,2,0))) ->  | M132: =IF(ISERROR(VLOOKUP(K132,'KAYIT LİSTESİ'!$B$4:$H$855,4,0)),"",(VLOOKUP(K132,'KAYIT LİSTESİ'!$B$4:$H$855,4,0))) ->  | N132: =IF(ISERROR(VLOOKUP(K132,'KAYIT LİSTESİ'!$B$4:$H$855,5,0)),"",(VLOOKUP(K132,'KAYIT LİSTESİ'!$B$4:$H$855,5,0))) ->  | O132: =IF(ISERROR(VLOOKUP(K132,'KAYIT LİSTESİ'!$B$4:$H$855,6,0)),"",(VLOOKUP(K132,'KAYIT LİSTESİ'!$B$4:$H$855,6,0))) -> 
A133: 3 | B133: 1500M-4-3 | C133: =IF(ISERROR(VLOOKUP(B133,'KAYIT LİSTESİ'!$B$4:$H$855,2,0)),"",(VLOOKUP(B133,'KAYIT LİSTESİ'!$B$4:$H$855,2,0))) -> 598 | D133: =IF(ISERROR(VLOOKUP(B133,'KAYIT LİSTESİ'!$B$4:$H$855,4,0)),"",(VLOOKUP(B133,'KAYIT LİSTESİ'!$B$4:$H$855,4,0))) -> 2001-04-11 | E133: =IF(ISERROR(VLOOKUP(B133,'KAYIT LİSTESİ'!$B$4:$H$855,5,0)),"",(VLOOKUP(B133,'KAYIT LİSTESİ'!$B$4:$H$855,5,0))) -> M.BURAK İNCİ | F133: =IF(ISERROR(VLOOKUP(B133,'KAYIT LİSTESİ'!$B$4:$H$855,6,0)),"",(VLOOKUP(B133,'KAYIT LİSTESİ'!$B$4:$H$855,6,0))) -> NEVŞEHİR | J133: 15 | K133: UZUN-15 | L133: =IF(ISERROR(VLOOKUP(K133,'KAYIT LİSTESİ'!$B$4:$H$855,2,0)),"",(VLOOKUP(K133,'KAYIT LİSTESİ'!$B$4:$H$855,2,0))) ->  | M133: =IF(ISERROR(VLOOKUP(K133,'KAYIT LİSTESİ'!$B$4:$H$855,4,0)),"",(VLOOKUP(K133,'KAYIT LİSTESİ'!$B$4:$H$855,4,0))) ->  | N133: =IF(ISERROR(VLOOKUP(K133,'KAYIT LİSTESİ'!$B$4:$H$855,5,0)),"",(VLOOKUP(K133,'KAYIT LİSTESİ'!$B$4:$H$855,5,0))) ->  | O133: =IF(ISERROR(VLOOKUP(K133,'KAYIT LİSTESİ'!$B$4:$H$855,6,0)),"",(VLOOKUP(K133,'KAYIT LİSTESİ'!$B$4:$H$855,6,0))) -> 
A134: 4 | B134: 1500M-4-4 | C134: =IF(ISERROR(VLOOKUP(B134,'KAYIT LİSTESİ'!$B$4:$H$855,2,0)),"",(VLOOKUP(B134,'KAYIT LİSTESİ'!$B$4:$H$855,2,0))) -> 597 | D134: =IF(ISERROR(VLOOKUP(B134,'KAYIT LİSTESİ'!$B$4:$H$855,4,0)),"",(VLOOKUP(B134,'KAYIT LİSTESİ'!$B$4:$H$855,4,0))) -> 2001-03-12 | E134: =IF(ISERROR(VLOOKUP(B134,'KAYIT LİSTESİ'!$B$4:$H$855,5,0)),"",(VLOOKUP(B134,'KAYIT LİSTESİ'!$B$4:$H$855,5,0))) -> ONUR ÇALIŞKAN | F134: =IF(ISERROR(VLOOKUP(B134,'KAYIT LİSTESİ'!$B$4:$H$855,6,0)),"",(VLOOKUP(B134,'KAYIT LİSTESİ'!$B$4:$H$855,6,0))) -> NEVŞEHİR | J134: 16 | K134: UZUN-16 | L134: =IF(ISERROR(VLOOKUP(K134,'KAYIT LİSTESİ'!$B$4:$H$855,2,0)),"",(VLOOKUP(K134,'KAYIT LİSTESİ'!$B$4:$H$855,2,0))) ->  | M134: =IF(ISERROR(VLOOKUP(K134,'KAYIT LİSTESİ'!$B$4:$H$855,4,0)),"",(VLOOKUP(K134,'KAYIT LİSTESİ'!$B$4:$H$855,4,0))) ->  | N134: =IF(ISERROR(VLOOKUP(K134,'KAYIT LİSTESİ'!$B$4:$H$855,5,0)),"",(VLOOKUP(K134,'KAYIT LİSTESİ'!$B$4:$H$855,5,0))) ->  | O134: =IF(ISERROR(VLOOKUP(K134,'KAYIT LİSTESİ'!$B$4:$H$855,6,0)),"",(VLOOKUP(K134,'KAYIT LİSTESİ'!$B$4:$H$855,6,0))) -> 
A135: 5 | B135: 1500M-4-5 | C135: =IF(ISERROR(VLOOKUP(B135,'KAYIT LİSTESİ'!$B$4:$H$855,2,0)),"",(VLOOKUP(B135,'KAYIT LİSTESİ'!$B$4:$H$855,2,0))) -> 267 | D135: =IF(ISERROR(VLOOKUP(B135,'KAYIT LİSTESİ'!$B$4:$H$855,4,0)),"",(VLOOKUP(B135,'KAYIT LİSTESİ'!$B$4:$H$855,4,0))) -> 2001-10-27 | E135: =IF(ISERROR(VLOOKUP(B135,'KAYIT LİSTESİ'!$B$4:$H$855,5,0)),"",(VLOOKUP(B135,'KAYIT LİSTESİ'!$B$4:$H$855,5,0))) -> ENES YAZICI | F135: =IF(ISERROR(VLOOKUP(B135,'KAYIT LİSTESİ'!$B$4:$H$855,6,0)),"",(VLOOKUP(B135,'KAYIT LİSTESİ'!$B$4:$H$855,6,0))) -> ERZURUM | J135: 17 | K135: UZUN-17 | L135: =IF(ISERROR(VLOOKUP(K135,'KAYIT LİSTESİ'!$B$4:$H$855,2,0)),"",(VLOOKUP(K135,'KAYIT LİSTESİ'!$B$4:$H$855,2,0))) ->  | M135: =IF(ISERROR(VLOOKUP(K135,'KAYIT LİSTESİ'!$B$4:$H$855,4,0)),"",(VLOOKUP(K135,'KAYIT LİSTESİ'!$B$4:$H$855,4,0))) ->  | N135: =IF(ISERROR(VLOOKUP(K135,'KAYIT LİSTESİ'!$B$4:$H$855,5,0)),"",(VLOOKUP(K135,'KAYIT LİSTESİ'!$B$4:$H$855,5,0))) ->  | O135: =IF(ISERROR(VLOOKUP(K135,'KAYIT LİSTESİ'!$B$4:$H$855,6,0)),"",(VLOOKUP(K135,'KAYIT LİSTESİ'!$B$4:$H$855,6,0))) -> 
A136: 6 | B136: 1500M-4-6 | C136: =IF(ISERROR(VLOOKUP(B136,'KAYIT LİSTESİ'!$B$4:$H$855,2,0)),"",(VLOOKUP(B136,'KAYIT LİSTESİ'!$B$4:$H$855,2,0))) -> 313 | D136: =IF(ISERROR(VLOOKUP(B136,'KAYIT LİSTESİ'!$B$4:$H$855,4,0)),"",(VLOOKUP(B136,'KAYIT LİSTESİ'!$B$4:$H$855,4,0))) -> 2001-09-21 | E136: =IF(ISERROR(VLOOKUP(B136,'KAYIT LİSTESİ'!$B$4:$H$855,5,0)),"",(VLOOKUP(B136,'KAYIT LİSTESİ'!$B$4:$H$855,5,0))) -> HÜSEYİN YALÇIN | F136: =IF(ISERROR(VLOOKUP(B136,'KAYIT LİSTESİ'!$B$4:$H$855,6,0)),"",(VLOOKUP(B136,'KAYIT LİSTESİ'!$B$4:$H$855,6,0))) -> HATAY | J136: 18 | K136: UZUN-18 | L136: =IF(ISERROR(VLOOKUP(K136,'KAYIT LİSTESİ'!$B$4:$H$855,2,0)),"",(VLOOKUP(K136,'KAYIT LİSTESİ'!$B$4:$H$855,2,0))) ->  | M136: =IF(ISERROR(VLOOKUP(K136,'KAYIT LİSTESİ'!$B$4:$H$855,4,0)),"",(VLOOKUP(K136,'KAYIT LİSTESİ'!$B$4:$H$855,4,0))) ->  | N136: =IF(ISERROR(VLOOKUP(K136,'KAYIT LİSTESİ'!$B$4:$H$855,5,0)),"",(VLOOKUP(K136,'KAYIT LİSTESİ'!$B$4:$H$855,5,0))) ->  | O136: =IF(ISERROR(VLOOKUP(K136,'KAYIT LİSTESİ'!$B$4:$H$855,6,0)),"",(VLOOKUP(K136,'KAYIT LİSTESİ'!$B$4:$H$855,6,0))) -> 
A137: 7 | B137: 1500M-4-7 | C137: =IF(ISERROR(VLOOKUP(B137,'KAYIT LİSTESİ'!$B$4:$H$855,2,0)),"",(VLOOKUP(B137,'KAYIT LİSTESİ'!$B$4:$H$855,2,0))) -> 595 | D137: =IF(ISERROR(VLOOKUP(B137,'KAYIT LİSTESİ'!$B$4:$H$855,4,0)),"",(VLOOKUP(B137,'KAYIT LİSTESİ'!$B$4:$H$855,4,0))) -> 2001-08-03 | E137: =IF(ISERROR(VLOOKUP(B137,'KAYIT LİSTESİ'!$B$4:$H$855,5,0)),"",(VLOOKUP(B137,'KAYIT LİSTESİ'!$B$4:$H$855,5,0))) -> YASİN İNCİ | F137: =IF(ISERROR(VLOOKUP(B137,'KAYIT LİSTESİ'!$B$4:$H$855,6,0)),"",(VLOOKUP(B137,'KAYIT LİSTESİ'!$B$4:$H$855,6,0))) -> NEVŞEHİR | J137: 19 | K137: UZUN-19 | L137: =IF(ISERROR(VLOOKUP(K137,'KAYIT LİSTESİ'!$B$4:$H$855,2,0)),"",(VLOOKUP(K137,'KAYIT LİSTESİ'!$B$4:$H$855,2,0))) ->  | M137: =IF(ISERROR(VLOOKUP(K137,'KAYIT LİSTESİ'!$B$4:$H$855,4,0)),"",(VLOOKUP(K137,'KAYIT LİSTESİ'!$B$4:$H$855,4,0))) ->  | N137: =IF(ISERROR(VLOOKUP(K137,'KAYIT LİSTESİ'!$B$4:$H$855,5,0)),"",(VLOOKUP(K137,'KAYIT LİSTESİ'!$B$4:$H$855,5,0))) ->  | O137: =IF(ISERROR(VLOOKUP(K137,'KAYIT LİSTESİ'!$B$4:$H$855,6,0)),"",(VLOOKUP(K137,'KAYIT LİSTESİ'!$B$4:$H$855,6,0))) -> 
A138: 8 | B138: 1500M-4-8 | C138: =IF(ISERROR(VLOOKUP(B138,'KAYIT LİSTESİ'!$B$4:$H$855,2,0)),"",(VLOOKUP(B138,'KAYIT LİSTESİ'!$B$4:$H$855,2,0))) ->  | D138: =IF(ISERROR(VLOOKUP(B138,'KAYIT LİSTESİ'!$B$4:$H$855,4,0)),"",(VLOOKUP(B138,'KAYIT LİSTESİ'!$B$4:$H$855,4,0))) ->  | E138: =IF(ISERROR(VLOOKUP(B138,'KAYIT LİSTESİ'!$B$4:$H$855,5,0)),"",(VLOOKUP(B138,'KAYIT LİSTESİ'!$B$4:$H$855,5,0))) ->  | F138: =IF(ISERROR(VLOOKUP(B138,'KAYIT LİSTESİ'!$B$4:$H$855,6,0)),"",(VLOOKUP(B138,'KAYIT LİSTESİ'!$B$4:$H$855,6,0))) ->  | J138: 20 | K138: UZUN-20 | L138: =IF(ISERROR(VLOOKUP(K138,'KAYIT LİSTESİ'!$B$4:$H$855,2,0)),"",(VLOOKUP(K138,'KAYIT LİSTESİ'!$B$4:$H$855,2,0))) ->  | M138: =IF(ISERROR(VLOOKUP(K138,'KAYIT LİSTESİ'!$B$4:$H$855,4,0)),"",(VLOOKUP(K138,'KAYIT LİSTESİ'!$B$4:$H$855,4,0))) ->  | N138: =IF(ISERROR(VLOOKUP(K138,'KAYIT LİSTESİ'!$B$4:$H$855,5,0)),"",(VLOOKUP(K138,'KAYIT LİSTESİ'!$B$4:$H$855,5,0))) ->  | O138: =IF(ISERROR(VLOOKUP(K138,'KAYIT LİSTESİ'!$B$4:$H$855,6,0)),"",(VLOOKUP(K138,'KAYIT LİSTESİ'!$B$4:$H$855,6,0))) -> 
A139: 9 | B139: 1500M-4-9 | C139: =IF(ISERROR(VLOOKUP(B139,'KAYIT LİSTESİ'!$B$4:$H$855,2,0)),"",(VLOOKUP(B139,'KAYIT LİSTESİ'!$B$4:$H$855,2,0))) -> 29 | D139: =IF(ISERROR(VLOOKUP(B139,'KAYIT LİSTESİ'!$B$4:$H$855,4,0)),"",(VLOOKUP(B139,'KAYIT LİSTESİ'!$B$4:$H$855,4,0))) -> 2001-04-03 | E139: =IF(ISERROR(VLOOKUP(B139,'KAYIT LİSTESİ'!$B$4:$H$855,5,0)),"",(VLOOKUP(B139,'KAYIT LİSTESİ'!$B$4:$H$855,5,0))) -> MUSTAFA TANDOĞAN | F139: =IF(ISERROR(VLOOKUP(B139,'KAYIT LİSTESİ'!$B$4:$H$855,6,0)),"",(VLOOKUP(B139,'KAYIT LİSTESİ'!$B$4:$H$855,6,0))) -> ADIYAMAN | J139: 21 | K139: UZUN-21 | L139: =IF(ISERROR(VLOOKUP(K139,'KAYIT LİSTESİ'!$B$4:$H$855,2,0)),"",(VLOOKUP(K139,'KAYIT LİSTESİ'!$B$4:$H$855,2,0))) ->  | M139: =IF(ISERROR(VLOOKUP(K139,'KAYIT LİSTESİ'!$B$4:$H$855,4,0)),"",(VLOOKUP(K139,'KAYIT LİSTESİ'!$B$4:$H$855,4,0))) ->  | N139: =IF(ISERROR(VLOOKUP(K139,'KAYIT LİSTESİ'!$B$4:$H$855,5,0)),"",(VLOOKUP(K139,'KAYIT LİSTESİ'!$B$4:$H$855,5,0))) ->  | O139: =IF(ISERROR(VLOOKUP(K139,'KAYIT LİSTESİ'!$B$4:$H$855,6,0)),"",(VLOOKUP(K139,'KAYIT LİSTESİ'!$B$4:$H$855,6,0))) -> 
A140: 10 | B140: 1500M-4-10 | C140: =IF(ISERROR(VLOOKUP(B140,'KAYIT LİSTESİ'!$B$4:$H$855,2,0)),"",(VLOOKUP(B140,'KAYIT LİSTESİ'!$B$4:$H$855,2,0))) -> 614 | D140: =IF(ISERROR(VLOOKUP(B140,'KAYIT LİSTESİ'!$B$4:$H$855,4,0)),"",(VLOOKUP(B140,'KAYIT LİSTESİ'!$B$4:$H$855,4,0))) -> 2001-01-01 | E140: =IF(ISERROR(VLOOKUP(B140,'KAYIT LİSTESİ'!$B$4:$H$855,5,0)),"",(VLOOKUP(B140,'KAYIT LİSTESİ'!$B$4:$H$855,5,0))) -> MUSTAFA BEGEÇ | F140: =IF(ISERROR(VLOOKUP(B140,'KAYIT LİSTESİ'!$B$4:$H$855,6,0)),"",(VLOOKUP(B140,'KAYIT LİSTESİ'!$B$4:$H$855,6,0))) -> OSMANİYE | J140: 22 | K140: UZUN-22 | L140: =IF(ISERROR(VLOOKUP(K140,'KAYIT LİSTESİ'!$B$4:$H$855,2,0)),"",(VLOOKUP(K140,'KAYIT LİSTESİ'!$B$4:$H$855,2,0))) ->  | M140: =IF(ISERROR(VLOOKUP(K140,'KAYIT LİSTESİ'!$B$4:$H$855,4,0)),"",(VLOOKUP(K140,'KAYIT LİSTESİ'!$B$4:$H$855,4,0))) ->  | N140: =IF(ISERROR(VLOOKUP(K140,'KAYIT LİSTESİ'!$B$4:$H$855,5,0)),"",(VLOOKUP(K140,'KAYIT LİSTESİ'!$B$4:$H$855,5,0))) ->  | O140: =IF(ISERROR(VLOOKUP(K140,'KAYIT LİSTESİ'!$B$4:$H$855,6,0)),"",(VLOOKUP(K140,'KAYIT LİSTESİ'!$B$4:$H$855,6,0))) -> 
A141: 11 | B141: 1500M-4-11 | C141: =IF(ISERROR(VLOOKUP(B141,'KAYIT LİSTESİ'!$B$4:$H$855,2,0)),"",(VLOOKUP(B141,'KAYIT LİSTESİ'!$B$4:$H$855,2,0))) -> 171 | D141: =IF(ISERROR(VLOOKUP(B141,'KAYIT LİSTESİ'!$B$4:$H$855,4,0)),"",(VLOOKUP(B141,'KAYIT LİSTESİ'!$B$4:$H$855,4,0))) -> 2002-01-01 | E141: =IF(ISERROR(VLOOKUP(B141,'KAYIT LİSTESİ'!$B$4:$H$855,5,0)),"",(VLOOKUP(B141,'KAYIT LİSTESİ'!$B$4:$H$855,5,0))) -> ÖMER UÇAR | F141: =IF(ISERROR(VLOOKUP(B141,'KAYIT LİSTESİ'!$B$4:$H$855,6,0)),"",(VLOOKUP(B141,'KAYIT LİSTESİ'!$B$4:$H$855,6,0))) -> BİNGÖL | J141: 23 | K141: UZUN-23 | L141: =IF(ISERROR(VLOOKUP(K141,'KAYIT LİSTESİ'!$B$4:$H$855,2,0)),"",(VLOOKUP(K141,'KAYIT LİSTESİ'!$B$4:$H$855,2,0))) ->  | M141: =IF(ISERROR(VLOOKUP(K141,'KAYIT LİSTESİ'!$B$4:$H$855,4,0)),"",(VLOOKUP(K141,'KAYIT LİSTESİ'!$B$4:$H$855,4,0))) ->  | N141: =IF(ISERROR(VLOOKUP(K141,'KAYIT LİSTESİ'!$B$4:$H$855,5,0)),"",(VLOOKUP(K141,'KAYIT LİSTESİ'!$B$4:$H$855,5,0))) ->  | O141: =IF(ISERROR(VLOOKUP(K141,'KAYIT LİSTESİ'!$B$4:$H$855,6,0)),"",(VLOOKUP(K141,'KAYIT LİSTESİ'!$B$4:$H$855,6,0))) -> 
A142: 12 | B142: 1500M-4-12 | C142: =IF(ISERROR(VLOOKUP(B142,'KAYIT LİSTESİ'!$B$4:$H$855,2,0)),"",(VLOOKUP(B142,'KAYIT LİSTESİ'!$B$4:$H$855,2,0))) ->  | D142: =IF(ISERROR(VLOOKUP(B142,'KAYIT LİSTESİ'!$B$4:$H$855,4,0)),"",(VLOOKUP(B142,'KAYIT LİSTESİ'!$B$4:$H$855,4,0))) ->  | E142: =IF(ISERROR(VLOOKUP(B142,'KAYIT LİSTESİ'!$B$4:$H$855,5,0)),"",(VLOOKUP(B142,'KAYIT LİSTESİ'!$B$4:$H$855,5,0))) ->  | F142: =IF(ISERROR(VLOOKUP(B142,'KAYIT LİSTESİ'!$B$4:$H$855,6,0)),"",(VLOOKUP(B142,'KAYIT LİSTESİ'!$B$4:$H$855,6,0))) ->  | J142: 24 | K142: UZUN-24 | L142: =IF(ISERROR(VLOOKUP(K142,'KAYIT LİSTESİ'!$B$4:$H$855,2,0)),"",(VLOOKUP(K142,'KAYIT LİSTESİ'!$B$4:$H$855,2,0))) ->  | M142: =IF(ISERROR(VLOOKUP(K142,'KAYIT LİSTESİ'!$B$4:$H$855,4,0)),"",(VLOOKUP(K142,'KAYIT LİSTESİ'!$B$4:$H$855,4,0))) ->  | N142: =IF(ISERROR(VLOOKUP(K142,'KAYIT LİSTESİ'!$B$4:$H$855,5,0)),"",(VLOOKUP(K142,'KAYIT LİSTESİ'!$B$4:$H$855,5,0))) ->  | O142: =IF(ISERROR(VLOOKUP(K142,'KAYIT LİSTESİ'!$B$4:$H$855,6,0)),"",(VLOOKUP(K142,'KAYIT LİSTESİ'!$B$4:$H$855,6,0))) -> 
J143: 25 | K143: UZUN-25 | L143: =IF(ISERROR(VLOOKUP(K143,'KAYIT LİSTESİ'!$B$4:$H$855,2,0)),"",(VLOOKUP(K143,'KAYIT LİSTESİ'!$B$4:$H$855,2,0))) ->  | M143: =IF(ISERROR(VLOOKUP(K143,'KAYIT LİSTESİ'!$B$4:$H$855,4,0)),"",(VLOOKUP(K143,'KAYIT LİSTESİ'!$B$4:$H$855,4,0))) ->  | N143: =IF(ISERROR(VLOOKUP(K143,'KAYIT LİSTESİ'!$B$4:$H$855,5,0)),"",(VLOOKUP(K143,'KAYIT LİSTESİ'!$B$4:$H$855,5,0))) ->  | O143: =IF(ISERROR(VLOOKUP(K143,'KAYIT LİSTESİ'!$B$4:$H$855,6,0)),"",(VLOOKUP(K143,'KAYIT LİSTESİ'!$B$4:$H$855,6,0))) -> 

Sheet puan (hidden)
A1: NAİLİ MORAN TÜRKİYE ŞAMPİYONASI PUAN TABLOSU
A2: PUAN | B2: FOTO FİNİSH | D2: FOTO FİNİSH | F2: FOTO FİNİSH | H2: FOTO FİNİSH | J2: FOTO FİNİSH | L2: FOTO FİNİSH | N2: FOTO FİNİSH | P2: FOTO FİNİSH | R2: FOTO FİNİSH | T2: FOTO FİNİSH | V2: FOTO FİNİSH | Y2: PUAN | Z2: ATLAMALAR | AD2: ATMALAR | AH2: PUAN
B3: 100m | D3: 200m | F3: 75 m | H3: 400m | J3: 70 m H 75 m H 80 m H | L3: 300m H | N3: 800m | P3: 1500m | R3: 2000m Yıldız | T3: 3000m | V3: 100 m H | Z3: Yüksek | AA3: Uzun | AB3: Üçadım | AC3: Sırık | AD3: Gülle | AE3: Disk | AF3: Cirit | AG3: Çekiç
B4: DERECE | D4: DERECE | F4: DERECE | H4: DERECE | J4: DERECE | L4: DERECE | N4: DERECE | P4: DERECE | R4: DERECE | T4: DERECE | V4: DERECE | Z4: DERECE | AA4: DERECE | AB4: DERECE | AC4: DERECE | AD4: DERECE | AE4: DERECE | AF4: DERECE | AG4: DERECE
J5: DNS | Y5: 0 | Z5: 10 | AA5: 100 | AB5: 100 | AC5: 100 | AD5: 100 | AE5: 100 | AF5: 100 | AG5: 100 | AH5: 0
A6: 100 | B6: 1130 | C6: 100 | D6: 2300 | E6: 100 | F6: 950 | G6: 100 | H6: 5200 | I6: 100 | J6: 1140 | K6: 100 | L6: 4250 | M6: 100 | N6: 20000 | O6: 100 | P6: 40300 | Q6: 100 | R6: 54524 | S6: 100 | T6: 85000 | U6: 100 | V6: 1440 | W6: 100 | Y6: 100 | Z6: 65 | AA6: 190 | AB6: 420 | AC6: - | AD6: - | AE6: - | AF6: - | AG6: - | AH6: 1
A7: 99 | B7: 1140 | C7: 99 | D7: 2320 | E7: 99 | F7: - | G7: 99 | H7: 5240 | I7: 99 | J7: 1150 | K7: 99 | L7: 4300 | M7: 99 | N7: 20200 | O7: 99 | P7: 40600 | Q7: 99 | R7: 54624 | S7: 99 | T7: 90000 | U7: 99 | V7: 1450 | W7: 99 | Y7: 99 | Z7: 66 | AA7: 193 | AB7: 425 | AC7: - | AD7: - | AE7: - | AF7: - | AG7: - | AH7: 2
A8: 98 | B8: 1150 | C8: 98 | D8: 2340 | E8: 98 | F8: 960 | G8: 98 | H8: 5270 | I8: 98 | J8: 1160 | K8: 98 | L8: 4350 | M8: 98 | N8: 20400 | O8: 98 | P8: 40900 | Q8: 98 | R8: 54724 | S8: 98 | T8: 91000 | U8: 98 | V8: 1460 | W8: 98 | Y8: 98 | Z8: 67 | AA8: 197 | AB8: 430 | AC8: - | AD8: - | AE8: - | AF8: - | AG8: - | AH8: 3
A9: 97 | B9: 1160 | C9: 97 | D9: 2360 | E9: 97 | F9: - | G9: 97 | H9: 5300 | I9: 97 | J9: 1170 | K9: 97 | L9: 4400 | M9: 97 | N9: 20600 | O9: 97 | P9: 41200 | Q9: 97 | R9: 54824 | S9: 97 | T9: 92000 | U9: 97 | V9: 1470 | W9: 97 | Y9: 97 | Z9: 68 | AA9: 200 | AB9: 435 | AC9: - | AD9: - | AE9: - | AF9: - | AG9: - | AH9: 4
A10: 96 | B10: 1170 | C10: 96 | D10: 2380 | E10: 96 | F10: 970 | G10: 96 | H10: 5340 | I10: 96 | J10: 1180 | K10: 96 | L10: 4450 | M10: 96 | N10: 20800 | O10: 96 | P10: 41500 | Q10: 96 | R10: 54924 | S10: 96 | T10: 93000 | U10: 96 | V10: 1480 | W10: 96 | Y10: 96 | Z10: 69 | AA10: 203 | AB10: 440 | AC10: - | AD10: - | AE10: - | AF10: - | AG10: - | AH10: 5
A11: 95 | B11: 1180 | C11: 95 | D11: 2400 | E11: 95 | F11: - | G11: 95 | H11: 5370 | I11: 95 | J11: 1190 | K11: 95 | L11: 4500 | M11: 95 | N11: 21000 | O11: 95 | P11: 41800 | Q11: 95 | R11: 55024 | S11: 95 | T11: 93500 | U11: 95 | V11: 1490 | W11: 95 | Y11: 95 | Z11: 70 | AA11: 205 | AB11: 445 | AC11: - | AD11: - | AE11: - | AF11: - | AG11: - | AH11: 6
A12: 94 | B12: 1190 | C12: 94 | D12: 2420 | E12: 94 | F12: 980 | G12: 94 | H12: 5400 | I12: 94 | J12: 1200 | K12: 94 | L12: 4550 | M12: 94 | N12: 21100 | O12: 94 | P12: 42100 | Q12: 94 | R12: 55124 | S12: 94 | T12: 94000 | U12: 94 | V12: 1500 | W12: 94 | Y12: 94 | Z12: 71 | AA12: 207 | AB12: 450 | AC12: - | AD12: - | AE12: - | AF12: - | AG12: - | AH12: 7
A13: 93 | B13: 1200 | C13: 93 | D13: 2440 | E13: 93 | F13: - | G13: 93 | H13: 5440 | I13: 93 | J13: 1210 | K13: 93 | L13: 4600 | M13: 93 | N13: 21200 | O13: 93 | P13: 42400 | Q13: 93 | R13: 55224 | S13: 93 | T13: 94500 | U13: 93 | V13: 1510 | W13: 93 | Y13: 93 | Z13: 72 | AA13: 210 | AB13: 455 | AC13: - | AD13: - | AE13: - | AF13: - | AG13: - | AH13: 8
A14: 92 | B14: 1210 | C14: 92 | D14: 2460 | E14: 92 | F14: 990 | G14: 92 | H14: 5470 | I14: 92 | J14: 1220 | K14: 92 | L14: 4650 | M14: 92 | N14: 21300 | O14: 92 | P14: 42700 | Q14: 92 | R14: 55324 | S14: 92 | T14: 95000 | U14: 92 | V14: 1520 | W14: 92 | Y14: 92 | Z14: 73 | AA14: 213 | AB14: 460 | AC14: - | AD14: - | AE14: - | AF14: - | AG14: - | AH14: 9
A15: 91 | B15: 1220 | C15: 91 | D15: 2480 | E15: 91 | F15: - | G15: 91 | H15: 5500 | I15: 91 | J15: 1230 | K15: 91 | L15: 4700 | M15: 91 | N15: 21400 | O15: 91 | P15: 43000 | Q15: 91 | R15: 55424 | S15: 91 | T15: 95500 | U15: 91 | V15: 1530 | W15: 91 | Y15: 91 | Z15: 74 | AA15: 216 | AB15: 465 | AC15: - | AD15: - | AE15: - | AF15: - | AG15: - | AH15: 10
A16: 90 | B16: 1230 | C16: 90 | D16: 2500 | E16: 90 | F16: 1000 | G16: 90 | H16: 5550 | I16: 90 | J16: 1240 | K16: 90 | L16: 4750 | M16: 90 | N16: 21500 | O16: 90 | P16: 43300 | Q16: 90 | R16: 55524 | S16: 90 | T16: 100000 | U16: 90 | V16: 1540 | W16: 90 | Y16: 90 | Z16: 75 | AA16: 219 | AB16: 470 | AC16: - | AD16: 400 | AE16: 400 | AF16: 400 | AG16: 400 | AH16: 11
A17: 89 | B17: 1240 | C17: 89 | D17: 2520 | E17: 89 | F17: - | G17: 89 | H17: 5600 | I17: 89 | J17: 1250 | K17: 89 | L17: 4800 | M17: 89 | N17: 21600 | O17: 89 | P17: 43600 | Q17: 89 | R17: 55624 | S17: 89 | T17: 100500 | U17: 89 | V17: 1550 | W17: 89 | Y17: 89 | Z17: 76 | AA17: 222 | AB17: 475 | AC17: - | AD17: 410 | AE17: 450 | AF17: 450 | AG17: 450 | AH17: 12
A18: 88 | B18: 1250 | C18: 88 | D18: 2540 | E18: 88 | F18: 1010 | G18: 88 | H18: 5650 | I18: 88 | J18: 1260 | K18: 88 | L18: 4850 | M18: 88 | N18: 21700 | O18: 88 | P18: 43900 | Q18: 88 | R18: 55724 | S18: 88 | T18: 101000 | U18: 88 | V18: 1560 | W18: 88 | Y18: 88 | Z18: 77 | AA18: 225 | AB18: 480 | AC18: - | AD18: 420 | AE18: 500 | AF18: 500 | AG18: 500 | AH18: 13
A19: 87 | B19: 1260 | C19: 87 | D19: 2560 | E19: 87 | F19: - | G19: 87 | H19: 5700 | I19: 87 | J19: 1270 | K19: 87 | L19: 4900 | M19: 87 | N19: 21800 | O19: 87 | P19: 44200 | Q19: 87 | R19: 55824 | S19: 87 | T19: 101500 | U19: 87 | V19: 1570 | W19: 87 | Y19: 87 | Z19: 78 | AA19: 228 | AB19: 485 | AC19: - | AD19: 430 | AE19: 550 | AF19: 550 | AG19: 550 | AH19: 14
A20: 86 | B20: 1270 | C20: 86 | D20: 2580 | E20: 86 | F20: 1020 | G20: 86 | H20: 5750 | I20: 86 | J20: 1280 | K20: 86 | L20: 4950 | M20: 86 | N20: 21900 | O20: 86 | P20: 44500 | Q20: 86 | R20: 55924 | S20: 86 | T20: 102000 | U20: 86 | V20: 1580 | W20: 86 | Y20: 86 | Z20: 79 | AA20: 231 | AB20: 490 | AC20: - | AD20: 440 | AE20: 600 | AF20: 600 | AG20: 600 | AH20: 15
A21: 85 | B21: 1280 | C21: 85 | D21: 2600 | E21: 85 | F21: - | G21: 85 | H21: 5800 | I21: 85 | J21: 1290 | K21: 85 | L21: 5000 | M21: 85 | N21: 22000 | O21: 85 | P21: 44800 | Q21: 85 | R21: 60024 | S21: 85 | T21: 102500 | U21: 85 | V21: 1590 | W21: 85 | Y21: 85 | Z21: 80 | AA21: 234 | AB21: 495 | AC21: 105 | AD21: 450 | AE21: 650 | AF21: 650 | AG21: 650 | AH21: 16
A22: 84 | B22: 1290 | C22: 84 | D22: 2620 | E22: 84 | F22: 1030 | G22: 84 | H22: 5850 | I22: 84 | J22: 1300 | K22: 84 | L22: 5050 | M22: 84 | N22: 22100 | O22: 84 | P22: 45100 | Q22: 84 | R22: 60124 | S22: 84 | T22: 103000 | U22: 84 | V22: 1600 | W22: 84 | Y22: 84 | Z22: 81 | AA22: 237 | AB22: 500 | AC22: - | AD22: 460 | AE22: 700 | AF22: 700 | AG22: 700 | AH22: 17
A23: 83 | B23: 1300 | C23: 83 | D23: 2640 | E23: 83 | F23: - | G23: 83 | H23: 5900 | I23: 83 | J23: 1310 | K23: 83 | L23: 5100 | M23: 83 | N23: 22200 | O23: 83 | P23: 45400 | Q23: 83 | R23: 60224 | S23: 83 | T23: 103500 | U23: 83 | V23: 1610 | W23: 83 | Y23: 83 | Z23: 82 | AA23: 240 | AB23: 505 | AC23: 110 | AD23: 470 | AE23: 750 | AF23: 750 | AG23: 750 | AH23: 18
A24: 82 | B24: 1310 | C24: 82 | D24: 2660 | E24: 82 | F24: 1040 | G24: 82 | H24: 5950 | I24: 82 | J24: 1320 | K24: 82 | L24: 5150 | M24: 82 | N24: 22300 | O24: 82 | P24: 45700 | Q24: 82 | R24: 60324 | S24: 82 | T24: 104000 | U24: 82 | V24: 1620 | W24: 82 | Y24: 82 | Z24: 83 | AA24: 243 | AB24: 510 | AC24: - | AD24: 480 | AE24: 800 | AF24: 800 | AG24: 800 | AH24: 19
A25: 81 | B25: 1320 | C25: 81 | D25: 2680 | E25: 81 | F25: - | G25: 81 | H25: 10000 | I25: 81 | J25: 1330 | K25: 81 | L25: 5200 | M25: 81 | N25: 22400 | O25: 81 | P25: 50000 | Q25: 81 | R25: 60424 | S25: 81 | T25: 104500 | U25: 81 | V25: 1630 | W25: 81 | Y25: 81 | Z25: 84 | AA25: 246 | AB25: 515 | AC25: 115 | AD25: 490 | AE25: 850 | AF25: 850 | AG25: 850 | AH25: 20
A26: 80 | B26: 1330 | C26: 80 | D26: 2700 | E26: 80 | F26: 1050 | G26: 80 | H26: 10050 | I26: 80 | J26: 1340 | K26: 80 | L26: 5250 | M26: 80 | N26: 22500 | O26: 80 | P26: 50300 | Q26: 80 | R26: 60524 | S26: 80 | T26: 105000 | U26: 80 | V26: 1640 | W26: 80 | Y26: 80 | Z26: 85 | AA26: 249 | AB26: 520 | AC26: - | AD26: 500 | AE26: 900 | AF26: 900 | AG26: 900 | AH26: 21
A27: 79 | B27: 1340 | C27: 79 | D27: 2720 | E27: 79 | F27: - | G27: 79 | H27: 10100 | I27: 79 | J27: 1350 | K27: 79 | L27: 5300 | M27: 79 | N27: 22600 | O27: 79 | P27: 50600 | Q27: 79 | R27: 60624 | S27: 79 | T27: 105500 | U27: 79 | V27: 1650 | W27: 79 | Y27: 79 | Z27: 86 | AA27: 252 | AB27: 525 | AC27: 120 | AD27: 510 | AE27: 925 | AF27: 925 | AG27: 925 | AH27: 22
A28: 78 | B28: 1350 | C28: 78 | D28: 2740 | E28: 78 | F28: 1060 | G28: 78 | H28: 10150 | I28: 78 | J28: 1360 | K28: 78 | L28: 5350 | M28: 78 | N28: 22700 | O28: 78 | P28: 50900 | Q28: 78 | R28: 60724 | S28: 78 | T28: 110000 | U28: 78 | V28: 1660 | W28: 78 | Y28: 78 | Z28: 87 | AA28: 255 | AB28: 530 | AC28: - | AD28: 520 | AE28: 950 | AF28: 950 | AG28: 950 | AH28: 23
A29: 77 | B29: 1360 | C29: 77 | D29: 2760 | E29: 77 | F29: - | G29: 77 | H29: 10200 | I29: 77 | J29: 1370 | K29: 77 | L29: 5400 | M29: 77 | N29: 22800 | O29: 77 | P29: 51200 | Q29: 77 | R29: 60824 | S29: 77 | T29: 110500 | U29: 77 | V29: 1670 | W29: 77 | Y29: 77 | Z29: 88 | AA29: 258 | AB29: 535 | AC29: 125 | AD29: 530 | AE29: 975 | AF29: 975 | AG29: 975 | AH29: 24
A30: 76 | B30: 1370 | C30: 76 | D30: 2780 | E30: 76 | F30: 1070 | G30: 76 | H30: 10250 | I30: 76 | J30: 1380 | K30: 76 | L30: 5450 | M30: 76 | N30: 22900 | O30: 76 | P30: 51500 | Q30: 76 | R30: 60924 | S30: 76 | T30: 111000 | U30: 76 | V30: 1680 | W30: 76 | Y30: 76 | Z30: 89 | AA30: 261 | AB30: 540 | AC30: - | AD30: 540 | AE30: 1000 | AF30: 1000 | AG30: 1000 | AH30: 25
A31: 75 | B31: 1380 | C31: 75 | D31: 2800 | E31: 75 | F31: - | G31: 75 | H31: 10300 | I31: 75 | J31: 1390 | K31: 75 | L31: 5500 | M31: 75 | N31: 23000 | O31: 75 | P31: 51800 | Q31: 75 | R31: 61024 | S31: 75 | T31: 111500 | U31: 75 | V31: 1690 | W31: 75 | Y31: 75 | Z31: 90 | AA31: 264 | AB31: 545 | AC31: 130 | AD31: 550 | AE31: 1025 | AF31: 1025 | AG31: 1025 | AH31: 26
A32: 74 | B32: 1390 | C32: 74 | D32: 2820 | E32: 74 | F32: 1080 | G32: 74 | H32: 10350 | I32: 74 | J32: 1400 | K32: 74 | L32: 5550 | M32: 74 | N32: 23200 | O32: 74 | P32: 52100 | Q32: 74 | R32: 61124 | S32: 74 | T32: 112000 | U32: 74 | V32: 1700 | W32: 74 | Y32: 74 | Z32: 91 | AA32: 267 | AB32: 550 | AC32: - | AD32: 560 | AE32: 1050 | AF32: 1050 | AG32: 1050 | AH32: 27
A33: 73 | B33: 1400 | C33: 73 | D33: 2840 | E33: 73 | F33: - | G33: 73 | H33: 10400 | I33: 73 | J33: 1410 | K33: 73 | L33: 5600 | M33: 73 | N33: 23400 | O33: 73 | P33: 52400 | Q33: 73 | R33: 61224 | S33: 73 | T33: 112500 | U33: 73 | V33: 1710 | W33: 73 | Y33: 73 | Z33: 92 | AA33: 270 | AB33: 555 | AC33: 135 | AD33: 570 | AE33: 1075 | AF33: 1075 | AG33: 1075 | AH33: 28
A34: 72 | B34: - | C34: 72 | D34: 2860 | E34: 72 | F34: 1090 | G34: 72 | H34: 10450 | I34: 72 | J34: 1420 | K34: 72 | L34: 5650 | M34: 72 | N34: 23600 | O34: 72 | P34: 52700 | Q34: 72 | R34: 61324 | S34: 72 | T34: 113000 | U34: 72 | V34: 1720 | W34: 72 | Y34: 72 | Z34: 93 | AA34: 273 | AB34: 560 | AC34: - | AD34: 580 | AE34: 1100 | AF34: 1100 | AG34: 1100 | AH34: 29
A35: 71 | B35: 1410 | C35: 71 | D35: 2880 | E35: 71 | F35: - | G35: 71 | H35: 10500 | I35: 71 | J35: 1430 | K35: 71 | L35: 5700 | M35: 71 | N35: 23800 | O35: 71 | P35: 53000 | Q35: 71 | R35: 61424 | S35: 71 | T35: 113500 | U35: 71 | V35: 1730 | W35: 71 | Y35: 71 | Z35: 94 | AA35: 276 | AB35: 565 | AC35: 140 | AD35: 590 | AE35: 1125 | AF35: 1125 | AG35: 1125 | AH35: 30
A36: 70 | B36: - | C36: 70 | D36: 2900 | E36: 70 | F36: 1100 | G36: 70 | H36: 10550 | I36: 70 | J36: 1440 | K36: 70 | L36: 5750 | M36: 70 | N36: 24000 | O36: 70 | P36: 53300 | Q36: 70 | R36: 61524 | S36: 70 | T36: 114000 | U36: 70 | V36: 1740 | W36: 70 | Y36: 70 | Z36: 95 | AA36: 279 | AB36: 570 | AC36: - | AD36: 600 | AE36: 1150 | AF36: 1150 | AG36: 1150 | AH36: 31
A37: 69 | B37: 1420 | C37: 69 | D37: 2920 | E37: 69 | F37: - | G37: 69 | H37: 10600 | I37: 69 | J37: 1450 | K37: 69 | L37: 5800 | M37: 69 | N37: 24200 | O37: 69 | P37: 53600 | Q37: 69 | R37: 61624 | S37: 69 | T37: 114500 | U37: 69 | V37: 1750 | W37: 69 | Y37: 69 | Z37: 96 | AA37: 282 | AB37: 575 | AC37: 145 | AD37: 610 | AE37: 1175 | AF37: 1175 | AG37: 1175 | AH37: 32
A38: 68 | B38: - | C38: 68 | D38: 2940 | E38: 68 | F38: 1110 | G38: 68 | H38: 10650 | I38: 68 | J38: 1460 | K38: 68 | L38: 5850 | M38: 68 | N38: 24400 | O38: 68 | P38: 53900 | Q38: 68 | R38: 61724 | S38: 68 | T38: 115000 | U38: 68 | V38: 1760 | W38: 68 | Y38: 68 | Z38: 97 | AA38: 285 | AB38: 580 | AC38: - | AD38: 620 | AE38: 1200 | AF38: 1200 | AG38: 1200 | AH38: 33
A39: 67 | B39: 1430 | C39: 67 | D39: 2960 | E39: 67 | F39: 1120 | G39: 67 | H39: 10700 | I39: 67 | J39: 1470 | K39: 67 | L39: 5900 | M39: 67 | N39: 24600 | O39: 67 | P39: 54200 | Q39: 67 | R39: 61824 | S39: 67 | T39: 115500 | U39: 67 | V39: 1770 | W39: 67 | Y39: 67 | Z39: 98 | AA39: 288 | AB39: 585 | AC39: 150 | AD39: 630 | AE39: 1225 | AF39: 1225 | AG39: 1225 | AH39: 34
A40: 66 | B40: - | C40: 66 | D40: 2980 | E40: 66 | F40: 1130 | G40: 66 | H40: 10750 | I40: 66 | J40: 1480 | K40: 66 | L40: 5950 | M40: 66 | N40: 24800 | O40: 66 | P40: 54500 | Q40: 66 | R40: 61924 | S40: 66 | T40: 120000 | U40: 66 | V40: 1780 | W40: 66 | Y40: 66 | Z40: 99 | AA40: 291 | AB40: 590 | AC40: - | AD40: 640 | AE40: 1250 | AF40: 1250 | AG40: 1250 | AH40: 35
A41: 65 | B41: 1440 | C41: 65 | D41: 3000 | E41: 65 | F41: 1140 | G41: 65 | H41: 10800 | I41: 65 | J41: 1490 | K41: 65 | L41: 10000 | M41: 65 | N41: 25000 | O41: 65 | P41: 54800 | Q41: 65 | R41: 62024 | S41: 65 | T41: 120500 | U41: 65 | V41: 1790 | W41: 65 | Y41: 65 | Z41: 100 | AA41: 294 | AB41: 595 | AC41: 155 | AD41: 650 | AE41: 1275 | AF41: 1275 | AG41: 1275 | AH41: 36
A42: 64 | B42: - | C42: 64 | D42: 3020 | E42: 64 | F42: 1150 | G42: 64 | H42: 10850 | I42: 64 | J42: 1500 | K42: 64 | L42: 10050 | M42: 64 | N42: 25200 | O42: 64 | P42: 55100 | Q42: 64 | R42: 62124 | S42: 64 | T42: 121000 | U42: 64 | V42: 1800 | W42: 64 | Y42: 64 | Z42: 101 | AA42: 297 | AB42: 600 | AC42: - | AD42: 660 | AE42: 1300 | AF42: 1300 | AG42: 1300 | AH42: 37
A43: 63 | B43: 1450 | C43: 63 | D43: 3040 | E43: 63 | F43: 1160 | G43: 63 | H43: 10900 | I43: 63 | J43: 1510 | K43: 63 | L43: 10100 | M43: 63 | N43: 25400 | O43: 63 | P43: 55400 | Q43: 63 | R43: 62224 | S43: 63 | T43: 121500 | U43: 63 | V43: 1810 | W43: 63 | Y43: 63 | Z43: 102 | AA43: 300 | AB43: 610 | AC43: 160 | AD43: 670 | AE43: 1325 | AF43: 1325 | AG43: 1325 | AH43: 38
A44: 62 | B44: - | C44: 62 | D44: 3060 | E44: 62 | F44: 1170 | G44: 62 | H44: 10950 | I44: 62 | J44: 1520 | K44: 62 | L44: 10150 | M44: 62 | N44: 25600 | O44: 62 | P44: 55700 | Q44: 62 | R44: 62324 | S44: 62 | T44: 122000 | U44: 62 | V44: 1820 | W44: 62 | Y44: 62 | Z44: 103 | AA44: 303 | AB44: 620 | AC44: - | AD44: 680 | AE44: 1350 | AF44: 1350 | AG44: 1350 | AH44: 39
A45: 61 | B45: 1460 | C45: 61 | D45: 3080 | E45: 61 | F45: 1180 | G45: 61 | H45: 11000 | I45: 61 | J45: 1530 | K45: 61 | L45: 10200 | M45: 61 | N45: 25800 | O45: 61 | P45: 60000 | Q45: 61 | R45: 62424 | S45: 61 | T45: 122500 | U45: 61 | V45: 1830 | W45: 61 | Y45: 61 | Z45: 104 | AA45: 306 | AB45: 630 | AC45: 165 | AD45: 690 | AE45: 1375 | AF45: 1375 | AG45: 1375 | AH45: 40
A46: 60 | B46: - | C46: 60 | D46: 3100 | E46: 60 | F46: 1190 | G46: 60 | H46: 11100 | I46: 60 | J46: 1540 | K46: 60 | L46: 10250 | M46: 60 | N46: 30000 | O46: 60 | P46: 60300 | Q46: 60 | R46: 62524 | S46: 60 | T46: 123000 | U46: 60 | V46: 1840 | W46: 60 | Y46: 60 | Z46: 105 | AA46: 309 | AB46: 640 | AC46: - | AD46: 700 | AE46: 1400 | AF46: 1400 | AG46: 1400 | AH46: 41
A47: 59 | B47: 1470 | C47: 59 | D47: 3120 | E47: 59 | F47: 1200 | G47: 59 | H47: 11200 | I47: 59 | J47: 1550 | K47: 59 | L47: 10300 | M47: 59 | N47: 30200 | O47: 59 | P47: 60600 | Q47: 59 | R47: 62624 | S47: 59 | T47: 123500 | U47: 59 | V47: 1850 | W47: 59 | Y47: 59 | Z47: 106 | AA47: 312 | AB47: 650 | AC47: 170 | AD47: 710 | AE47: 1425 | AF47: 1425 | AG47: 1425 | AH47: 42
A48: 58 | B48: - | C48: 58 | D48: 3140 | E48: 58 | F48: 1210 | G48: 58 | H48: 11300 | I48: 58 | J48: 1560 | K48: 58 | L48: 10350 | M48: 58 | N48: 30400 | O48: 58 | P48: 60900 | Q48: 58 | R48: 62724 | S48: 58 | T48: 124000 | U48: 58 | V48: 1860 | W48: 58 | Y48: 58 | Z48: 107 | AA48: 315 | AB48: 660 | AC48: - | AD48: 720 | AE48: 1450 | AF48: 1450 | AG48: 1450 | AH48: 43
A49: 57 | B49: 1480 | C49: 57 | D49: 3160 | E49: 57 | F49: 1220 | G49: 57 | H49: 11400 | I49: 57 | J49: 1570 | K49: 57 | L49: 10400 | M49: 57 | N49: 30600 | O49: 57 | P49: 61200 | Q49: 57 | R49: 62824 | S49: 57 | T49: 124500 | U49: 57 | V49: 1870 | W49: 57 | Y49: 57 | Z49: 108 | AA49: 318 | AB49: 670 | AC49: 175 | AD49: 730 | AE49: 1475 | AF49: 1475 | AG49: 1475 | AH49: 44
A50: 56 | B50: - | C50: 56 | D50: 3180 | E50: 56 | F50: 1230 | G50: 56 | H50: 11500 | I50: 56 | J50: 1580 | K50: 56 | L50: 10450 | M50: 56 | N50: 30800 | O50: 56 | P50: 61500 | Q50: 56 | R50: 62924 | S50: 56 | T50: 125000 | U50: 56 | V50: 1880 | W50: 56 | Y50: 56 | Z50: 109 | AA50: 321 | AB50: 680 | AC50: - | AD50: 740 | AE50: 1500 | AF50: 1500 | AG50: 1500 | AH50: 45
A51: 55 | B51: 1490 | C51: 55 | D51: 3200 | E51: 55 | F51: 1240 | G51: 55 | H51: 11600 | I51: 55 | J51: 1590 | K51: 55 | L51: 10500 | M51: 55 | N51: 31000 | O51: 55 | P51: 61800 | Q51: 55 | R51: 63024 | S51: 55 | T51: 125500 | U51: 55 | V51: 1890 | W51: 55 | Y51: 55 | Z51: 110 | AA51: 324 | AB51: 690 | AC51: 180 | AD51: 750 | AE51: 1525 | AF51: 1525 | AG51: 1525 | AH51: 46
A52: 54 | B52: - | C52: 54 | D52: 3220 | E52: 54 | F52: 1250 | G52: 54 | H52: 11700 | I52: 54 | J52: 1600 | K52: 54 | L52: 10550 | M52: 54 | N52: 31200 | O52: 54 | P52: 62100 | Q52: 54 | R52: 63124 | S52: 54 | T52: 130000 | U52: 54 | V52: 1900 | W52: 54 | Y52: 54 | Z52: 111 | AA52: 327 | AB52: 700 | AC52: - | AD52: 760 | AE52: 1550 | AF52: 1550 | AG52: 1550 | AH52: 47
A53: 53 | B53: 1500 | C53: 53 | D53: 3240 | E53: 53 | F53: 1260 | G53: 53 | H53: 11800 | I53: 53 | J53: 1610 | K53: 53 | L53: 10600 | M53: 53 | N53: 31400 | O53: 53 | P53: 62400 | Q53: 53 | R53: 63224 | S53: 53 | T53: 131000 | U53: 53 | V53: 1910 | W53: 53 | Y53: 53 | Z53: 112 | AA53: 330 | AB53: 710 | AC53: 185 | AD53: 770 | AE53: 1575 | AF53: 1575 | AG53: 1575 | AH53: 48
A54: 52 | B54: - | C54: 52 | D54: 3260 | E54: 52 | F54: 1270 | G54: 52 | H54: 11900 | I54: 52 | J54: 1620 | K54: 52 | L54: 10650 | M54: 52 | N54: 31600 | O54: 52 | P54: 62700 | Q54: 52 | R54: 63324 | S54: 52 | T54: 132000 | U54: 52 | V54: 1920 | W54: 52 | Y54: 52 | Z54: 113 | AA54: 333 | AB54: 720 | AC54: - | AD54: 780 | AE54: 1600 | AF54: 1600 | AG54: 1600 | AH54: 49
A55: 51 | B55: 1510 | C55: 51 | D55: 3280 | E55: 51 | F55: 1280 | G55: 51 | H55: 12000 | I55: 51 | J55: 1630 | K55: 51 | L55: 10700 | M55: 51 | N55: 31800 | O55: 51 | P55: 63000 | Q55: 51 | R55: 63424 | S55: 51 | T55: 133000 | U55: 51 | V55: 1930 | W55: 51 | Y55: 51 | Z55: 114 | AA55: 336 | AB55: 730 | AC55: 190 | AD55: 790 | AE55: 1625 | AF55: 1625 | AG55: 1625 | AH55: 50
A56: 50 | B56: - | C56: 50 | D56: 3300 | E56: 50 | F56: 1290 | G56: 50 | H56: 12100 | I56: 50 | J56: 1640 | K56: 50 | L56: 10750 | M56: 50 | N56: 32000 | O56: 50 | P56: 63300 | Q56: 50 | R56: 63524 | S56: 50 | T56: 134000 | U56: 50 | V56: 1940 | W56: 50 | Y56: 50 | Z56: 115 | AA56: 339 | AB56: 740 | AC56: - | AD56: 800 | AE56: 1650 | AF56: 1650 | AG56: 1650 | AH56: 51
A57: 49 | B57: 1520 | C57: 49 | D57: 3320 | E57: 49 | F57: 1300 | G57: 49 | H57: 12200 | I57: 49 | J57: 1650 | K57: 49 | L57: 10800 | M57: 49 | N57: 32200 | O57: 49 | P57: 63600 | Q57: 49 | R57: 63624 | S57: 49 | T57: 135000 | U57: 49 | V57: 1950 | W57: 49 | Y57: 49 | Z57: 116 | AA57: 342 | AB57: 750 | AC57: 195 | AD57: 810 | AE57: 1675 | AF57: 1675 | AG57: 1675 | AH57: 52
A58: 48 | B58: 1530 | C58: 48 | D58: 3340 | E58: 48 | F58: 1310 | G58: 48 | H58: 12300 | I58: 48 | J58: 1660 | K58: 48 | L58: 10850 | M58: 48 | N58: 32400 | O58: 48 | P58: 63900 | Q58: 48 | R58: 63724 | S58: 48 | T58: 140000 | U58: 48 | V58: 1960 | W58: 48 | Y58: 48 | Z58: 117 | AA58: 345 | AB58: 760 | AC58: - | AD58: 820 | AE58: 1700 | AF58: 1700 | AG58: 1700 | AH58: 53
A59: 47 | B59: 1540 | C59: 47 | D59: 3360 | E59: 47 | F59: 1320 | G59: 47 | H59: 12400 | I59: 47 | J59: 1670 | K59: 47 | L59: 10900 | M59: 47 | N59: 32600 | O59: 47 | P59: 64200 | Q59: 47 | R59: 63824 | S59: 47 | T59: 141000 | U59: 47 | V59: 1970 | W59: 47 | Y59: 47 | Z59: 118 | AA59: 348 | AB59: 770 | AC59: 200 | AD59: 830 | AE59: 1725 | AF59: 1725 | AG59: 1725 | AH59: 54
A60: 46 | B60: 1550 | C60: 46 | D60: 3380 | E60: 46 | F60: 1330 | G60: 46 | H60: 12500 | I60: 46 | J60: 1680 | K60: 46 | L60: 10950 | M60: 46 | N60: 32800 | O60: 46 | P60: 64500 | Q60: 46 | R60: 63924 | S60: 46 | T60: 142000 | U60: 46 | V60: 1980 | W60: 46 | Y60: 46 | Z60: 119 | AA60: 351 | AB60: 780 | AC60: - | AD60: 840 | AE60: 1750 | AF60: 1750 | AG60: 1750 | AH60: 55
A61: 45 | B61: 1560 | C61: 45 | D61: 3400 | E61: 45 | F61: 1340 | G61: 45 | H61: 12600 | I61: 45 | J61: 1690 | K61: 45 | L61: 11000 | M61: 45 | N61: 33000 | O61: 45 | P61: 64800 | Q61: 45 | R61: 64024 | S61: 45 | T61: 143000 | U61: 45 | V61: 1990 | W61: 45 | Y61: 45 | Z61: 120 | AA61: 354 | AB61: 790 | AC61: 205 | AD61: 850 | AE61: 1775 | AF61: 1775 | AG61: 1775 | AH61: 56
A62: 44 | B62: 1570 | C62: 44 | D62: 3420 | E62: 44 | F62: 1350 | G62: 44 | H62: 12700 | I62: 44 | J62: 1700 | K62: 44 | L62: 11100 | M62: 44 | N62: 33200 | O62: 44 | P62: 65100 | Q62: 44 | R62: 64124 | S62: 44 | T62: 144000 | U62: 44 | V62: 2000 | W62: 44 | Y62: 44 | Z62: 121 | AA62: 357 | AB62: 800 | AC62: - | AD62: 860 | AE62: 1800 | AF62: 1800 | AG62: 1800 | AH62: 57
A63: 43 | B63: 1580 | C63: 43 | D63: 3440 | E63: 43 | F63: 1360 | G63: 43 | H63: 12800 | I63: 43 | J63: 1710 | K63: 43 | L63: 11200 | M63: 43 | N63: 33400 | O63: 43 | P63: 65400 | Q63: 43 | R63: 64224 | S63: 43 | T63: 145000 | U63: 43 | V63: 2010 | W63: 43 | Y63: 43 | Z63: 122 | AA63: 360 | AB63: 810 | AC63: 210 | AD63: 870 | AE63: 1825 | AF63: 1825 | AG63: 1825 | AH63: 58
A64: 42 | B64: 1590 | C64: 42 | D64: 3460 | E64: 42 | F64: 1370 | G64: 42 | H64: 12900 | I64: 42 | J64: 1720 | K64: 42 | L64: 11300 | M64: 42 | N64: 33600 | O64: 42 | P64: 65700 | Q64: 42 | R64: 64324 | S64: 42 | T64: 150000 | U64: 42 | V64: 2020 | W64: 42 | Y64: 42 | Z64: 123 | AA64: 363 | AB64: 820 | AC64: - | AD64: 880 | AE64: 1850 | AF64: 1850 | AG64: 1850 | AH64: 59
A65: 41 | B65: 1600 | C65: 41 | D65: 3480 | E65: 41 | F65: 1380 | G65: 41 | H65: 13000 | I65: 41 | J65: 1730 | K65: 41 | L65: 11400 | M65: 41 | N65: 33800 | O65: 41 | P65: 70000 | Q65: 41 | R65: 64424 | S65: 41 | T65: 151000 | U65: 41 | V65: 2030 | W65: 41 | Y65: 41 | Z65: 124 | AA65: 366 | AB65: 830 | AC65: 215 | AD65: 890 | AE65: 1875 | AF65: 1875 | AG65: 1875 | AH65: 60
A66: 40 | B66: 1610 | C66: 40 | D66: 3500 | E66: 40 | F66: 1390 | G66: 40 | H66: 13100 | I66: 40 | J66: 1740 | K66: 40 | L66: 11500 | M66: 40 | N66: 34000 | O66: 40 | P66: 70300 | Q66: 40 | R66: 64524 | S66: 40 | T66: 152000 | U66: 40 | V66: 2040 | W66: 40 | Y66: 40 | Z66: 125 | AA66: 369 | AB66: 840 | AC66: - | AD66: 900 | AE66: 1900 | AF66: 1900 | AG66: 1900 | AH66: 61
A67: 39 | B67: 1620 | C67: 39 | D67: 3520 | E67: 39 | F67: 1400 | G67: 39 | H67: 13200 | I67: 39 | J67: 1750 | K67: 39 | L67: 11600 | M67: 39 | N67: 34200 | O67: 39 | P67: 70600 | Q67: 39 | R67: 64624 | S67: 39 | T67: 153000 | U67: 39 | V67: 2050 | W67: 39 | Y67: 39 | Z67: 126 | AA67: 372 | AB67: 850 | AC67: 220 | AD67: 910 | AE67: 1925 | AF67: 1925 | AG67: 1925 | AH67: 62
A68: 38 | B68: 1630 | C68: 38 | D68: 3540 | E68: 38 | F68: 1410 | G68: 38 | H68: 13300 | I68: 38 | J68: 1760 | K68: 38 | L68: 11700 | M68: 38 | N68: 34400 | O68: 38 | P68: 70900 | Q68: 38 | R68: 64724 | S68: 38 | T68: 154000 | U68: 38 | V68: 2060 | W68: 38 | Y68: 38 | Z68: 127 | AA68: 375 | AB68: 860 | AC68: - | AD68: 920 | AE68: 1950 | AF68: 1950 | AG68: 1950 | AH68: 63
A69: 37 | B69: 1640 | C69: 37 | D69: 3560 | E69: 37 | F69: 1420 | G69: 37 | H69: 13400 | I69: 37 | J69: 1770 | K69: 37 | L69: 11800 | M69: 37 | N69: 34600 | O69: 37 | P69: 71200 | Q69: 37 | R69: 64824 | S69: 37 | T69: 155000 | U69: 37 | V69: 2070 | W69: 37 | Y69: 37 | Z69: 128 | AA69: 378 | AB69: 870 | AC69: 225 | AD69: 930 | AE69: 1975 | AF69: 1975 | AG69: 1975 | AH69: 64
A70: 36 | B70: 1650 | C70: 36 | D70: 3580 | E70: 36 | F70: 1430 | G70: 36 | H70: 13500 | I70: 36 | J70: 1780 | K70: 36 | L70: 11900 | M70: 36 | N70: 34800 | O70: 36 | P70: 71500 | Q70: 36 | R70: 64924 | S70: 36 | T70: 160000 | U70: 36 | V70: 2080 | W70: 36 | Y70: 36 | Z70: 129 | AA70: 381 | AB70: 880 | AC70: - | AD70: 940 | AE70: 2000 | AF70: 2000 | AG70: 2000 | AH70: 65
A71: 35 | B71: 1660 | C71: 35 | D71: 3600 | E71: 35 | F71: 1440 | G71: 35 | H71: 13600 | I71: 35 | J71: 1790 | K71: 35 | L71: 12000 | M71: 35 | N71: 35000 | O71: 35 | P71: 71800 | Q71: 35 | R71: 65024 | S71: 35 | T71: 161000 | U71: 35 | V71: 2090 | W71: 35 | Y71: 35 | Z71: 130 | AA71: 384 | AB71: 890 | AC71: 230 | AD71: 950 | AE71: 2025 | AF71: 2025 | AG71: 2025 | AH71: 66
A72: 34 | B72: 1670 | C72: 34 | D72: 3620 | E72: 34 | F72: 1450 | G72: 34 | H72: 13700 | I72: 34 | J72: 1800 | K72: 34 | L72: 12200 | M72: 34 | N72: 35200 | O72: 34 | P72: 72100 | Q72: 34 | R72: 65124 | S72: 34 | T72: 162000 | U72: 34 | V72: 2100 | W72: 34 | Y72: 34 | Z72: 131 | AA72: 387 | AB72: 900 | AC72: - | AD72: 960 | AE72: 2050 | AF72: 2050 | AG72: 2050 | AH72: 67
A73: 33 | B73: 1680 | C73: 33 | D73: 3640 | E73: 33 | F73: 1460 | G73: 33 | H73: 13800 | I73: 33 | J73: 1810 | K73: 33 | L73: 12400 | M73: 33 | N73: 35400 | O73: 33 | P73: 72400 | Q73: 33 | R73: 65224 | S73: 33 | T73: 163000 | U73: 33 | V73: 2110 | W73: 33 | Y73: 33 | Z73: 132 | AA73: 390 | AB73: 910 | AC73: 235 | AD73: 970 | AE73: 2075 | AF73: 2075 | AG73: 2075 | AH73: 68
A74: 32 | B74: 1690 | C74: 32 | D74: 3660 | E74: 32 | F74: 1470 | G74: 32 | H74: 13900 | I74: 32 | J74: 1820 | K74: 32 | L74: 12600 | M74: 32 | N74: 35600 | O74: 32 | P74: 72700 | Q74: 32 | R74: 65324 | S74: 32 | T74: 164000 | U74: 32 | V74: 2120 | W74: 32 | Y74: 32 | Z74: 133 | AA74: 393 | AB74: 920 | AC74: - | AD74: 980 | AE74: 2100 | AF74: 2100 | AG74: 2100 | AH74: 69
A75: 31 | B75: 1700 | C75: 31 | D75: 3680 | E75: 31 | F75: 1480 | G75: 31 | H75: 14000 | I75: 31 | J75: 1830 | K75: 31 | L75: 12800 | M75: 31 | N75: 35800 | O75: 31 | P75: 73000 | Q75: 31 | R75: 65424 | S75: 31 | T75: 165000 | U75: 31 | V75: 2130 | W75: 31 | Y75: 31 | Z75: 134 | AA75: 397 | AB75: 930 | AC75: 240 | AD75: 990 | AE75: 2125 | AF75: 2200 | AG75: 2125 | AH75: 70
A76: 30 | B76: 1710 | C76: 30 | D76: 3700 | E76: 30 | F76: 1490 | G76: 30 | H76: 14100 | I76: 30 | J76: 1840 | K76: 30 | L76: 13000 | M76: 30 | N76: 40000 | O76: 30 | P76: 73500 | Q76: 30 | R76: 65524 | S76: 30 | T76: 170000 | U76: 30 | V76: 2140 | W76: 30 | Y76: 30 | Z76: 135 | AA76: 400 | AB76: 940 | AC76: - | AD76: 1000 | AE76: 2150 | AF76: 2300 | AG76: 2150 | AH76: 71
A77: 29 | B77: 1720 | C77: 29 | D77: 3720 | E77: 29 | F77: 1500 | G77: 29 | H77: 14200 | I77: 29 | J77: 1850 | K77: 29 | L77: 13200 | M77: 29 | N77: 40200 | O77: 29 | P77: 74000 | Q77: 29 | R77: 65624 | S77: 29 | T77: 171000 | U77: 29 | V77: 2150 | W77: 29 | Y77: 29 | Z77: 136 | AA77: 410 | AB77: 950 | AC77: 245 | AD77: 1010 | AE77: 2175 | AF77: 2400 | AG77: 2175 | AH77: 72
A78: 28 | B78: 1730 | C78: 28 | D78: 3740 | E78: 28 | F78: 1510 | G78: 28 | H78: 14300 | I78: 28 | J78: 1860 | K78: 28 | L78: 13400 | M78: 28 | N78: 40400 | O78: 28 | P78: 74500 | Q78: 28 | R78: 65724 | S78: 28 | T78: 172000 | U78: 28 | V78: 2160 | W78: 28 | Y78: 28 | Z78: 137 | AA78: 420 | AB78: 960 | AC78: - | AD78: 1020 | AE78: 2200 | AF78: 2500 | AG78: 2200 | AH78: 73
A79: 27 | B79: 1740 | C79: 27 | D79: 3760 | E79: 27 | F79: 1520 | G79: 27 | H79: 14400 | I79: 27 | J79: 1870 | K79: 27 | L79: 13600 | M79: 27 | N79: 40600 | O79: 27 | P79: 75000 | Q79: 27 | R79: 65824 | S79: 27 | T79: 173000 | U79: 27 | V79: 2170 | W79: 27 | Y79: 27 | Z79: 138 | AA79: 430 | AB79: 970 | AC79: 250 | AD79: 1030 | AE79: 2250 | AF79: 2600 | AG79: 2250 | AH79: 74
A80: 26 | B80: 1750 | C80: 26 | D80: 3780 | E80: 26 | F80: 1530 | G80: 26 | H80: 14500 | I80: 26 | J80: 1880 | K80: 26 | L80: 13800 | M80: 26 | N80: 40800 | O80: 26 | P80: 75500 | Q80: 26 | R80: 65924 | S80: 26 | T80: 174000 | U80: 26 | V80: 2180 | W80: 26 | Y80: 26 | Z80: 139 | AA80: 440 | AB80: 980 | AC80: - | AD80: 1040 | AE80: 2300 | AF80: 2700 | AG80: 2300 | AH80: 75
A81: 25 | B81: 1760 | C81: 25 | D81: 3800 | E81: 25 | F81: 1540 | G81: 25 | H81: 14600 | I81: 25 | J81: 1890 | K81: 25 | L81: 14000 | M81: 25 | N81: 41000 | O81: 25 | P81: 80000 | Q81: 25 | R81: 70024 | S81: 25 | T81: 175000 | U81: 25 | V81: 2190 | W81: 25 | Y81: 25 | Z81: 140 | AA81: 450 | AB81: 990 | AC81: 255 | AD81: 1050 | AE81: 2350 | AF81: 2800 | AG81: 2350 | AH81: 76
A82: 24 | B82: 1770 | C82: 24 | D82: 3850 | E82: 24 | F82: 1550 | G82: 24 | H82: 14700 | I82: 24 | J82: 1900 | K82: 24 | L82: 14200 | M82: 24 | N82: 41200 | O82: 24 | P82: 80500 | Q82: 24 | R82: 70124 | S82: 24 | T82: 180000 | U82: 24 | V82: 2200 | W82: 24 | Y82: 24 | Z82: 142 | AA82: 460 | AB82: 1000 | AC82: - | AD82: 1060 | AE82: 2400 | AF82: 2900 | AG82: 2400 | AH82: 77
A83: 23 | B83: 1780 | C83: 23 | D83: 3900 | E83: 23 | F83: 1560 | G83: 23 | H83: 14800 | I83: 23 | J83: 1910 | K83: 23 | L83: 14400 | M83: 23 | N83: 41400 | O83: 23 | P83: 81000 | Q83: 23 | R83: 70224 | S83: 23 | T83: 181000 | U83: 23 | V83: 2210 | W83: 23 | Y83: 23 | Z83: 144 | AA83: 470 | AB83: 1015 | AC83: 260 | AD83: 1070 | AE83: 2450 | AF83: 3000 | AG83: 2450 | AH83: 78
A84: 22 | B84: 1790 | C84: 22 | D84: 3950 | E84: 22 | F84: 1570 | G84: 22 | H84: 14900 | I84: 22 | J84: 1920 | K84: 22 | L84: 14600 | M84: 22 | N84: 41600 | O84: 22 | P84: 81500 | Q84: 22 | R84: 70324 | S84: 22 | T84: 182000 | U84: 22 | V84: 2220 | W84: 22 | Y84: 22 | Z84: 146 | AA84: 480 | AB84: 1030 | AC84: - | AD84: 1080 | AE84: 2500 | AF84: 3100 | AG84: 2500 | AH84: 79
A85: 21 | B85: 1800 | C85: 21 | D85: 4000 | E85: 21 | F85: 1580 | G85: 21 | H85: 15000 | I85: 21 | J85: 1930 | K85: 21 | L85: 14800 | M85: 21 | N85: 41800 | O85: 21 | P85: 82000 | Q85: 21 | R85: 70424 | S85: 21 | T85: 183000 | U85: 21 | V85: 2230 | W85: 21 | Y85: 21 | Z85: 148 | AA85: 490 | AB85: 1045 | AC85: 265 | AD85: 1090 | AE85: 2550 | AF85: 3200 | AG85: 2550 | AH85: 80
A86: 20 | B86: 1810 | C86: 20 | D86: 4050 | E86: 20 | F86: 1590 | G86: 20 | H86: 15100 | I86: 20 | J86: 1940 | K86: 20 | L86: 15000 | M86: 20 | N86: 42000 | O86: 20 | P86: 82500 | Q86: 20 | R86: 70524 | S86: 20 | T86: 184000 | U86: 20 | V86: 2240 | W86: 20 | Y86: 20 | Z86: 150 | AA86: 500 | AB86: 1060 | AC86: - | AD86: 1100 | AE86: 2600 | AF86: 3300 | AG86: 2600 | AH86: 81
A87: 19 | B87: 1820 | C87: 19 | D87: 4100 | E87: 19 | F87: 1600 | G87: 19 | H87: 15200 | I87: 19 | J87: 1950 | K87: 19 | L87: 15200 | M87: 19 | N87: 42200 | O87: 19 | P87: 83000 | Q87: 19 | R87: 70624 | S87: 19 | T87: 185000 | U87: 19 | V87: 2250 | W87: 19 | Y87: 19 | Z87: 152 | AA87: 505 | AB87: 1075 | AC87: 270 | AD87: 1110 | AE87: 2650 | AF87: 3400 | AG87: 2650 | AH87: 82
A88: 18 | B88: 1830 | C88: 18 | D88: 4150 | E88: 18 | F88: 1610 | G88: 18 | H88: 15300 | I88: 18 | J88: 1960 | K88: 18 | L88: 15400 | M88: 18 | N88: 42400 | O88: 18 | P88: 83500 | Q88: 18 | R88: 70724 | S88: 18 | T88: 190000 | U88: 18 | V88: 2260 | W88: 18 | Y88: 18 | Z88: 154 | AA88: 510 | AB88: 1090 | AC88: - | AD88: 1120 | AE88: 2700 | AF88: 3500 | AG88: 2700 | AH88: 83
A89: 17 | B89: 1840 | C89: 17 | D89: 4200 | E89: 17 | F89: 1620 | G89: 17 | H89: 15400 | I89: 17 | J89: 1970 | K89: 17 | L89: 15600 | M89: 17 | N89: 42600 | O89: 17 | P89: 84000 | Q89: 17 | R89: 70824 | S89: 17 | T89: 191000 | U89: 17 | V89: 2270 | W89: 17 | Y89: 17 | Z89: 156 | AA89: 515 | AB89: 1105 | AC89: 275 | AD89: 1130 | AE89: 2800 | AF89: 3600 | AG89: 2800 | AH89: 84
A90: 16 | B90: 1850 | C90: 16 | D90: 4250 | E90: 16 | F90: 1630 | G90: 16 | H90: 15500 | I90: 16 | J90: 1980 | K90: 16 | L90: 15800 | M90: 16 | N90: 42800 | O90: 16 | P90: 84500 | Q90: 16 | R90: 70924 | S90: 16 | T90: 192000 | U90: 16 | V90: 2280 | W90: 16 | Y90: 16 | Z90: 158 | AA90: 520 | AB90: 1120 | AC90: - | AD90: 1140 | AE90: 2900 | AF90: 3700 | AG90: 2900 | AH90: 85
A91: 15 | B91: 1860 | C91: 15 | D91: 4300 | E91: 15 | F91: 1640 | G91: 15 | H91: 15600 | I91: 15 | J91: 1990 | K91: 15 | L91: 20000 | M91: 15 | N91: 43000 | O91: 15 | P91: 85000 | Q91: 15 | R91: 71024 | S91: 15 | T91: 193000 | U91: 15 | V91: 2290 | W91: 15 | Y91: 15 | Z91: 160 | AA91: 525 | AB91: 1135 | AC91: 280 | AD91: 1150 | AE91: 3000 | AF91: 3800 | AG91: 3000 | AH91: 86
A92: 14 | B92: 1870 | C92: 14 | D92: 4350 | E92: 14 | F92: 1650 | G92: 14 | H92: 15700 | I92: 14 | J92: 2000 | K92: 14 | L92: 20200 | M92: 14 | N92: 43200 | O92: 14 | P92: 85500 | Q92: 14 | R92: 71124 | S92: 14 | T92: 194000 | U92: 14 | V92: 2300 | W92: 14 | Y92: 14 | Z92: 162 | AA92: 530 | AB92: 1150 | AC92: - | AD92: 1160 | AE92: 3100 | AF92: 3900 | AG92: 3100 | AH92: 87
A93: 13 | B93: 1880 | C93: 13 | D93: 4400 | E93: 13 | F93: 1660 | G93: 13 | H93: 15800 | I93: 13 | J93: 2010 | K93: 13 | L93: 20400 | M93: 13 | N93: 43400 | O93: 13 | P93: 90000 | Q93: 13 | R93: 71224 | S93: 13 | T93: 195000 | U93: 13 | V93: 2310 | W93: 13 | Y93: 13 | Z93: 164 | AA93: 535 | AB93: 1165 | AC93: 285 | AD93: 1170 | AE93: 3200 | AF93: 4000 | AG93: 3200 | AH93: 88
A94: 12 | B94: 1890 | C94: 12 | D94: 4450 | E94: 12 | F94: 1670 | G94: 12 | H94: 15900 | I94: 12 | J94: 2020 | K94: 12 | L94: 20600 | M94: 12 | N94: 43600 | O94: 12 | P94: 90500 | Q94: 12 | R94: 71324 | S94: 12 | T94: 200000 | U94: 12 | V94: 2320 | W94: 12 | Y94: 12 | Z94: 166 | AA94: 540 | AB94: 1180 | AC94: - | AD94: 1180 | AE94: 3300 | AF94: 4100 | AG94: 3300 | AH94: 89
A95: 11 | B95: 1900 | C95: 11 | D95: 4500 | E95: 11 | F95: 1680 | G95: 11 | H95: 20000 | I95: 11 | J95: 2030 | K95: 11 | L95: 20800 | M95: 11 | N95: 43800 | O95: 11 | P95: 91000 | Q95: 11 | R95: 71424 | S95: 11 | T95: 201000 | U95: 11 | V95: 2330 | W95: 11 | Y95: 11 | Z95: 168 | AA95: 550 | AB95: 1195 | AC95: 290 | AD95: 1190 | AE95: 3400 | AF95: 4200 | AG95: 3400 | AH95: 90
A96: 10 | B96: 1920 | C96: 10 | D96: 4550 | E96: 10 | F96: 1690 | G96: 10 | H96: 20100 | I96: 10 | J96: 2040 | K96: 10 | L96: 21000 | M96: 10 | N96: 44000 | O96: 10 | P96: 91500 | Q96: 10 | R96: 71524 | S96: 10 | T96: 202000 | U96: 10 | V96: 2340 | W96: 10 | Y96: 10 | Z96: 170 | AA96: 560 | AB96: 1210 | AC96: - | AD96: 1200 | AE96: 3500 | AF96: 4300 | AG96: 3500 | AH96: 91
A97: 9 | B97: 1940 | C97: 9 | D97: 4600 | E97: 9 | F97: 1700 | G97: 9 | H97: 20200 | I97: 9 | J97: 2050 | K97: 9 | L97: 21200 | M97: 9 | N97: 44200 | O97: 9 | P97: 92000 | Q97: 9 | R97: 71624 | S97: 9 | T97: 203000 | U97: 9 | V97: 2350 | W97: 9 | Y97: 9 | Z97: 172 | AA97: 570 | AB97: 1225 | AC97: 295 | AD97: 1220 | AE97: 3600 | AF97: 4500 | AG97: 3600 | AH97: 92
A98: 8 | B98: 1960 | C98: 8 | D98: 4650 | E98: 8 | F98: 1710 | G98: 8 | H98: 20300 | I98: 8 | J98: 2060 | K98: 8 | L98: 21400 | M98: 8 | N98: 44400 | O98: 8 | P98: 92500 | Q98: 8 | R98: 71724 | S98: 8 | T98: 204000 | U98: 8 | V98: 2360 | W98: 8 | Y98: 8 | Z98: 174 | AA98: 580 | AB98: 1240 | AC98: 300 | AD98: 1240 | AE98: 3700 | AF98: 4400 | AG98: 3700 | AH98: 93
A99: 7 | B99: 1980 | C99: 7 | D99: 4700 | E99: 7 | F99: 1720 | G99: 7 | H99: 20400 | I99: 7 | J99: 2070 | K99: 7 | L99: 21600 | M99: 7 | N99: 44600 | O99: 7 | P99: 93000 | Q99: 7 | R99: 71824 | S99: 7 | T99: 205000 | U99: 7 | V99: 2370 | W99: 7 | Y99: 7 | Z99: 176 | AA99: 590 | AB99: 1255 | AC99: 310 | AD99: 1260 | AE99: 3800 | AF99: 4600 | AG99: 3800 | AH99: 94
A100: 6 | B100: 2000 | C100: 6 | D100: 4750 | E100: 6 | F100: 1730 | G100: 6 | H100: 20500 | I100: 6 | J100: 2080 | K100: 6 | L100: 21800 | M100: 6 | N100: 44800 | O100: 6 | P100: 93500 | Q100: 6 | R100: 71924 | S100: 6 | T100: 210000 | U100: 6 | V100: 2380 | W100: 6 | Y100: 6 | Z100: 178 | AA100: 600 | AB100: 1270 | AC100: 320 | AD100: 1280 | AE100: 3900 | AF100: 4700 | AG100: 3900 | AH100: 95
A101: 5 | B101: 2020 | C101: 5 | D101: 4800 | E101: 5 | F101: 1740 | G101: 5 | H101: 20600 | I101: 5 | J101: 2090 | K101: 5 | L101: 22000 | M101: 5 | N101: 45000 | O101: 5 | P101: 94000 | Q101: 5 | R101: 72024 | S101: 5 | T101: 211000 | U101: 5 | V101: 2390 | W101: 5 | Y101: 5 | Z101: 180 | AA101: 610 | AB101: 1285 | AC101: 330 | AD101: 1300 | AE101: 4000 | AF101: 4800 | AG101: 4000 | AH101: 96
A102: 4 | B102: 2040 | C102: 4 | D102: 4850 | E102: 4 | F102: 1750 | G102: 4 | H102: 20700 | I102: 4 | J102: 2100 | K102: 4 | L102: 22200 | M102: 4 | N102: 45200 | O102: 4 | P102: 94500 | Q102: 4 | R102: 72124 | S102: 4 | T102: 212000 | U102: 4 | V102: 2400 | W102: 4 | Y102: 4 | Z102: 182 | AA102: 620 | AB102: 1300 | AC102: 340 | AD102: 1320 | AE102: 4100 | AF102: 4900 | AG102: 4100 | AH102: 97
A103: 3 | B103: 2060 | C103: 3 | D103: 4900 | E103: 3 | F103: 1760 | G103: 3 | H103: 20800 | I103: 3 | J103: 2110 | K103: 3 | L103: 22400 | M103: 3 | N103: 45400 | O103: 3 | P103: 95000 | Q103: 3 | R103: 72224 | S103: 3 | T103: 213000 | U103: 3 | V103: 2410 | W103: 3 | Y103: 3 | Z103: 184 | AA103: 630 | AB103: 1315 | AC103: 350 | AD103: 1340 | AE103: 4200 | AF103: 5000 | AG103: 4200 | AH103: 98
A104: 2 | B104: 2080 | C104: 2 | D104: 4950 | E104: 2 | F104: 1770 | G104: 2 | H104: 20900 | I104: 2 | J104: 2120 | K104: 2 | L104: 22600 | M104: 2 | N104: 45600 | O104: 2 | P104: 95500 | Q104: 2 | R104: 72324 | S104: 2 | T104: 214000 | U104: 2 | V104: 2420 | W104: 2 | Y104: 2 | Z104: 186 | AA104: 640 | AB104: 1330 | AC104: 360 | AD104: 1360 | AE104: 4300 | AF104: 5100 | AG104: 4300 | AH104: 99
A105: 1 | B105: 2100 | C105: 1 | D105: 5000 | E105: 1 | F105: 1780 | G105: 1 | H105: 21000 | I105: 1 | J105: 2130 | K105: 1 | L105: 22800 | M105: 1 | N105: 45800 | O105: 1 | P105: 100000 | Q105: 1 | R105: 72424 | S105: 1 | T105: 215000 | U105: 1 | V105: 2430 | W105: 1 | Y105: 1 | Z105: 188 | AA105: 650 | AB105: 1345 | AC105: 370 | AD105: 1380 | AE105: 4400 | AF105: 5200 | AG105: 4400 | AH105: 100
B106: DNS | D106: DNS | F106: DNS | H106: DNS | J106: DNS | L106: DNS | N106: DNS | P106: DNS | R106: DNS | T106: DNS | V106: DNS | X106: DNS | Y106: 0 | Z106: DNS | AA106: DNS | AB106: DNS | AC106: DNS | AD106: DNS | AE106: DNS | AF106: DNS | AH106: 0
B107: DNF | D107: DNF | F107: DNF | H107: DNF | J107: DNF | L107: DNF | N107: DNF | P107: DNF | R107: DNF | T107: DNF | V107: DNF | X107: DNF | Y107: 0 | Z107: NM | AA107: NM | AB107: NM | AC107: NM | AD107: NM | AE107: NM | AF107: NM | AH107: 0
B108: NM | D108: NM | F108: NM | H108: NM | J108: NM | L108: NM | N108: NM | P108: NM | R108: NM | T108: NM | V108: NM | X108: NM | Y108: 0 | Z108: DQ | AA108: DQ | AB108: DQ | AC108: DQ | AD108: DQ | AE108: DQ | AF108: DQ | AH108: 0
B109: DQ | D109: DQ | F109: DQ | H109: DQ | J109: DQ | L109: DQ | N109: DQ | P109: DQ | R109: DQ | T109: DQ | V109: DQ | X109: DQ | Y109: 0 | AH109: 0

Sheet Gülle
A1: ='YARIŞMA BİLGİLERİ'!A2:K2 -> Türkiye Atletizm Federasyonu İzmir Atletizm İl Temsilciliği
A2: ='YARIŞMA BİLGİLERİ'!A14:K14 -> Naili Moran Türkiye Atletizm Şampiyonası
A3: Yarışma : | D3: ='YARIŞMA PROGRAMI'!C21 -> Gülle Atma
A4: Kategori : | D4: ='YARIŞMA BİLGİLERİ'!F21 -> 13 Yaş Erkekler | F4: Ağırlık | G4: 3 kg. | I4: Tarih-Saat : | K4: ='YARIŞMA PROGRAMI'!B21 -> 14 Haziran 2014 - 10:15
J5: 41804.5089
A6: SIRA NO | C6: GÖĞÜS NO | D6: DOĞUM TARİHİ Gün/Ay/Yıl | E6: ADI VE SOYADI | F6: İLİ | G6: A T M A L A R | J6: SONUÇ | K6: PUAN | L6: KLASMAN
G7: 1 | H7: 2 | I7: 3
A8: 1 | B8: GÜLLE-2 | C8: 613 | D8: 2001-05-15 | E8: MUSTAFA ÇAĞLAR KORKMAZ | F8: OSMANİYE | G8: 1296 | H8: 1140 | I8: 1183 | J8: 1296 | K8: 95
A9: 2 | B9: GÜLLE-12 | C9: 643 | D9: 2001-06-07 | E9: METEHAN ACAR | F9: SAMSUN | G9: 1043 | H9: 1209 | I9: X | J9: 1209 | K9: 91
A10: 3 | B10: GÜLLE-10 | C10: 744 | D10: 2001-03-04 | E10: CEYHUN SEVİNÇ | F10: SAKARYA | G10: 1080 | H10: 1014 | I10: 1199 | J10: 1199 | K10: 90
A11: 4 | B11: GÜLLE-5 | C11: 703 | D11: 2001-01-15 | E11: MEHMET EMİN KILINÇ | F11: TOKAT | G11: 1132 | H11: X | I11: 1130 | J11: 1132 | K11: 84
A12: 5 | B12: GÜLLE-11 | C12: 713 | D12: 2001-01-03 | E12: ASLAN KAĞAN KALINTAŞ | F12: TRABZON | G12: 1051 | H12: 1058 | I12: X | J12: 1058 | K12: 76
A13: 6 | B13: GÜLLE-13 | C13: 567 | D13: 2001-01-01 | E13: ÜMİT GÜLER | F13: MUĞLA | G13: 967 | H13: X | I13: 1015 | J13: 1015 | K13: 72
A14: 7 | B14: GÜLLE-3 | C14: 143 | D14: 2001-01-01 | E14: HÜSNÜ İLHAN | F14: BATMAN | G14: X | H14: 985 | I14: 953 | J14: 985 | K14: 69
A15: 8 | B15: GÜLLE-9 | C15: 420 | D15: 2001-01-11 | E15: HÜSEYİN GÖRKEM DENİZ | F15: İZMİR | G15: 750 | H15: 833 | I15: 964 | J15: 964 | K15: 67
A16: 9 | B16: GÜLLE-7 | C16: 450 | D16: 2001-01-04 | E16: FURKAN ÇEKEN | F16: İZMİR | G16: 714 | H16: 875 | I16: 780 | J16: 875 | K16: 58
A17: 10 | B17: GÜLLE-6 | C17: 685 | D17: 2001-05-22 | E17: ÖNDER ATUN | F17: TEKİRDAĞ | G17: 840 | H17: 682 | I17: 812 | J17: 840 | K17: 55
A18: 11 | B18: GÜLLE-4 | C18: 657 | D18: 2001-10-01 | E18: HÜSEYİN YILDIRIM | F18: SİİRT | G18: X | H18: 586 | I18: X | J18: 586 | K18: 29
A19: - | B19: GÜLLE-1 | C19: 86 | D19: 2001-05-14 | E19: İBRAHİM BULUT | F19: AYDIN | J19: DNS | K19: 0
A20: - | B20: GÜLLE-8 | C20: 417 | D20: 2001-01-18 | E20: MUSTAFA ASLANER | F20: İZMİR | J20: DNS | K20: 0
B21: GÜLLE-14 | J21: 0
B22: GÜLLE-15 | J22: 0
B23: GÜLLE-16 | J23: 0
B24: GÜLLE-17 | J24: 0
B25: GÜLLE-18 | J25: 0
B26: GÜLLE-19 | J26: 0
B27: GÜLLE-20 | J27: 0
B28: GÜLLE-21 | J28: 0
B29: GÜLLE-22 | J29: 0
B30: GÜLLE-23 | J30: 0
B31: GÜLLE-24 | J31: 0
B32: GÜLLE-25 | J32: 0
B33: GÜLLE-26 | J33: 0
B34: GÜLLE-27 | J34: 0
B35: GÜLLE-28 | J35: 0
B36: GÜLLE-29 | J36: 0
B37: GÜLLE-30 | J37: 0
B38: GÜLLE-31 | J38: 0
B39: GÜLLE-32 | J39: 0
B40: GÜLLE-33 | J40: 0
B41: GÜLLE-34 | J41: 0
B42: GÜLLE-35 | J42: 0
B43: GÜLLE-36 | J43: 0
B44: GÜLLE-37 | J44: 0
B45: GÜLLE-38 | J45: 0
B46: GÜLLE-39 | J46: 0
B47: GÜLLE-40 | J47: 0
A49: Müsabaka Direktörü | E49: Baş Hakem | F49: Lider | G49: Sekreter | J49: Hakem
A65536: CELAL KAYAÖZ

Sheet 80m.Eng
A1: =('YARIŞMA BİLGİLERİ'!A2) -> Türkiye Atletizm Federasyonu İzmir Atletizm İl Temsilciliği
A2: ='YARIŞMA BİLGİLERİ'!F19 -> Naili Moran Türkiye Atletizm Şampiyonası
A3: Yarışma : | D3: ='YARIŞMA PROGRAMI'!C10 -> 80 Metre Engelli
A4: Kategori : | D4: ='YARIŞMA BİLGİLERİ'!F21 -> 13 Yaş Erkekler | M4: Tarih-Saat : | N4: ='YARIŞMA PROGRAMI'!B10 -> 14 Haziran 2014 - 11:00
N5: 41804.48729
A6: Sıra No | B6: Göğüs No | C6: Doğum Tarihi Gün/Ay/Yıl | D6: Adı ve Soyadı | E6: İLİ | F6: Derece | G6: Puan | I6: 1. SERİ | M6: Rüzgar:
I7: Sıra No | J7: Formül | K7: Göğüs No | L7: Doğum Tarihi | M7: Adı ve Soyadı | N7: İLİ | O7: Derece | P7: El Kronometre | Q7: Seri Geliş
A8: 1 | B8: 644 | C8: 2001-06-07 | D8: GÖKHAN BEŞİR | E8: SAMSUN | F8: 1238 | G8: 90 | I8: 1 | J8: 80M.ENG-1-1 | K8: 438 | L8: 2001-02-04 | M8: ZEYNEL ABİDİN NECMİOĞLU | N8: İZMİR | O8: 1366 | Q8: 4
A9: 2 | B9: 117 | C9: 2001-01-01 | D9: Y.İZZET EROL | E9: BALIKESİR | F9: 1273 | G9: 86 | I9: 2 | J9: 80M.ENG-1-2 | K9: 681 | L9: 2001-04-25 | M9: OĞUZ KAĞAN HACIOĞLU | N9: TEKİRDAĞ | O9: 1400 | Q9: 6
A10: 3 | B10: 682 | C10: 2001-01-01 | D10: BATUHAN ÇAKIR | E10: TEKİRDAĞ | F10: 1349 | G10: 79 | I10: 3 | J10: 80M.ENG-1-3 | K10: 530 | L10: 2001-03-20 | M10: YUNUS EMRE KIZIL | N10: KONYA | O10: 1402 | Q10: 7
A11: 4 | B11: 14 | C11: 2001-01-01 | D11: KENAN KODAÇ | E11: ADANA | F11: 1352 | G11: 78 | I11: 4 | J11: 80M.ENG-1-4 | K11: 644 | L11: 2001-06-07 | M11: GÖKHAN BEŞİR | N11: SAMSUN | O11: 1238 | Q11: 1
A12: 5 | B12: 438 | C12: 2001-02-04 | D12: ZEYNEL ABİDİN NECMİOĞLU | E12: İZMİR | F12: 1366 | G12: 77 | I12: 5 | J12: 80M.ENG-1-5 | K12: 117 | L12: 2001-01-01 | M12: Y.İZZET EROL | N12: BALIKESİR | O12: 1273 | Q12: 2
A13: 6 | B13: 436 | C13: 2001-02-17 | D13: MUSTAFA ÇİÇEK | E13: İZMİR | F13: 1372 | G13: 76 | I13: 6 | J13: 80M.ENG-1-6 | K13: 682 | L13: 2001-01-01 | M13: BATUHAN ÇAKIR | N13: TEKİRDAĞ | O13: 1349 | Q13: 3
A14: 7 | B14: 15 | C14: 2001-01-01 | D14: VEYSİ KARDAŞ | E14: ADANA | F14: 1372 | G14: 76 | I14: 7 | J14: 80M.ENG-1-7 | K14: 436 | L14: 2001-02-17 | M14: MUSTAFA ÇİÇEK | N14: İZMİR | O14: 1372 | Q14: 5
A15: 8 | B15: 681 | C15: 2001-04-25 | D15: OĞUZ KAĞAN HACIOĞLU | E15: TEKİRDAĞ | F15: 1400 | G15: 74 | I15: 8 | J15: 80M.ENG-1-8 | K15: 643 | L15: 2001-06-07 | M15: METEHAN ACAR | N15: SAMSUN | O15: 1451 | Q15: 8
A16: 9 | B16: 530 | C16: 2001-03-20 | D16: YUNUS EMRE KIZIL | E16: KONYA | F16: 1402 | G16: 73 | I16: 2. SERİ | M16: Rüzgar:
A17: 10 | B17: 643 | C17: 2001-06-07 | D17: METEHAN ACAR | E17: SAMSUN | F17: 1451 | G17: 68 | I17: Sıra No | J17: Formül | K17: Göğüs No | L17: Doğum Tarihi | M17: Adı ve Soyadı | N17: İLİ | O17: Derece | P17: El Kronometre | Q17: Seri Geliş
A18: 11 | B18: 437 | C18: 2001-01-10 | D18: KUBİLAY ENCÜ | E18: İZMİR | F18: 1459 | G18: 68 | I18: 1 | J18: 80M.ENG-2-1 | K18: 15 | L18: 2001-01-01 | M18: VEYSİ KARDAŞ | N18: ADANA | O18: 1372 | Q18: 2
A19: 12 | B19: 568 | C19: 2001-04-03 | D19: AHMET CAN SÜRAL | E19: MUĞLA | F19: 1494 | G19: 64 | I19: 2 | J19: 80M.ENG-2-2 | K19: 455 | L19: 2001-01-09 | M19: BATUHAN ORHUNBİLGE | N19: İZMİR | O19: DNS | Q19: -
A20: 13 | B20: 453 | C20: 2001-04-06 | D20: MEHMET ÖZGÜR | E20: İZMİR | F20: 1759 | G20: 38 | I20: 3 | J20: 80M.ENG-2-3 | K20: 160 | L20: 2001-01-16 | M20: FERDİ FIRAT TAŞKIRAN | N20: BİLECİK | O20: 1855 | Q20: 6
A21: 14 | B21: 160 | C21: 2001-01-16 | D21: FERDİ FIRAT TAŞKIRAN | E21: BİLECİK | F21: 1855 | G21: 28 | I21: 4 | J21: 80M.ENG-2-4 | K21: 568 | L21: 2001-04-03 | M21: AHMET CAN SÜRAL | N21: MUĞLA | O21: 1494 | Q21: 4
A22: - | B22: 455 | C22: 2001-01-09 | D22: BATUHAN ORHUNBİLGE | E22: İZMİR | F22: DNS | I22: 5 | J22: 80M.ENG-2-5 | K22: 437 | L22: 2001-01-10 | M22: KUBİLAY ENCÜ | N22: İZMİR | O22: 1459 | Q22: 3
A23: - | B23: 302 | C23: 2001-04-15 | D23: YELDA YAĞMUR | E23: GİRESUN | F23: DNS | I23: 6 | J23: 80M.ENG-2-6 | K23: 453 | L23: 2001-04-06 | M23: MEHMET ÖZGÜR | N23: İZMİR | O23: 1759 | Q23: 5
I24: 7 | J24: 80M.ENG-2-7 | K24: 14 | L24: 2001-01-01 | M24: KENAN KODAÇ | N24: ADANA | O24: 1352 | Q24: 1
I25: 8 | J25: 80M.ENG-2-8 | K25: 302 | L25: 2001-04-15 | M25: YELDA YAĞMUR | N25: GİRESUN | O25: DNS | Q25: -
I26: 3. SERİ | M26: Rüzgar:
I27: Sıra No | J27: Formül | K27: Göğüs No | L27: Doğum Tarihi | M27: Adı ve Soyadı | N27: İLİ | O27: Derece | P27: El Kronometre | Q27: Seri Geliş
I28: 1 | J28: 80M.ENG-3-1
I29: 2 | J29: 80M.ENG-3-2
I30: 3 | J30: 80M.ENG-3-3
I31: 4 | J31: 80M.ENG-3-4
I32: 5 | J32: 80M.ENG-3-5
I33: 6 | J33: 80M.ENG-3-6
I34: 7 | J34: 80M.ENG-3-7
I35: 8 | J35: 80M.ENG-3-8
I36: 4. SERİ | M36: Rüzgar:
I37: Sıra No | J37: Formül | K37: Göğüs No | L37: Doğum Tarihi | M37: Adı ve Soyadı | N37: İLİ | O37: Derece | P37: El Kronometre | Q37: Seri Geliş
I38: 1 | J38: 80M.ENG-4-1
I39: 2 | J39: 80M.ENG-4-2
I40: 3 | J40: 80M.ENG-4-3
I41: 4 | J41: 80M.ENG-4-4
I42: 5 | J42: 80M.ENG-4-5
I43: 6 | J43: 80M.ENG-4-6
I44: 7 | J44: 80M.ENG-4-7
I45: 8 | J45: 80M.ENG-4-8
A47: Müsabakalar Direktörü | E47: Baş Hakem | F47: Lider | H47: Sekreter | M47: Hakem | N47: Hakem | P47: Hakem
A65536: CELAL KAYAÖZ

Sheet Uzun-A
A1: ='YARIŞMA BİLGİLERİ'!A2:K2 -> Türkiye Atletizm Federasyonu İzmir Atletizm İl Temsilciliği
A2: ='YARIŞMA BİLGİLERİ'!A14:K14 -> Naili Moran Türkiye Atletizm Şampiyonası
A3: Yarışma : | D3: ='YARIŞMA PROGRAMI'!C12 -> Uzun Atlama A Grubu
A4: Kategori : | D4: ='YARIŞMA BİLGİLERİ'!F21 -> 13 Yaş Erkekler | I4: Tarih-Saat : | K4: ='YARIŞMA PROGRAMI'!B12 -> 14 Haziran 2014 - 11:45
J5: 41804.65133
A6: SIRA NO | C6: GÖĞÜS NO | D6: DOĞUM TARİHİ Gün/Ay/Yıl | E6: ADI VE SOYADI | F6: İLİ | G6: A T L A M A L A R | J6: SONUÇ | K6: PUAN | L6: RÜZGAR
G7: 1 | H7: 2 | I7: 3
A8: 1 | B8: UZUN-a-22 | C8: 700 | D8: 2002-05-18 | E8: HAYDAR ARİZ | F8: TOKAT | G8: 555 | H8: 526 | I8: 523 | J8: 555 | K8: 90
A9: 2 | B9: UZUN-a-22 | C9: 682 | D9: 2001-01-01 | E9: BATUHAN ÇAKIR | F9: TEKİRDAĞ | G9: 535 | H9: 513 | I9: 522 | J9: 535 | K9: 88
A10: 3 | B10: UZUN-a-26 | C10: 511 | D10: 2001-01-21 | E10: EMİN BURAK ÇAPA | F10: KOCAELİ | G10: 533 | H10: 512 | I10: 524 | J10: 533 | K10: 87
A11: 4 | B11: UZUN-a-32 | C11: 85 | D11: 2001-01-01 | E11: YILMAZ BERKE KARATAŞ | F11: AYDIN | G11: 489 | H11: 498 | I11: 529 | J11: 529 | K11: 86
A12: 5 | B12: UZUN-a-9 | C12: 206 | D12: 2001-01-01 | E12: YUNUS EMRE GÜMÜŞ | F12: BURSA | G12: X | H12: 508 | I12: 521 | J12: 521 | K12: 85
A13: 6 | B13: UZUN-a-20 | C13: 432 | D13: 2001-03-01 | E13: YUNUS EMRE GEZGİN | F13: İZMİR | G13: 515 | H13: 496 | I13: 518 | J13: 518 | K13: 84
A14: 7 | B14: UZUN-a-11 | C14: 204 | D14: 2001-05-04 | E14: BERK DENİZ ÇELEN | F14: BURSA | G14: 511 | H14: 518 | I14: 514 | J14: 518 | K14: 84
A15: 8 | B15: UZUN-a-33 | C15: 236 | D15: 2001-01-01 | E15: MEHMET KUZU | F15: DİYARBAKIR | G15: 496 | H15: 465 | I15: 518 | J15: 518 | K15: 84
A16: 10 | B16: UZUN-a-31 | C16: 642 | D16: 2001-02-13 | E16: SEYFİCAN ÜNYELİ | F16: SAMSUN | G16: 510 | H16: 479 | I16: 514 | J16: 514 | K16: 83
A17: 11 | B17: UZUN-a-25 | C17: 685 | D17: 2001-05-22 | E17: ÖNDER ATUN | F17: TEKİRDAĞ | G17: 504 | H17: X | I17: 490 | J17: 504 | K17: 81
A18: 12 | B18: UZUN-a-23 | C18: 284 | D18: 2001-01-01 | E18: MAHMUT CAN KURTARAN | F18: GAZİANTEP | G18: X | H18: X | I18: 503 | J18: 503 | K18: 81
A19: 13 | B19: UZUN-a-27 | C19: 195 | D19: 2001-01-01 | E19: ALI HUSSEIN AMER | F19: BURDUR | G19: 498 | H19: 482 | I19: 494 | J19: 498 | K19: 80
A20: 14 | B20: UZUN-a-1 | C20: 14 | D20: 2001-01-01 | E20: KENAN KODAÇ | F20: ADANA | G20: 497 | H20: 492 | I20: 464 | J20: 497 | K20: 80
A21: 15 | B21: UZUN-a-21 | C21: 158 | D21: 2001-01-08 | E21: SAMET ESATOĞLU | F21: BİLECİK | G21: 450 | H21: X | I21: 482 | J21: 482 | K21: 79
A22: 17 | B22: UZUN-a-8 | C22: 599 | D22: 2001-12-13 | E22: OZAN GALİP BENLİ | F22: NEVŞEHİR | G22: 462 | H22: 447 | I22: X | J22: 462 | K22: 77
A23: 18 | B23: UZUN-a-10 | C23: 732 | D23: 2001-03-22 | E23: SONER TURGUT | F23: BURSA | G23: 455 | H23: 459 | I23: 445 | J23: 459 | K23: 76
A24: 19 | C24: 171 | D24: 2002-01-01 | E24: ÖMER UÇAR | F24: BİNGÖL | G24: 438 | H24: 459 | I24: 442 | J24: 459 | K24: 76
A25: 20 | B25: UZUN-a-4 | C25: 250 | D25: 2001-04-20 | E25: ŞAKİR YEŞİL | F25: ERZİNCAN | G25: 453 | H25: 455 | I25: 420 | J25: 455 | K25: 76
A26: 21 | B26: UZUN-a-35 | C26: 41 | D26: 2001-05-04 | E26: SERKAN CAN | F26: AKSARAY | G26: 438 | H26: 450 | I26: - | J26: 450 | K26: 76
A27: 22 | B27: UZUN-a-24 | C27: 725 | D27: 2001-01-01 | E27: BURAK ATIZ | F27: TUNCELİ | G27: 446 | H27: 442 | I27: 444 | J27: 446 | K27: 75
A28: 23 | B28: UZUN-a-7 | C28: 596 | D28: 2001-10-02 | E28: ÖMER ŞEN | F28: NEVŞEHİR | G28: 426 | H28: X | I28: - | J28: 426 | K28: 73
A29: 24 | B29: UZUN-a-34 | C29: 42 | D29: 2001-02-14 | E29: EMİRCAN EROĞLU | F29: AKSARAY | G29: 423 | H29: 421 | I29: - | J29: 423 | K29: 73
A30: 25 | B30: UZUN-a-28 | C30: 343 | D30: 2001-12-20 | E30: METİN GÜRDAL | F30: ISPARTA | G30: 333 | H30: 383 | I30: 400 | J30: 400 | K30: 71
A31: 27 | B31: UZUN-a-16 | C31: 313 | D31: 2001-09-21 | E31: HÜSEYİN YALÇIN | F31: HATAY | G31: 384 | H31: 374 | I31: - | J31: 384 | K31: 66
A32: 28 | B32: UZUN-a-12 | C32: 63 | D32: 2001-01-01 | E32: HÜSEYİN ŞENTÜRK | F32: ARDAHAN | G32: 370 | H32: X | I32: 373 | J32: 373 | K32: 62
A33: 29 | B33: UZUN-a-2 | C33: 597 | D33: 2001-03-12 | E33: ONUR ÇALIŞKAN | F33: NEVŞEHİR | G33: 372 | H33: 365 | I33: X | J33: 372 | K33: 62
A34: 30 | B34: UZUN-a-15 | C34: 595 | D34: 2001-08-03 | E34: YASİN İNCİ | F34: NEVŞEHİR | G34: 357 | H34: 345 | I34: - | J34: 357 | K34: 57
A35: 31 | B35: UZUN-a-17 | C35: 267 | D35: 2001-10-27 | E35: ENES YAZICI | F35: ERZURUM | G35: 314 | H35: 353 | I35: 328 | J35: 353 | K35: 55
A36: 32 | B36: UZUN-a-18 | C36: 255 | D36: 2001-02-25 | E36: ERAY ŞEKER | F36: ERZİNCAN | G36: 345 | H36: 325 | I36: X | J36: 345 | K36: 53
A37: - | B37: UZUN-a-3 | C37: 598 | D37: 2001-04-11 | E37: M.BURAK İNCİ | F37: NEVŞEHİR | J37: DNS | K37: 0
A38: - | B38: UZUN-a-6 | C38: 30 | D38: 2001-09-07 | E38: BİLAL AKTAŞ | F38: ADIYAMAN | J38: DNS | K38: 0
A39: - | B39: UZUN-a-13 | C39: 29 | D39: 2001-04-03 | E39: MUSTAFA TANDOĞAN | F39: ADIYAMAN | J39: DNS | K39: 0
A40: - | B40: UZUN-a-19 | C40: 302 | D40: 2001-04-15 | E40: YELDA YAĞMUR | F40: GİRESUN | J40: DNS | K40: 0
B41: UZUN-a-36 | J41: 0
A43: Müsabaka Direktörü | E43: Baş Hakem | F43: Lider | G43: Sekreter | J43: Hakem
A65530: CELAL KAYAÖZ

Sheet Uzun-B
A1: ='YARIŞMA BİLGİLERİ'!A2:K2 -> Türkiye Atletizm Federasyonu İzmir Atletizm İl Temsilciliği
A2: ='YARIŞMA BİLGİLERİ'!A14:K14 -> Naili Moran Türkiye Atletizm Şampiyonası
A3: Yarışma : | D3: ='YARIŞMA PROGRAMI'!C13 -> Uzun Atlama B Grubu
A4: Kategori : | D4: ='YARIŞMA BİLGİLERİ'!F21 -> 13 Yaş Erkekler | I4: Tarih-Saat : | K4: ='YARIŞMA PROGRAMI'!B13 -> 14 Haziran 2014 - 11:45
J5: 41804.67038
A6: SIRA NO | C6: GÖĞÜS NO | D6: DOĞUM TARİHİ Gün/Ay/Yıl | E6: ADI VE SOYADI | F6: İLİ | G6: A T L A M A L A R | J6: SONUÇ | K6: PUAN | L6: RÜZGAR
G7: 1 | H7: 2 | I7: 3
A8: 1 | B8: UZUN-b-33 | C8: 681 | D8: 2001-04-25 | E8: OĞUZ KAĞAN HACIOĞLU | F8: TEKİRDAĞ | G8: 501 | H8: 483 | I8: 489 | J8: 501 | K8: 81
A9: 2 | B9: UZUN-b-28 | C9: 420 | D9: 2001-01-11 | E9: HÜSEYİN GÖRKEM DENİZ | F9: İZMİR | G9: X | H9: 495 | I9: 463 | J9: 495 | K9: 80
A10: 3 | B10: UZUN-b-14 | C10: 578 | D10: 2001-03-23 | E10: Cihan AKOVA | F10: MUŞ | G10: 490 | H10: 491 | I10: 472 | J10: 491 | K10: 80
A11: 4 | B11: UZUN-b-31 | C11: 436 | D11: 2001-02-17 | E11: MUSTAFA ÇİÇEK | F11: İZMİR | G11: 482 | H11: 490 | I11: 473 | J11: 490 | K11: 80
A12: 5 | B12: UZUN-b-35 | C12: 117 | D12: 2001-01-01 | E12: Y.İZZET EROL | F12: BALIKESİR | G12: 485 | H12: 468 | I12: 481 | J12: 485 | K12: 79
A13: 6 | B13: UZUN-b-13 | C13: 437 | D13: 2001-01-10 | E13: KUBİLAY ENCÜ | F13: İZMİR | G13: 474 | H13: 462 | I13: 485 | J13: 485 | K13: 79
A14: 7 | B14: UZUN-b-3 | C14: 453 | D14: 2001-04-06 | E14: MEHMET ÖZGÜR | F14: İZMİR | G14: 485 | H14: 312 | I14: 357 | J14: 485 | K14: 79
A15: 8 | B15: UZUN-b-16 | C15: 567 | D15: 2001-01-01 | E15: ÜMİT GÜLER | F15: MUĞLA | G15: 454 | H15: 456 | I15: 479 | J15: 479 | K15: 78
A16: 9 | B16: UZUN-b-34 | C16: 530 | D16: 2001-03-20 | E16: YUNUS EMRE KIZIL | F16: KONYA | G16: 471 | H16: 402 | I16: 478 | J16: 478 | K16: 78
A17: 10 | B17: UZUN-b-30 | C17: 731 | D17: 2001-02-21 | E17: SAMET ÖZER | F17: BURSA | G17: X | H17: 465 | I17: 478 | J17: 478 | K17: 78
A18: 12 | B18: UZUN-b-11 | C18: 553 | D18: 2001-01-01 | E18: HALİL SONKAYA | F18: KÜTAHYA | G18: 432 | H18: 460 | I18: 468 | J18: 468 | K18: 77
A19: 13 | B19: UZUN-b-24 | C19: 533 | D19: 2001-01-01 | E19: SEZEN ÇİĞDEM | F19: KONYA | G19: 459 | H19: 455 | I19: X | J19: 459 | K19: 76
A20: 14 | B20: UZUN-b-7 | C20: 172 | D20: 2001-01-01 | E20: SERDAL ELELÇİ | F20: BİNGÖL | G20: 455 | H20: 449 | I20: 432 | J20: 455 | K20: 76
A21: 15 | B21: UZUN-b-32 | C21: 547 | D21: 2001-02-21 | E21: ADİL KARAKAŞ | F21: KÜTAHYA | G21: 448 | H21: 455 | I21: 441 | J21: 455 | K21: 76
A22: 16 | B22: UZUN-b-10 | C22: 159 | D22: 2001-08-07 | E22: HÜSEYİN TURHAN | F22: BİLECİK | G22: 447 | H22: 411 | I22: 412 | J22: 447 | K22: 75
A23: 17 | B23: UZUN-b-29 | C23: 582 | D23: 2001-05-19 | E23: Adem KOÇLARDAN | F23: MUŞ | G23: 446 | H23: 416 | I23: 427 | J23: 446 | K23: 75
A24: 18 | B24: UZUN-b-9 | C24: 126 | D24: 2001-03-16 | E24: AHMET İRFAN ÖZDİL | F24: BARTIN | G24: 436 | H24: 428 | I24: 428 | J24: 436 | K24: 74
A25: 19 | B25: UZUN-b-19 | C25: 287 | D25: 2001-01-01 | E25: MUSTAFA EREN YILMAZ | F25: GAZİANTEP | G25: 411 | H25: 436 | I25: X | J25: 436 | K25: 74
A26: 21 | B26: UZUN-b-6 | C26: 568 | D26: 2001-04-03 | E26: AHMET CAN SÜRAL | F26: MUĞLA | G26: 422 | H26: 430 | I26: 427 | J26: 430 | K26: 74
A27: 22 | B27: UZUN-b-26 | C27: 694 | D27: 2001-03-27 | E27: HÜSEYİM KURT | F27: TOKAT | G27: 423 | H27: 425 | I27: 399 | J27: 425 | K27: 73
A28: 23 | B28: UZUN-b-23 | C28: 552 | D28: 2001-11-16 | E28: İBRAHİM SUBAŞI | F28: KÜTAHYA | G28: 422 | H28: 418 | I28: 404 | J28: 422 | K28: 73
A29: 24 | B29: UZUN-b-22 | C29: 481 | D29: 2001-10-23 | E29: ABDULKADİR EREN | F29: KIRIKKALE | G29: 370 | H29: 417 | I29: 420 | J29: 420 | K29: 73
A30: 26 | B30: UZUN-b-17 | C30: 726 | D30: 2001-01-01 | E30: HAKTAN YILDIZ | F30: TUNCELİ | G30: 371 | H30: 388 | I30: 378 | J30: 388 | K30: 67
A31: 27 | B31: UZUN-b-15 | C31: 285 | D31: 2001-01-01 | E31: HASAN HIDIR | F31: GAZİANTEP | G31: 307 | H31: 388 | I31: 355 | J31: 388 | K31: 67
A32: 28 | B32: UZUN-b-12 | C32: 113 | D32: 2001-06-02 | E32: ALİ KOŞAR | F32: BALIKESİR | G32: 347 | H32: 382 | I32: 328 | J32: 382 | K32: 65
A33: 29 | B33: UZUN-b-2 | C33: 173 | D33: 2001-01-01 | E33: YASİR BİRGİN | F33: BİNGÖL | G33: 381 | H33: 373 | I33: 379 | J33: 381 | K33: 65
A34: 30 | B34: UZUN-b-8 | C34: 607 | D34: 2001-02-09 | E34: MEHMET DAYAN | F34: NİĞDE | G34: 367 | H34: 379 | I34: - | J34: 379 | K34: 64
A35: 31 | B35: UZUN-b-36 | C35: 160 | D35: 2001-01-16 | E35: FERDİ FIRAT TAŞKIRAN | F35: BİLECİK | G35: 337 | H35: 358 | I35: 346 | J35: 358 | K35: 57
A36: 32 | B36: UZUN-b-1 | C36: 744 | D36: 2001-03-04 | E36: CEYHUN SEVİNÇ | F36: SAKARYA | G36: X | H36: 325 | I36: - | J36: 325 | K36: 46
A37: 33 | B37: UZUN-b-21 | C37: 656 | D37: 2001-02-01 | E37: HAYRETTİN KAYA | F37: SİİRT | G37: 299 | H37: 301 | I37: X | J37: 301 | K37: 38
A38: 34 | B38: UZUN-b-4 | C38: 658 | D38: 2001-02-05 | E38: HASAN EREN | F38: SİİRT | G38: 274 | H38: 285 | I38: 266 | J38: 285 | K38: 33
A39: - | B39: UZUN-b-20 | C39: 438 | D39: 2001-02-04 | E39: ZEYNEL ABİDİN NECMİOĞLU | F39: İZMİR | G39: X | H39: X | I39: X | J39: NM | K39: 0
A40: - | B40: UZUN-b-5 | C40: 455 | D40: 2001-01-09 | E40: BATUHAN ORHUNBİLGE | F40: İZMİR | J40: DNS | K40: 0
B41: UZUN-b-37 | J41: 0
B42: UZUN-b-38 | J42: 0
B43: UZUN-b-39 | J43: 0
B44: UZUN-b-40 | C44: =IF(ISERROR(VLOOKUP(B44,'KAYIT LİSTESİ'!$B$4:$H$855,2,0)),"",(VLOOKUP(B44,'KAYIT LİSTESİ'!$B$4:$H$855,2,0))) ->  | D44: =IF(ISERROR(VLOOKUP(B44,'KAYIT LİSTESİ'!$B$4:$H$855,4,0)),"",(VLOOKUP(B44,'KAYIT LİSTESİ'!$B$4:$H$855,4,0))) ->  | E44: =IF(ISERROR(VLOOKUP(B44,'KAYIT LİSTESİ'!$B$4:$H$855,5,0)),"",(VLOOKUP(B44,'KAYIT LİSTESİ'!$B$4:$H$855,5,0))) ->  | F44: =IF(ISERROR(VLOOKUP(B44,'KAYIT LİSTESİ'!$B$4:$H$855,6,0)),"",(VLOOKUP(B44,'KAYIT LİSTESİ'!$B$4:$H$855,6,0))) ->  | J44: =MAX(G44:I44) -> 0 | K44: =IF(LEN(J44)>0,VLOOKUP(J44,puan!$AA$4:$AH$111,8)-IF(COUNTIF(puan!$AA$4:$AH$111,J44)=0,0,0)," ") -> 
A46: Müsabaka Direktörü | E46: Baş Hakem | F46: Lider | G46: Sekreter | J46: Hakem
A65533: CELAL KAYAÖZ

Sheet Uzun Atlama Genel
A1: ='YARIŞMA BİLGİLERİ'!A2:K2 -> Türkiye Atletizm Federasyonu İzmir Atletizm İl Temsilciliği
A2: ='YARIŞMA BİLGİLERİ'!A14:K14 -> Naili Moran Türkiye Atletizm Şampiyonası
A3: Yarışma : | D3: Uzun Atlama Genel Sonuçları
A4: Kategori : | D4: ='YARIŞMA BİLGİLERİ'!F21 -> 13 Yaş Erkekler | I4: Tarih-Saat : | K4: ='YARIŞMA PROGRAMI'!B12 -> 14 Haziran 2014 - 11:45
J5: 41804.67595
A6: SIRA NO | C6: GÖĞÜS NO | D6: DOĞUM TARİHİ Gün/Ay/Yıl | E6: ADI VE SOYADI | F6: İLİ | G6: A T L A M A L A R | J6: SONUÇ | K6: PUAN | L6: RÜZGAR
G7: 1 | H7: 2 | I7: 3
A8: 1 | B8: UZUN-a-22 | C8: 700 | D8: 2002-05-18 | E8: HAYDAR ARİZ | F8: TOKAT | G8: 555 | H8: 526 | I8: 523 | J8: 555 | K8: 90
A9: 2 | B9: UZUN-a-22 | C9: 682 | D9: 2001-01-01 | E9: BATUHAN ÇAKIR | F9: TEKİRDAĞ | G9: 535 | H9: 513 | I9: 522 | J9: 535 | K9: 88
A10: 3 | B10: UZUN-a-26 | C10: 511 | D10: 2001-01-21 | E10: EMİN BURAK ÇAPA | F10: KOCAELİ | G10: 533 | H10: 512 | I10: 524 | J10: 533 | K10: 87
A11: 4 | B11: UZUN-a-32 | C11: 85 | D11: 2001-01-01 | E11: YILMAZ BERKE KARATAŞ | F11: AYDIN | G11: 489 | H11: 498 | I11: 529 | J11: 529 | K11: 86
A12: 5 | B12: UZUN-a-9 | C12: 206 | D12: 2001-01-01 | E12: YUNUS EMRE GÜMÜŞ | F12: BURSA | G12: X | H12: 508 | I12: 521 | J12: 521 | K12: 85
A13: 6 | B13: UZUN-a-20 | C13: 432 | D13: 2001-03-01 | E13: YUNUS EMRE GEZGİN | F13: İZMİR | G13: 515 | H13: 496 | I13: 518 | J13: 518 | K13: 84
A14: 7 | B14: UZUN-a-11 | C14: 204 | D14: 2001-05-04 | E14: BERK DENİZ ÇELEN | F14: BURSA | G14: 511 | H14: 518 | I14: 514 | J14: 518 | K14: 84
A15: 8 | B15: UZUN-a-33 | C15: 236 | D15: 2001-01-01 | E15: MEHMET KUZU | F15: DİYARBAKIR | G15: 496 | H15: 465 | I15: 518 | J15: 518 | K15: 84
A16: 9 | B16: UZUN-a-31 | C16: 642 | D16: 2001-02-13 | E16: SEYFİCAN ÜNYELİ | F16: SAMSUN | G16: 510 | H16: 479 | I16: 514 | J16: 514 | K16: 83
A17: 10 | B17: UZUN-a-25 | C17: 685 | D17: 2001-05-22 | E17: ÖNDER ATUN | F17: TEKİRDAĞ | G17: 504 | H17: X | I17: 490 | J17: 504 | K17: 81
A18: 11 | B18: UZUN-a-23 | C18: 284 | D18: 2001-01-01 | E18: MAHMUT CAN KURTARAN | F18: GAZİANTEP | G18: X | H18: X | I18: 503 | J18: 503 | K18: 81
A19: 12 | B19: UZUN-b-33 | C19: 681 | D19: 2001-04-25 | E19: OĞUZ KAĞAN HACIOĞLU | F19: TEKİRDAĞ | G19: 501 | H19: 483 | I19: 489 | J19: 501 | K19: 81
A20: 13 | B20: UZUN-a-27 | C20: 195 | D20: 2001-01-01 | E20: ALI HUSSEIN AMER | F20: BURDUR | G20: 498 | H20: 482 | I20: 494 | J20: 498 | K20: 80
A21: 14 | B21: UZUN-a-1 | C21: 14 | D21: 2001-01-01 | E21: KENAN KODAÇ | F21: ADANA | G21: 497 | H21: 492 | I21: 464 | J21: 497 | K21: 80
A22: 15 | B22: UZUN-b-28 | C22: 420 | D22: 2001-01-11 | E22: HÜSEYİN GÖRKEM DENİZ | F22: İZMİR | G22: X | H22: 495 | I22: 463 | J22: 495 | K22: 80
A23: 16 | B23: UZUN-b-14 | C23: 578 | D23: 2001-03-23 | E23: Cihan AKOVA | F23: MUŞ | G23: 490 | H23: 491 | I23: 472 | J23: 491 | K23: 80
A24: 17 | B24: UZUN-b-31 | C24: 436 | D24: 2001-02-17 | E24: MUSTAFA ÇİÇEK | F24: İZMİR | G24: 482 | H24: 490 | I24: 473 | J24: 490 | K24: 80
A25: 18 | B25: UZUN-b-35 | C25: 117 | D25: 2001-01-01 | E25: Y.İZZET EROL | F25: BALIKESİR | G25: 485 | H25: 468 | I25: 481 | J25: 485 | K25: 79
A26: 19 | B26: UZUN-b-13 | C26: 437 | D26: 2001-01-10 | E26: KUBİLAY ENCÜ | F26: İZMİR | G26: 474 | H26: 462 | I26: 485 | J26: 485 | K26: 79
A27: 20 | B27: UZUN-b-3 | C27: 453 | D27: 2001-04-06 | E27: MEHMET ÖZGÜR | F27: İZMİR | G27: 485 | H27: 312 | I27: 357 | J27: 485 | K27: 79
A28: 21 | B28: UZUN-a-21 | C28: 158 | D28: 2001-01-08 | E28: SAMET ESATOĞLU | F28: BİLECİK | G28: 450 | H28: X | I28: 482 | J28: 482 | K28: 79
A29: 22 | B29: UZUN-b-16 | C29: 567 | D29: 2001-01-01 | E29: ÜMİT GÜLER | F29: MUĞLA | G29: 454 | H29: 456 | I29: 479 | J29: 479 | K29: 78
A30: 23 | B30: UZUN-b-34 | C30: 530 | D30: 2001-03-20 | E30: YUNUS EMRE KIZIL | F30: KONYA | G30: 471 | H30: 402 | I30: 478 | J30: 478 | K30: 78
A31: 24 | B31: UZUN-b-30 | C31: 731 | D31: 2001-02-21 | E31: SAMET ÖZER | F31: BURSA | G31: X | H31: 465 | I31: 478 | J31: 478 | K31: 78
A32: 25 | B32: UZUN-b-11 | C32: 553 | D32: 2001-01-01 | E32: HALİL SONKAYA | F32: KÜTAHYA | G32: 432 | H32: 460 | I32: 468 | J32: 468 | K32: 77
A33: 26 | B33: UZUN-a-8 | C33: 599 | D33: 2001-12-13 | E33: OZAN GALİP BENLİ | F33: NEVŞEHİR | G33: 462 | H33: 447 | I33: X | J33: 462 | K33: 77
A34: 27 | B34: UZUN-a-10 | C34: 732 | D34: 2001-03-22 | E34: SONER TURGUT | F34: BURSA | G34: 455 | H34: 459 | I34: 445 | J34: 459 | K34: 76
A35: 28 | B35: UZUN-b-24 | C35: 533 | D35: 2001-01-01 | E35: SEZEN ÇİĞDEM | F35: KONYA | G35: 459 | H35: 455 | I35: X | J35: 459 | K35: 76
A36: 29 | C36: 171 | D36: 2002-01-01 | E36: ÖMER UÇAR | F36: BİNGÖL | G36: 438 | H36: 459 | I36: 442 | J36: 459 | K36: 76
A37: 30 | B37: UZUN-a-4 | C37: 250 | D37: 2001-04-20 | E37: ŞAKİR YEŞİL | F37: ERZİNCAN | G37: 453 | H37: 455 | I37: 420 | J37: 455 | K37: 76
A38: 31 | B38: UZUN-b-7 | C38: 172 | D38: 2001-01-01 | E38: SERDAL ELELÇİ | F38: BİNGÖL | G38: 455 | H38: 449 | I38: 432 | J38: 455 | K38: 76
A39: 32 | B39: UZUN-b-32 | C39: 547 | D39: 2001-02-21 | E39: ADİL KARAKAŞ | F39: KÜTAHYA | G39: 448 | H39: 455 | I39: 441 | J39: 455 | K39: 76
A40: 33 | B40: UZUN-a-35 | C40: 41 | D40: 2001-05-04 | E40: SERKAN CAN | F40: AKSARAY | G40: 438 | H40: 450 | I40: - | J40: 450 | K40: 76
A41: 34 | B41: UZUN-b-10 | C41: 159 | D41: 2001-08-07 | E41: HÜSEYİN TURHAN | F41: BİLECİK | G41: 447 | H41: 411 | I41: 412 | J41: 447 | K41: 75
A42: 35 | B42: UZUN-a-24 | C42: 725 | D42: 2001-01-01 | E42: BURAK ATIZ | F42: TUNCELİ | G42: 446 | H42: 442 | I42: 444 | J42: 446 | K42: 75
A43: 36 | B43: UZUN-b-29 | C43: 582 | D43: 2001-05-19 | E43: Adem KOÇLARDAN | F43: MUŞ | G43: 446 | H43: 416 | I43: 427 | J43: 446 | K43: 75
A44: 37 | B44: UZUN-b-9 | C44: 126 | D44: 2001-03-16 | E44: AHMET İRFAN ÖZDİL | F44: BARTIN | G44: 436 | H44: 428 | I44: 428 | J44: 436 | K44: 74
A45: 38 | B45: UZUN-b-19 | C45: 287 | D45: 2001-01-01 | E45: MUSTAFA EREN YILMAZ | F45: GAZİANTEP | G45: 411 | H45: 436 | I45: X | J45: 436 | K45: 74
A46: 39 | B46: UZUN-b-6 | C46: 568 | D46: 2001-04-03 | E46: AHMET CAN SÜRAL | F46: MUĞLA | G46: 422 | H46: 430 | I46: 427 | J46: 430 | K46: 74
A47: 40 | B47: UZUN-a-7 | C47: 596 | D47: 2001-10-02 | E47: ÖMER ŞEN | F47: NEVŞEHİR | G47: 426 | H47: X | I47: - | J47: 426 | K47: 73
A48: 41 | B48: UZUN-b-26 | C48: 694 | D48: 2001-03-27 | E48: HÜSEYİM KURT | F48: TOKAT | G48: 423 | H48: 425 | I48: 399 | J48: 425 | K48: 73
A49: 42 | B49: UZUN-a-34 | C49: 42 | D49: 2001-02-14 | E49: EMİRCAN EROĞLU | F49: AKSARAY | G49: 423 | H49: 421 | I49: - | J49: 423 | K49: 73
A50: 43 | B50: UZUN-b-23 | C50: 552 | D50: 2001-11-16 | E50: İBRAHİM SUBAŞI | F50: KÜTAHYA | G50: 422 | H50: 418 | I50: 404 | J50: 422 | K50: 73
A51: 44 | B51: UZUN-b-22 | C51: 481 | D51: 2001-10-23 | E51: ABDULKADİR EREN | F51: KIRIKKALE | G51: 370 | H51: 417 | I51: 420 | J51: 420 | K51: 73
A52: 45 | B52: UZUN-a-28 | C52: 343 | D52: 2001-12-20 | E52: METİN GÜRDAL | F52: ISPARTA | G52: 333 | H52: 383 | I52: 400 | J52: 400 | K52: 71
A53: 46 | B53: UZUN-b-17 | C53: 726 | D53: 2001-01-01 | E53: HAKTAN YILDIZ | F53: TUNCELİ | G53: 371 | H53: 388 | I53: 378 | J53: 388 | K53: 67
A54: 47 | B54: UZUN-b-15 | C54: 285 | D54: 2001-01-01 | E54: HASAN HIDIR | F54: GAZİANTEP | G54: 307 | H54: 388 | I54: 355 | J54: 388 | K54: 67
A55: 48 | B55: UZUN-a-16 | C55: 313 | D55: 2001-09-21 | E55: HÜSEYİN YALÇIN | F55: HATAY | G55: 384 | H55: 374 | I55: - | J55: 384 | K55: 66
A56: 49 | B56: UZUN-b-12 | C56: 113 | D56: 2001-06-02 | E56: ALİ KOŞAR | F56: BALIKESİR | G56: 347 | H56: 382 | I56: 328 | J56: 382 | K56: 65
A57: 50 | B57: UZUN-b-2 | C57: 173 | D57: 2001-01-01 | E57: YASİR BİRGİN | F57: BİNGÖL | G57: 381 | H57: 373 | I57: 379 | J57: 381 | K57: 65
A58: 51 | B58: UZUN-b-8 | C58: 607 | D58: 2001-02-09 | E58: MEHMET DAYAN | F58: NİĞDE | G58: 367 | H58: 379 | I58: - | J58: 379 | K58: 64
A59: 52 | B59: UZUN-a-12 | C59: 63 | D59: 2001-01-01 | E59: HÜSEYİN ŞENTÜRK | F59: ARDAHAN | G59: 370 | H59: X | I59: 373 | J59: 373 | K59: 62
A60: 53 | B60: UZUN-a-2 | C60: 597 | D60: 2001-03-12 | E60: ONUR ÇALIŞKAN | F60: NEVŞEHİR | G60: 372 | H60: 365 | I60: X | J60: 372 | K60: 62
A61: 54 | B61: UZUN-b-36 | C61: 160 | D61: 2001-01-16 | E61: FERDİ FIRAT TAŞKIRAN | F61: BİLECİK | G61: 337 | H61: 358 | I61: 346 | J61: 358 | K61: 57
A62: 55 | B62: UZUN-a-15 | C62: 595 | D62: 2001-08-03 | E62: YASİN İNCİ | F62: NEVŞEHİR | G62: 357 | H62: 345 | I62: - | J62: 357 | K62: 57
A63: 56 | B63: UZUN-a-17 | C63: 267 | D63: 2001-10-27 | E63: ENES YAZICI | F63: ERZURUM | G63: 314 | H63: 353 | I63: 328 | J63: 353 | K63: 55
A64: 57 | B64: UZUN-a-18 | C64: 255 | D64: 2001-02-25 | E64: ERAY ŞEKER | F64: ERZİNCAN | G64: 345 | H64: 325 | I64: X | J64: 345 | K64: 53
A65: 58 | B65: UZUN-b-1 | C65: 744 | D65: 2001-03-04 | E65: CEYHUN SEVİNÇ | F65: SAKARYA | G65: X | H65: 325 | I65: - | J65: 325 | K65: 46
A66: 59 | B66: UZUN-b-21 | C66: 656 | D66: 2001-02-01 | E66: HAYRETTİN KAYA | F66: SİİRT | G66: 299 | H66: 301 | I66: X | J66: 301 | K66: 38
A67: 60 | B67: UZUN-b-4 | C67: 658 | D67: 2001-02-05 | E67: HASAN EREN | F67: SİİRT | G67: 274 | H67: 285 | I67: 266 | J67: 285 | K67: 33
A68: - | B68: UZUN-b-20 | C68: 438 | D68: 2001-02-04 | E68: ZEYNEL ABİDİN NECMİOĞLU | F68: İZMİR | G68: X | H68: X | I68: X | J68: NM | K68: 0
A69: - | B69: UZUN-a-3 | C69: 598 | D69: 2001-04-11 | E69: M.BURAK İNCİ | F69: NEVŞEHİR | J69: DNS | K69: 0
A70: - | B70: UZUN-a-6 | C70: 30 | D70: 2001-09-07 | E70: BİLAL AKTAŞ | F70: ADIYAMAN | J70: DNS | K70: 0
A71: - | B71: UZUN-a-13 | C71: 29 | D71: 2001-04-03 | E71: MUSTAFA TANDOĞAN | F71: ADIYAMAN | J71: DNS | K71: 0
A72: - | B72: UZUN-a-19 | C72: 302 | D72: 2001-04-15 | E72: YELDA YAĞMUR | F72: GİRESUN | J72: DNS | K72: 0
A73: - | B73: UZUN-b-5 | C73: 455 | D73: 2001-01-09 | E73: BATUHAN ORHUNBİLGE | F73: İZMİR | J73: DNS | K73: 0
A75: Müsabaka Direktörü | E75: Baş Hakem | F75: Lider | G75: Sekreter | J75: Hakem
A65562: CELAL KAYAÖZ

Sheet 100m.
A1: =('YARIŞMA BİLGİLERİ'!A2) -> Türkiye Atletizm Federasyonu İzmir Atletizm İl Temsilciliği
A2: ='YARIŞMA BİLGİLERİ'!F19 -> Naili Moran Türkiye Atletizm Şampiyonası
A3: Yarışma : | D3: ='YARIŞMA PROGRAMI'!C7 -> 100 Metre
A4: Kategori : | D4: ='YARIŞMA BİLGİLERİ'!F21 -> 13 Yaş Erkekler | M4: Tarih-Saat : | N4: ='YARIŞMA PROGRAMI'!B7 -> 14 Haziran 2014 - 18:40
N5: 41804.81162
A6: Sıra No | B6: Göğüs No | C6: Doğum Tarihi Gün/Ay/Yıl | D6: Adı ve Soyadı | E6: İLİ | F6: Derece | G6: Puan | I6: 1. SERİ | M6: Rüzgar:
I7: Sıra No | J7: Formül | K7: Göğüs No | L7: Doğum Tarihi | M7: Adı ve Soyadı | N7: İLİ | O7: Derece | P7: El Kronometre | Q7: Seri Geliş
A8: 1 | B8: 85 | C8: 2001-01-01 | D8: YILMAZ BERKE KARATAŞ | E8: AYDIN | F8: 1231 | G8: 89 | I8: 1 | J8: 100M-1-1 | K8: 682 | L8: 2001-01-01 | M8: BATUHAN ÇAKIR | N8: TEKİRDAĞ | O8: 1293 | Q8: 4
A9: 2 | B9: 642 | C9: 2001-02-13 | D9: SEYFİCAN ÜNYELİ | E9: SAMSUN | F9: 1251 | G9: 87 | I9: 2 | J9: 100M-1-2 | K9: 204 | L9: 2001-05-04 | M9: BERK DENİZ ÇELEN | N9: BURSA | O9: 1281 | Q9: 3
A10: 3 | B10: 420 | C10: 2001-01-11 | D10: HÜSEYİN GÖRKEM DENİZ | E10: İZMİR | F10: 1274 | G10: 85 | I10: 3 | J10: 100M-1-3 | K10: 85 | L10: 2001-01-01 | M10: YILMAZ BERKE KARATAŞ | N10: AYDIN | O10: 1231 | Q10: 1
A11: 4 | B11: 438 | C11: 2001-02-04 | D11: ZEYNEL ABİDİN NECMİOĞLU | E11: İZMİR | F11: 1281 | G11: 84 | I11: 4 | J11: 100M-1-4 | K11: 432 | L11: 2001-03-01 | M11: YUNUS EMRE GEZGİN | N11: İZMİR | O11: 1296 | Q11: 6
A12: 5 | B12: 204 | C12: 2001-05-04 | D12: BERK DENİZ ÇELEN | E12: BURSA | F12: 1281 | G12: 84 | I12: 5 | J12: 100M-1-5 | K12: 642 | L12: 2001-02-13 | M12: SEYFİCAN ÜNYELİ | N12: SAMSUN | O12: 1251 | Q12: 2
A13: 6 | B13: 613 | C13: 2001-05-15 | D13: MUSTAFA ÇAĞLAR KORKMAZ | E13: OSMANİYE | F13: 1288 | G13: 84 | I13: 6 | J13: 100M-1-6 | K13: 644 | L13: 2001-06-07 | M13: GÖKHAN BEŞİR | N13: SAMSUN | O13: 1295 | Q13: 5
A14: 7 | B14: 511 | C14: 2001-01-21 | D14: EMİN BURAK ÇAPA | E14: KOCAELİ | F14: 1289 | G14: 84 | I14: 7 | J14: 100M-1-7 | K14: 236 | L14: 2001-01-01 | M14: MEHMET KUZU | N14: DİYARBAKIR | O14: 1310 | Q14: 7
A15: 8 | B15: 682 | C15: 2001-01-01 | D15: BATUHAN ÇAKIR | E15: TEKİRDAĞ | F15: 1293 | G15: 83 | I15: 8 | J15: 100M-1-8 | K15: 731 | L15: 2001-02-21 | M15: SAMET ÖZER | N15: BURSA | O15: 1368 | Q15: 8
A16: 9 | B16: 644 | C16: 2001-06-07 | D16: GÖKHAN BEŞİR | E16: SAMSUN | F16: 1295 | G16: 83 | I16: 2. SERİ | M16: Rüzgar:
A17: 10 | B17: 432 | C17: 2001-03-01 | D17: YUNUS EMRE GEZGİN | E17: İZMİR | F17: 1296 | G17: 83 | I17: Sıra No | J17: Formül | K17: Göğüs No | L17: Doğum Tarihi | M17: Adı ve Soyadı | N17: İLİ | O17: Derece | P17: El Kronometre | Q17: Seri Geliş
A18: 11 | B18: 206 | C18: 2001-01-01 | D18: YUNUS EMRE GÜMÜŞ | E18: BURSA | F18: 1300 | G18: 83 | I18: 1 | J18: 100M-2-1 | K18: 436 | L18: 2001-02-17 | M18: MUSTAFA ÇİÇEK | N18: İZMİR | O18: 1368 | Q18: 5
A19: 12 | B19: 236 | C19: 2001-01-01 | D19: MEHMET KUZU | E19: DİYARBAKIR | F19: 1310 | G19: 82 | I19: 2 | J19: 100M-2-2 | K19: 732 | L19: 2001-03-22 | M19: SONER TURGUT | N19: BURSA | O19: 1373 | Q19: 6
A20: 13 | B20: 685 | C20: 2001-05-22 | D20: ÖNDER ATUN | E20: TEKİRDAĞ | F20: 1324 | G20: 80 | I20: 3 | J20: 100M-2-3 | K20: 511 | L20: 2001-01-21 | M20: EMİN BURAK ÇAPA | N20: KOCAELİ | O20: 1289 | Q20: 2
A21: 14 | B21: 158 | C21: 2001-01-08 | D21: SAMET ESATOĞLU | E21: BİLECİK | F21: 1349 | G21: 78 | I21: 4 | J21: 100M-2-4 | K21: 420 | L21: 2001-01-11 | M21: HÜSEYİN GÖRKEM DENİZ | N21: İZMİR | O21: 1274 | Q21: 1
A22: 15 | B22: 436 | C22: 2001-02-17 | D22: MUSTAFA ÇİÇEK | E22: İZMİR | F22: 1368 | G22: 76 | I22: 5 | J22: 100M-2-5 | K22: 158 | L22: 2001-01-08 | M22: SAMET ESATOĞLU | N22: BİLECİK | O22: 1349 | Q22: 4
A23: 16 | B23: 731 | C23: 2001-02-21 | D23: SAMET ÖZER | E23: BURSA | F23: 1368 | G23: 76 | I23: 6 | J23: 100M-2-6 | K23: 725 | L23: 2001-01-01 | M23: BURAK ATIZ | N23: TUNCELİ | O23: 1452 | Q23: 7
A24: 17 | B24: 732 | C24: 2001-03-22 | D24: SONER TURGUT | E24: BURSA | F24: 1373 | G24: 75 | I24: 7 | J24: 100M-2-7 | K24: 685 | L24: 2001-05-22 | M24: ÖNDER ATUN | N24: TEKİRDAĞ | O24: 1324 | Q24: 3
A25: 18 | B25: 567 | C25: 2001-01-01 | D25: ÜMİT GÜLER | E25: MUĞLA | F25: 1381 | G25: 74 | I25: 8 | J25: 100M-2-8
A26: 19 | B26: 437 | C26: 2001-01-10 | D26: KUBİLAY ENCÜ | E26: İZMİR | F26: 1386 | G26: 74 | I26: 3. SERİ | M26: Rüzgar:
A27: 20 | B27: 713 | C27: 2001-01-03 | D27: ASLAN KAĞAN KALINTAŞ | E27: TRABZON | F27: 1396 | G27: 73 | I27: Sıra No | J27: Formül | K27: Göğüs No | L27: Doğum Tarihi | M27: Adı ve Soyadı | N27: İLİ | O27: Derece | P27: El Kronometre | Q27: Seri Geliş
A28: 21 | B28: 547 | C28: 2001-02-21 | D28: ADİL KARAKAŞ | E28: KÜTAHYA | F28: 1420 | G28: 69 | I28: 1 | J28: 100M-3-1 | K28: 450 | L28: 2001-01-04 | M28: FURKAN ÇEKEN | N28: İZMİR | O28: 1596 | Q28: 6
A29: 22 | B29: 703 | C29: 2001-01-15 | D29: MEHMET EMİN KILINÇ | E29: TOKAT | F29: 1432 | G29: 65 | I29: 2 | J29: 100M-3-2 | K29: 437 | L29: 2001-01-10 | M29: KUBİLAY ENCÜ | N29: İZMİR | O29: 1386 | Q29: 2
A30: 23 | B30: 725 | C30: 2001-01-01 | D30: BURAK ATIZ | E30: TUNCELİ | F30: 1452 | G30: 61 | I30: 3 | J30: 100M-3-3 | K30: 713 | L30: 2001-01-03 | M30: ASLAN KAĞAN KALINTAŞ | N30: TRABZON | O30: 1396 | Q30: 3
A31: 24 | B31: 450 | C31: 2001-01-04 | D31: FURKAN ÇEKEN | E31: İZMİR | F31: 1596 | G31: 41 | I31: 4 | J31: 100M-3-4 | K31: 438 | L31: 2001-02-04 | M31: ZEYNEL ABİDİN NECMİOĞLU | N31: İZMİR | O31: 1281 | Q31: 1
A32: 25 | B32: 255 | C32: 2001-02-25 | D32: ERAY ŞEKER | E32: ERZİNCAN | F32: 1714 | G32: 29 | I32: 5 | J32: 100M-3-5 | K32: 703 | L32: 2001-01-15 | M32: MEHMET EMİN KILINÇ | N32: TOKAT | O32: 1432 | Q32: 5
A33: - | B33: 417 | C33: 2001-01-18 | D33: MUSTAFA ASLANER | E33: İZMİR | F33: DNS | G33: 0 | I33: 6 | J33: 100M-3-6 | K33: 547 | L33: 2001-02-21 | M33: ADİL KARAKAŞ | N33: KÜTAHYA | O33: 1420 | Q33: 4
A34: - | B34: 455 | C34: 2001-01-09 | D34: BATUHAN ORHUNBİLGE | E34: İZMİR | F34: DNS | G34: 0 | I34: 7 | J34: 100M-3-7 | K34: 417 | L34: 2001-01-18 | M34: MUSTAFA ASLANER | N34: İZMİR | O34: DNS | Q34: -
A35: - | B35: 302 | C35: 2001-04-15 | D35: YELDA YAĞMUR | E35: GİRESUN | F35: DNS | G35: 0 | I35: 8 | J35: 100M-3-8
A36: - | B36: 86 | C36: 2001-05-14 | D36: İBRAHİM BULUT | E36: AYDIN | F36: DNS | G36: 0 | I36: 4. SERİ | M36: Rüzgar:
I37: Sıra No | J37: Formül | K37: Göğüs No | L37: Doğum Tarihi | M37: Adı ve Soyadı | N37: İLİ | O37: Derece | P37: El Kronometre | Q37: Seri Geliş
I38: 1 | J38: 100M-4-1 | K38: 455 | L38: 2001-01-09 | M38: BATUHAN ORHUNBİLGE | N38: İZMİR | O38: DNS | Q38: -
I39: 2 | J39: 100M-4-2 | K39: 302 | L39: 2001-04-15 | M39: YELDA YAĞMUR | N39: GİRESUN | O39: DNS | Q39: -
I40: 3 | J40: 100M-4-3 | K40: 255 | L40: 2001-02-25 | M40: ERAY ŞEKER | N40: ERZİNCAN | O40: 1714 | Q40: 4
I41: 4 | J41: 100M-4-4 | K41: 567 | L41: 2001-01-01 | M41: ÜMİT GÜLER | N41: MUĞLA | O41: 1381 | Q41: 3
I42: 5 | J42: 100M-4-5 | K42: 86 | L42: 2001-05-14 | M42: İBRAHİM BULUT | N42: AYDIN | O42: DNS | Q42: -
I43: 6 | J43: 100M-4-6 | K43: 206 | L43: 2001-01-01 | M43: YUNUS EMRE GÜMÜŞ | N43: BURSA | O43: 1300 | Q43: 2
I44: 7 | J44: 100M-4-7 | K44: 613 | L44: 2001-05-15 | M44: MUSTAFA ÇAĞLAR KORKMAZ | N44: OSMANİYE | O44: 1288 | Q44: 1
I45: 8 | J45: 100M-4-8
A47: Müsabakalar Direktörü | E47: Baş Hakem | F47: Lider | H47: Sekreter | M47: Hakem | N47: Hakem | P47: Hakem
A65536: CELAL KAYAÖZ

Sheet Yüksek
A1: =('YARIŞMA BİLGİLERİ'!A2) -> Türkiye Atletizm Federasyonu İzmir Atletizm İl Temsilciliği | BU1: DERECE
A2: ='YARIŞMA BİLGİLERİ'!F19 -> Naili Moran Türkiye Atletizm Şampiyonası | BU2: 1 | BV2: 0
A3: Yarışma : | E3: ='YARIŞMA PROGRAMI'!C11 -> Yüksek Atlama | BU3: 98 | BV3: 1
A4: Kategori : | E4: ='YARIŞMA BİLGİLERİ'!F21 -> 13 Yaş Erkekler | AW4: Tarih-Saat : | BC4: ='YARIŞMA PROGRAMI'!B11 -> 14 Haziran 2014 - 17:00 | BU4: 100 | BV4: 2
BO5: 41804.86132 | BU5: 102 | BV5: 3
A6: SIRA NO | C6: GÖĞÜS NO | D6: DOĞUM TARİHİ | E6: ADI VE SOYADI | F6: İLİ | G6: A T L A M A L A R | BO6: SONUÇ | BP6: PUAN | BQ6: KLASMAN | BU6: 104 | BV6: 4
G7: 110 | J7: 115 | M7: 120 | P7: 125 | S7: 130 | V7: 134 | Y7: 138 | AB7: 142 | AE7: 146 | AH7: 150 | AK7: 152 | AN7: 154 | AQ7: 156 | AT7: 158 | AW7: 160 | AZ7: 162 | BC7: 164 | BF7: 166 | BI7: 168 | BL7: 170 | BU7: 106 | BV7: 5
A8: 1 | B8: Yüksek-9 | C8: 511 | D8: 2001-01-21 | E8: EMİN BURAK ÇAPA | F8: KOCAELİ | G8: - | J8: - | M8: - | P8: - | S8: - | V8: - | Y8: - | AB8: - | AE8: X | AF8: O | AH8: O | AK8: O | AN8: O | AQ8: X | AR8: X | AS8: O | AT8: O | AW8: X | AX8: O | AZ8: O | BC8: O | BF8: X | BG8: X | BH8: X | BO8: 164 | BP8: 88 | BU8: 108 | BV8: 6
A9: 2 | B9: Yüksek-11 | C9: 568 | D9: 2001-04-03 | E9: AHMET CAN SÜRAL | F9: MUĞLA | G9: - | J9: - | M9: - | P9: - | S9: - | V9: - | Y9: - | AB9: O | AE9: O | AH9: O | AK9: O | AN9: X | AO9: O | AQ9: X | AR9: O | AT9: X | AU9: X | AV9: X | BO9: 156 | BP9: 84 | BU9: 110 | BV9: 7
A10: 3 | B10: Yüksek-10 | C10: 208 | D10: 2001-03-24 | E10: CİHAT ÖZKAYA | F10: BURSA | G10: - | J10: - | M10: - | P10: - | S10: - | V10: - | Y10: - | AB10: - | AE10: O | AH10: O | AK10: X | AL10: O | AN10: - | AQ10: X | AR10: X | AS10: O | AT10: - | AW10: X | AX10: X | AY10: X | BO10: 156 | BP10: 84 | BU10: 112 | BV10: 8
A11: 4 | B11: Yüksek-8 | C11: 547 | D11: 2001-02-21 | E11: ADİL KARAKAŞ | F11: KÜTAHYA | G11: - | J11: - | M11: O | P11: O | S11: O | V11: O | Y11: O | AB11: O | AE11: - | AH11: - | AK11: O | AN11: X | AO11: O | AQ11: X | AR11: X | AS11: X | BO11: 154 | BP11: 83 | BU11: 114 | BV11: 9
A12: 5 | B12: Yüksek-6 | C12: 530 | D12: 2001-03-20 | E12: YUNUS EMRE KIZIL | F12: KONYA | G12: - | J12: - | M12: - | P12: O | S12: O | V12: O | Y12: X | Z12: O | AB12: X | AC12: X | AD12: X | BO12: 138 | BP12: 74 | BU12: 116 | BV12: 10
A13: 6 | B13: Yüksek-5 | C13: 582 | D13: 2001-05-19 | E13: Adem KOÇLARDAN | F13: MUŞ | G13: - | J13: - | M13: O | P13: O | S13: O | V13: X | W13: X | X13: O | Y13: X | Z13: X | AA13: X | BO13: 134 | BP13: 70 | BU13: 118 | BV13: 11
A14: 7 | B14: Yüksek-3 | C14: 453 | D14: 2001-04-06 | E14: MEHMET ÖZGÜR | F14: İZMİR | G14: - | J14: - | M14: O | P14: X | Q14: O | S14: X | T14: O | V14: X | W14: X | X14: X | BO14: 130 | BP14: 66 | BU14: 120 | BV14: 12
A15: 8 | B15: Yüksek-4 | C15: 681 | D15: 2001-04-25 | E15: OĞUZ KAĞAN HACIOĞLU | F15: TEKİRDAĞ | G15: - | J15: X | K15: O | M15: O | P15: X | Q15: X | R15: - | BO15: 120 | BP15: 56 | BU15: 122 | BV15: 13
A16: 9 | B16: Yüksek-1 | C16: 614 | D16: 2001-01-01 | E16: MUSTAFA BEGEÇ | F16: OSMANİYE | G16: - | J16: - | M16: X | N16: O | P16: X | Q16: X | R16: X | BO16: 120 | BP16: 56 | BU16: 124 | BV16: 14
A17: - | B17: Yüksek-2 | C17: 725 | D17: 2001-01-01 | E17: BURAK ATIZ | F17: TUNCELİ | G17: - | J17: - | M17: - | P17: - | S17: X | T17: X | U17: X | BO17: NM | BP17: 0 | BU17: 126 | BV17: 15
A18: - | B18: Yüksek-7 | C18: 644 | D18: 2001-06-07 | E18: GÖKHAN BEŞİR | F18: SAMSUN | G18: - | J18: - | M18: - | P18: - | S18: - | V18: X | W18: X | X18: X | BO18: NM | BP18: 0 | BU18: 128 | BV18: 16
B19: Yüksek-12 | BU19: 130 | BV19: 17
B20: Yüksek-13 | BU20: 132 | BV20: 18
B21: Yüksek-14 | BU21: 134 | BV21: 19
B22: Yüksek-15 | BU22: 136 | BV22: 20
B23: Yüksek-16 | BU23: 138 | BV23: 21
B24: Yüksek-17 | BU24: 140 | BV24: 22
B25: Yüksek-18 | BU25: 142 | BV25: 23
B26: Yüksek-19 | BU26: 144 | BV26: 24
B27: Yüksek-20 | BU27: 146 | BV27: 25
B28: Yüksek-21 | BU28: 148 | BV28: 26
B29: Yüksek-22 | BU29: 150 | BV29: 27
B30: Yüksek-23 | BU30: 152 | BV30: 28
B31: Yüksek-24 | BU31: 154 | BV31: 29
B32: Yüksek-25 | BU32: 156 | BV32: 30
BU33: 157 | BV33: 31
A34: Müsabaka Direktörü | F34: Baş Hakem | J34: Lider | S34: Sekreter | BO34: Hakem | BU34: 158 | BV34: 32
BU35: 159 | BV35: 33
BU36: 160 | BV36: 34
BU37: 161 | BV37: 35
BU38: 162 | BV38: 36
BU39: 163 | BV39: 37
BU40: 164 | BV40: 38
BU41: 165 | BV41: 39
BU42: 166 | BV42: 40
BU43: 167 | BV43: 41
BU44: 168 | BV44: 42
BU45: 169 | BV45: 43
BU46: 170 | BV46: 44
BU47: 171 | BV47: 45
BU48: 172 | BV48: 46
BU49: 173 | BV49: 47
BU50: 174 | BV50: 48
BU51: 175 | BV51: 49
BU52: 176 | BV52: 50
BU53: 177 | BV53: 51
BU54: 178 | BV54: 52
BU55: 179 | BV55: 53
BU56: 180 | BV56: 54
BU57: 181 | BV57: 55
BU58: 182 | BV58: 56
BU59: 183 | BV59: 57
BU60: 184 | BV60: 58
BU61: 185 | BV61: 59
BU62: 186 | BV62: 60
BU63: 187 | BV63: 61
BU64: 188 | BV64: 62
BU65: 189 | BV65: 63
BU66: 190 | BV66: 64
BU67: 191 | BV67: 65
BU68: 192 | BV68: 66
BU69: 193 | BV69: 67
BU70: 194 | BV70: 68
BU71: 195 | BV71: 69
BU72: 196 | BV72: 70
BU73: 197 | BV73: 71
BU74: 198 | BV74: 72
BU75: 199 | BV75: 73
BU76: 200 | BV76: 74
BU77: 201 | BV77: 75
BU78: 202 | BV78: 76
BU79: 203 | BV79: 77
BU80: 204 | BV80: 78
BU81: 205 | BV81: 79
BU82: 206 | BV82: 80
BU83: 207 | BV83: 81
BU84: 208 | BV84: 82
BU85: 209 | BV85: 83
BU86: 210 | BV86: 84
BU87: 211 | BV87: 85
BU88: 212 | BV88: 86
BU89: 213 | BV89: 87
BU90: 214 | BV90: 88
BU91: 215 | BV91: 89
BU92: 216 | BV92: 90
BV93: 91
BU94: 217 | BV94: 92
BV95: 93
BU96: 218 | BV96: 94
BV97: 95
BU98: 219 | BV98: 96
BV99: 97
BU100: 220 | BV100: 98
BV101: 99
BU102: 221 | BV102: 100
BU281: DNS | BV281: 0
A65536: CELAL KAYAÖZ

Sheet 1500m.
A1: =('YARIŞMA BİLGİLERİ'!A2) -> Türkiye Atletizm Federasyonu İzmir Atletizm İl Temsilciliği
A2: ='YARIŞMA BİLGİLERİ'!F19 -> Naili Moran Türkiye Atletizm Şampiyonası
A3: Yarışma : | D3: ='YARIŞMA PROGRAMI'!C9 -> 1500 Metre
A4: Kategori : | D4: ='YARIŞMA BİLGİLERİ'!F21 -> 13 Yaş Erkekler | M4: Tarih-Saat | N4: ='YARIŞMA PROGRAMI'!B9 -> 14 Haziran 2014 - 19:45
N5: 41805.45566
A6: Sıra No | B6: Göğüs No | C6: Doğum Tarihi Gün/Ay/Yıl | D6: Adı ve Soyadı | E6: İLİ | F6: Derece | G6: Puan | I6: 1. SERİ
I7: Sıra No | J7: Formül | K7: Göğüs No | L7: Doğum Tarihi | M7: Adı ve Soyadı | N7: İLİ | O7: Derece | P7: El Kronometre | Q7: Seri Geliş
A8: 1 | B8: 284 | C8: 2001-01-01 | D8: MAHMUT CAN KURTARAN | E8: GAZİANTEP | F8: 43300 | G8: 90 | I8: 1 | J8: 1500M-1-1
A9: 2 | B9: 533 | C9: 2001-01-01 | D9: SEZEN ÇİĞDEM | E9: KONYA | F9: 43853 | G9: 88 | I9: 2 | J9: 1500M-1-2
A10: 3 | B10: 700 | C10: 2002-05-18 | D10: HAYDAR ARİZ | E10: TOKAT | F10: 43997 | G10: 87 | I10: 3 | J10: 1500M-1-3 | K10: 552 | L10: 2001-11-16 | M10: İBRAHİM SUBAŞI | N10: KÜTAHYA | O10: 44312 | Q10: 8
A11: 4 | B11: 694 | C11: 2001-03-27 | D11: HÜSEYİM KURT | E11: TOKAT | F11: 44041 | G11: 87 | I11: 4 | J11: 1500M-1-4 | K11: 578 | L11: 2001-03-23 | M11: Cihan AKOVA | N11: MUŞ | O11: 44292 | Q11: 7
A12: 5 | B12: 195 | C12: 2001-01-01 | D12: ALI HUSSEIN AMER | E12: BURDUR | F12: 44201 | G12: 86 | I12: 5 | J12: 1500M-1-5 | K12: 343 | L12: 2001-12-20 | M12: METİN GÜRDAL | N12: ISPARTA | O12: DNF | Q12: -
A13: 6 | B13: 285 | C13: 2001-01-01 | D13: HASAN HIDIR | E13: GAZİANTEP | F13: 44274 | G13: 86 | I13: 6 | J13: 1500M-1-6 | K13: 284 | L13: 2001-01-01 | M13: MAHMUT CAN KURTARAN | N13: GAZİANTEP | O13: 43300 | Q13: 1
A14: 7 | B14: 578 | C14: 2001-03-23 | D14: Cihan AKOVA | E14: MUŞ | F14: 44292 | G14: 86 | I14: 7 | J14: 1500M-1-7
A15: 8 | B15: 552 | C15: 2001-11-16 | D15: İBRAHİM SUBAŞI | E15: KÜTAHYA | F15: 44312 | G15: 86 | I15: 8 | J15: 1500M-1-8 | K15: 533 | L15: 2001-01-01 | M15: SEZEN ÇİĞDEM | N15: KONYA | O15: 43853 | Q15: 2
A16: 9 | B16: 553 | C16: 2001-01-01 | D16: HALİL SONKAYA | E16: KÜTAHYA | F16: 44363 | G16: 86 | I16: 9 | J16: 1500M-1-9
A17: 10 | B17: 287 | C17: 2001-01-01 | D17: MUSTAFA EREN YILMAZ | E17: GAZİANTEP | F17: 44610 | G17: 85 | I17: 10 | J17: 1500M-1-10 | K17: 694 | L17: 2001-03-27 | M17: HÜSEYİM KURT | N17: TOKAT | O17: 44041 | Q17: 4
A18: 11 | B18: 657 | C18: 2001-10-01 | D18: HÜSEYİN YILDIRIM | E18: SİİRT | F18: 44639 | G18: 85 | I18: 11 | J18: 1500M-1-11 | K18: 63 | L18: 2001-01-01 | M18: HÜSEYİN ŞENTÜRK | N18: ARDAHAN | O18: 51620 | Q18: 14
A19: 12 | B19: 596 | C19: 2001-10-02 | D19: ÖMER ŞEN | E19: NEVŞEHİR | F19: 44998 | G19: 84 | I19: 12 | J19: 1500M-1-12 | K19: 700 | L19: 2002-05-18 | M19: HAYDAR ARİZ | N19: TOKAT | O19: 43997 | Q19: 3
A20: 13 | B20: 126 | C20: 2001-03-16 | D20: AHMET İRFAN ÖZDİL | E20: BARTIN | F20: 45042 | G20: 84 | I20: 2. SERİ
A21: 14 | B21: 171 | C21: 2002-01-01 | D21: ÖMER UÇAR | E21: BİNGÖL | F21: 45382 | G21: 83 | I21: Sıra No | J21: Formül | K21: Göğüs No | L21: Doğum Tarihi | M21: Adı ve Soyadı | N21: İLİ | O21: Derece | P21: El Kronometre | Q21: Seri Geliş
A22: 15 | B22: 113 | C22: 2001-06-02 | D22: ALİ KOŞAR | E22: BALIKESİR | F22: 45402 | G22: 82 | I22: 1 | J22: 1500M-2-1 | K22: 285 | L22: 2001-01-01 | M22: HASAN HIDIR | N22: GAZİANTEP | O22: 44274 | Q22: 6
A23: 16 | B23: 351 | C23: 2001-01-18 | D23: Ö.FARUK SONGÜL | E23: ISPARTA | F23: 45560 | G23: 82 | I23: 2 | J23: 1500M-2-2 | K23: 195 | L23: 2001-01-01 | M23: ALI HUSSEIN AMER | N23: BURDUR | O23: 44201 | Q23: 5
A24: 17 | B24: 30 | C24: 2001-09-07 | D24: BİLAL AKTAŞ | E24: ADIYAMAN | F24: 45614 | G24: 82 | I24: 3 | J24: 1500M-2-3 | K24: 481 | L24: 2001-10-23 | M24: ABDULKADİR EREN | N24: KIRIKKALE | O24: 50115 | Q24: 13
A25: 18 | B25: 159 | C25: 2001-08-07 | D25: HÜSEYİN TURHAN | E25: BİLECİK | F25: 45890 | G25: 81 | I25: 4 | J25: 1500M-2-4
A26: 19 | B26: 250 | C26: 2001-04-20 | D26: ŞAKİR YEŞİL | E26: ERZİNCAN | F26: 45968 | G26: 81 | I26: 5 | J26: 1500M-2-5
A27: 20 | B27: 658 | C27: 2001-02-05 | D27: HASAN EREN | E27: SİİRT | F27: 50053 | G27: 80 | I27: 6 | J27: 1500M-2-6 | K27: 656 | L27: 2001-02-01 | M27: HAYRETTİN KAYA | N27: SİİRT | O27: 53152 | Q27: 15
A28: 21 | B28: 481 | C28: 2001-10-23 | D28: ABDULKADİR EREN | E28: KIRIKKALE | F28: 50115 | G28: 80 | I28: 7 | J28: 1500M-2-7 | K28: 658 | L28: 2001-02-05 | M28: HASAN EREN | N28: SİİRT | O28: 50053 | Q28: 12
A29: 22 | B29: 607 | C29: 2001-02-09 | D29: MEHMET DAYAN | E29: NİĞDE | F29: 50366 | G29: 79 | I29: 8 | J29: 1500M-2-8 | K29: 657 | L29: 2001-10-01 | M29: HÜSEYİN YILDIRIM | N29: SİİRT | O29: 44639 | Q29: 10
A30: 23 | B30: 614 | C30: 2001-01-01 | D30: MUSTAFA BEGEÇ | E30: OSMANİYE | F30: 50590 | G30: 79 | I30: 9 | J30: 1500M-2-9 | K30: 250 | L30: 2001-04-20 | M30: ŞAKİR YEŞİL | N30: ERZİNCAN | O30: 45968 | Q30: 11
A31: 24 | B31: 173 | C31: 2001-01-01 | D31: YASİR BİRGİN | E31: BİNGÖL | F31: 50858 | G31: 78 | I31: 10 | J31: 1500M-2-10 | K31: 287 | L31: 2001-01-01 | M31: MUSTAFA EREN YILMAZ | N31: GAZİANTEP | O31: 44610 | Q31: 9
A32: 25 | B32: 595 | C32: 2001-08-03 | D32: YASİN İNCİ | E32: NEVŞEHİR | F32: 51532 | G32: 75 | I32: 11 | J32: 1500M-2-11
A33: 26 | B33: 267 | C33: 2001-10-27 | D33: ENES YAZICI | E33: ERZURUM | F33: 51545 | G33: 75 | I33: 12 | J33: 1500M-2-12
A34: 27 | B34: 63 | C34: 2001-01-01 | D34: HÜSEYİN ŞENTÜRK | E34: ARDAHAN | F34: 51620 | G34: 75 | I34: 3. SERİ
A35: 28 | B35: 29 | C35: 2001-04-03 | D35: MUSTAFA TANDOĞAN | E35: ADIYAMAN | F35: 52186 | G35: 73 | I35: Sıra No | J35: Formül | K35: Göğüs No | L35: Doğum Tarihi | M35: Adı ve Soyadı | N35: İLİ | O35: Derece | P35: El Kronometre | Q35: Seri Geliş
A36: 29 | B36: 313 | C36: 2001-09-21 | D36: HÜSEYİN YALÇIN | E36: HATAY | F36: 52416 | G36: 72 | I36: 1 | J36: 1500M-3-1 | K36: 126 | L36: 2001-03-16 | M36: AHMET İRFAN ÖZDİL | N36: BARTIN | O36: 45042 | Q36: 3
A37: 30 | B37: 160 | C37: 2001-01-16 | D37: FERDİ FIRAT TAŞKIRAN | E37: BİLECİK | F37: 52788 | G37: 71 | I37: 2 | J37: 1500M-3-2 | K37: 553 | L37: 2001-01-01 | M37: HALİL SONKAYA | N37: KÜTAHYA | O37: 44363 | Q37: 1
A38: 31 | B38: 656 | C38: 2001-02-01 | D38: HAYRETTİN KAYA | E38: SİİRT | F38: 53152 | G38: 70 | I38: 3 | J38: 1500M-3-3 | K38: 351 | L38: 2001-01-18 | M38: Ö.FARUK SONGÜL | N38: ISPARTA | O38: 45560 | Q38: 6
A39: 32 | B39: 599 | C39: 2001-12-13 | D39: OZAN GALİP BENLİ | E39: NEVŞEHİR | F39: 53932 | G39: 67 | I39: 4 | J39: 1500M-3-4 | K39: 607 | L39: 2001-02-09 | M39: MEHMET DAYAN | N39: NİĞDE | O39: 50366 | Q39: 9
A40: 33 | B40: 726 | C40: 2001-01-01 | D40: HAKTAN YILDIZ | E40: TUNCELİ | F40: 54483 | G40: 66 | I40: 5 | J40: 1500M-3-5 | K40: 726 | L40: 2001-01-01 | M40: HAKTAN YILDIZ | N40: TUNCELİ | O40: 54483 | Q40: 18
A41: - | B41: 343 | C41: 2001-12-20 | D41: METİN GÜRDAL | E41: ISPARTA | F41: DNF | G41: 0 | I41: 6 | J41: 1500M-3-6 | K41: 159 | L41: 2001-08-07 | M41: HÜSEYİN TURHAN | N41: BİLECİK | O41: 45890 | Q41: 8
A42: - | B42: 598 | C42: 2001-04-11 | D42: M.BURAK İNCİ | E42: NEVŞEHİR | F42: DNS | G42: 0 | I42: 7 | J42: 1500M-3-7 | K42: 113 | L42: 2001-06-02 | M42: ALİ KOŞAR | N42: BALIKESİR | O42: 45402 | Q42: 5
A43: - | B43: 597 | C43: 2001-03-12 | D43: ONUR ÇALIŞKAN | E43: NEVŞEHİR | F43: DNS | G43: 0 | I43: 8 | J43: 1500M-3-8 | K43: 173 | L43: 2001-01-01 | M43: YASİR BİRGİN | N43: BİNGÖL | O43: 50858 | Q43: 11
I44: 9 | J44: 1500M-3-9 | K44: 160 | L44: 2001-01-16 | M44: FERDİ FIRAT TAŞKIRAN | N44: BİLECİK | O44: 52788 | Q44: 16
I45: 10 | J45: 1500M-3-10 | K45: 599 | L45: 2001-12-13 | M45: OZAN GALİP BENLİ | N45: NEVŞEHİR | O45: 53932 | Q45: 17
I46: 11 | J46: 1500M-3-11
I47: 12 | J47: 1500M-3-12
I48: 4. SERİ
I49: Sıra No | J49: Formül | K49: Göğüs No | L49: Doğum Tarihi | M49: Adı ve Soyadı | N49: İLİ | O49: Derece | P49: El Kronometre | Q49: Seri Geliş
I50: 1 | J50: 1500M-4-1 | K50: 596 | L50: 2001-10-02 | M50: ÖMER ŞEN | N50: NEVŞEHİR | O50: 44998 | Q50: 2
I51: 2 | J51: 1500M-4-2 | K51: 30 | L51: 2001-09-07 | M51: BİLAL AKTAŞ | N51: ADIYAMAN | O51: 45614 | Q51: 7
I52: 3 | J52: 1500M-4-3 | K52: 598 | L52: 2001-04-11 | M52: M.BURAK İNCİ | N52: NEVŞEHİR | O52: DNS | Q52: -
I53: 4 | J53: 1500M-4-4 | K53: 597 | L53: 2001-03-12 | M53: ONUR ÇALIŞKAN | N53: NEVŞEHİR | O53: DNS | Q53: -
I54: 5 | J54: 1500M-4-5 | K54: 267 | L54: 2001-10-27 | M54: ENES YAZICI | N54: ERZURUM | O54: 51545 | Q54: 13
I55: 6 | J55: 1500M-4-6 | K55: 313 | L55: 2001-09-21 | M55: HÜSEYİN YALÇIN | N55: HATAY | O55: 52416 | Q55: 15
I56: 7 | J56: 1500M-4-7 | K56: 595 | L56: 2001-08-03 | M56: YASİN İNCİ | N56: NEVŞEHİR | O56: 51532 | Q56: 12
I57: 8 | J57: 1500M-4-8 | O57: DNS | Q57: -
I58: 9 | J58: 1500M-4-9 | K58: 29 | L58: 2001-04-03 | M58: MUSTAFA TANDOĞAN | N58: ADIYAMAN | O58: 52186 | Q58: 14
I59: 10 | J59: 1500M-4-10 | K59: 614 | L59: 2001-01-01 | M59: MUSTAFA BEGEÇ | N59: OSMANİYE | O59: 50590 | Q59: 10
I60: 11 | J60: 1500M-4-11 | K60: 171 | L60: 2002-01-01 | M60: ÖMER UÇAR | N60: BİNGÖL | O60: 45382 | Q60: 4
I61: 12 | J61: 1500M-4-12
A63: Müsabakalar Direktörü | E63: Baş Hakem | F63: Lider | H63: Sekreter | M63: Hakem | N63: Hakem | P63: Hakem
A65536: CELAL KAYAÖZ

Sheet Disk
A1: ='YARIŞMA BİLGİLERİ'!A2:K2 -> Türkiye Atletizm Federasyonu İzmir Atletizm İl Temsilciliği | M1: DERECE
A2: ='YARIŞMA BİLGİLERİ'!A14:K14 -> Naili Moran Türkiye Atletizm Şampiyonası | M2: 100 | N2: 0
A3: Yarışma : | D3: ='YARIŞMA PROGRAMI'!C14 -> Disk Atma | M3: 1000 | N3: 1
A4: Kategori : | D4: ='YARIŞMA BİLGİLERİ'!F21 -> 13 Yaş Erkekler | F4: Ağırlık: | G4: 750 gram | I4: Tarih-Saat : | K4: ='YARIŞMA PROGRAMI'!B14 -> 14 Haziran 2014 - 20:15 | M4: 1060 | N4: 2
J5: 41805.41413 | M5: 1120 | N5: 3
A6: SIRA NO | C6: GÖĞÜS NO | D6: DOĞUM TARİHİ Gün/Ay/Yıl | E6: ADI VE SOYADI | F6: İLİ | G6: A T M A L A R | J6: SONUÇ | K6: PUAN | L6: KLASMAN | M6: 1180 | N6: 4
G7: 1 | H7: 2 | I7: 3 | M7: 1240 | N7: 5
A8: 1 | B8: DİSK-8 | C8: 713 | D8: 2001-01-03 | E8: ASLAN KAĞAN KALINTAŞ | F8: TRABZON | G8: 3748 | H8: 3588 | I8: 3719 | J8: 3748 | K8: 93 | M8: 1300 | N8: 6
A9: 2 | B9: DİSK-3 | C9: 703 | D9: 2001-01-15 | E9: MEHMET EMİN KILINÇ | F9: TOKAT | G9: 2947 | H9: 3104 | I9: 2909 | J9: 3104 | K9: 87 | M9: 1360 | N9: 7
A10: 3 | B10: DİSK-7 | C10: 208 | D10: 2001-03-24 | E10: CİHAT ÖZKAYA | F10: BURSA | G10: X | H10: 2894 | I10: 2865 | J10: 2894 | K10: 84 | M10: 1420 | N10: 8
A11: 4 | B11: DİSK-5 | C11: 744 | D11: 2001-03-04 | E11: CEYHUN SEVİNÇ | F11: SAKARYA | G11: X | H11: 2191 | I11: 2326 | J11: 2326 | K11: 75 | M11: 1480 | N11: 9
A12: 5 | B12: DİSK-4 | C12: 209 | D12: 2001-04-05 | E12: RESUL YILMAZ | F12: BURSA | G12: X | H12: X | I12: 2324 | J12: 2324 | K12: 75 | M12: 1540 | N12: 10
A13: - | B13: DİSK-1 | C13: 15 | D13: 2001-01-01 | E13: VEYSİ KARDAŞ | F13: ADANA | G13: X | H13: X | I13: X | J13: NM | K13: 0 | M13: 1600 | N13: 11
A14: - | B14: DİSK-2 | C14: 450 | D14: 2001-01-04 | E14: FURKAN ÇEKEN | F14: İZMİR | J14: DNS | K14: 0 | M14: 1650 | N14: 12
A15: - | B15: DİSK-6 | C15: 417 | D15: 2001-01-18 | E15: MUSTAFA ASLANER | F15: İZMİR | J15: DNS | K15: 0 | M15: 1700 | N15: 13
B16: DİSK-9 | J16: 0 | M16: 1750 | N16: 14
B17: DİSK-10 | J17: 0 | M17: 1800 | N17: 15
B18: DİSK-11 | J18: 0 | M18: 1850 | N18: 16
B19: DİSK-12 | J19: 0 | M19: 1900 | N19: 17
B20: DİSK-13 | J20: 0 | M20: 1950 | N20: 18
B21: DİSK-14 | J21: 0 | M21: 2000 | N21: 19
B22: DİSK-15 | J22: 0 | M22: 2050 | N22: 20
B23: DİSK-16 | J23: 0 | M23: 2100 | N23: 21
B24: DİSK-17 | J24: 0 | M24: 2150 | N24: 22
B25: DİSK-18 | J25: 0 | M25: 2200 | N25: 23
B26: DİSK-19 | J26: 0 | M26: 2250 | N26: 24
B27: DİSK-20 | J27: 0 | M27: 2300 | N27: 25
B28: DİSK-21 | J28: 0 | M28: 2325 | N28: 26
B29: DİSK-22 | J29: 0 | M29: 2350 | N29: 27
B30: DİSK-23 | J30: 0 | M30: 2400 | N30: 28
B31: DİSK-24 | J31: 0 | M31: 2450 | N31: 29
B32: DİSK-25 | J32: 0 | M32: 2500 | N32: 30
B33: DİSK-26 | J33: 0 | M33: 2550 | N33: 31
B34: DİSK-27 | J34: 0 | M34: 2600 | N34: 32
B35: DİSK-28 | J35: 0 | M35: 2650 | N35: 33
B36: DİSK-29 | J36: 0 | M36: 2700 | N36: 34
B37: DİSK-30 | J37: 0 | M37: 2750 | N37: 35
B38: DİSK-31 | J38: 0 | M38: 2800 | N38: 36
B39: DİSK-32 | J39: 0 | M39: 2850 | N39: 37
B40: DİSK-33 | J40: 0 | M40: 2900 | N40: 38
B41: DİSK-34 | J41: 0 | M41: 2950 | N41: 39
B42: DİSK-35 | J42: 0 | M42: 3000 | N42: 40
B43: DİSK-36 | J43: 0 | M43: 3050 | N43: 41
B44: DİSK-37 | J44: 0 | M44: 3100 | N44: 42
B45: DİSK-38 | J45: 0 | M45: 3150 | N45: 43
B46: DİSK-39 | J46: 0 | M46: 3200 | N46: 44
B47: DİSK-40 | J47: 0 | M47: 3250 | N47: 45
M48: 3300 | N48: 46
A49: Müsabaka Direktörü | E49: Baş Hakem | F49: Lider | G49: Sekreter | J49: Hakem | M49: 3350 | N49: 47
M50: 3400 | N50: 48
M51: 3450 | N51: 49
M52: 3500 | N52: 50
M53: 3550 | N53: 51
M54: 3600 | N54: 52
M55: 3650 | N55: 53
M56: 3700 | N56: 54
M57: 3750 | N57: 55
M58: 3800 | N58: 56
M59: 3850 | N59: 57
M60: 3900 | N60: 58
M61: 3950 | N61: 59
M62: 4000 | N62: 60
M63: 4040 | N63: 61
M64: 4080 | N64: 62
M65: 4120 | N65: 63
M66: 4160 | N66: 64
M67: 4200 | N67: 65
M68: 4240 | N68: 66
M69: 4280 | N69: 67
M70: 4320 | N70: 68
M71: 4360 | N71: 69
M72: 4400 | N72: 70
M73: 4440 | N73: 71
M74: 4480 | N74: 72
M75: 4520 | N75: 73
M76: 4560 | N76: 74
M77: 4600 | N77: 75
M78: 4640 | N78: 76
M79: 4680 | N79: 77
M80: 4720 | N80: 78
M81: 4760 | N81: 79
M82: 4800 | N82: 80
M83: 4840 | N83: 81
M84: 4880 | N84: 82
M85: 4920 | N85: 83
M86: 4960 | N86: 84
M87: 5000 | N87: 85
M88: 5040 | N88: 86
M89: 5080 | N89: 87
M90: 5120 | N90: 88
M91: 5160 | N91: 89
M92: 5200 | N92: 90
M93: 5240 | N93: 91
M94: 5280 | N94: 92
M95: 5320 | N95: 93
M96: 5360 | N96: 94
M97: 5400 | N97: 95
M98: 5440 | N98: 96
M99: 5480 | N99: 97
M100: 5520 | N100: 98
M101: 5560 | N101: 99
M102: 5600 | N102: 100
A65536: CELAL KAYAÖZ

Sheet 2.Gün Start Listesi (hidden)
A1: =('YARIŞMA BİLGİLERİ'!A2) -> Türkiye Atletizm Federasyonu İzmir Atletizm İl Temsilciliği
A2: ='YARIŞMA BİLGİLERİ'!F19 -> Naili Moran Türkiye Atletizm Şampiyonası
A3: 2.GÜN GENÇ ERKEKLER START LİSTELERİ
A4: 800 METRE | I4: ÜÇADIM ATLAMA
A5: 1. SERİ
A6: Sıra No | B6: Formül | C6: Göğüs No | D6: Doğum Tarihi | E6: Adı ve Soyadı | F6: Okulu | G6: Start Kontrol | I6: SIRA NO | K6: GÖĞÜS NO | L6: DOĞUM TARİHİ | M6: ADI VE SOYADI | N6: OKULU | O6: START KONTROL
A7: 1 | B7: 800M-1-1 | C7: =IF(ISERROR(VLOOKUP(B7,'KAYIT LİSTESİ'!$B$4:$H$855,2,0)),"",(VLOOKUP(B7,'KAYIT LİSTESİ'!$B$4:$H$855,2,0))) -> 700 | D7: =IF(ISERROR(VLOOKUP(B7,'KAYIT LİSTESİ'!$B$4:$H$855,4,0)),"",(VLOOKUP(B7,'KAYIT LİSTESİ'!$B$4:$H$855,4,0))) -> 2002-05-18 | E7: =IF(ISERROR(VLOOKUP(B7,'KAYIT LİSTESİ'!$B$4:$H$855,5,0)),"",(VLOOKUP(B7,'KAYIT LİSTESİ'!$B$4:$H$855,5,0))) -> HAYDAR ARİZ | F7: =IF(ISERROR(VLOOKUP(B7,'KAYIT LİSTESİ'!$B$4:$H$855,6,0)),"",(VLOOKUP(B7,'KAYIT LİSTESİ'!$B$4:$H$855,6,0))) -> TOKAT
A8: 2 | B8: 800M-1-2 | C8: =IF(ISERROR(VLOOKUP(B8,'KAYIT LİSTESİ'!$B$4:$H$855,2,0)),"",(VLOOKUP(B8,'KAYIT LİSTESİ'!$B$4:$H$855,2,0))) -> 41 | D8: =IF(ISERROR(VLOOKUP(B8,'KAYIT LİSTESİ'!$B$4:$H$855,4,0)),"",(VLOOKUP(B8,'KAYIT LİSTESİ'!$B$4:$H$855,4,0))) -> 2001-05-04 | E8: =IF(ISERROR(VLOOKUP(B8,'KAYIT LİSTESİ'!$B$4:$H$855,5,0)),"",(VLOOKUP(B8,'KAYIT LİSTESİ'!$B$4:$H$855,5,0))) -> SERKAN CAN | F8: =IF(ISERROR(VLOOKUP(B8,'KAYIT LİSTESİ'!$B$4:$H$855,6,0)),"",(VLOOKUP(B8,'KAYIT LİSTESİ'!$B$4:$H$855,6,0))) -> AKSARAY | I8: 1 | J8: ÜÇADIM-1 | K8: =IF(ISERROR(VLOOKUP(J8,'KAYIT LİSTESİ'!$B$4:$H$855,2,0)),"",(VLOOKUP(J8,'KAYIT LİSTESİ'!$B$4:$H$855,2,0))) ->  | L8: =IF(ISERROR(VLOOKUP(J8,'KAYIT LİSTESİ'!$B$4:$H$855,4,0)),"",(VLOOKUP(J8,'KAYIT LİSTESİ'!$B$4:$H$855,4,0))) ->  | M8: =IF(ISERROR(VLOOKUP(J8,'KAYIT LİSTESİ'!$B$4:$H$855,5,0)),"",(VLOOKUP(J8,'KAYIT LİSTESİ'!$B$4:$H$855,5,0))) ->  | N8: =IF(ISERROR(VLOOKUP(J8,'KAYIT LİSTESİ'!$B$4:$H$855,6,0)),"",(VLOOKUP(J8,'KAYIT LİSTESİ'!$B$4:$H$855,6,0))) -> 
A9: 3 | B9: 800M-1-3 | C9: =IF(ISERROR(VLOOKUP(B9,'KAYIT LİSTESİ'!$B$4:$H$855,2,0)),"",(VLOOKUP(B9,'KAYIT LİSTESİ'!$B$4:$H$855,2,0))) -> 284 | D9: =IF(ISERROR(VLOOKUP(B9,'KAYIT LİSTESİ'!$B$4:$H$855,4,0)),"",(VLOOKUP(B9,'KAYIT LİSTESİ'!$B$4:$H$855,4,0))) -> 2001-01-01 | E9: =IF(ISERROR(VLOOKUP(B9,'KAYIT LİSTESİ'!$B$4:$H$855,5,0)),"",(VLOOKUP(B9,'KAYIT LİSTESİ'!$B$4:$H$855,5,0))) -> MAHMUT CAN KURTARAN | F9: =IF(ISERROR(VLOOKUP(B9,'KAYIT LİSTESİ'!$B$4:$H$855,6,0)),"",(VLOOKUP(B9,'KAYIT LİSTESİ'!$B$4:$H$855,6,0))) -> GAZİANTEP | I9: 2 | J9: ÜÇADIM-2 | K9: =IF(ISERROR(VLOOKUP(J9,'KAYIT LİSTESİ'!$B$4:$H$855,2,0)),"",(VLOOKUP(J9,'KAYIT LİSTESİ'!$B$4:$H$855,2,0))) ->  | L9: =IF(ISERROR(VLOOKUP(J9,'KAYIT LİSTESİ'!$B$4:$H$855,4,0)),"",(VLOOKUP(J9,'KAYIT LİSTESİ'!$B$4:$H$855,4,0))) ->  | M9: =IF(ISERROR(VLOOKUP(J9,'KAYIT LİSTESİ'!$B$4:$H$855,5,0)),"",(VLOOKUP(J9,'KAYIT LİSTESİ'!$B$4:$H$855,5,0))) ->  | N9: =IF(ISERROR(VLOOKUP(J9,'KAYIT LİSTESİ'!$B$4:$H$855,6,0)),"",(VLOOKUP(J9,'KAYIT LİSTESİ'!$B$4:$H$855,6,0))) -> 
A10: 4 | B10: 800M-1-4 | C10: =IF(ISERROR(VLOOKUP(B10,'KAYIT LİSTESİ'!$B$4:$H$855,2,0)),"",(VLOOKUP(B10,'KAYIT LİSTESİ'!$B$4:$H$855,2,0))) -> 42 | D10: =IF(ISERROR(VLOOKUP(B10,'KAYIT LİSTESİ'!$B$4:$H$855,4,0)),"",(VLOOKUP(B10,'KAYIT LİSTESİ'!$B$4:$H$855,4,0))) -> 2001-02-14 | E10: =IF(ISERROR(VLOOKUP(B10,'KAYIT LİSTESİ'!$B$4:$H$855,5,0)),"",(VLOOKUP(B10,'KAYIT LİSTESİ'!$B$4:$H$855,5,0))) -> EMİRCAN EROĞLU | F10: =IF(ISERROR(VLOOKUP(B10,'KAYIT LİSTESİ'!$B$4:$H$855,6,0)),"",(VLOOKUP(B10,'KAYIT LİSTESİ'!$B$4:$H$855,6,0))) -> AKSARAY | I10: 3 | J10: ÜÇADIM-3 | K10: =IF(ISERROR(VLOOKUP(J10,'KAYIT LİSTESİ'!$B$4:$H$855,2,0)),"",(VLOOKUP(J10,'KAYIT LİSTESİ'!$B$4:$H$855,2,0))) ->  | L10: =IF(ISERROR(VLOOKUP(J10,'KAYIT LİSTESİ'!$B$4:$H$855,4,0)),"",(VLOOKUP(J10,'KAYIT LİSTESİ'!$B$4:$H$855,4,0))) ->  | M10: =IF(ISERROR(VLOOKUP(J10,'KAYIT LİSTESİ'!$B$4:$H$855,5,0)),"",(VLOOKUP(J10,'KAYIT LİSTESİ'!$B$4:$H$855,5,0))) ->  | N10: =IF(ISERROR(VLOOKUP(J10,'KAYIT LİSTESİ'!$B$4:$H$855,6,0)),"",(VLOOKUP(J10,'KAYIT LİSTESİ'!$B$4:$H$855,6,0))) -> 
A11: 5 | B11: 800M-1-5 | C11: =IF(ISERROR(VLOOKUP(B11,'KAYIT LİSTESİ'!$B$4:$H$855,2,0)),"",(VLOOKUP(B11,'KAYIT LİSTESİ'!$B$4:$H$855,2,0))) ->  | D11: =IF(ISERROR(VLOOKUP(B11,'KAYIT LİSTESİ'!$B$4:$H$855,4,0)),"",(VLOOKUP(B11,'KAYIT LİSTESİ'!$B$4:$H$855,4,0))) ->  | E11: =IF(ISERROR(VLOOKUP(B11,'KAYIT LİSTESİ'!$B$4:$H$855,5,0)),"",(VLOOKUP(B11,'KAYIT LİSTESİ'!$B$4:$H$855,5,0))) ->  | F11: =IF(ISERROR(VLOOKUP(B11,'KAYIT LİSTESİ'!$B$4:$H$855,6,0)),"",(VLOOKUP(B11,'KAYIT LİSTESİ'!$B$4:$H$855,6,0))) ->  | I11: 4 | J11: ÜÇADIM-4 | K11: =IF(ISERROR(VLOOKUP(J11,'KAYIT LİSTESİ'!$B$4:$H$855,2,0)),"",(VLOOKUP(J11,'KAYIT LİSTESİ'!$B$4:$H$855,2,0))) ->  | L11: =IF(ISERROR(VLOOKUP(J11,'KAYIT LİSTESİ'!$B$4:$H$855,4,0)),"",(VLOOKUP(J11,'KAYIT LİSTESİ'!$B$4:$H$855,4,0))) ->  | M11: =IF(ISERROR(VLOOKUP(J11,'KAYIT LİSTESİ'!$B$4:$H$855,5,0)),"",(VLOOKUP(J11,'KAYIT LİSTESİ'!$B$4:$H$855,5,0))) ->  | N11: =IF(ISERROR(VLOOKUP(J11,'KAYIT LİSTESİ'!$B$4:$H$855,6,0)),"",(VLOOKUP(J11,'KAYIT LİSTESİ'!$B$4:$H$855,6,0))) -> 
A12: 6 | B12: 800M-1-6 | C12: =IF(ISERROR(VLOOKUP(B12,'KAYIT LİSTESİ'!$B$4:$H$855,2,0)),"",(VLOOKUP(B12,'KAYIT LİSTESİ'!$B$4:$H$855,2,0))) -> 533 | D12: =IF(ISERROR(VLOOKUP(B12,'KAYIT LİSTESİ'!$B$4:$H$855,4,0)),"",(VLOOKUP(B12,'KAYIT LİSTESİ'!$B$4:$H$855,4,0))) -> 2001-01-01 | E12: =IF(ISERROR(VLOOKUP(B12,'KAYIT LİSTESİ'!$B$4:$H$855,5,0)),"",(VLOOKUP(B12,'KAYIT LİSTESİ'!$B$4:$H$855,5,0))) -> SEZEN ÇİĞDEM | F12: =IF(ISERROR(VLOOKUP(B12,'KAYIT LİSTESİ'!$B$4:$H$855,6,0)),"",(VLOOKUP(B12,'KAYIT LİSTESİ'!$B$4:$H$855,6,0))) -> KONYA | I12: 5 | J12: ÜÇADIM-5 | K12: =IF(ISERROR(VLOOKUP(J12,'KAYIT LİSTESİ'!$B$4:$H$855,2,0)),"",(VLOOKUP(J12,'KAYIT LİSTESİ'!$B$4:$H$855,2,0))) ->  | L12: =IF(ISERROR(VLOOKUP(J12,'KAYIT LİSTESİ'!$B$4:$H$855,4,0)),"",(VLOOKUP(J12,'KAYIT LİSTESİ'!$B$4:$H$855,4,0))) ->  | M12: =IF(ISERROR(VLOOKUP(J12,'KAYIT LİSTESİ'!$B$4:$H$855,5,0)),"",(VLOOKUP(J12,'KAYIT LİSTESİ'!$B$4:$H$855,5,0))) ->  | N12: =IF(ISERROR(VLOOKUP(J12,'KAYIT LİSTESİ'!$B$4:$H$855,6,0)),"",(VLOOKUP(J12,'KAYIT LİSTESİ'!$B$4:$H$855,6,0))) -> 
A13: 7 | B13: 800M-1-7 | C13: =IF(ISERROR(VLOOKUP(B13,'KAYIT LİSTESİ'!$B$4:$H$855,2,0)),"",(VLOOKUP(B13,'KAYIT LİSTESİ'!$B$4:$H$855,2,0))) -> 578 | D13: =IF(ISERROR(VLOOKUP(B13,'KAYIT LİSTESİ'!$B$4:$H$855,4,0)),"",(VLOOKUP(B13,'KAYIT LİSTESİ'!$B$4:$H$855,4,0))) -> 2001-03-23 | E13: =IF(ISERROR(VLOOKUP(B13,'KAYIT LİSTESİ'!$B$4:$H$855,5,0)),"",(VLOOKUP(B13,'KAYIT LİSTESİ'!$B$4:$H$855,5,0))) -> Cihan AKOVA | F13: =IF(ISERROR(VLOOKUP(B13,'KAYIT LİSTESİ'!$B$4:$H$855,6,0)),"",(VLOOKUP(B13,'KAYIT LİSTESİ'!$B$4:$H$855,6,0))) -> MUŞ | I13: 6 | J13: ÜÇADIM-6 | K13: =IF(ISERROR(VLOOKUP(J13,'KAYIT LİSTESİ'!$B$4:$H$855,2,0)),"",(VLOOKUP(J13,'KAYIT LİSTESİ'!$B$4:$H$855,2,0))) ->  | L13: =IF(ISERROR(VLOOKUP(J13,'KAYIT LİSTESİ'!$B$4:$H$855,4,0)),"",(VLOOKUP(J13,'KAYIT LİSTESİ'!$B$4:$H$855,4,0))) ->  | M13: =IF(ISERROR(VLOOKUP(J13,'KAYIT LİSTESİ'!$B$4:$H$855,5,0)),"",(VLOOKUP(J13,'KAYIT LİSTESİ'!$B$4:$H$855,5,0))) ->  | N13: =IF(ISERROR(VLOOKUP(J13,'KAYIT LİSTESİ'!$B$4:$H$855,6,0)),"",(VLOOKUP(J13,'KAYIT LİSTESİ'!$B$4:$H$855,6,0))) -> 
A14: 8 | B14: 800M-1-8 | C14: =IF(ISERROR(VLOOKUP(B14,'KAYIT LİSTESİ'!$B$4:$H$855,2,0)),"",(VLOOKUP(B14,'KAYIT LİSTESİ'!$B$4:$H$855,2,0))) ->  | D14: =IF(ISERROR(VLOOKUP(B14,'KAYIT LİSTESİ'!$B$4:$H$855,4,0)),"",(VLOOKUP(B14,'KAYIT LİSTESİ'!$B$4:$H$855,4,0))) ->  | E14: =IF(ISERROR(VLOOKUP(B14,'KAYIT LİSTESİ'!$B$4:$H$855,5,0)),"",(VLOOKUP(B14,'KAYIT LİSTESİ'!$B$4:$H$855,5,0))) ->  | F14: =IF(ISERROR(VLOOKUP(B14,'KAYIT LİSTESİ'!$B$4:$H$855,6,0)),"",(VLOOKUP(B14,'KAYIT LİSTESİ'!$B$4:$H$855,6,0))) ->  | I14: 7 | J14: ÜÇADIM-7 | K14: =IF(ISERROR(VLOOKUP(J14,'KAYIT LİSTESİ'!$B$4:$H$855,2,0)),"",(VLOOKUP(J14,'KAYIT LİSTESİ'!$B$4:$H$855,2,0))) ->  | L14: =IF(ISERROR(VLOOKUP(J14,'KAYIT LİSTESİ'!$B$4:$H$855,4,0)),"",(VLOOKUP(J14,'KAYIT LİSTESİ'!$B$4:$H$855,4,0))) ->  | M14: =IF(ISERROR(VLOOKUP(J14,'KAYIT LİSTESİ'!$B$4:$H$855,5,0)),"",(VLOOKUP(J14,'KAYIT LİSTESİ'!$B$4:$H$855,5,0))) ->  | N14: =IF(ISERROR(VLOOKUP(J14,'KAYIT LİSTESİ'!$B$4:$H$855,6,0)),"",(VLOOKUP(J14,'KAYIT LİSTESİ'!$B$4:$H$855,6,0))) -> 
A15: 9 | B15: 800M-1-9 | C15: =IF(ISERROR(VLOOKUP(B15,'KAYIT LİSTESİ'!$B$4:$H$855,2,0)),"",(VLOOKUP(B15,'KAYIT LİSTESİ'!$B$4:$H$855,2,0))) ->  | D15: =IF(ISERROR(VLOOKUP(B15,'KAYIT LİSTESİ'!$B$4:$H$855,4,0)),"",(VLOOKUP(B15,'KAYIT LİSTESİ'!$B$4:$H$855,4,0))) ->  | E15: =IF(ISERROR(VLOOKUP(B15,'KAYIT LİSTESİ'!$B$4:$H$855,5,0)),"",(VLOOKUP(B15,'KAYIT LİSTESİ'!$B$4:$H$855,5,0))) ->  | F15: =IF(ISERROR(VLOOKUP(B15,'KAYIT LİSTESİ'!$B$4:$H$855,6,0)),"",(VLOOKUP(B15,'KAYIT LİSTESİ'!$B$4:$H$855,6,0))) ->  | I15: 8 | J15: ÜÇADIM-8 | K15: =IF(ISERROR(VLOOKUP(J15,'KAYIT LİSTESİ'!$B$4:$H$855,2,0)),"",(VLOOKUP(J15,'KAYIT LİSTESİ'!$B$4:$H$855,2,0))) ->  | L15: =IF(ISERROR(VLOOKUP(J15,'KAYIT LİSTESİ'!$B$4:$H$855,4,0)),"",(VLOOKUP(J15,'KAYIT LİSTESİ'!$B$4:$H$855,4,0))) ->  | M15: =IF(ISERROR(VLOOKUP(J15,'KAYIT LİSTESİ'!$B$4:$H$855,5,0)),"",(VLOOKUP(J15,'KAYIT LİSTESİ'!$B$4:$H$855,5,0))) ->  | N15: =IF(ISERROR(VLOOKUP(J15,'KAYIT LİSTESİ'!$B$4:$H$855,6,0)),"",(VLOOKUP(J15,'KAYIT LİSTESİ'!$B$4:$H$855,6,0))) -> 
A16: 10 | B16: 800M-1-10 | C16: =IF(ISERROR(VLOOKUP(B16,'KAYIT LİSTESİ'!$B$4:$H$855,2,0)),"",(VLOOKUP(B16,'KAYIT LİSTESİ'!$B$4:$H$855,2,0))) -> 195 | D16: =IF(ISERROR(VLOOKUP(B16,'KAYIT LİSTESİ'!$B$4:$H$855,4,0)),"",(VLOOKUP(B16,'KAYIT LİSTESİ'!$B$4:$H$855,4,0))) -> 2001-01-01 | E16: =IF(ISERROR(VLOOKUP(B16,'KAYIT LİSTESİ'!$B$4:$H$855,5,0)),"",(VLOOKUP(B16,'KAYIT LİSTESİ'!$B$4:$H$855,5,0))) -> ALI HUSSEIN AMER | F16: =IF(ISERROR(VLOOKUP(B16,'KAYIT LİSTESİ'!$B$4:$H$855,6,0)),"",(VLOOKUP(B16,'KAYIT LİSTESİ'!$B$4:$H$855,6,0))) -> BURDUR | I16: 9 | J16: ÜÇADIM-9 | K16: =IF(ISERROR(VLOOKUP(J16,'KAYIT LİSTESİ'!$B$4:$H$855,2,0)),"",(VLOOKUP(J16,'KAYIT LİSTESİ'!$B$4:$H$855,2,0))) ->  | L16: =IF(ISERROR(VLOOKUP(J16,'KAYIT LİSTESİ'!$B$4:$H$855,4,0)),"",(VLOOKUP(J16,'KAYIT LİSTESİ'!$B$4:$H$855,4,0))) ->  | M16: =IF(ISERROR(VLOOKUP(J16,'KAYIT LİSTESİ'!$B$4:$H$855,5,0)),"",(VLOOKUP(J16,'KAYIT LİSTESİ'!$B$4:$H$855,5,0))) ->  | N16: =IF(ISERROR(VLOOKUP(J16,'KAYIT LİSTESİ'!$B$4:$H$855,6,0)),"",(VLOOKUP(J16,'KAYIT LİSTESİ'!$B$4:$H$855,6,0))) -> 
A17: 11 | B17: 800M-1-11 | C17: =IF(ISERROR(VLOOKUP(B17,'KAYIT LİSTESİ'!$B$4:$H$855,2,0)),"",(VLOOKUP(B17,'KAYIT LİSTESİ'!$B$4:$H$855,2,0))) ->  | D17: =IF(ISERROR(VLOOKUP(B17,'KAYIT LİSTESİ'!$B$4:$H$855,4,0)),"",(VLOOKUP(B17,'KAYIT LİSTESİ'!$B$4:$H$855,4,0))) ->  | E17: =IF(ISERROR(VLOOKUP(B17,'KAYIT LİSTESİ'!$B$4:$H$855,5,0)),"",(VLOOKUP(B17,'KAYIT LİSTESİ'!$B$4:$H$855,5,0))) ->  | F17: =IF(ISERROR(VLOOKUP(B17,'KAYIT LİSTESİ'!$B$4:$H$855,6,0)),"",(VLOOKUP(B17,'KAYIT LİSTESİ'!$B$4:$H$855,6,0))) ->  | I17: 10 | J17: ÜÇADIM-10 | K17: =IF(ISERROR(VLOOKUP(J17,'KAYIT LİSTESİ'!$B$4:$H$855,2,0)),"",(VLOOKUP(J17,'KAYIT LİSTESİ'!$B$4:$H$855,2,0))) ->  | L17: =IF(ISERROR(VLOOKUP(J17,'KAYIT LİSTESİ'!$B$4:$H$855,4,0)),"",(VLOOKUP(J17,'KAYIT LİSTESİ'!$B$4:$H$855,4,0))) ->  | M17: =IF(ISERROR(VLOOKUP(J17,'KAYIT LİSTESİ'!$B$4:$H$855,5,0)),"",(VLOOKUP(J17,'KAYIT LİSTESİ'!$B$4:$H$855,5,0))) ->  | N17: =IF(ISERROR(VLOOKUP(J17,'KAYIT LİSTESİ'!$B$4:$H$855,6,0)),"",(VLOOKUP(J17,'KAYIT LİSTESİ'!$B$4:$H$855,6,0))) -> 
A18: 12 | B18: 800M-1-12 | C18: =IF(ISERROR(VLOOKUP(B18,'KAYIT LİSTESİ'!$B$4:$H$855,2,0)),"",(VLOOKUP(B18,'KAYIT LİSTESİ'!$B$4:$H$855,2,0))) ->  | D18: =IF(ISERROR(VLOOKUP(B18,'KAYIT LİSTESİ'!$B$4:$H$855,4,0)),"",(VLOOKUP(B18,'KAYIT LİSTESİ'!$B$4:$H$855,4,0))) ->  | E18: =IF(ISERROR(VLOOKUP(B18,'KAYIT LİSTESİ'!$B$4:$H$855,5,0)),"",(VLOOKUP(B18,'KAYIT LİSTESİ'!$B$4:$H$855,5,0))) ->  | F18: =IF(ISERROR(VLOOKUP(B18,'KAYIT LİSTESİ'!$B$4:$H$855,6,0)),"",(VLOOKUP(B18,'KAYIT LİSTESİ'!$B$4:$H$855,6,0))) ->  | I18: 11 | J18: ÜÇADIM-11 | K18: =IF(ISERROR(VLOOKUP(J18,'KAYIT LİSTESİ'!$B$4:$H$855,2,0)),"",(VLOOKUP(J18,'KAYIT LİSTESİ'!$B$4:$H$855,2,0))) ->  | L18: =IF(ISERROR(VLOOKUP(J18,'KAYIT LİSTESİ'!$B$4:$H$855,4,0)),"",(VLOOKUP(J18,'KAYIT LİSTESİ'!$B$4:$H$855,4,0))) ->  | M18: =IF(ISERROR(VLOOKUP(J18,'KAYIT LİSTESİ'!$B$4:$H$855,5,0)),"",(VLOOKUP(J18,'KAYIT LİSTESİ'!$B$4:$H$855,5,0))) ->  | N18: =IF(ISERROR(VLOOKUP(J18,'KAYIT LİSTESİ'!$B$4:$H$855,6,0)),"",(VLOOKUP(J18,'KAYIT LİSTESİ'!$B$4:$H$855,6,0))) -> 
A19: 2. SERİ | I19: 12 | J19: ÜÇADIM-12 | K19: =IF(ISERROR(VLOOKUP(J19,'KAYIT LİSTESİ'!$B$4:$H$855,2,0)),"",(VLOOKUP(J19,'KAYIT LİSTESİ'!$B$4:$H$855,2,0))) ->  | L19: =IF(ISERROR(VLOOKUP(J19,'KAYIT LİSTESİ'!$B$4:$H$855,4,0)),"",(VLOOKUP(J19,'KAYIT LİSTESİ'!$B$4:$H$855,4,0))) ->  | M19: =IF(ISERROR(VLOOKUP(J19,'KAYIT LİSTESİ'!$B$4:$H$855,5,0)),"",(VLOOKUP(J19,'KAYIT LİSTESİ'!$B$4:$H$855,5,0))) ->  | N19: =IF(ISERROR(VLOOKUP(J19,'KAYIT LİSTESİ'!$B$4:$H$855,6,0)),"",(VLOOKUP(J19,'KAYIT LİSTESİ'!$B$4:$H$855,6,0))) -> 
A20: Sıra No | B20: Formül | C20: Göğüs No | D20: Doğum Tarihi | E20: Adı ve Soyadı | F20: Okulu | G20: Start Kontrol | I20: 13 | J20: ÜÇADIM-13 | K20: =IF(ISERROR(VLOOKUP(J20,'KAYIT LİSTESİ'!$B$4:$H$855,2,0)),"",(VLOOKUP(J20,'KAYIT LİSTESİ'!$B$4:$H$855,2,0))) ->  | L20: =IF(ISERROR(VLOOKUP(J20,'KAYIT LİSTESİ'!$B$4:$H$855,4,0)),"",(VLOOKUP(J20,'KAYIT LİSTESİ'!$B$4:$H$855,4,0))) ->  | M20: =IF(ISERROR(VLOOKUP(J20,'KAYIT LİSTESİ'!$B$4:$H$855,5,0)),"",(VLOOKUP(J20,'KAYIT LİSTESİ'!$B$4:$H$855,5,0))) ->  | N20: =IF(ISERROR(VLOOKUP(J20,'KAYIT LİSTESİ'!$B$4:$H$855,6,0)),"",(VLOOKUP(J20,'KAYIT LİSTESİ'!$B$4:$H$855,6,0))) -> 
A21: 1 | B21: 800M-2-1 | C21: =IF(ISERROR(VLOOKUP(B21,'KAYIT LİSTESİ'!$B$4:$H$855,2,0)),"",(VLOOKUP(B21,'KAYIT LİSTESİ'!$B$4:$H$855,2,0))) -> 582 | D21: =IF(ISERROR(VLOOKUP(B21,'KAYIT LİSTESİ'!$B$4:$H$855,4,0)),"",(VLOOKUP(B21,'KAYIT LİSTESİ'!$B$4:$H$855,4,0))) -> 2001-05-19 | E21: =IF(ISERROR(VLOOKUP(B21,'KAYIT LİSTESİ'!$B$4:$H$855,5,0)),"",(VLOOKUP(B21,'KAYIT LİSTESİ'!$B$4:$H$855,5,0))) -> Adem KOÇLARDAN | F21: =IF(ISERROR(VLOOKUP(B21,'KAYIT LİSTESİ'!$B$4:$H$855,6,0)),"",(VLOOKUP(B21,'KAYIT LİSTESİ'!$B$4:$H$855,6,0))) -> MUŞ | I21: 14 | J21: ÜÇADIM-14 | K21: =IF(ISERROR(VLOOKUP(J21,'KAYIT LİSTESİ'!$B$4:$H$855,2,0)),"",(VLOOKUP(J21,'KAYIT LİSTESİ'!$B$4:$H$855,2,0))) ->  | L21: =IF(ISERROR(VLOOKUP(J21,'KAYIT LİSTESİ'!$B$4:$H$855,4,0)),"",(VLOOKUP(J21,'KAYIT LİSTESİ'!$B$4:$H$855,4,0))) ->  | M21: =IF(ISERROR(VLOOKUP(J21,'KAYIT LİSTESİ'!$B$4:$H$855,5,0)),"",(VLOOKUP(J21,'KAYIT LİSTESİ'!$B$4:$H$855,5,0))) ->  | N21: =IF(ISERROR(VLOOKUP(J21,'KAYIT LİSTESİ'!$B$4:$H$855,6,0)),"",(VLOOKUP(J21,'KAYIT LİSTESİ'!$B$4:$H$855,6,0))) -> 
A22: 2 | B22: 800M-2-2 | C22: =IF(ISERROR(VLOOKUP(B22,'KAYIT LİSTESİ'!$B$4:$H$855,2,0)),"",(VLOOKUP(B22,'KAYIT LİSTESİ'!$B$4:$H$855,2,0))) -> 607 | D22: =IF(ISERROR(VLOOKUP(B22,'KAYIT LİSTESİ'!$B$4:$H$855,4,0)),"",(VLOOKUP(B22,'KAYIT LİSTESİ'!$B$4:$H$855,4,0))) -> 2001-02-09 | E22: =IF(ISERROR(VLOOKUP(B22,'KAYIT LİSTESİ'!$B$4:$H$855,5,0)),"",(VLOOKUP(B22,'KAYIT LİSTESİ'!$B$4:$H$855,5,0))) -> MEHMET DAYAN | F22: =IF(ISERROR(VLOOKUP(B22,'KAYIT LİSTESİ'!$B$4:$H$855,6,0)),"",(VLOOKUP(B22,'KAYIT LİSTESİ'!$B$4:$H$855,6,0))) -> NİĞDE | I22: 15 | J22: ÜÇADIM-15 | K22: =IF(ISERROR(VLOOKUP(J22,'KAYIT LİSTESİ'!$B$4:$H$855,2,0)),"",(VLOOKUP(J22,'KAYIT LİSTESİ'!$B$4:$H$855,2,0))) ->  | L22: =IF(ISERROR(VLOOKUP(J22,'KAYIT LİSTESİ'!$B$4:$H$855,4,0)),"",(VLOOKUP(J22,'KAYIT LİSTESİ'!$B$4:$H$855,4,0))) ->  | M22: =IF(ISERROR(VLOOKUP(J22,'KAYIT LİSTESİ'!$B$4:$H$855,5,0)),"",(VLOOKUP(J22,'KAYIT LİSTESİ'!$B$4:$H$855,5,0))) ->  | N22: =IF(ISERROR(VLOOKUP(J22,'KAYIT LİSTESİ'!$B$4:$H$855,6,0)),"",(VLOOKUP(J22,'KAYIT LİSTESİ'!$B$4:$H$855,6,0))) -> 
A23: 3 | B23: 800M-2-3 | C23: =IF(ISERROR(VLOOKUP(B23,'KAYIT LİSTESİ'!$B$4:$H$855,2,0)),"",(VLOOKUP(B23,'KAYIT LİSTESİ'!$B$4:$H$855,2,0))) -> 694 | D23: =IF(ISERROR(VLOOKUP(B23,'KAYIT LİSTESİ'!$B$4:$H$855,4,0)),"",(VLOOKUP(B23,'KAYIT LİSTESİ'!$B$4:$H$855,4,0))) -> 2001-03-27 | E23: =IF(ISERROR(VLOOKUP(B23,'KAYIT LİSTESİ'!$B$4:$H$855,5,0)),"",(VLOOKUP(B23,'KAYIT LİSTESİ'!$B$4:$H$855,5,0))) -> HÜSEYİM KURT | F23: =IF(ISERROR(VLOOKUP(B23,'KAYIT LİSTESİ'!$B$4:$H$855,6,0)),"",(VLOOKUP(B23,'KAYIT LİSTESİ'!$B$4:$H$855,6,0))) -> TOKAT | I23: 16 | J23: ÜÇADIM-16 | K23: =IF(ISERROR(VLOOKUP(J23,'KAYIT LİSTESİ'!$B$4:$H$855,2,0)),"",(VLOOKUP(J23,'KAYIT LİSTESİ'!$B$4:$H$855,2,0))) ->  | L23: =IF(ISERROR(VLOOKUP(J23,'KAYIT LİSTESİ'!$B$4:$H$855,4,0)),"",(VLOOKUP(J23,'KAYIT LİSTESİ'!$B$4:$H$855,4,0))) ->  | M23: =IF(ISERROR(VLOOKUP(J23,'KAYIT LİSTESİ'!$B$4:$H$855,5,0)),"",(VLOOKUP(J23,'KAYIT LİSTESİ'!$B$4:$H$855,5,0))) ->  | N23: =IF(ISERROR(VLOOKUP(J23,'KAYIT LİSTESİ'!$B$4:$H$855,6,0)),"",(VLOOKUP(J23,'KAYIT LİSTESİ'!$B$4:$H$855,6,0))) -> 
A24: 4 | B24: 800M-2-4 | C24: =IF(ISERROR(VLOOKUP(B24,'KAYIT LİSTESİ'!$B$4:$H$855,2,0)),"",(VLOOKUP(B24,'KAYIT LİSTESİ'!$B$4:$H$855,2,0))) -> 285 | D24: =IF(ISERROR(VLOOKUP(B24,'KAYIT LİSTESİ'!$B$4:$H$855,4,0)),"",(VLOOKUP(B24,'KAYIT LİSTESİ'!$B$4:$H$855,4,0))) -> 2001-01-01 | E24: =IF(ISERROR(VLOOKUP(B24,'KAYIT LİSTESİ'!$B$4:$H$855,5,0)),"",(VLOOKUP(B24,'KAYIT LİSTESİ'!$B$4:$H$855,5,0))) -> HASAN HIDIR | F24: =IF(ISERROR(VLOOKUP(B24,'KAYIT LİSTESİ'!$B$4:$H$855,6,0)),"",(VLOOKUP(B24,'KAYIT LİSTESİ'!$B$4:$H$855,6,0))) -> GAZİANTEP | I24: 17 | J24: ÜÇADIM-17 | K24: =IF(ISERROR(VLOOKUP(J24,'KAYIT LİSTESİ'!$B$4:$H$855,2,0)),"",(VLOOKUP(J24,'KAYIT LİSTESİ'!$B$4:$H$855,2,0))) ->  | L24: =IF(ISERROR(VLOOKUP(J24,'KAYIT LİSTESİ'!$B$4:$H$855,4,0)),"",(VLOOKUP(J24,'KAYIT LİSTESİ'!$B$4:$H$855,4,0))) ->  | M24: =IF(ISERROR(VLOOKUP(J24,'KAYIT LİSTESİ'!$B$4:$H$855,5,0)),"",(VLOOKUP(J24,'KAYIT LİSTESİ'!$B$4:$H$855,5,0))) ->  | N24: =IF(ISERROR(VLOOKUP(J24,'KAYIT LİSTESİ'!$B$4:$H$855,6,0)),"",(VLOOKUP(J24,'KAYIT LİSTESİ'!$B$4:$H$855,6,0))) -> 
A25: 5 | B25: 800M-2-5 | C25: =IF(ISERROR(VLOOKUP(B25,'KAYIT LİSTESİ'!$B$4:$H$855,2,0)),"",(VLOOKUP(B25,'KAYIT LİSTESİ'!$B$4:$H$855,2,0))) -> 287 | D25: =IF(ISERROR(VLOOKUP(B25,'KAYIT LİSTESİ'!$B$4:$H$855,4,0)),"",(VLOOKUP(B25,'KAYIT LİSTESİ'!$B$4:$H$855,4,0))) -> 2001-01-01 | E25: =IF(ISERROR(VLOOKUP(B25,'KAYIT LİSTESİ'!$B$4:$H$855,5,0)),"",(VLOOKUP(B25,'KAYIT LİSTESİ'!$B$4:$H$855,5,0))) -> MUSTAFA EREN YILMAZ | F25: =IF(ISERROR(VLOOKUP(B25,'KAYIT LİSTESİ'!$B$4:$H$855,6,0)),"",(VLOOKUP(B25,'KAYIT LİSTESİ'!$B$4:$H$855,6,0))) -> GAZİANTEP | I25: 18 | J25: ÜÇADIM-18 | K25: =IF(ISERROR(VLOOKUP(J25,'KAYIT LİSTESİ'!$B$4:$H$855,2,0)),"",(VLOOKUP(J25,'KAYIT LİSTESİ'!$B$4:$H$855,2,0))) ->  | L25: =IF(ISERROR(VLOOKUP(J25,'KAYIT LİSTESİ'!$B$4:$H$855,4,0)),"",(VLOOKUP(J25,'KAYIT LİSTESİ'!$B$4:$H$855,4,0))) ->  | M25: =IF(ISERROR(VLOOKUP(J25,'KAYIT LİSTESİ'!$B$4:$H$855,5,0)),"",(VLOOKUP(J25,'KAYIT LİSTESİ'!$B$4:$H$855,5,0))) ->  | N25: =IF(ISERROR(VLOOKUP(J25,'KAYIT LİSTESİ'!$B$4:$H$855,6,0)),"",(VLOOKUP(J25,'KAYIT LİSTESİ'!$B$4:$H$855,6,0))) -> 
A26: 6 | B26: 800M-2-6 | C26: =IF(ISERROR(VLOOKUP(B26,'KAYIT LİSTESİ'!$B$4:$H$855,2,0)),"",(VLOOKUP(B26,'KAYIT LİSTESİ'!$B$4:$H$855,2,0))) -> 552 | D26: =IF(ISERROR(VLOOKUP(B26,'KAYIT LİSTESİ'!$B$4:$H$855,4,0)),"",(VLOOKUP(B26,'KAYIT LİSTESİ'!$B$4:$H$855,4,0))) -> 2001-11-16 | E26: =IF(ISERROR(VLOOKUP(B26,'KAYIT LİSTESİ'!$B$4:$H$855,5,0)),"",(VLOOKUP(B26,'KAYIT LİSTESİ'!$B$4:$H$855,5,0))) -> İBRAHİM SUBAŞI | F26: =IF(ISERROR(VLOOKUP(B26,'KAYIT LİSTESİ'!$B$4:$H$855,6,0)),"",(VLOOKUP(B26,'KAYIT LİSTESİ'!$B$4:$H$855,6,0))) -> KÜTAHYA | I26: 19 | J26: ÜÇADIM-19 | K26: =IF(ISERROR(VLOOKUP(J26,'KAYIT LİSTESİ'!$B$4:$H$855,2,0)),"",(VLOOKUP(J26,'KAYIT LİSTESİ'!$B$4:$H$855,2,0))) ->  | L26: =IF(ISERROR(VLOOKUP(J26,'KAYIT LİSTESİ'!$B$4:$H$855,4,0)),"",(VLOOKUP(J26,'KAYIT LİSTESİ'!$B$4:$H$855,4,0))) ->  | M26: =IF(ISERROR(VLOOKUP(J26,'KAYIT LİSTESİ'!$B$4:$H$855,5,0)),"",(VLOOKUP(J26,'KAYIT LİSTESİ'!$B$4:$H$855,5,0))) ->  | N26: =IF(ISERROR(VLOOKUP(J26,'KAYIT LİSTESİ'!$B$4:$H$855,6,0)),"",(VLOOKUP(J26,'KAYIT LİSTESİ'!$B$4:$H$855,6,0))) -> 
A27: 7 | B27: 800M-2-7 | C27: =IF(ISERROR(VLOOKUP(B27,'KAYIT LİSTESİ'!$B$4:$H$855,2,0)),"",(VLOOKUP(B27,'KAYIT LİSTESİ'!$B$4:$H$855,2,0))) ->  | D27: =IF(ISERROR(VLOOKUP(B27,'KAYIT LİSTESİ'!$B$4:$H$855,4,0)),"",(VLOOKUP(B27,'KAYIT LİSTESİ'!$B$4:$H$855,4,0))) ->  | E27: =IF(ISERROR(VLOOKUP(B27,'KAYIT LİSTESİ'!$B$4:$H$855,5,0)),"",(VLOOKUP(B27,'KAYIT LİSTESİ'!$B$4:$H$855,5,0))) ->  | F27: =IF(ISERROR(VLOOKUP(B27,'KAYIT LİSTESİ'!$B$4:$H$855,6,0)),"",(VLOOKUP(B27,'KAYIT LİSTESİ'!$B$4:$H$855,6,0))) ->  | I27: 20 | J27: ÜÇADIM-20 | K27: =IF(ISERROR(VLOOKUP(J27,'KAYIT LİSTESİ'!$B$4:$H$855,2,0)),"",(VLOOKUP(J27,'KAYIT LİSTESİ'!$B$4:$H$855,2,0))) ->  | L27: =IF(ISERROR(VLOOKUP(J27,'KAYIT LİSTESİ'!$B$4:$H$855,4,0)),"",(VLOOKUP(J27,'KAYIT LİSTESİ'!$B$4:$H$855,4,0))) ->  | M27: =IF(ISERROR(VLOOKUP(J27,'KAYIT LİSTESİ'!$B$4:$H$855,5,0)),"",(VLOOKUP(J27,'KAYIT LİSTESİ'!$B$4:$H$855,5,0))) ->  | N27: =IF(ISERROR(VLOOKUP(J27,'KAYIT LİSTESİ'!$B$4:$H$855,6,0)),"",(VLOOKUP(J27,'KAYIT LİSTESİ'!$B$4:$H$855,6,0))) -> 
A28: 8 | B28: 800M-2-8 | C28: =IF(ISERROR(VLOOKUP(B28,'KAYIT LİSTESİ'!$B$4:$H$855,2,0)),"",(VLOOKUP(B28,'KAYIT LİSTESİ'!$B$4:$H$855,2,0))) ->  | D28: =IF(ISERROR(VLOOKUP(B28,'KAYIT LİSTESİ'!$B$4:$H$855,4,0)),"",(VLOOKUP(B28,'KAYIT LİSTESİ'!$B$4:$H$855,4,0))) ->  | E28: =IF(ISERROR(VLOOKUP(B28,'KAYIT LİSTESİ'!$B$4:$H$855,5,0)),"",(VLOOKUP(B28,'KAYIT LİSTESİ'!$B$4:$H$855,5,0))) ->  | F28: =IF(ISERROR(VLOOKUP(B28,'KAYIT LİSTESİ'!$B$4:$H$855,6,0)),"",(VLOOKUP(B28,'KAYIT LİSTESİ'!$B$4:$H$855,6,0))) ->  | I28: 21 | J28: ÜÇADIM-21 | K28: =IF(ISERROR(VLOOKUP(J28,'KAYIT LİSTESİ'!$B$4:$H$855,2,0)),"",(VLOOKUP(J28,'KAYIT LİSTESİ'!$B$4:$H$855,2,0))) ->  | L28: =IF(ISERROR(VLOOKUP(J28,'KAYIT LİSTESİ'!$B$4:$H$855,4,0)),"",(VLOOKUP(J28,'KAYIT LİSTESİ'!$B$4:$H$855,4,0))) ->  | M28: =IF(ISERROR(VLOOKUP(J28,'KAYIT LİSTESİ'!$B$4:$H$855,5,0)),"",(VLOOKUP(J28,'KAYIT LİSTESİ'!$B$4:$H$855,5,0))) ->  | N28: =IF(ISERROR(VLOOKUP(J28,'KAYIT LİSTESİ'!$B$4:$H$855,6,0)),"",(VLOOKUP(J28,'KAYIT LİSTESİ'!$B$4:$H$855,6,0))) -> 
A29: 9 | B29: 800M-2-9 | C29: =IF(ISERROR(VLOOKUP(B29,'KAYIT LİSTESİ'!$B$4:$H$855,2,0)),"",(VLOOKUP(B29,'KAYIT LİSTESİ'!$B$4:$H$855,2,0))) -> 658 | D29: =IF(ISERROR(VLOOKUP(B29,'KAYIT LİSTESİ'!$B$4:$H$855,4,0)),"",(VLOOKUP(B29,'KAYIT LİSTESİ'!$B$4:$H$855,4,0))) -> 2001-02-05 | E29: =IF(ISERROR(VLOOKUP(B29,'KAYIT LİSTESİ'!$B$4:$H$855,5,0)),"",(VLOOKUP(B29,'KAYIT LİSTESİ'!$B$4:$H$855,5,0))) -> HASAN EREN | F29: =IF(ISERROR(VLOOKUP(B29,'KAYIT LİSTESİ'!$B$4:$H$855,6,0)),"",(VLOOKUP(B29,'KAYIT LİSTESİ'!$B$4:$H$855,6,0))) -> SİİRT | I29: 22 | J29: ÜÇADIM-22 | K29: =IF(ISERROR(VLOOKUP(J29,'KAYIT LİSTESİ'!$B$4:$H$855,2,0)),"",(VLOOKUP(J29,'KAYIT LİSTESİ'!$B$4:$H$855,2,0))) ->  | L29: =IF(ISERROR(VLOOKUP(J29,'KAYIT LİSTESİ'!$B$4:$H$855,4,0)),"",(VLOOKUP(J29,'KAYIT LİSTESİ'!$B$4:$H$855,4,0))) ->  | M29: =IF(ISERROR(VLOOKUP(J29,'KAYIT LİSTESİ'!$B$4:$H$855,5,0)),"",(VLOOKUP(J29,'KAYIT LİSTESİ'!$B$4:$H$855,5,0))) ->  | N29: =IF(ISERROR(VLOOKUP(J29,'KAYIT LİSTESİ'!$B$4:$H$855,6,0)),"",(VLOOKUP(J29,'KAYIT LİSTESİ'!$B$4:$H$855,6,0))) -> 
A30: 10 | B30: 800M-2-10 | C30: =IF(ISERROR(VLOOKUP(B30,'KAYIT LİSTESİ'!$B$4:$H$855,2,0)),"",(VLOOKUP(B30,'KAYIT LİSTESİ'!$B$4:$H$855,2,0))) -> 63 | D30: =IF(ISERROR(VLOOKUP(B30,'KAYIT LİSTESİ'!$B$4:$H$855,4,0)),"",(VLOOKUP(B30,'KAYIT LİSTESİ'!$B$4:$H$855,4,0))) -> 2001-01-01 | E30: =IF(ISERROR(VLOOKUP(B30,'KAYIT LİSTESİ'!$B$4:$H$855,5,0)),"",(VLOOKUP(B30,'KAYIT LİSTESİ'!$B$4:$H$855,5,0))) -> HÜSEYİN ŞENTÜRK | F30: =IF(ISERROR(VLOOKUP(B30,'KAYIT LİSTESİ'!$B$4:$H$855,6,0)),"",(VLOOKUP(B30,'KAYIT LİSTESİ'!$B$4:$H$855,6,0))) -> ARDAHAN | I30: 23 | J30: ÜÇADIM-23 | K30: =IF(ISERROR(VLOOKUP(J30,'KAYIT LİSTESİ'!$B$4:$H$855,2,0)),"",(VLOOKUP(J30,'KAYIT LİSTESİ'!$B$4:$H$855,2,0))) ->  | L30: =IF(ISERROR(VLOOKUP(J30,'KAYIT LİSTESİ'!$B$4:$H$855,4,0)),"",(VLOOKUP(J30,'KAYIT LİSTESİ'!$B$4:$H$855,4,0))) ->  | M30: =IF(ISERROR(VLOOKUP(J30,'KAYIT LİSTESİ'!$B$4:$H$855,5,0)),"",(VLOOKUP(J30,'KAYIT LİSTESİ'!$B$4:$H$855,5,0))) ->  | N30: =IF(ISERROR(VLOOKUP(J30,'KAYIT LİSTESİ'!$B$4:$H$855,6,0)),"",(VLOOKUP(J30,'KAYIT LİSTESİ'!$B$4:$H$855,6,0))) -> 
A31: 11 | B31: 800M-2-11 | C31: =IF(ISERROR(VLOOKUP(B31,'KAYIT LİSTESİ'!$B$4:$H$855,2,0)),"",(VLOOKUP(B31,'KAYIT LİSTESİ'!$B$4:$H$855,2,0))) ->  | D31: =IF(ISERROR(VLOOKUP(B31,'KAYIT LİSTESİ'!$B$4:$H$855,4,0)),"",(VLOOKUP(B31,'KAYIT LİSTESİ'!$B$4:$H$855,4,0))) ->  | E31: =IF(ISERROR(VLOOKUP(B31,'KAYIT LİSTESİ'!$B$4:$H$855,5,0)),"",(VLOOKUP(B31,'KAYIT LİSTESİ'!$B$4:$H$855,5,0))) ->  | F31: =IF(ISERROR(VLOOKUP(B31,'KAYIT LİSTESİ'!$B$4:$H$855,6,0)),"",(VLOOKUP(B31,'KAYIT LİSTESİ'!$B$4:$H$855,6,0))) ->  | I31: 24 | J31: ÜÇADIM-24 | K31: =IF(ISERROR(VLOOKUP(J31,'KAYIT LİSTESİ'!$B$4:$H$855,2,0)),"",(VLOOKUP(J31,'KAYIT LİSTESİ'!$B$4:$H$855,2,0))) ->  | L31: =IF(ISERROR(VLOOKUP(J31,'KAYIT LİSTESİ'!$B$4:$H$855,4,0)),"",(VLOOKUP(J31,'KAYIT LİSTESİ'!$B$4:$H$855,4,0))) ->  | M31: =IF(ISERROR(VLOOKUP(J31,'KAYIT LİSTESİ'!$B$4:$H$855,5,0)),"",(VLOOKUP(J31,'KAYIT LİSTESİ'!$B$4:$H$855,5,0))) ->  | N31: =IF(ISERROR(VLOOKUP(J31,'KAYIT LİSTESİ'!$B$4:$H$855,6,0)),"",(VLOOKUP(J31,'KAYIT LİSTESİ'!$B$4:$H$855,6,0))) -> 
A32: 12 | B32: 800M-2-12 | C32: =IF(ISERROR(VLOOKUP(B32,'KAYIT LİSTESİ'!$B$4:$H$855,2,0)),"",(VLOOKUP(B32,'KAYIT LİSTESİ'!$B$4:$H$855,2,0))) ->  | D32: =IF(ISERROR(VLOOKUP(B32,'KAYIT LİSTESİ'!$B$4:$H$855,4,0)),"",(VLOOKUP(B32,'KAYIT LİSTESİ'!$B$4:$H$855,4,0))) ->  | E32: =IF(ISERROR(VLOOKUP(B32,'KAYIT LİSTESİ'!$B$4:$H$855,5,0)),"",(VLOOKUP(B32,'KAYIT LİSTESİ'!$B$4:$H$855,5,0))) ->  | F32: =IF(ISERROR(VLOOKUP(B32,'KAYIT LİSTESİ'!$B$4:$H$855,6,0)),"",(VLOOKUP(B32,'KAYIT LİSTESİ'!$B$4:$H$855,6,0))) ->  | I32: 25 | J32: ÜÇADIM-25 | K32: =IF(ISERROR(VLOOKUP(J32,'KAYIT LİSTESİ'!$B$4:$H$855,2,0)),"",(VLOOKUP(J32,'KAYIT LİSTESİ'!$B$4:$H$855,2,0))) ->  | L32: =IF(ISERROR(VLOOKUP(J32,'KAYIT LİSTESİ'!$B$4:$H$855,4,0)),"",(VLOOKUP(J32,'KAYIT LİSTESİ'!$B$4:$H$855,4,0))) ->  | M32: =IF(ISERROR(VLOOKUP(J32,'KAYIT LİSTESİ'!$B$4:$H$855,5,0)),"",(VLOOKUP(J32,'KAYIT LİSTESİ'!$B$4:$H$855,5,0))) ->  | N32: =IF(ISERROR(VLOOKUP(J32,'KAYIT LİSTESİ'!$B$4:$H$855,6,0)),"",(VLOOKUP(J32,'KAYIT LİSTESİ'!$B$4:$H$855,6,0))) -> 
A33: 3. SERİ | I33: DİSK ATMA
A34: Sıra No | B34: Formül | C34: Göğüs No | D34: Doğum Tarihi | E34: Adı ve Soyadı | F34: Okulu | G34: Start Kontrol | I34: SIRA NO | K34: GÖĞÜS NO | L34: DOĞUM TARİHİ | M34: ADI VE SOYADI | N34: OKULU | O34: START KONTROL
A35: 1 | B35: 800M-3-1 | C35: =IF(ISERROR(VLOOKUP(B35,'KAYIT LİSTESİ'!$B$4:$H$855,2,0)),"",(VLOOKUP(B35,'KAYIT LİSTESİ'!$B$4:$H$855,2,0))) -> 481 | D35: =IF(ISERROR(VLOOKUP(B35,'KAYIT LİSTESİ'!$B$4:$H$855,4,0)),"",(VLOOKUP(B35,'KAYIT LİSTESİ'!$B$4:$H$855,4,0))) -> 2001-10-23 | E35: =IF(ISERROR(VLOOKUP(B35,'KAYIT LİSTESİ'!$B$4:$H$855,5,0)),"",(VLOOKUP(B35,'KAYIT LİSTESİ'!$B$4:$H$855,5,0))) -> ABDULKADİR EREN | F35: =IF(ISERROR(VLOOKUP(B35,'KAYIT LİSTESİ'!$B$4:$H$855,6,0)),"",(VLOOKUP(B35,'KAYIT LİSTESİ'!$B$4:$H$855,6,0))) -> KIRIKKALE | I35: 1 | J35: DİSK-1 | K35: =IF(ISERROR(VLOOKUP(J35,'KAYIT LİSTESİ'!$B$4:$H$855,2,0)),"",(VLOOKUP(J35,'KAYIT LİSTESİ'!$B$4:$H$855,2,0))) -> 15 | L35: =IF(ISERROR(VLOOKUP(J35,'KAYIT LİSTESİ'!$B$4:$H$855,4,0)),"",(VLOOKUP(J35,'KAYIT LİSTESİ'!$B$4:$H$855,4,0))) -> 2001-01-01 | M35: =IF(ISERROR(VLOOKUP(J35,'KAYIT LİSTESİ'!$B$4:$H$855,5,0)),"",(VLOOKUP(J35,'KAYIT LİSTESİ'!$B$4:$H$855,5,0))) -> VEYSİ KARDAŞ | N35: =IF(ISERROR(VLOOKUP(J35,'KAYIT LİSTESİ'!$B$4:$H$855,6,0)),"",(VLOOKUP(J35,'KAYIT LİSTESİ'!$B$4:$H$855,6,0))) -> ADANA
A36: 2 | B36: 800M-3-2 | C36: =IF(ISERROR(VLOOKUP(B36,'KAYIT LİSTESİ'!$B$4:$H$855,2,0)),"",(VLOOKUP(B36,'KAYIT LİSTESİ'!$B$4:$H$855,2,0))) -> 126 | D36: =IF(ISERROR(VLOOKUP(B36,'KAYIT LİSTESİ'!$B$4:$H$855,4,0)),"",(VLOOKUP(B36,'KAYIT LİSTESİ'!$B$4:$H$855,4,0))) -> 2001-03-16 | E36: =IF(ISERROR(VLOOKUP(B36,'KAYIT LİSTESİ'!$B$4:$H$855,5,0)),"",(VLOOKUP(B36,'KAYIT LİSTESİ'!$B$4:$H$855,5,0))) -> AHMET İRFAN ÖZDİL | F36: =IF(ISERROR(VLOOKUP(B36,'KAYIT LİSTESİ'!$B$4:$H$855,6,0)),"",(VLOOKUP(B36,'KAYIT LİSTESİ'!$B$4:$H$855,6,0))) -> BARTIN | I36: 2 | J36: DİSK-2 | K36: =IF(ISERROR(VLOOKUP(J36,'KAYIT LİSTESİ'!$B$4:$H$855,2,0)),"",(VLOOKUP(J36,'KAYIT LİSTESİ'!$B$4:$H$855,2,0))) -> 450 | L36: =IF(ISERROR(VLOOKUP(J36,'KAYIT LİSTESİ'!$B$4:$H$855,4,0)),"",(VLOOKUP(J36,'KAYIT LİSTESİ'!$B$4:$H$855,4,0))) -> 2001-01-04 | M36: =IF(ISERROR(VLOOKUP(J36,'KAYIT LİSTESİ'!$B$4:$H$855,5,0)),"",(VLOOKUP(J36,'KAYIT LİSTESİ'!$B$4:$H$855,5,0))) -> FURKAN ÇEKEN | N36: =IF(ISERROR(VLOOKUP(J36,'KAYIT LİSTESİ'!$B$4:$H$855,6,0)),"",(VLOOKUP(J36,'KAYIT LİSTESİ'!$B$4:$H$855,6,0))) -> İZMİR
A37: 3 | B37: 800M-3-3 | C37: =IF(ISERROR(VLOOKUP(B37,'KAYIT LİSTESİ'!$B$4:$H$855,2,0)),"",(VLOOKUP(B37,'KAYIT LİSTESİ'!$B$4:$H$855,2,0))) -> 553 | D37: =IF(ISERROR(VLOOKUP(B37,'KAYIT LİSTESİ'!$B$4:$H$855,4,0)),"",(VLOOKUP(B37,'KAYIT LİSTESİ'!$B$4:$H$855,4,0))) -> 2001-01-01 | E37: =IF(ISERROR(VLOOKUP(B37,'KAYIT LİSTESİ'!$B$4:$H$855,5,0)),"",(VLOOKUP(B37,'KAYIT LİSTESİ'!$B$4:$H$855,5,0))) -> HALİL SONKAYA | F37: =IF(ISERROR(VLOOKUP(B37,'KAYIT LİSTESİ'!$B$4:$H$855,6,0)),"",(VLOOKUP(B37,'KAYIT LİSTESİ'!$B$4:$H$855,6,0))) -> KÜTAHYA | I37: 3 | J37: DİSK-3 | K37: =IF(ISERROR(VLOOKUP(J37,'KAYIT LİSTESİ'!$B$4:$H$855,2,0)),"",(VLOOKUP(J37,'KAYIT LİSTESİ'!$B$4:$H$855,2,0))) -> 703 | L37: =IF(ISERROR(VLOOKUP(J37,'KAYIT LİSTESİ'!$B$4:$H$855,4,0)),"",(VLOOKUP(J37,'KAYIT LİSTESİ'!$B$4:$H$855,4,0))) -> 2001-01-15 | M37: =IF(ISERROR(VLOOKUP(J37,'KAYIT LİSTESİ'!$B$4:$H$855,5,0)),"",(VLOOKUP(J37,'KAYIT LİSTESİ'!$B$4:$H$855,5,0))) -> MEHMET EMİN KILINÇ | N37: =IF(ISERROR(VLOOKUP(J37,'KAYIT LİSTESİ'!$B$4:$H$855,6,0)),"",(VLOOKUP(J37,'KAYIT LİSTESİ'!$B$4:$H$855,6,0))) -> TOKAT
A38: 4 | B38: 800M-3-4 | C38: =IF(ISERROR(VLOOKUP(B38,'KAYIT LİSTESİ'!$B$4:$H$855,2,0)),"",(VLOOKUP(B38,'KAYIT LİSTESİ'!$B$4:$H$855,2,0))) -> 343 | D38: =IF(ISERROR(VLOOKUP(B38,'KAYIT LİSTESİ'!$B$4:$H$855,4,0)),"",(VLOOKUP(B38,'KAYIT LİSTESİ'!$B$4:$H$855,4,0))) -> 2001-12-20 | E38: =IF(ISERROR(VLOOKUP(B38,'KAYIT LİSTESİ'!$B$4:$H$855,5,0)),"",(VLOOKUP(B38,'KAYIT LİSTESİ'!$B$4:$H$855,5,0))) -> METİN GÜRDAL | F38: =IF(ISERROR(VLOOKUP(B38,'KAYIT LİSTESİ'!$B$4:$H$855,6,0)),"",(VLOOKUP(B38,'KAYIT LİSTESİ'!$B$4:$H$855,6,0))) -> ISPARTA | I38: 4 | J38: DİSK-4 | K38: =IF(ISERROR(VLOOKUP(J38,'KAYIT LİSTESİ'!$B$4:$H$855,2,0)),"",(VLOOKUP(J38,'KAYIT LİSTESİ'!$B$4:$H$855,2,0))) -> 209 | L38: =IF(ISERROR(VLOOKUP(J38,'KAYIT LİSTESİ'!$B$4:$H$855,4,0)),"",(VLOOKUP(J38,'KAYIT LİSTESİ'!$B$4:$H$855,4,0))) -> 2001-04-05 | M38: =IF(ISERROR(VLOOKUP(J38,'KAYIT LİSTESİ'!$B$4:$H$855,5,0)),"",(VLOOKUP(J38,'KAYIT LİSTESİ'!$B$4:$H$855,5,0))) -> RESUL YILMAZ | N38: =IF(ISERROR(VLOOKUP(J38,'KAYIT LİSTESİ'!$B$4:$H$855,6,0)),"",(VLOOKUP(J38,'KAYIT LİSTESİ'!$B$4:$H$855,6,0))) -> BURSA
A39: 5 | B39: 800M-3-5 | C39: =IF(ISERROR(VLOOKUP(B39,'KAYIT LİSTESİ'!$B$4:$H$855,2,0)),"",(VLOOKUP(B39,'KAYIT LİSTESİ'!$B$4:$H$855,2,0))) -> 250 | D39: =IF(ISERROR(VLOOKUP(B39,'KAYIT LİSTESİ'!$B$4:$H$855,4,0)),"",(VLOOKUP(B39,'KAYIT LİSTESİ'!$B$4:$H$855,4,0))) -> 2001-04-20 | E39: =IF(ISERROR(VLOOKUP(B39,'KAYIT LİSTESİ'!$B$4:$H$855,5,0)),"",(VLOOKUP(B39,'KAYIT LİSTESİ'!$B$4:$H$855,5,0))) -> ŞAKİR YEŞİL | F39: =IF(ISERROR(VLOOKUP(B39,'KAYIT LİSTESİ'!$B$4:$H$855,6,0)),"",(VLOOKUP(B39,'KAYIT LİSTESİ'!$B$4:$H$855,6,0))) -> ERZİNCAN | I39: 5 | J39: DİSK-5 | K39: =IF(ISERROR(VLOOKUP(J39,'KAYIT LİSTESİ'!$B$4:$H$855,2,0)),"",(VLOOKUP(J39,'KAYIT LİSTESİ'!$B$4:$H$855,2,0))) -> 744 | L39: =IF(ISERROR(VLOOKUP(J39,'KAYIT LİSTESİ'!$B$4:$H$855,4,0)),"",(VLOOKUP(J39,'KAYIT LİSTESİ'!$B$4:$H$855,4,0))) -> 2001-03-04 | M39: =IF(ISERROR(VLOOKUP(J39,'KAYIT LİSTESİ'!$B$4:$H$855,5,0)),"",(VLOOKUP(J39,'KAYIT LİSTESİ'!$B$4:$H$855,5,0))) -> CEYHUN SEVİNÇ | N39: =IF(ISERROR(VLOOKUP(J39,'KAYIT LİSTESİ'!$B$4:$H$855,6,0)),"",(VLOOKUP(J39,'KAYIT LİSTESİ'!$B$4:$H$855,6,0))) -> SAKARYA
A40: 6 | B40: 800M-3-6 | C40: =IF(ISERROR(VLOOKUP(B40,'KAYIT LİSTESİ'!$B$4:$H$855,2,0)),"",(VLOOKUP(B40,'KAYIT LİSTESİ'!$B$4:$H$855,2,0))) -> 656 | D40: =IF(ISERROR(VLOOKUP(B40,'KAYIT LİSTESİ'!$B$4:$H$855,4,0)),"",(VLOOKUP(B40,'KAYIT LİSTESİ'!$B$4:$H$855,4,0))) -> 2001-02-01 | E40: =IF(ISERROR(VLOOKUP(B40,'KAYIT LİSTESİ'!$B$4:$H$855,5,0)),"",(VLOOKUP(B40,'KAYIT LİSTESİ'!$B$4:$H$855,5,0))) -> HAYRETTİN KAYA | F40: =IF(ISERROR(VLOOKUP(B40,'KAYIT LİSTESİ'!$B$4:$H$855,6,0)),"",(VLOOKUP(B40,'KAYIT LİSTESİ'!$B$4:$H$855,6,0))) -> SİİRT | I40: 6 | J40: DİSK-6 | K40: =IF(ISERROR(VLOOKUP(J40,'KAYIT LİSTESİ'!$B$4:$H$855,2,0)),"",(VLOOKUP(J40,'KAYIT LİSTESİ'!$B$4:$H$855,2,0))) -> 417 | L40: =IF(ISERROR(VLOOKUP(J40,'KAYIT LİSTESİ'!$B$4:$H$855,4,0)),"",(VLOOKUP(J40,'KAYIT LİSTESİ'!$B$4:$H$855,4,0))) -> 2001-01-18 | M40: =IF(ISERROR(VLOOKUP(J40,'KAYIT LİSTESİ'!$B$4:$H$855,5,0)),"",(VLOOKUP(J40,'KAYIT LİSTESİ'!$B$4:$H$855,5,0))) -> MUSTAFA ASLANER | N40: =IF(ISERROR(VLOOKUP(J40,'KAYIT LİSTESİ'!$B$4:$H$855,6,0)),"",(VLOOKUP(J40,'KAYIT LİSTESİ'!$B$4:$H$855,6,0))) -> İZMİR
A41: 7 | B41: 800M-3-7 | C41: =IF(ISERROR(VLOOKUP(B41,'KAYIT LİSTESİ'!$B$4:$H$855,2,0)),"",(VLOOKUP(B41,'KAYIT LİSTESİ'!$B$4:$H$855,2,0))) -> 351 | D41: =IF(ISERROR(VLOOKUP(B41,'KAYIT LİSTESİ'!$B$4:$H$855,4,0)),"",(VLOOKUP(B41,'KAYIT LİSTESİ'!$B$4:$H$855,4,0))) -> 2001-01-18 | E41: =IF(ISERROR(VLOOKUP(B41,'KAYIT LİSTESİ'!$B$4:$H$855,5,0)),"",(VLOOKUP(B41,'KAYIT LİSTESİ'!$B$4:$H$855,5,0))) -> Ö.FARUK SONGÜL | F41: =IF(ISERROR(VLOOKUP(B41,'KAYIT LİSTESİ'!$B$4:$H$855,6,0)),"",(VLOOKUP(B41,'KAYIT LİSTESİ'!$B$4:$H$855,6,0))) -> ISPARTA | I41: 7 | J41: DİSK-7 | K41: =IF(ISERROR(VLOOKUP(J41,'KAYIT LİSTESİ'!$B$4:$H$855,2,0)),"",(VLOOKUP(J41,'KAYIT LİSTESİ'!$B$4:$H$855,2,0))) -> 208 | L41: =IF(ISERROR(VLOOKUP(J41,'KAYIT LİSTESİ'!$B$4:$H$855,4,0)),"",(VLOOKUP(J41,'KAYIT LİSTESİ'!$B$4:$H$855,4,0))) -> 2001-03-24 | M41: =IF(ISERROR(VLOOKUP(J41,'KAYIT LİSTESİ'!$B$4:$H$855,5,0)),"",(VLOOKUP(J41,'KAYIT LİSTESİ'!$B$4:$H$855,5,0))) -> CİHAT ÖZKAYA | N41: =IF(ISERROR(VLOOKUP(J41,'KAYIT LİSTESİ'!$B$4:$H$855,6,0)),"",(VLOOKUP(J41,'KAYIT LİSTESİ'!$B$4:$H$855,6,0))) -> BURSA
A42: 8 | B42: 800M-3-8 | C42: =IF(ISERROR(VLOOKUP(B42,'KAYIT LİSTESİ'!$B$4:$H$855,2,0)),"",(VLOOKUP(B42,'KAYIT LİSTESİ'!$B$4:$H$855,2,0))) -> 657 | D42: =IF(ISERROR(VLOOKUP(B42,'KAYIT LİSTESİ'!$B$4:$H$855,4,0)),"",(VLOOKUP(B42,'KAYIT LİSTESİ'!$B$4:$H$855,4,0))) -> 2001-10-01 | E42: =IF(ISERROR(VLOOKUP(B42,'KAYIT LİSTESİ'!$B$4:$H$855,5,0)),"",(VLOOKUP(B42,'KAYIT LİSTESİ'!$B$4:$H$855,5,0))) -> HÜSEYİN YILDIRIM | F42: =IF(ISERROR(VLOOKUP(B42,'KAYIT LİSTESİ'!$B$4:$H$855,6,0)),"",(VLOOKUP(B42,'KAYIT LİSTESİ'!$B$4:$H$855,6,0))) -> SİİRT | I42: 8 | J42: DİSK-8 | K42: =IF(ISERROR(VLOOKUP(J42,'KAYIT LİSTESİ'!$B$4:$H$855,2,0)),"",(VLOOKUP(J42,'KAYIT LİSTESİ'!$B$4:$H$855,2,0))) -> 713 | L42: =IF(ISERROR(VLOOKUP(J42,'KAYIT LİSTESİ'!$B$4:$H$855,4,0)),"",(VLOOKUP(J42,'KAYIT LİSTESİ'!$B$4:$H$855,4,0))) -> 2001-01-03 | M42: =IF(ISERROR(VLOOKUP(J42,'KAYIT LİSTESİ'!$B$4:$H$855,5,0)),"",(VLOOKUP(J42,'KAYIT LİSTESİ'!$B$4:$H$855,5,0))) -> ASLAN KAĞAN KALINTAŞ | N42: =IF(ISERROR(VLOOKUP(J42,'KAYIT LİSTESİ'!$B$4:$H$855,6,0)),"",(VLOOKUP(J42,'KAYIT LİSTESİ'!$B$4:$H$855,6,0))) -> TRABZON
A43: 9 | B43: 800M-3-9 | C43: =IF(ISERROR(VLOOKUP(B43,'KAYIT LİSTESİ'!$B$4:$H$855,2,0)),"",(VLOOKUP(B43,'KAYIT LİSTESİ'!$B$4:$H$855,2,0))) -> 209 | D43: =IF(ISERROR(VLOOKUP(B43,'KAYIT LİSTESİ'!$B$4:$H$855,4,0)),"",(VLOOKUP(B43,'KAYIT LİSTESİ'!$B$4:$H$855,4,0))) -> 2001-04-05 | E43: =IF(ISERROR(VLOOKUP(B43,'KAYIT LİSTESİ'!$B$4:$H$855,5,0)),"",(VLOOKUP(B43,'KAYIT LİSTESİ'!$B$4:$H$855,5,0))) -> RESUL YILMAZ | F43: =IF(ISERROR(VLOOKUP(B43,'KAYIT LİSTESİ'!$B$4:$H$855,6,0)),"",(VLOOKUP(B43,'KAYIT LİSTESİ'!$B$4:$H$855,6,0))) -> BURSA | I43: 9 | J43: DİSK-9 | K43: =IF(ISERROR(VLOOKUP(J43,'KAYIT LİSTESİ'!$B$4:$H$855,2,0)),"",(VLOOKUP(J43,'KAYIT LİSTESİ'!$B$4:$H$855,2,0))) ->  | L43: =IF(ISERROR(VLOOKUP(J43,'KAYIT LİSTESİ'!$B$4:$H$855,4,0)),"",(VLOOKUP(J43,'KAYIT LİSTESİ'!$B$4:$H$855,4,0))) ->  | M43: =IF(ISERROR(VLOOKUP(J43,'KAYIT LİSTESİ'!$B$4:$H$855,5,0)),"",(VLOOKUP(J43,'KAYIT LİSTESİ'!$B$4:$H$855,5,0))) ->  | N43: =IF(ISERROR(VLOOKUP(J43,'KAYIT LİSTESİ'!$B$4:$H$855,6,0)),"",(VLOOKUP(J43,'KAYIT LİSTESİ'!$B$4:$H$855,6,0))) -> 
A44: 10 | B44: 800M-3-10 | C44: =IF(ISERROR(VLOOKUP(B44,'KAYIT LİSTESİ'!$B$4:$H$855,2,0)),"",(VLOOKUP(B44,'KAYIT LİSTESİ'!$B$4:$H$855,2,0))) -> 113 | D44: =IF(ISERROR(VLOOKUP(B44,'KAYIT LİSTESİ'!$B$4:$H$855,4,0)),"",(VLOOKUP(B44,'KAYIT LİSTESİ'!$B$4:$H$855,4,0))) -> 2001-06-02 | E44: =IF(ISERROR(VLOOKUP(B44,'KAYIT LİSTESİ'!$B$4:$H$855,5,0)),"",(VLOOKUP(B44,'KAYIT LİSTESİ'!$B$4:$H$855,5,0))) -> ALİ KOŞAR | F44: =IF(ISERROR(VLOOKUP(B44,'KAYIT LİSTESİ'!$B$4:$H$855,6,0)),"",(VLOOKUP(B44,'KAYIT LİSTESİ'!$B$4:$H$855,6,0))) -> BALIKESİR | I44: 10 | J44: DİSK-10 | K44: =IF(ISERROR(VLOOKUP(J44,'KAYIT LİSTESİ'!$B$4:$H$855,2,0)),"",(VLOOKUP(J44,'KAYIT LİSTESİ'!$B$4:$H$855,2,0))) ->  | L44: =IF(ISERROR(VLOOKUP(J44,'KAYIT LİSTESİ'!$B$4:$H$855,4,0)),"",(VLOOKUP(J44,'KAYIT LİSTESİ'!$B$4:$H$855,4,0))) ->  | M44: =IF(ISERROR(VLOOKUP(J44,'KAYIT LİSTESİ'!$B$4:$H$855,5,0)),"",(VLOOKUP(J44,'KAYIT LİSTESİ'!$B$4:$H$855,5,0))) ->  | N44: =IF(ISERROR(VLOOKUP(J44,'KAYIT LİSTESİ'!$B$4:$H$855,6,0)),"",(VLOOKUP(J44,'KAYIT LİSTESİ'!$B$4:$H$855,6,0))) -> 
A45: 11 | B45: 800M-3-11 | C45: =IF(ISERROR(VLOOKUP(B45,'KAYIT LİSTESİ'!$B$4:$H$855,2,0)),"",(VLOOKUP(B45,'KAYIT LİSTESİ'!$B$4:$H$855,2,0))) ->  | D45: =IF(ISERROR(VLOOKUP(B45,'KAYIT LİSTESİ'!$B$4:$H$855,4,0)),"",(VLOOKUP(B45,'KAYIT LİSTESİ'!$B$4:$H$855,4,0))) ->  | E45: =IF(ISERROR(VLOOKUP(B45,'KAYIT LİSTESİ'!$B$4:$H$855,5,0)),"",(VLOOKUP(B45,'KAYIT LİSTESİ'!$B$4:$H$855,5,0))) ->  | F45: =IF(ISERROR(VLOOKUP(B45,'KAYIT LİSTESİ'!$B$4:$H$855,6,0)),"",(VLOOKUP(B45,'KAYIT LİSTESİ'!$B$4:$H$855,6,0))) ->  | I45: 11 | J45: DİSK-11 | K45: =IF(ISERROR(VLOOKUP(J45,'KAYIT LİSTESİ'!$B$4:$H$855,2,0)),"",(VLOOKUP(J45,'KAYIT LİSTESİ'!$B$4:$H$855,2,0))) ->  | L45: =IF(ISERROR(VLOOKUP(J45,'KAYIT LİSTESİ'!$B$4:$H$855,4,0)),"",(VLOOKUP(J45,'KAYIT LİSTESİ'!$B$4:$H$855,4,0))) ->  | M45: =IF(ISERROR(VLOOKUP(J45,'KAYIT LİSTESİ'!$B$4:$H$855,5,0)),"",(VLOOKUP(J45,'KAYIT LİSTESİ'!$B$4:$H$855,5,0))) ->  | N45: =IF(ISERROR(VLOOKUP(J45,'KAYIT LİSTESİ'!$B$4:$H$855,6,0)),"",(VLOOKUP(J45,'KAYIT LİSTESİ'!$B$4:$H$855,6,0))) -> 
A46: 12 | B46: 800M-3-12 | C46: =IF(ISERROR(VLOOKUP(B46,'KAYIT LİSTESİ'!$B$4:$H$855,2,0)),"",(VLOOKUP(B46,'KAYIT LİSTESİ'!$B$4:$H$855,2,0))) ->  | D46: =IF(ISERROR(VLOOKUP(B46,'KAYIT LİSTESİ'!$B$4:$H$855,4,0)),"",(VLOOKUP(B46,'KAYIT LİSTESİ'!$B$4:$H$855,4,0))) ->  | E46: =IF(ISERROR(VLOOKUP(B46,'KAYIT LİSTESİ'!$B$4:$H$855,5,0)),"",(VLOOKUP(B46,'KAYIT LİSTESİ'!$B$4:$H$855,5,0))) ->  | F46: =IF(ISERROR(VLOOKUP(B46,'KAYIT LİSTESİ'!$B$4:$H$855,6,0)),"",(VLOOKUP(B46,'KAYIT LİSTESİ'!$B$4:$H$855,6,0))) ->  | I46: 12 | J46: DİSK-12 | K46: =IF(ISERROR(VLOOKUP(J46,'KAYIT LİSTESİ'!$B$4:$H$855,2,0)),"",(VLOOKUP(J46,'KAYIT LİSTESİ'!$B$4:$H$855,2,0))) ->  | L46: =IF(ISERROR(VLOOKUP(J46,'KAYIT LİSTESİ'!$B$4:$H$855,4,0)),"",(VLOOKUP(J46,'KAYIT LİSTESİ'!$B$4:$H$855,4,0))) ->  | M46: =IF(ISERROR(VLOOKUP(J46,'KAYIT LİSTESİ'!$B$4:$H$855,5,0)),"",(VLOOKUP(J46,'KAYIT LİSTESİ'!$B$4:$H$855,5,0))) ->  | N46: =IF(ISERROR(VLOOKUP(J46,'KAYIT LİSTESİ'!$B$4:$H$855,6,0)),"",(VLOOKUP(J46,'KAYIT LİSTESİ'!$B$4:$H$855,6,0))) -> 
A47: 4. SERİ | I47: 13 | J47: DİSK-13 | K47: =IF(ISERROR(VLOOKUP(J47,'KAYIT LİSTESİ'!$B$4:$H$855,2,0)),"",(VLOOKUP(J47,'KAYIT LİSTESİ'!$B$4:$H$855,2,0))) ->  | L47: =IF(ISERROR(VLOOKUP(J47,'KAYIT LİSTESİ'!$B$4:$H$855,4,0)),"",(VLOOKUP(J47,'KAYIT LİSTESİ'!$B$4:$H$855,4,0))) ->  | M47: =IF(ISERROR(VLOOKUP(J47,'KAYIT LİSTESİ'!$B$4:$H$855,5,0)),"",(VLOOKUP(J47,'KAYIT LİSTESİ'!$B$4:$H$855,5,0))) ->  | N47: =IF(ISERROR(VLOOKUP(J47,'KAYIT LİSTESİ'!$B$4:$H$855,6,0)),"",(VLOOKUP(J47,'KAYIT LİSTESİ'!$B$4:$H$855,6,0))) -> 
A48: Sıra No | B48: Formül | C48: Göğüs No | D48: Doğum Tarihi | E48: Adı ve Soyadı | F48: Okulu | G48: Start Kontrol | I48: 14 | J48: DİSK-14 | K48: =IF(ISERROR(VLOOKUP(J48,'KAYIT LİSTESİ'!$B$4:$H$855,2,0)),"",(VLOOKUP(J48,'KAYIT LİSTESİ'!$B$4:$H$855,2,0))) ->  | L48: =IF(ISERROR(VLOOKUP(J48,'KAYIT LİSTESİ'!$B$4:$H$855,4,0)),"",(VLOOKUP(J48,'KAYIT LİSTESİ'!$B$4:$H$855,4,0))) ->  | M48: =IF(ISERROR(VLOOKUP(J48,'KAYIT LİSTESİ'!$B$4:$H$855,5,0)),"",(VLOOKUP(J48,'KAYIT LİSTESİ'!$B$4:$H$855,5,0))) ->  | N48: =IF(ISERROR(VLOOKUP(J48,'KAYIT LİSTESİ'!$B$4:$H$855,6,0)),"",(VLOOKUP(J48,'KAYIT LİSTESİ'!$B$4:$H$855,6,0))) -> 
A49: 1 | B49: 800M-4-1 | C49: =IF(ISERROR(VLOOKUP(B49,'KAYIT LİSTESİ'!$B$4:$H$855,2,0)),"",(VLOOKUP(B49,'KAYIT LİSTESİ'!$B$4:$H$855,2,0))) -> 143 | D49: =IF(ISERROR(VLOOKUP(B49,'KAYIT LİSTESİ'!$B$4:$H$855,4,0)),"",(VLOOKUP(B49,'KAYIT LİSTESİ'!$B$4:$H$855,4,0))) -> 2001-01-01 | E49: =IF(ISERROR(VLOOKUP(B49,'KAYIT LİSTESİ'!$B$4:$H$855,5,0)),"",(VLOOKUP(B49,'KAYIT LİSTESİ'!$B$4:$H$855,5,0))) -> HÜSNÜ İLHAN | F49: =IF(ISERROR(VLOOKUP(B49,'KAYIT LİSTESİ'!$B$4:$H$855,6,0)),"",(VLOOKUP(B49,'KAYIT LİSTESİ'!$B$4:$H$855,6,0))) -> BATMAN | I49: 15 | J49: DİSK-15 | K49: =IF(ISERROR(VLOOKUP(J49,'KAYIT LİSTESİ'!$B$4:$H$855,2,0)),"",(VLOOKUP(J49,'KAYIT LİSTESİ'!$B$4:$H$855,2,0))) ->  | L49: =IF(ISERROR(VLOOKUP(J49,'KAYIT LİSTESİ'!$B$4:$H$855,4,0)),"",(VLOOKUP(J49,'KAYIT LİSTESİ'!$B$4:$H$855,4,0))) ->  | M49: =IF(ISERROR(VLOOKUP(J49,'KAYIT LİSTESİ'!$B$4:$H$855,5,0)),"",(VLOOKUP(J49,'KAYIT LİSTESİ'!$B$4:$H$855,5,0))) ->  | N49: =IF(ISERROR(VLOOKUP(J49,'KAYIT LİSTESİ'!$B$4:$H$855,6,0)),"",(VLOOKUP(J49,'KAYIT LİSTESİ'!$B$4:$H$855,6,0))) -> 
A50: 2 | B50: 800M-4-2 | C50: =IF(ISERROR(VLOOKUP(B50,'KAYIT LİSTESİ'!$B$4:$H$855,2,0)),"",(VLOOKUP(B50,'KAYIT LİSTESİ'!$B$4:$H$855,2,0))) -> 726 | D50: =IF(ISERROR(VLOOKUP(B50,'KAYIT LİSTESİ'!$B$4:$H$855,4,0)),"",(VLOOKUP(B50,'KAYIT LİSTESİ'!$B$4:$H$855,4,0))) -> 2001-01-01 | E50: =IF(ISERROR(VLOOKUP(B50,'KAYIT LİSTESİ'!$B$4:$H$855,5,0)),"",(VLOOKUP(B50,'KAYIT LİSTESİ'!$B$4:$H$855,5,0))) -> HAKTAN YILDIZ | F50: =IF(ISERROR(VLOOKUP(B50,'KAYIT LİSTESİ'!$B$4:$H$855,6,0)),"",(VLOOKUP(B50,'KAYIT LİSTESİ'!$B$4:$H$855,6,0))) -> TUNCELİ | I50: 16 | J50: DİSK-16 | K50: =IF(ISERROR(VLOOKUP(J50,'KAYIT LİSTESİ'!$B$4:$H$855,2,0)),"",(VLOOKUP(J50,'KAYIT LİSTESİ'!$B$4:$H$855,2,0))) ->  | L50: =IF(ISERROR(VLOOKUP(J50,'KAYIT LİSTESİ'!$B$4:$H$855,4,0)),"",(VLOOKUP(J50,'KAYIT LİSTESİ'!$B$4:$H$855,4,0))) ->  | M50: =IF(ISERROR(VLOOKUP(J50,'KAYIT LİSTESİ'!$B$4:$H$855,5,0)),"",(VLOOKUP(J50,'KAYIT LİSTESİ'!$B$4:$H$855,5,0))) ->  | N50: =IF(ISERROR(VLOOKUP(J50,'KAYIT LİSTESİ'!$B$4:$H$855,6,0)),"",(VLOOKUP(J50,'KAYIT LİSTESİ'!$B$4:$H$855,6,0))) -> 
A51: 3 | B51: 800M-4-3 | C51: =IF(ISERROR(VLOOKUP(B51,'KAYIT LİSTESİ'!$B$4:$H$855,2,0)),"",(VLOOKUP(B51,'KAYIT LİSTESİ'!$B$4:$H$855,2,0))) -> 172 | D51: =IF(ISERROR(VLOOKUP(B51,'KAYIT LİSTESİ'!$B$4:$H$855,4,0)),"",(VLOOKUP(B51,'KAYIT LİSTESİ'!$B$4:$H$855,4,0))) -> 2001-01-01 | E51: =IF(ISERROR(VLOOKUP(B51,'KAYIT LİSTESİ'!$B$4:$H$855,5,0)),"",(VLOOKUP(B51,'KAYIT LİSTESİ'!$B$4:$H$855,5,0))) -> SERDAL ELELÇİ | F51: =IF(ISERROR(VLOOKUP(B51,'KAYIT LİSTESİ'!$B$4:$H$855,6,0)),"",(VLOOKUP(B51,'KAYIT LİSTESİ'!$B$4:$H$855,6,0))) -> BİNGÖL | I51: 17 | J51: DİSK-17 | K51: =IF(ISERROR(VLOOKUP(J51,'KAYIT LİSTESİ'!$B$4:$H$855,2,0)),"",(VLOOKUP(J51,'KAYIT LİSTESİ'!$B$4:$H$855,2,0))) ->  | L51: =IF(ISERROR(VLOOKUP(J51,'KAYIT LİSTESİ'!$B$4:$H$855,4,0)),"",(VLOOKUP(J51,'KAYIT LİSTESİ'!$B$4:$H$855,4,0))) ->  | M51: =IF(ISERROR(VLOOKUP(J51,'KAYIT LİSTESİ'!$B$4:$H$855,5,0)),"",(VLOOKUP(J51,'KAYIT LİSTESİ'!$B$4:$H$855,5,0))) ->  | N51: =IF(ISERROR(VLOOKUP(J51,'KAYIT LİSTESİ'!$B$4:$H$855,6,0)),"",(VLOOKUP(J51,'KAYIT LİSTESİ'!$B$4:$H$855,6,0))) -> 
A52: 4 | B52: 800M-4-4 | C52: =IF(ISERROR(VLOOKUP(B52,'KAYIT LİSTESİ'!$B$4:$H$855,2,0)),"",(VLOOKUP(B52,'KAYIT LİSTESİ'!$B$4:$H$855,2,0))) -> 173 | D52: =IF(ISERROR(VLOOKUP(B52,'KAYIT LİSTESİ'!$B$4:$H$855,4,0)),"",(VLOOKUP(B52,'KAYIT LİSTESİ'!$B$4:$H$855,4,0))) -> 2001-01-01 | E52: =IF(ISERROR(VLOOKUP(B52,'KAYIT LİSTESİ'!$B$4:$H$855,5,0)),"",(VLOOKUP(B52,'KAYIT LİSTESİ'!$B$4:$H$855,5,0))) -> YASİR BİRGİN | F52: =IF(ISERROR(VLOOKUP(B52,'KAYIT LİSTESİ'!$B$4:$H$855,6,0)),"",(VLOOKUP(B52,'KAYIT LİSTESİ'!$B$4:$H$855,6,0))) -> BİNGÖL | I52: 18 | J52: DİSK-18 | K52: =IF(ISERROR(VLOOKUP(J52,'KAYIT LİSTESİ'!$B$4:$H$855,2,0)),"",(VLOOKUP(J52,'KAYIT LİSTESİ'!$B$4:$H$855,2,0))) ->  | L52: =IF(ISERROR(VLOOKUP(J52,'KAYIT LİSTESİ'!$B$4:$H$855,4,0)),"",(VLOOKUP(J52,'KAYIT LİSTESİ'!$B$4:$H$855,4,0))) ->  | M52: =IF(ISERROR(VLOOKUP(J52,'KAYIT LİSTESİ'!$B$4:$H$855,5,0)),"",(VLOOKUP(J52,'KAYIT LİSTESİ'!$B$4:$H$855,5,0))) ->  | N52: =IF(ISERROR(VLOOKUP(J52,'KAYIT LİSTESİ'!$B$4:$H$855,6,0)),"",(VLOOKUP(J52,'KAYIT LİSTESİ'!$B$4:$H$855,6,0))) -> 
A53: 5 | B53: 800M-4-5 | C53: =IF(ISERROR(VLOOKUP(B53,'KAYIT LİSTESİ'!$B$4:$H$855,2,0)),"",(VLOOKUP(B53,'KAYIT LİSTESİ'!$B$4:$H$855,2,0))) -> 267 | D53: =IF(ISERROR(VLOOKUP(B53,'KAYIT LİSTESİ'!$B$4:$H$855,4,0)),"",(VLOOKUP(B53,'KAYIT LİSTESİ'!$B$4:$H$855,4,0))) -> 2001-10-27 | E53: =IF(ISERROR(VLOOKUP(B53,'KAYIT LİSTESİ'!$B$4:$H$855,5,0)),"",(VLOOKUP(B53,'KAYIT LİSTESİ'!$B$4:$H$855,5,0))) -> ENES YAZICI | F53: =IF(ISERROR(VLOOKUP(B53,'KAYIT LİSTESİ'!$B$4:$H$855,6,0)),"",(VLOOKUP(B53,'KAYIT LİSTESİ'!$B$4:$H$855,6,0))) -> ERZURUM | I53: 19 | J53: DİSK-19 | K53: =IF(ISERROR(VLOOKUP(J53,'KAYIT LİSTESİ'!$B$4:$H$855,2,0)),"",(VLOOKUP(J53,'KAYIT LİSTESİ'!$B$4:$H$855,2,0))) ->  | L53: =IF(ISERROR(VLOOKUP(J53,'KAYIT LİSTESİ'!$B$4:$H$855,4,0)),"",(VLOOKUP(J53,'KAYIT LİSTESİ'!$B$4:$H$855,4,0))) ->  | M53: =IF(ISERROR(VLOOKUP(J53,'KAYIT LİSTESİ'!$B$4:$H$855,5,0)),"",(VLOOKUP(J53,'KAYIT LİSTESİ'!$B$4:$H$855,5,0))) ->  | N53: =IF(ISERROR(VLOOKUP(J53,'KAYIT LİSTESİ'!$B$4:$H$855,6,0)),"",(VLOOKUP(J53,'KAYIT LİSTESİ'!$B$4:$H$855,6,0))) -> 
A54: 6 | B54: 800M-4-6 | C54: =IF(ISERROR(VLOOKUP(B54,'KAYIT LİSTESİ'!$B$4:$H$855,2,0)),"",(VLOOKUP(B54,'KAYIT LİSTESİ'!$B$4:$H$855,2,0))) -> 313 | D54: =IF(ISERROR(VLOOKUP(B54,'KAYIT LİSTESİ'!$B$4:$H$855,4,0)),"",(VLOOKUP(B54,'KAYIT LİSTESİ'!$B$4:$H$855,4,0))) -> 2001-09-21 | E54: =IF(ISERROR(VLOOKUP(B54,'KAYIT LİSTESİ'!$B$4:$H$855,5,0)),"",(VLOOKUP(B54,'KAYIT LİSTESİ'!$B$4:$H$855,5,0))) -> HÜSEYİN YALÇIN | F54: =IF(ISERROR(VLOOKUP(B54,'KAYIT LİSTESİ'!$B$4:$H$855,6,0)),"",(VLOOKUP(B54,'KAYIT LİSTESİ'!$B$4:$H$855,6,0))) -> HATAY | I54: 20 | J54: DİSK-20 | K54: =IF(ISERROR(VLOOKUP(J54,'KAYIT LİSTESİ'!$B$4:$H$855,2,0)),"",(VLOOKUP(J54,'KAYIT LİSTESİ'!$B$4:$H$855,2,0))) ->  | L54: =IF(ISERROR(VLOOKUP(J54,'KAYIT LİSTESİ'!$B$4:$H$855,4,0)),"",(VLOOKUP(J54,'KAYIT LİSTESİ'!$B$4:$H$855,4,0))) ->  | M54: =IF(ISERROR(VLOOKUP(J54,'KAYIT LİSTESİ'!$B$4:$H$855,5,0)),"",(VLOOKUP(J54,'KAYIT LİSTESİ'!$B$4:$H$855,5,0))) ->  | N54: =IF(ISERROR(VLOOKUP(J54,'KAYIT LİSTESİ'!$B$4:$H$855,6,0)),"",(VLOOKUP(J54,'KAYIT LİSTESİ'!$B$4:$H$855,6,0))) -> 
A55: 7 | B55: 800M-4-7 | C55: =IF(ISERROR(VLOOKUP(B55,'KAYIT LİSTESİ'!$B$4:$H$855,2,0)),"",(VLOOKUP(B55,'KAYIT LİSTESİ'!$B$4:$H$855,2,0))) -> 595 | D55: =IF(ISERROR(VLOOKUP(B55,'KAYIT LİSTESİ'!$B$4:$H$855,4,0)),"",(VLOOKUP(B55,'KAYIT LİSTESİ'!$B$4:$H$855,4,0))) -> 2001-08-03 | E55: =IF(ISERROR(VLOOKUP(B55,'KAYIT LİSTESİ'!$B$4:$H$855,5,0)),"",(VLOOKUP(B55,'KAYIT LİSTESİ'!$B$4:$H$855,5,0))) -> YASİN İNCİ | F55: =IF(ISERROR(VLOOKUP(B55,'KAYIT LİSTESİ'!$B$4:$H$855,6,0)),"",(VLOOKUP(B55,'KAYIT LİSTESİ'!$B$4:$H$855,6,0))) -> NEVŞEHİR | I55: 21 | J55: DİSK-21 | K55: =IF(ISERROR(VLOOKUP(J55,'KAYIT LİSTESİ'!$B$4:$H$855,2,0)),"",(VLOOKUP(J55,'KAYIT LİSTESİ'!$B$4:$H$855,2,0))) ->  | L55: =IF(ISERROR(VLOOKUP(J55,'KAYIT LİSTESİ'!$B$4:$H$855,4,0)),"",(VLOOKUP(J55,'KAYIT LİSTESİ'!$B$4:$H$855,4,0))) ->  | M55: =IF(ISERROR(VLOOKUP(J55,'KAYIT LİSTESİ'!$B$4:$H$855,5,0)),"",(VLOOKUP(J55,'KAYIT LİSTESİ'!$B$4:$H$855,5,0))) ->  | N55: =IF(ISERROR(VLOOKUP(J55,'KAYIT LİSTESİ'!$B$4:$H$855,6,0)),"",(VLOOKUP(J55,'KAYIT LİSTESİ'!$B$4:$H$855,6,0))) -> 
A56: 8 | B56: 800M-4-8 | C56: =IF(ISERROR(VLOOKUP(B56,'KAYIT LİSTESİ'!$B$4:$H$855,2,0)),"",(VLOOKUP(B56,'KAYIT LİSTESİ'!$B$4:$H$855,2,0))) ->  | D56: =IF(ISERROR(VLOOKUP(B56,'KAYIT LİSTESİ'!$B$4:$H$855,4,0)),"",(VLOOKUP(B56,'KAYIT LİSTESİ'!$B$4:$H$855,4,0))) ->  | E56: =IF(ISERROR(VLOOKUP(B56,'KAYIT LİSTESİ'!$B$4:$H$855,5,0)),"",(VLOOKUP(B56,'KAYIT LİSTESİ'!$B$4:$H$855,5,0))) ->  | F56: =IF(ISERROR(VLOOKUP(B56,'KAYIT LİSTESİ'!$B$4:$H$855,6,0)),"",(VLOOKUP(B56,'KAYIT LİSTESİ'!$B$4:$H$855,6,0))) ->  | I56: 22 | J56: DİSK-22 | K56: =IF(ISERROR(VLOOKUP(J56,'KAYIT LİSTESİ'!$B$4:$H$855,2,0)),"",(VLOOKUP(J56,'KAYIT LİSTESİ'!$B$4:$H$855,2,0))) ->  | L56: =IF(ISERROR(VLOOKUP(J56,'KAYIT LİSTESİ'!$B$4:$H$855,4,0)),"",(VLOOKUP(J56,'KAYIT LİSTESİ'!$B$4:$H$855,4,0))) ->  | M56: =IF(ISERROR(VLOOKUP(J56,'KAYIT LİSTESİ'!$B$4:$H$855,5,0)),"",(VLOOKUP(J56,'KAYIT LİSTESİ'!$B$4:$H$855,5,0))) ->  | N56: =IF(ISERROR(VLOOKUP(J56,'KAYIT LİSTESİ'!$B$4:$H$855,6,0)),"",(VLOOKUP(J56,'KAYIT LİSTESİ'!$B$4:$H$855,6,0))) -> 
